Workbook

Sheet INICIO

Sheet 1
A1: CUADRO 1. COSTA RICA: TOTAL Y VARIACIÓN DEL PADRÓN NACIONAL ELECTORAL
A2: SEGÚN PROVINCIA Y SEXO. ELECCIONES MUNICIPALES
A3: DICIEMBRE 2010 A FEBRERO 2016
A5: PROVINCIA Y SEXO | B5: PADRÓN NACIONAL ELECTORAL | D5: VARIACIÓN
B7: DICIEMBRE 2010 | C7: FEBRERO 2016 | D7: ABSOLUTO | E7: %
A9: COSTA RICA | B9: =+B10+B11 -> 2865509 | C9: =+C10+C11 -> 3178364 | D9: =+C9-B9 -> 312855 | E9: =+D9/B9*100 -> 10.91795559
A10: HOMBRES | B10: =+B14+B18+B22+B26+B30+B34+B38 -> 1430519 | C10: =+C14+C18+C22+C26+C30+C34+C38 -> 1584178 | D10: =+C10-B10 -> 153659 | E10: =+D10/B10*100 -> 10.74148613
A11: MUJERES | B11: =+B15+B19+B23+B27+B31+B35+B39 -> 1434990 | C11: =+C15+C19+C23+C27+C31+C35+C39 -> 1594186 | D11: =+C11-B11 -> 159196 | E11: =+D11/B11*100 -> 11.09387522
A13: SAN JOSÉ | B13: =+B14+B15 -> 1016678 | C13: =+C14+C15 -> 1088828 | D13: =+C13-B13 -> 72150 | E13: =+D13/B13*100 -> 7.096642201
A14: HOMBRES | B14: 495505 | C14: 530482 | D14: =+C14-B14 -> 34977 | E14: =+D14/B14*100 -> 7.058859144
A15: MUJERES | B15: 521173 | C15: 558346 | D15: =+C15-B15 -> 37173 | E15: =+D15/B15*100 -> 7.132564427
A17: ALAJUELA | B17: =+B18+B19 -> 533285 | C17: =+C18+C19 -> 604089 | D17: =+C17-B17 -> 70804 | E17: =+D17/B17*100 -> 13.27695322
A18: HOMBRES | B18: 269128 | C18: 304791 | D18: =+C18-B18 -> 35663 | E18: =+D18/B18*100 -> 13.25131536
A19: MUJERES | B19: 264157 | C19: 299298 | D19: =+C19-B19 -> 35141 | E19: =+D19/B19*100 -> 13.30307355
A21: CARTAGO | B21: =+B22+B23 -> 334473 | C21: =+C22+C23 -> 374190 | D21: =+C21-B21 -> 39717 | E21: =+D21/B21*100 -> 11.87450108
A22: HOMBRES | B22: 167036 | C22: 186298 | D22: =+C22-B22 -> 19262 | E22: =+D22/B22*100 -> 11.53164587
A23: MUJERES | B23: 167437 | C23: 187892 | D23: =+C23-B23 -> 20455 | E23: =+D23/B23*100 -> 12.21653517
A25: HEREDIA | B25: =+B26+B27 -> 283771 | C25: =+C26+C27 -> 319674 | D25: =+C25-B25 -> 35903 | E25: =+D25/B25*100 -> 12.65210328
A26: HOMBRES | B26: 139912 | C26: 157161 | D26: =+C26-B26 -> 17249 | E26: =+D26/B26*100 -> 12.32846361
A27: MUJERES | B27: 143859 | C27: 162513 | D27: =+C27-B27 -> 18654 | E27: =+D27/B27*100 -> 12.96686339
A29: GUANACASTE | B29: =+B30+B31 -> 203614 | C29: =+C30+C31 -> 231102 | D29: =+C29-B29 -> 27488 | E29: =+D29/B29*100 -> 13.50005402
A30: HOMBRES | B30: 103249 | C30: 116777 | D30: =+C30-B30 -> 13528 | E30: =+D30/B30*100 -> 13.10230608
A31: MUJERES | B31: 100365 | C31: 114325 | D31: =+C31-B31 -> 13960 | E31: =+D31/B31*100 -> 13.90923131
A33: PUNTARENAS | B33: =+B34+B35 -> 265197 | C33: =+C34+C35 -> 299227 | D33: =+C33-B33 -> 34030 | E33: =+D33/B33*100 -> 12.8319702
A34: HOMBRES | B34: 136989 | C34: 153648 | D34: =+C34-B34 -> 16659 | E34: =+D34/B34*100 -> 12.16083043
A35: MUJERES | B35: 128208 | C35: 145579 | D35: =+C35-B35 -> 17371 | E35: =+D35/B35*100 -> 13.5490765
A37: LIMÓN | B37: =+B38+B39 -> 228491 | C37: =+C38+C39 -> 261254 | D37: =+C37-B37 -> 32763 | E37: =+D37/B37*100 -> 14.33885799
A38: HOMBRES | B38: 118700 | C38: 135021 | D38: =+C38-B38 -> 16321 | E38: =+D38/B38*100 -> 13.74978939
A39: MUJERES | B39: 109791 | C39: 126233 | D39: =+C39-B39 -> 16442 | E39: =+D39/B39*100 -> 14.97572661
A43: Fuente: Sección Padrón Electoral del Tribunal Supremo de Elecciones.

Sheet G1
A1: MENU
J5: MENU
A26: Fuente: Sección Padrón Electoral del Tribunal Supremo de Elecciones.
B28: 2010 | C28: 2016
A30: GUANACASTE | B30: =+'1'!B29 -> 203614 | C30: =+'1'!C29 -> 231102
A31: LIMÓN | B31: =+'1'!B37 -> 228491 | C31: =+'1'!C37 -> 261254
A32: PUNTARENAS | B32: =+'1'!B33 -> 265197 | C32: =+'1'!C33 -> 299227
A33: HEREDIA | B33: =+'1'!B25 -> 283771 | C33: =+'1'!C25 -> 319674
A34: CARTAGO | B34: =+'1'!B21 -> 334473 | C34: =+'1'!C21 -> 374190
A35: ALAJUELA | B35: =+'1'!B17 -> 533285 | C35: =+'1'!C17 -> 604089
A36: SAN JOSÉ | B36: =+'1'!B13 -> 1016678 | C36: =+'1'!C13 -> 1088828
B39: =SUM(B30:B36) -> 2865509 | C39: =SUM(C30:C36) -> 3178364

Sheet 2
A1: CUADRO 2. COSTA RICA: PADRÓN NACIONAL ELECTORAL POR SEXO
A2: SEGÚN PROVINCIA Y CANTÓN. ELECCIONES MUNICIPALES
A3: DICIEMBRE 2010 Y FEBRERO 2016
A5: PROVINCIA Y CANTÓN | B5: PADRÓN NACIONAL ELECTORAL
B6: DICIEMBRE 2010 | E6: FEBRERO 2016
B7: TOTAL | C7: HOMBRES | D7: MUJERES | E7: TOTAL | F7: HOMBRES | G7: MUJERES
A9: COSTA RICA | B9: =+B18+B40+B57+B67+B79+B92+B105 -> 2865509 | C9: =+C18+C40+C57+C67+C79+C92+C105 -> 1430519 | D9: =+D18+D40+D57+D67+D79+D92+D105 -> 1434990 | E9: 3178364 | F9: 1584178 | G9: 1594186
A10: SAN JOSÉ | B10: =+B18 -> 1016678 | C10: 495505 | D10: 521173 | E10: 1088828 | F10: 530482 | G10: 558346
A11: ALAJUELA | B11: =+B40 -> 533285 | C11: 269128 | D11: 264157 | E11: 604089 | F11: 304791 | G11: 299298
A12: CARTAGO | B12: =+B57 -> 334473 | C12: 167036 | D12: 167437 | E12: 374190 | F12: 186298 | G12: 187892
A13: HEREDIA | B13: =+B67 -> 283771 | C13: 139912 | D13: 143859 | E13: 319674 | F13: 157161 | G13: 162513
A14: GUANACASTE | B14: =+B79 -> 203614 | C14: 103249 | D14: 100365 | E14: 231102 | F14: 116777 | G14: 114325
A15: PUNTARENAS | B15: =+B92 -> 265197 | C15: 136989 | D15: 128208 | E15: 299227 | F15: 153648 | G15: 145579
A16: LIMÓN | B16: =+B105 -> 228491 | C16: 118700 | D16: 109791 | E16: 261254 | F16: 135021 | G16: 126233
A18: SAN JOSÉ | B18: =SUM(B19:B38) -> 1016678 | C18: 495505 | D18: 521173 | E18: 1088828 | F18: 530482 | G18: 558346
A19: SAN JOSÉ | B19: =+C19+D19 -> 225542 | C19: 108215 | D19: 117327 | E19: =+F19+G19 -> 231684 | F19: 111893 | G19: 119791
A20: ESCAZÚ | B20: 40526 | C20: 19736 | D20: 20790 | E20: 44982 | F20: 21974 | G20: 23008
A21: DESAMPARADOS | B21: 144901 | C21: 71011 | D21: 73890 | E21: 156610 | F21: 76637 | G21: 79973
A22: PURISCAL | B22: 24663 | C22: 12429 | D22: 12234 | E22: 27437 | F22: 13782 | G22: 13655
A23: TARRAZÚ | B23: 10616 | C23: 5449 | D23: 5167 | E23: 11843 | F23: 5965 | G23: 5878
A24: ASERRÍ | B24: 37616 | C24: 18801 | D24: 18815 | E24: 41808 | F24: 20847 | G24: 20961
A25: MORA | B25: 17413 | C25: 8641 | D25: 8772 | E25: 20263 | F25: 10006 | G25: 10257
A26: GOICOECHEA | B26: 85797 | C26: 41130 | D26: 44667 | E26: 88592 | F26: 42299 | G26: 46293
A27: SANTA ANA | B27: 27941 | C27: 13729 | D27: 14212 | E27: 32863 | F27: 16097 | G27: 16766
A28: ALAJUELITA | B28: 44907 | C28: 22315 | D28: 22592 | E28: 49065 | F28: 24259 | G28: 24806
A29: VÁZQUEZ DE CORONADO | B29: 45831 | C29: 22200 | D29: 23631 | E29: 51588 | F29: 24845 | G29: 26743
A30: ACOSTA | B30: 14354 | C30: 7482 | D30: 6872 | E30: 16028 | F30: 8220 | G30: 7808
A31: TIBÁS | B31: 55315 | C31: 26064 | D31: 29251 | E31: 55709 | F31: 26170 | G31: 29539
A32: MORAVIA | B32: 40392 | C32: 19306 | D32: 21086 | E32: 43464 | F32: 20824 | G32: 22640
A33: MONTES DE OCA | B33: 41135 | C33: 19190 | D33: 21945 | E33: 41908 | F33: 19679 | G33: 22229
A34: TURRUBARES | B34: 4187 | C34: 2195 | D34: 1992 | E34: 4484 | F34: 2321 | G34: 2163
A35: DOTA | B35: 4836 | C35: 2437 | D35: 2399 | E35: 5376 | F35: 2697 | G35: 2679
A36: CURRIDABAT | B36: 44286 | C36: 21313 | D36: 22973 | E36: 47468 | F36: 22774 | G36: 24694
A37: PÉREZ ZELEDÓN | B37: 98271 | C37: 49699 | D37: 48572 | E37: 108626 | F37: 54587 | G37: 54039
A38: LEÓN CORTÉS | B38: 8149 | C38: 4163 | D38: 3986 | E38: 9030 | F38: 4606 | G38: 4424
A40: ALAJUELA | B40: =SUM(B41:B55) -> 533285 | C40: 269128 | D40: 264157 | E40: 604089 | F40: 304791 | G40: 299298
A41: ALAJUELA | B41: =+C41+D41 -> 173149 | C41: 87161 | D41: 85988 | E41: =+F41+G41 -> 193569 | F41: 97613 | G41: 95956
A42: SAN RAMÓN | B42: 53851 | C42: 26770 | D42: 27081 | E42: 60762 | F42: 30281 | G42: 30481
A43: GRECIA | B43: 50974 | C43: 25480 | D43: 25494 | E43: 57117 | F43: 28502 | G43: 28615
A44: SAN MATEO | B44: 3822 | C44: 1984 | D44: 1838 | E44: 4365 | F44: 2242 | G44: 2123
A45: ATENAS | B45: 17658 | C45: 8873 | D45: 8785 | E45: 19661 | F45: 9886 | G45: 9775
A46: NARANJO | B46: 28029 | C46: 13921 | D46: 14108 | E46: 30801 | F46: 15274 | G46: 15527
A47: PALMARES | B47: 25315 | C47: 12541 | D47: 12774 | E47: 28151 | F47: 13946 | G47: 14205
A48: POÁS | B48: 18233 | C48: 9174 | D48: 9059 | E48: 20803 | F48: 10455 | G48: 10348
A49: OROTINA | B49: 12953 | C49: 6479 | D49: 6474 | E49: 14762 | F49: 7408 | G49: 7354
A50: SAN CARLOS | B50: 88519 | C50: 45250 | D50: 43269 | E50: 102906 | F50: 52494 | G50: 50412
A51: ALFARO RUIZ (ZARCERO) | B51: 7973 | C51: 3999 | D51: 3974 | E51: 8802 | F51: 4382 | G51: 4420
A52: VALVERDE VEGA | B52: 12819 | C52: 6382 | D52: 6437 | E52: 14208 | F52: 7057 | G52: 7151
A53: UPALA | B53: 21797 | C53: 11432 | D53: 10365 | E53: 26574 | F53: 13814 | G53: 12760
A54: LOS CHILES | B54: 9243 | C54: 4991 | D54: 4252 | E54: 11212 | F54: 6047 | G54: 5165
A55: GUATUSO | B55: 8950 | C55: 4691 | D55: 4259 | E55: 10396 | F55: 5390 | G55: 5006
A57: CARTAGO | B57: =SUM(B58:B65) -> 334473 | C57: 167036 | D57: 167437 | E57: 374190 | F57: 186298 | G57: 187892
A58: CARTAGO | B58: =+C58+D58 -> 106013 | C58: 52424 | D58: 53589 | E58: =+F58+G58 -> 117991 | F58: 58534 | G58: 59457
A59: PARAÍSO | B59: 39836 | C59: 19941 | D59: 19895 | E59: 44765 | F59: 22283 | G59: 22482
A60: LA UNIÓN | B60: 59152 | C60: 29511 | D60: 29641 | E60: 67581 | F60: 33412 | G60: 34169
A61: JIMÉNEZ | B61: 10600 | C61: 5498 | D61: 5102 | E61: 11681 | F61: 6002 | G61: 5679
A62: TURRIALBA | B62: 51904 | C62: 26079 | D62: 25825 | E62: 55945 | F62: 28019 | G62: 27926
A63: ALVARADO | B63: 8697 | C63: 4396 | D63: 4301 | E63: 9985 | F63: 5007 | G63: 4978
A64: OREAMUNO | B64: 30700 | C64: 15159 | D64: 15541 | E64: 34952 | F64: 17160 | G64: 17792
A65: EL GUARCO | B65: 27571 | C65: 14028 | D65: 13543 | E65: 31290 | F65: 15881 | G65: 15409
A67: HEREDIA | B67: =SUM(B68:B77) -> 283771 | C67: 139912 | D67: 143859 | E67: 319674 | F67: 157161 | G67: 162513
A68: HEREDIA | B68: =+C68+D68 -> 85356 | C68: 40946 | D68: 44410 | E68: =+F68+G68 -> 93490 | F68: 44718 | G68: 48772
A69: BARVA | B69: 27552 | C69: 13533 | D69: 14019 | E69: 31461 | F69: 15413 | G69: 16048
A70: SANTO DOMINGO | B70: 30722 | C70: 15184 | D70: 15538 | E70: 33424 | F70: 16466 | G70: 16958
A71: SANTA BÁRBARA | B71: 22788 | C71: 11356 | D71: 11432 | E71: 25705 | F71: 12759 | G71: 12946
A72: SAN RAFAEL | B72: 29538 | C72: 14634 | D72: 14904 | E72: 33543 | F72: 16659 | G72: 16884
A73: SAN ISIDRO | B73: 13112 | C73: 6576 | D73: 6536 | E73: 15301 | F73: 7678 | G73: 7623
A74: BELÉN | B74: 15982 | C74: 7880 | D74: 8102 | E74: 18012 | F74: 8879 | G74: 9133
A75: FLORES | B75: 13761 | C75: 6731 | D75: 7030 | E75: 15949 | F75: 7778 | G75: 8171
A76: SAN PABLO | B76: 18343 | C76: 8855 | D76: 9488 | E76: 21083 | F76: 10175 | G76: 10908
A77: SARAPIQUÍ | B77: 26617 | C77: 14217 | D77: 12400 | E77: 31706 | F77: 16636 | G77: 15070
A79: GUANACASTE | B79: =SUM(B80:B90) -> 203614 | C79: 103249 | D79: 100365 | E79: 231102 | F79: 116777 | G79: 114325
A80: LIBERIA | B80: =+C80+D80 -> 37797 | C80: 18911 | D80: 18886 | E80: =+F80+G80 -> 43059 | F80: 21575 | G80: 21484
A81: NICOYA | B81: 35669 | C81: 18012 | D81: 17657 | E81: 39567 | F81: 19852 | G81: 19715
A82: SANTA CRUZ | B82: 34567 | C82: 17669 | D82: 16898 | E82: 39431 | F82: 20050 | G82: 19381
A83: BAGACES | B83: 11245 | C83: 5717 | D83: 5528 | E83: 13067 | F83: 6624 | G83: 6443
A84: CARRILLO | B84: 20050 | C84: 10219 | D84: 9831 | E84: 23197 | F84: 11760 | G84: 11437
A85: CAÑAS | B85: 17344 | C85: 8696 | D85: 8648 | E85: 19065 | F85: 9561 | G85: 9504
A86: ABANGARES | B86: 11763 | C86: 6040 | D86: 5723 | E86: 13237 | F86: 6733 | G86: 6504
A87: TILARÁN | B87: 13309 | C87: 6702 | D87: 6607 | E87: 14622 | F87: 7337 | G87: 7285
A88: NANDAYURE | B88: 7489 | C88: 3909 | D88: 3580 | E88: 8278 | F88: 4279 | G88: 3999
A89: LA CRUZ | B89: 9262 | C89: 4732 | D89: 4530 | E89: 11808 | F89: 6030 | G89: 5778
A90: HOJANCHA | B90: 5119 | C90: 2642 | D90: 2477 | E90: 5771 | F90: 2976 | G90: 2795
A92: PUNTARENAS | B92: =SUM(B93:B103) -> 265197 | C92: 136989 | D92: 128208 | E92: 299227 | F92: 153648 | G92: 145579
A93: PUNTARENAS | B93: =+C93+D93 -> 77238 | C93: 39656 | D93: 37582 | E93: =+F93+G93 -> 84342 | F93: 43228 | G93: 41114
A94: ESPARZA | B94: 18825 | C94: 9370 | D94: 9455 | E94: 21684 | F94: 10766 | G94: 10918
A95: BUENOS AIRES | B95: 27392 | C95: 14450 | D95: 12942 | E95: 30931 | F95: 16122 | G95: 14809
A96: MONTES DE ORO | B96: 8750 | C96: 4337 | D96: 4413 | E96: 9941 | F96: 4962 | G96: 4979
A97: OSA | B97: 18664 | C97: 9964 | D97: 8700 | E97: 21229 | F97: 11201 | G97: 10028
A98: AGUIRRE | B98: 16693 | C98: 8909 | D98: 7784 | E98: 18798 | F98: 9962 | G98: 8836
A99: GOLFITO | B99: 25019 | C99: 13054 | D99: 11965 | E99: 28587 | F99: 14881 | G99: 13706
A100: COTO BRUS | B100: 26188 | C100: 13291 | D100: 12897 | E100: 28684 | F100: 14490 | G100: 14194
A101: PARRITA | B101: 9776 | C101: 5118 | D101: 4658 | E101: 11285 | F101: 5816 | G101: 5469
A102: CORREDORES | B102: 27936 | C102: 14168 | D102: 13768 | E102: 32790 | F102: 16460 | G102: 16330
A103: GARABITO | B103: 8716 | C103: 4672 | D103: 4044 | E103: 10956 | F103: 5760 | G103: 5196
A105: LIMÓN | B105: =SUM(B106:B111) -> 228491 | C105: 118700 | D105: 109791 | E105: 261254 | F105: 135021 | G105: 126233
A106: LIMÓN | B106: =+C106+D106 -> 61603 | C106: 31186 | D106: 30417 | E106: =+F106+G106 -> 66628 | F106: 33472 | G106: 33156
A107: POCOCÍ | B107: 75016 | C107: 39302 | D107: 35714 | E107: 87921 | F107: 45944 | G107: 41977
A108: SIQUIRRES | B108: 34544 | C108: 18170 | D108: 16374 | E108: 38953 | F108: 20408 | G108: 18545
A109: TALAMANCA | B109: 15458 | C109: 8212 | D109: 7246 | E109: 19165 | F109: 10049 | G109: 9116
A110: MATINA | B110: 18313 | C110: 9640 | D110: 8673 | E110: 20908 | F110: 10883 | G110: 10025
A111: GUÁCIMO | B111: 23557 | C111: 12190 | D111: 11367 | E111: 27679 | F111: 14265 | G111: 13414
A114: Fuente: Sección Padrón Electoral del Tribunal Supremo de Elecciones.

Sheet 3
A1: CUADRO 3. COSTA RICA: PADRÓN NACIONAL ELECTORAL POR SEXO
A2: SEGÚN EDADES SIMPLES. ELECCIONES MUNICIPALES
A3: 7 DE FEBRERO 2016
A5: EDAD AL 7 DE FEBRERO DEL 2016 | B5: TOTAL | C5: SEXO
B6: Total | C6: HOMBRES | D6: MUJERES
A8: TOTAL | B8: =SUM(B10:B104) -> 3178364 | C8: =SUM(C10:C104) -> 1584178 | D8: =SUM(D10:D104) -> 1594186
A10: 18 AÑOS | B10: =+C10+D10 -> 53232 | C10: 26720 | D10: 26512
A11: 19 AÑOS | B11: 76256 | C11: 38904 | D11: 37352
A12: 20 AÑOS | B12: 77018 | C12: 39366 | D12: 37652
A13: 21 AÑOS | B13: 77874 | C13: 39637 | D13: 38237
A14: 22 AÑOS | B14: 77202 | C14: 39787 | D14: 37415
A15: 23 AÑOS | B15: 77468 | C15: 39388 | D15: 38080
A16: 24 AÑOS | B16: 77194 | C16: 39421 | D16: 37773
A17: 25 AÑOS | B17: 79296 | C17: 40791 | D17: 38505
A18: 26 AÑOS | B18: 81248 | C18: 41313 | D18: 39935
A19: 27 AÑOS | B19: 79328 | C19: 40475 | D19: 38853
A20: 28 AÑOS | B20: 76662 | C20: 39089 | D20: 37573
A21: 29 AÑOS | B21: 79397 | C21: 40208 | D21: 39189
A22: 30 AÑOS | B22: 81037 | C22: 41254 | D22: 39783
A23: 31 AÑOS | B23: 76138 | C23: 38449 | D23: 37689
A24: 32 AÑOS | B24: 69838 | C24: 35410 | D24: 34428
A25: 33 AÑOS | B25: 69498 | C25: 35143 | D25: 34355
A26: 34 AÑOS | B26: 69280 | C26: 34932 | D26: 34348
A27: 35 AÑOS | B27: 67848 | C27: 34214 | D27: 33634
A28: 36 AÑOS | B28: 65197 | C28: 32996 | D28: 32201
A29: 37 AÑOS | B29: 63517 | C29: 31781 | D29: 31736
A30: 38 AÑOS | B30: 61474 | C30: 30873 | D30: 30601
A31: 39 AÑOS | B31: 56831 | C31: 28637 | D31: 28194
A32: 40 AÑOS | B32: 54729 | C32: 27471 | D32: 27258
A33: 41 AÑOS | B33: 54767 | C33: 27662 | D33: 27105
A34: 42 AÑOS | B34: 53347 | C34: 26765 | D34: 26582
A35: 43 AÑOS | B35: 53661 | C35: 26904 | D35: 26757
A36: 44 AÑOS | B36: 53936 | C36: 26723 | D36: 27213
A37: 45 AÑOS | B37: 53292 | C37: 26807 | D37: 26485
A38: 46 AÑOS | B38: 53537 | C38: 26661 | D38: 26876
A39: 47 AÑOS | B39: 53934 | C39: 27033 | D39: 26901
A40: 48 AÑOS | B40: 55505 | C40: 27733 | D40: 27772
A41: 49 AÑOS | B41: 55682 | C41: 27510 | D41: 28172
A42: 50 AÑOS | B42: 54968 | C42: 27469 | D42: 27499
A43: 51 AÑOS | B43: 54184 | C43: 26895 | D43: 27289
A44: 52 AÑOS | B44: 54067 | C44: 26866 | D44: 27201
A45: 53 AÑOS | B45: 51751 | C45: 25526 | D45: 26225
A46: 54 AÑOS | B46: 51335 | C46: 25580 | D46: 25755
A47: 55 AÑOS | B47: 50285 | C47: 24713 | D47: 25572
A48: 56 AÑOS | B48: 47544 | C48: 23501 | D48: 24043
A49: 57 AÑOS | B49: 44988 | C49: 22188 | D49: 22800
A50: 58 AÑOS | B50: 43009 | C50: 21157 | D50: 21852
A51: 59 AÑOS | B51: 41564 | C51: 20433 | D51: 21131
A52: 60 AÑOS | B52: 40003 | C52: 19463 | D52: 20540
A53: 61 AÑOS | B53: 38337 | C53: 18782 | D53: 19555
A54: 62 AÑOS | B54: 34820 | C54: 17042 | D54: 17778
A55: 63 AÑOS | B55: 32980 | C55: 16014 | D55: 16966
A56: 64 AÑOS | B56: 30646 | C56: 14807 | D56: 15839
A57: 65 AÑOS | B57: 29211 | C57: 14185 | D57: 15026
A58: 66 AÑOS | B58: 27871 | C58: 13435 | D58: 14436
A59: 67 AÑOS | B59: 24966 | C59: 11988 | D59: 12978
A60: 68 AÑOS | B60: 23486 | C60: 11314 | D60: 12172
A61: 69 AÑOS | B61: 22162 | C61: 10687 | D61: 11475
A62: 70 AÑOS | B62: 21324 | C62: 10304 | D62: 11020
A63: 71 AÑOS | B63: 20270 | C63: 9637 | D63: 10633
A64: 72 AÑOS | B64: 18273 | C64: 8778 | D64: 9495
A65: 73 AÑOS | B65: 16869 | C65: 7915 | D65: 8954
A66: 74 AÑOS | B66: 15836 | C66: 7455 | D66: 8381
A67: 75 AÑOS | B67: 14970 | C67: 7058 | D67: 7912
A68: 76 AÑOS | B68: 14129 | C68: 6693 | D68: 7436
A69: 77 AÑOS | B69: 13355 | C69: 6329 | D69: 7026
A70: 78 AÑOS | B70: 12401 | C70: 5765 | D70: 6636
A71: 79 AÑOS | B71: 11495 | C71: 5191 | D71: 6304
A72: 80 AÑOS | B72: 10495 | C72: 4697 | D72: 5798
A73: 81 AÑOS | B73: 9442 | C73: 4274 | D73: 5168
A74: 82 AÑOS | B74: =+C74+D74 -> 8663 | C74: 3854 | D74: 4809
A75: 83 AÑOS | B75: 8154 | C75: 3589 | D75: 4565
A76: 84 AÑOS | B76: 7458 | C76: 3219 | D76: 4239
A77: 85 AÑOS | B77: 6774 | C77: 2963 | D77: 3811
A78: 86 AÑOS | B78: 5845 | C78: 2493 | D78: 3352
A79: 87 AÑOS | B79: 5517 | C79: 2334 | D79: 3183
A80: 88 AÑOS | B80: 4828 | C80: 2098 | D80: 2730
A81: 89 AÑOS | B81: 4031 | C81: 1680 | D81: 2351
A82: 90 AÑOS | B82: 3071 | C82: 1214 | D82: 1857
A83: 91 AÑOS | B83: 2695 | C83: 1074 | D83: 1621
A84: 92 AÑOS | B84: 2071 | C84: 818 | D84: 1253
A85: 93 AÑOS | B85: 1773 | C85: 706 | D85: 1067
A86: 94 AÑOS | B86: 1530 | C86: 588 | D86: 942
A87: 95 AÑOS | B87: 1000 | C87: 369 | D87: 631
A88: 96 AÑOS | B88: 735 | C88: 268 | D88: 467
A89: 97 AÑOS | B89: 559 | C89: 201 | D89: 358
A90: 98 AÑOS | B90: 402 | C90: 165 | D90: 237
A91: 99 AÑOS | B91: 315 | C91: 118 | D91: 197
A92: 100 AÑOS | B92: 234 | C92: 81 | D92: 153
A93: 101 AÑOS | B93: 190 | C93: 64 | D93: 126
A94: 102 AÑOS | B94: 96 | C94: 25 | D94: 71
A95: 103 AÑOS | B95: 64 | C95: 25 | D95: 39
A96: 104 AÑOS | B96: 36 | C96: 14 | D96: 22
A97: 105 AÑOS | B97: 25 | C97: 4 | D97: 21
A98: 106 AÑOS | B98: 19 | C98: 8 | D98: 11
A99: 107 AÑOS | B99: 8 | C99: 3 | D99: 5
A100: 108 AÑOS | B100: 4 | C100: 2 | D100: 2
A101: 109 AÑOS | B101: 2 | C101: 0 | D101: 2
A102: 110 AÑOS | B102: 4 | C102: 2 | D102: 2
A103: 113 AÑOS | B103: 1 | C103: 0 | D103: 1
A104: 115 AÑOS | B104: 1 | C104: 1 | D104: 0
A107: Fuente: Sección Padrón Electoral del Tribunal Supremo de Elecciones.

Sheet 4
A1: CUADRO 4. COSTA RICA: PADRÓN NACIONAL ELECTORAL POR SEXO
A2: SEGÚN GRUPOS DE EDAD. ELECCIONES MUNICIAPLES
A3: 7 DE FEBRERO 2016
A5: GRUPOS DE EDAD | B5: TOTAL | C5: SEXO
B6: Total | C6: HOMBRES | D6: MUJERES
A8: TOTAL | B8: =SUM(B10:B24) -> 3178364 | C8: =SUM(C10:C24) -> 1584178 | D8: =SUM(D10:D24) -> 1594186
A10: 18 - 19 | B10: =+C10+D10 -> 206506 | C10: 104990 | D10: 101516
A11: 20 - 24 | B11: =+C11+D11 -> 309738 | C11: 158233 | D11: 151505
A12: 25 - 29 | B12: =+C12+D12 -> 395931 | C12: 201876 | D12: 194055
A13: 30 - 34 | B13: 365791 | C13: 185188 | D13: 180603
A14: 35 - 39 | B14: 314867 | C14: 158501 | D14: 156366
A15: 40 - 44 | B15: 270440 | C15: 135525 | D15: 134915
A16: 45 - 49 | B16: 271950 | C16: 135744 | D16: 136206
A17: 50 - 54 | B17: 266305 | C17: 132336 | D17: 133969
A18: 55 - 59 | B18: 227390 | C18: 111992 | D18: 115398
A19: 60 - 64 | B19: 176786 | C19: 86108 | D19: 90678
A20: 65 - 69 | B20: 127696 | C20: 61609 | D20: 66087
A21: 70 - 74 | B21: 92572 | C21: 44089 | D21: 48483
A22: 75 - 79 | B22: 66350 | C22: 31036 | D22: 35314
A23: 80 - 84 | B23: 44212 | C23: 19633 | D23: 24579
A24: 85 Y MÁS | B24: 41830 | C24: 17318 | D24: 24512
A27: Fuente: Sección Padrón Electoral del Tribunal Supremo de Elecciones.

Sheet G2
I3: HOMBRES | J3: MUJERES
I4: =+'4'!C10 -> 104990 | J4: =+'4'!D10*-1 -> -101516 | K4: 18 - 19 | L4: =CONCATENATE(K4," ") -> 18 - 19
I5: =+'4'!C11 -> 158233 | J5: =+'4'!D11*-1 -> -151505 | K5: 20 - 24 | L5: =CONCATENATE(K5," ") -> 20 - 24
I6: =+'4'!C12 -> 201876 | J6: =+'4'!D12*-1 -> -194055 | K6: 25 - 29 | L6: 25 - 29
I7: =+'4'!C13 -> 185188 | J7: =+'4'!D13*-1 -> -180603 | K7: 30 - 34 | L7: 30 - 34
I8: =+'4'!C14 -> 158501 | J8: =+'4'!D14*-1 -> -156366 | K8: 35 - 39 | L8: 35 - 39
I9: =+'4'!C15 -> 135525 | J9: =+'4'!D15*-1 -> -134915 | K9: 40 - 44 | L9: 40 - 44
I10: =+'4'!C16 -> 135744 | J10: =+'4'!D16*-1 -> -136206 | K10: 45 - 49 | L10: 45 - 49
I11: =+'4'!C17 -> 132336 | J11: =+'4'!D17*-1 -> -133969 | K11: 50 - 54 | L11: 50 - 54
I12: =+'4'!C18 -> 111992 | J12: =+'4'!D18*-1 -> -115398 | K12: 55 - 59 | L12: 55 - 59
I13: =+'4'!C19 -> 86108 | J13: =+'4'!D19*-1 -> -90678 | K13: 60 - 64 | L13: 60 - 64
I14: =+'4'!C20 -> 61609 | J14: =+'4'!D20*-1 -> -66087 | K14: 65 - 69 | L14: 65 - 69
I15: =+'4'!C21 -> 44089 | J15: =+'4'!D21*-1 -> -48483 | K15: 70 - 74 | L15: 70 - 74
I16: =+'4'!C22 -> 31036 | J16: =+'4'!D22*-1 -> -35314 | K16: 75 - 79 | L16: 75 - 79
I17: =+'4'!C23 -> 19633 | J17: =+'4'!D23*-1 -> -24579 | K17: 80 - 84 | L17: 80 - 84
I18: =+'4'!C24 -> 17318 | J18: =+'4'!D24*-1 -> -24512 | K18: 85 Y MÁS | L18: 85 Y MÁS
A30: Fuente: Sección Padrón Electoral del Tribunal Supremo de Elecciones.

Sheet 5
A1: CUADRO 5. COSTA RICA: PADRÓN NACIONAL ELECTORAL POR PROVINCIA
A2: SEGÚN SEXO Y GRUPOS DE EDAD. ELECCIONES MUNICIPALES
A3: 7 DE FEBRERO 2016
A5: SEXO Y GRUPOS DE EDAD | B5: TOTAL | C5: PROVINCIA
C6: SAN JOSÉ | D6: ALAJUELA | E6: CARTAGO | F6: HEREDIA | G6: GUANACASTE | H6: PUNTARENAS | I6: LIMÓN
A8: COSTA RICA | B8: =SUM(B9:B23) -> 3178364 | C8: 1088828 | D8: 604089 | E8: 374190 | F8: 319674 | G8: 231102 | H8: 299227 | I8: 261254
A9: 18 - 19 | B9: =+B26+B43 -> 206506 | C9: =+C26+C43 -> 64689 | D9: 40727 | E9: 24010 | F9: 19678 | G9: 15891 | H9: 21163 | I9: =+I26+I43 -> 20348
A10: 20 - 24 | B10: 309738 | C10: 99527 | D10: 60202 | E10: 37029 | F10: 29384 | G10: 23353 | H10: 30894 | I10: 29349
A11: 25 - 29 | B11: 395931 | C11: 131838 | D11: 77518 | E11: 47771 | F11: 38314 | G11: 28412 | H11: 37692 | I11: 34386
A12: 30 - 34 | B12: 365791 | C12: 124260 | D12: 69361 | E12: 42374 | F12: 37567 | G12: 26344 | H12: 35157 | I12: 30728
A13: 35 - 39 | B13: 314867 | C13: 107812 | D13: 58241 | E13: 37517 | F13: 33459 | G13: 22867 | H13: 29491 | I13: 25480
A14: 40 - 44 | B14: 270440 | C14: 89969 | D14: 49932 | E14: =+E31+E48 -> 33077 | F14: 28319 | G14: 19758 | H14: 26131 | I14: 23254
A15: 45 - 49 | B15: 271950 | C15: =+C32+C49 -> 91309 | D15: 51890 | E15: 33244 | F15: 27485 | G15: 19587 | H15: 26058 | I15: 22377
A16: 50 - 54 | B16: 266305 | C16: 92365 | D16: 51361 | E16: 31772 | F16: 27191 | G16: 18798 | H16: 24256 | I16: 20562
A17: 55 - 59 | B17: 227390 | C17: 81394 | D17: 42933 | E17: 26375 | F17: 23349 | G17: 15903 | H17: 20313 | I17: 17123
A18: 60 - 64 | B18: 176786 | C18: 65131 | D18: 32122 | E18: 19842 | F18: 18394 | G18: 12380 | H18: 15539 | I18: 13378
A19: 65 - 69 | B19: 127696 | C19: 47946 | D19: 23427 | E19: 13916 | F19: 12981 | G19: 9185 | H19: 11196 | I19: 9045
A20: 70 - 74 | B20: 92572 | C20: 34360 | D20: 17681 | E20: 10552 | F20: 9026 | G20: 6646 | H20: 8224 | I20: 6083
A21: 75 - 79 | B21: 66350 | C21: 24643 | D21: 12753 | E21: 7475 | F21: 6282 | G21: 5066 | H21: =+H38+H55 -> 5913 | I21: 4218
A22: 80 - 84 | B22: 44212 | C22: 16959 | D22: 8251 | E22: 4881 | F22: 4211 | G22: 3422 | H22: 3846 | I22: 2642
A23: 85 Y MÁS | B23: 41830 | C23: 16626 | D23: =+D40+D57 -> 7690 | E23: 4355 | F23: 4034 | G23: 3490 | H23: 3354 | I23: 2281
A25: HOMBRES | B25: =SUM(B26:B40) -> 1584178 | C25: 530482 | D25: 304791 | E25: 186298 | F25: 157161 | G25: 116777 | H25: 153648 | I25: 135021
A26: 18 - 19 | B26: =SUM(C26:I26) -> 104990 | C26: 32554 | D26: 20819 | E26: 12303 | F26: 9929 | G26: 8150 | H26: 10844 | I26: 10391
A27: 20 - 24 | B27: 158233 | C27: 50588 | D27: 31098 | E27: 18951 | F27: 15030 | G27: 11779 | H27: 15722 | I27: 15065
A28: 25 - 29 | B28: 201876 | C28: 66743 | D28: 40209 | E28: 24417 | F28: 19485 | G28: 14446 | H28: 19147 | I28: 17429
A29: 30 - 34 | B29: 185188 | C29: 62543 | D29: 35609 | E29: 21447 | F29: 18802 | G29: 13429 | H29: 17860 | I29: 15498
A30: 35 - 39 | B30: 158501 | C30: 54292 | D30: 29737 | E30: 18744 | F30: 16716 | G30: 11409 | H30: 14788 | I30: 12815
A31: 40 - 44 | B31: 135525 | C31: 44685 | D31: 24993 | E31: 16364 | F31: 14141 | G31: 9957 | H31: 13400 | I31: 11985
A32: 45 - 49 | B32: 135744 | C32: 44901 | D32: 25944 | E32: 16408 | F32: 13475 | G32: 9947 | H32: 13464 | I32: 11605
A33: 50 - 54 | B33: 132336 | C33: 44813 | D33: 25542 | E33: 15791 | F33: 13246 | G33: 9620 | H33: 12594 | I33: 10730
A34: 55 - 59 | B34: 111992 | C34: 38567 | D34: 21495 | E34: 12950 | F34: 11244 | G34: 8068 | H34: 10548 | I34: 9120
A35: 60 - 64 | B35: 86108 | C35: 30164 | D35: 16002 | E35: 9555 | F35: 8733 | G35: 6281 | H35: 8131 | I35: 7242
A36: 65 - 69 | B36: 61609 | C36: 21835 | D36: 11518 | E36: 6639 | F36: 6067 | G36: 4574 | H36: 5956 | I36: 5020
A37: 70 - 74 | B37: 44089 | C37: 15351 | D37: 8615 | E37: 5103 | F37: 4139 | G37: 3296 | H37: 4288 | I37: 3297
A38: 75 - 79 | B38: 31036 | C38: 10582 | D38: 6059 | E38: 3543 | F38: 2812 | G38: 2552 | H38: 3191 | I38: 2297
A39: 80 - 84 | B39: 19633 | C39: 6827 | D39: 3796 | E39: 2220 | F39: 1774 | G39: 1668 | H39: 1957 | I39: 1391
A40: 85 Y MÁS | B40: 17318 | C40: 6037 | D40: 3355 | E40: 1863 | F40: 1568 | G40: 1601 | H40: 1758 | I40: 1136
A42: MUJERES | B42: =SUM(B43:B57) -> 1594186 | C42: 558346 | D42: 299298 | E42: 187892 | F42: 162513 | G42: 114325 | H42: 145579 | I42: 126233
A43: 18 - 19 | B43: =SUM(C43:I43) -> 101516 | C43: 32135 | D43: 19908 | E43: 11707 | F43: 9749 | G43: 7741 | H43: 10319 | I43: 9957
A44: 20 - 24 | B44: 151505 | C44: 48939 | D44: 29104 | E44: 18078 | F44: 14354 | G44: 11574 | H44: 15172 | I44: 14284
A45: 25 - 29 | B45: 194055 | C45: 65095 | D45: 37309 | E45: 23354 | F45: 18829 | G45: 13966 | H45: 18545 | I45: 16957
A46: 30 - 34 | B46: 180603 | C46: 61717 | D46: 33752 | E46: 20927 | F46: 18765 | G46: 12915 | H46: 17297 | I46: 15230
A47: 35 - 39 | B47: 156366 | C47: 53520 | D47: 28504 | E47: 18773 | F47: 16743 | G47: 11458 | H47: 14703 | I47: 12665
A48: 40 - 44 | B48: 134915 | C48: 45284 | D48: 24939 | E48: 16713 | F48: 14178 | G48: 9801 | H48: 12731 | I48: 11269
A49: 45 - 49 | B49: 136206 | C49: 46408 | D49: 25946 | E49: 16836 | F49: 14010 | G49: 9640 | H49: 12594 | I49: 10772
A50: 50 - 54 | B50: 133969 | C50: 47552 | D50: 25819 | E50: 15981 | F50: 13945 | G50: 9178 | H50: 11662 | I50: 9832
A51: 55 - 59 | B51: 115398 | C51: 42827 | D51: 21438 | E51: 13425 | F51: 12105 | G51: 7835 | H51: 9765 | I51: 8003
A52: 60 - 64 | B52: 90678 | C52: 34967 | D52: 16120 | E52: 10287 | F52: 9661 | G52: 6099 | H52: 7408 | I52: 6136
A53: 65 - 69 | B53: 66087 | C53: 26111 | D53: 11909 | E53: 7277 | F53: 6914 | G53: 4611 | H53: 5240 | I53: 4025
A54: 70 - 74 | B54: 48483 | C54: 19009 | D54: 9066 | E54: 5449 | F54: 4887 | G54: 3350 | H54: 3936 | I54: 2786
A55: 75 - 79 | B55: 35314 | C55: 14061 | D55: 6694 | E55: 3932 | F55: 3470 | G55: 2514 | H55: 2722 | I55: 1921
A56: 80 - 84 | B56: 24579 | C56: 10132 | D56: 4455 | E56: 2661 | F56: 2437 | G56: 1754 | H56: 1889 | I56: 1251
A57: 85 Y MÁS | B57: 24512 | C57: 10589 | D57: 4335 | E57: 2492 | F57: 2466 | G57: 1889 | H57: 1596 | I57: 1145
A60: Fuente: Sección Padrón Electoral del Tribunal Supremo de Elecciones.

Sheet 6
A1: CUADRO 6. COSTA RICA: ELECTORADO NATURALIZADO POR PAÍS DE ORIGEN
A2: SEGÚN SEXO Y GRUPO DE EDAD, ELECCIONES MUNICIPALES
A3: 7 DE FEBRERO 2016
A5: SEXO Y GRUPO DE EDAD | B5: País de origen
B6: Total | C6: Nicaragua | D6: Colombia | E6: El Salvador | F6: Cuba | G6: China | H6: Perú | I6: Panamá | J6: Resto de países
A8: Costa Rica | B8: =SUM(B9:B23) -> 52994 | C8: 27150 | D8: 6417 | E8: 3500 | F8: 2231 | G8: 1825 | H8: 1627 | I8: =SUM(I9:I23) -> 1453 | J8: =SUM(J9:J23) -> 8791
A9: 18 - 19 | B9: =SUM(C9:J9) -> 435 | C9: =+C26+C43 -> 156 | D9: =+D26+D43 -> 179 | E9: 6 | F9: 18 | G9: 7 | H9: 17 | I9: 3 | J9: 49
A10: 20 - 24 | B10: =SUM(C10:J10) -> 922 | C10: =+C27+C44 -> 412 | D10: 280 | E10: 11 | F10: 71 | G10: 17 | H10: 16 | I10: 4 | J10: 111
A11: 25 - 29 | B11: 1767 | C11: 945 | D11: 310 | E11: 30 | F11: 95 | G11: 55 | H11: 55 | I11: 18 | J11: 259
A12: 30 - 34 | B12: 3876 | C12: 2306 | D12: 656 | E12: 69 | F12: 105 | G12: 129 | H12: 120 | I12: 40 | J12: 451
A13: 35 - 39 | B13: 5898 | C13: 3078 | D13: 1040 | E13: 343 | F13: 186 | G13: 219 | H13: 194 | I13: 52 | J13: 786
A14: 40 - 44 | B14: 6661 | C14: 3376 | D14: 933 | E14: 445 | F14: 287 | G14: 239 | H14: 236 | I14: 133 | J14: 1012
A15: 45 - 49 | B15: 6876 | C15: 3493 | D15: 937 | E15: 453 | F15: 301 | G15: 212 | H15: 203 | I15: 197 | J15: 1080
A16: 50 - 54 | B16: 5955 | C16: 2808 | D16: 792 | E16: 439 | F16: 322 | G16: 187 | H16: 207 | I16: 213 | J16: 987
A17: 55 - 59 | B17: 4872 | C17: 2288 | D17: 499 | E17: 458 | F17: 231 | G17: 163 | H17: 197 | I17: 176 | J17: 860
A18: 60 - 64 | B18: 4293 | C18: 1958 | D18: 323 | E18: 463 | F18: 193 | G18: 152 | H18: 156 | I18: 165 | J18: 883
A19: 65 - 69 | B19: 3398 | C19: 1585 | D19: 214 | E19: 314 | F19: 134 | G19: 141 | H19: 110 | I19: 144 | J19: 756
A20: 70 - 74 | B20: 2663 | C20: 1391 | D20: 115 | E20: 214 | F20: 99 | G20: 109 | H20: 54 | I20: 115 | J20: 566
A21: 75 - 79 | B21: 2024 | C21: 1163 | D21: 71 | E21: 127 | F21: 81 | G21: 77 | H21: 38 | I21: 68 | J21: 399
A22: 80 - 84 | B22: 1537 | C22: 954 | D22: 37 | E22: 74 | F22: 42 | G22: 50 | H22: 16 | I22: 65 | J22: 299
A23: 85 y más | B23: 1817 | C23: 1237 | D23: 31 | E23: 54 | F23: 66 | G23: 68 | H23: 8 | I23: 60 | J23: 293
A25: Hombres | B25: =SUM(B26:B40) -> 24006 | C25: =SUM(C26:C40) -> 11415 | D25: =SUM(D26:D40) -> 3017 | E25: =SUM(E26:E40) -> 1500 | F25: 1239 | G25: 986 | H25: 879 | I25: =SUM(I26:I40) -> 630 | J25: =SUM(J26:J40) -> 4340
A26: 18 - 19 | B26: =SUM(C26:J26) -> 230 | C26: 79 | D26: 98 | E26: 3 | F26: 11 | G26: 3 | H26: 6 | I26: 0 | J26: 30
A27: 20 - 24 | B27: =SUM(C27:J27) -> 473 | C27: 197 | D27: 150 | E27: 5 | F27: 50 | G27: 8 | H27: 9 | I27: 0 | J27: 54
A28: 25 - 29 | B28: 722 | C28: 343 | D28: 143 | E28: 10 | F28: 44 | G28: 33 | H28: 24 | I28: 7 | J28: 118
A29: 30 - 34 | B29: 1555 | C29: 827 | D29: 290 | E29: 34 | F29: 44 | G29: 81 | H29: 70 | I29: 11 | J29: 198
A30: 35 - 39 | B30: 2531 | C30: 1246 | D30: 454 | E30: 154 | F30: 90 | G30: 134 | H30: 90 | I30: 23 | J30: 340
A31: 40 - 44 | B31: 2973 | C31: 1422 | D31: 424 | E31: 198 | F31: 146 | G31: 140 | H31: 117 | I31: 61 | J31: 465
A32: 45 - 49 | B32: 3229 | C32: 1601 | D32: 449 | E32: 203 | F32: 180 | G32: 97 | H32: 101 | I32: 88 | J32: 510
A33: 50 - 54 | B33: 2679 | C33: 1154 | D33: 377 | E33: 181 | F33: 192 | G33: 101 | H33: 111 | I33: 95 | J33: 468
A34: 55 - 59 | B34: 2049 | C34: 794 | D34: 233 | E34: 183 | F34: 142 | G34: 86 | H34: 109 | I34: 76 | J34: 426
A35: 60 - 64 | B35: 1898 | C35: 771 | D35: 152 | E35: 171 | F35: 114 | G35: 82 | H35: 92 | I35: 64 | J35: 452
A36: 65 - 69 | B36: 1659 | C36: 705 | D36: 110 | E36: 131 | F36: 83 | G36: 73 | H36: 75 | I36: 56 | J36: 426
A37: 70 - 74 | B37: 1389 | C37: 668 | D37: 69 | E37: 111 | F37: 58 | G37: 59 | H37: 36 | I37: 58 | J37: 330
A38: 75 - 79 | B38: 1008 | C38: 551 | D38: 41 | E38: 65 | F38: 45 | G38: 32 | H38: 25 | I38: 33 | J38: 216
A39: 80 - 84 | B39: 718 | C39: 434 | D39: 15 | E39: 29 | F39: 15 | G39: 30 | H39: 10 | I39: 27 | J39: 158
A40: 85 y más | B40: 893 | C40: 623 | D40: 12 | E40: 22 | F40: 25 | G40: 27 | H40: 4 | I40: 31 | J40: 149
A42: Mujeres | B42: =SUM(B43:B57) -> 28988 | C42: =SUM(C43:C57) -> 15735 | D42: 3400 | E42: =SUM(E43:E57) -> 2000 | F42: 992 | G42: 839 | H42: 748 | I42: =SUM(I43:I57) -> 823 | J42: =SUM(J43:J57) -> 4451
A43: 18 - 19 | B43: =SUM(C43:J43) -> 205 | C43: 77 | D43: 81 | E43: 3 | F43: 7 | G43: 4 | H43: 11 | I43: 3 | J43: 19
A44: 20 - 24 | B44: =SUM(C44:J44) -> 449 | C44: 215 | D44: 130 | E44: 6 | F44: 21 | G44: 9 | H44: 7 | I44: 4 | J44: 57
A45: 25 - 29 | B45: 1045 | C45: 602 | D45: 167 | E45: 20 | F45: 51 | G45: 22 | H45: 31 | I45: 11 | J45: 141
A46: 30 - 34 | B46: 2321 | C46: 1479 | D46: 366 | E46: 35 | F46: 61 | G46: 48 | H46: 50 | I46: 29 | J46: 253
A47: 35 - 39 | B47: 3367 | C47: 1832 | D47: 586 | E47: 189 | F47: 96 | G47: 85 | H47: 104 | I47: 29 | J47: 446
A48: 40 - 44 | B48: 3688 | C48: 1954 | D48: 509 | E48: 247 | F48: 141 | G48: 99 | H48: 119 | I48: 72 | J48: 547
A49: 45 - 49 | B49: 3647 | C49: 1892 | D49: 488 | E49: 250 | F49: 121 | G49: 115 | H49: 102 | I49: 109 | J49: 570
A50: 50 - 54 | B50: 3276 | C50: 1654 | D50: 415 | E50: 258 | F50: 130 | G50: 86 | H50: 96 | I50: 118 | J50: 519
A51: 55 - 59 | B51: 2823 | C51: 1494 | D51: 266 | E51: 275 | F51: 89 | G51: 77 | H51: 88 | I51: 100 | J51: 434
A52: 60 - 64 | B52: 2395 | C52: 1187 | D52: 171 | E52: 292 | F52: 79 | G52: 70 | H52: 64 | I52: 101 | J52: 431
A53: 65 - 69 | B53: 1739 | C53: 880 | D53: 104 | E53: 183 | F53: 51 | G53: 68 | H53: 35 | I53: 88 | J53: 330
A54: 70 - 74 | B54: 1274 | C54: 723 | D54: 46 | E54: 103 | F54: 41 | G54: 50 | H54: 18 | I54: 57 | J54: 236
A55: 75 - 79 | B55: 1016 | C55: 612 | D55: 30 | E55: 62 | F55: 36 | G55: 45 | H55: 13 | I55: 35 | J55: 183
A56: 80 - 84 | B56: 819 | C56: 520 | D56: 22 | E56: 45 | F56: 27 | G56: 20 | H56: 6 | I56: 38 | J56: 141
A57: 85 y más | B57: 924 | C57: 614 | D57: 19 | E57: 32 | F57: 41 | G57: 41 | H57: 4 | I57: 29 | J57: 144
A60: Fuente: Sección Padrón Electoral del Tribunal Supremo de Elecciones.

Sheet 7
A1: CUADRO 7. COSTA RICA: CANTONES, DISTRITOS ADMINISTRATIVOS Y ELECTORALES
A2: SEGÚN PROVINCIA. ELECCIONES MUNICIPALES
A3: 7 DE FEBRERO 2016
A5: PROVINCIA | B5: CANTONES | C5: DISTRITOS
C6: ADMINISTRATIVOS | D6: ELECTORALES
A8: COSTA RICA | B8: 81 | C8: =SUM(C10:C16) -> 481 | D8: =SUM(D10:D16) -> 2068
A10: SAN JOSÉ | B10: 20 | C10: 122 | D10: 447
A11: ALAJUELA | B11: 15 | C11: 113 | D11: 439
A12: CARTAGO | B12: 8 | C12: 51 | D12: 196
A13: HEREDIA | B13: 10 | C13: 47 | D13: 117
A14: GUANACASTE | B14: 11 | C14: 59 | D14: 298
A15: PUNTARENAS | B15: 11 | C15: 60 | D15: 377
A16: LIMÓN | B16: 6 | C16: 29 | D16: 194
A19: NA: No Aplica.
A20: Fuente: Contraloría Electoral del Tribunal Supremo de Elecciones.

Sheet 8
A1: CUADRO 8. COSTA RICA: MOVIMIENTOS A LA DIVISIÓN TERRITORIAL ELECTORAL
A2: SEGÚN PROVINCIA. ELECCIONES MUNICIPALES
A3: 7 DE FEBRERO 2016
A5: PROVINCIA | B5: DISTRITOS ADMINISTRATIVOS CREADOS | C5: DISTRITOS ELECTORALES
C6: CREADOS 1/ | D6: REFUNDIDOS 2/ | E6: ELIMINADOS 3/ | F6: REUBICADOS 4/ | G6: MODIFICADOS 5/
A8: COSTA RICA | B8: =SUM(B10:B16) -> 3 | C8: 27 | D8: 2 | E8: 0 | F8: 10 | G8: 21
A10: SAN JOSÉ | B10: 1 | C10: 9 | D10: 1 | E10: 0 | F10: 1 | G10: 3
A11: ALAJUELA | B11: 0 | C11: 1 | D11: 0 | E11: 0 | F11: 0 | G11: 5
A12: CARTAGO | B12: 0 | C12: 4 | D12: 1 | E12: 0 | F12: 0 | G12: 3
A13: HEREDIA | B13: 0 | C13: 3 | D13: 0 | E13: 0 | F13: 0 | G13: 0
A14: GUANACASTE | B14: 0 | C14: 4 | D14: 0 | E14: 0 | F14: 9 | G14: 1
A15: PUNTARENAS | B15: 2 | C15: 3 | D15: 0 | E15: 0 | F15: 0 | G15: 7
A16: LIMÓN | B16: 0 | C16: 3 | D16: 0 | E16: 0 | F16: 0 | G16: 2
A19: 1/ El TSE crea los distritos electorales, ejerciendo su facultad legal de dividir un Distrito Administrativo en los electorales que sean necesarios, con el fin de procurar la mayor comodidad del electorado para la emisión de sus votos. (Art. 143 Código El Electoral).
A20: 2/Refundición: Es el traslado de los poblados y electores de un distrito electoral que perdió funcionalidad a otro. Regalmento para la formulación de la División Territorial Electoral.
A21: 3/ Eliminación de un distrito electoral porque deja de cumplir los requisitos mínimos para su existencia y/o funcionalidad. Regalmento para la formulación de la División Territorial Electoral.
A22: 4/ Rehubicados: Es el traslado de la cabecera del distrito electoral de un poblado a otro por la pérdida de su funcionalidad.
A23: 5/ Modificados: Procedimiento a través del cual el TSE crea, elimina, reubica o refunde un distrito electoral, en virtud de un cambio sustancial en sus condiciones originales. Esta gestión también puede conllevar el cambio de nombre, coordenadas y/o simbología de un poblado o distrito electoral.
A24: Fuente: Contraloría Electoral del Tribunal Supremo de Elecciones.

Sheet 9
A1: CUADRO 9. COSTA RICA: DISTRITOS ELECTORALES CREADOS 1/ EN EL PERÍODO 2014-2016
A2: SEGÚN PROVINCIA Y CANTÓN. ELECCIONES MUNICIPALES
A3: 7 DE FEBRERO 2016
A5: PROVINCIA Y CANTÓN | B5: DISTRITO ADMINISTRATIVO | C5: DISTRITO ELECTORAL | D5: CÓDIGO ELECTORAL
A8: PROVINCIA SAN JOSÉ
A9: SAN JOSÉ | B9: PAVAS | C9: C.S.M. MANUEL ANTONIO CHAPUÍ | D9: 101039
A10: SAN JOSÉ | B10: URUCA | C10: C.S.M. CAPEMCOL | D10: 101040
A11: ESCAZÚ | B11: SAN RAFAEL | C11: H. A. MAGDALA | D11: 102008
A12: DESAMPARADOS | B12: SAN RAFAEL ARRIBA | C12: H. A. COM MORICE (LA CASONA) | D12: 103040
A13: MORA | B13: PICAGRES | C13: SAN ISIDRO DE CHUCAS (BALSILLA) | D13: 107023
A14: MORA | B14: TABARCIA | C14: BAJO DE JORCO (PARTE OESTE) | D14: 107024
A15: GOICOECHEA | B15: CALLE BLANCOS | C15: H. A. CORTEZA AMARILLA-EMMANUEL | D15: 108013
A16: MONTES DE OCA | B16: SAN PEDRO | C16: H. A. MONTES DE OCA | D16: 115007
A17: CURRIDABAT | B17: CURRIDABAT | C17: H. A. CURRIDABAT | D17: 118010
A19: PROVINCIA ALAJUELA
A20: SAN RAMÓN | B20: SAN JUAN | C20: BARRIO BELÉN | D20: 202050
A22: PROVINCIA CARTAGO
A23: CARTAGO | B23: AGUACALIENTE O SAN FRANCISCO | C23: GUAYABAL (PARTE ESTE) | D23: 301035
A24: PARAÍSO | B24: SANTIAGO | C24: RÍO REGADO | D24: 302021
A25: LA UNIÓN | B25: SAN RAMÓN | C25: C.S.M. ROBERTO CHACÓN PAUT | D25: 303020
A26: TURRIALBA | B26: CHIRRIPÓ | C26: JACBATA (CERRO AZUL) | D26: 305077
A28: PROVINCIA HEREDIA
A29: SAN ISIDRO | B29: SAN JOSÉ | C29: C.P. JUVENIL ZURQUI | D29: 406007
A30: SAN ISIDRO | B30: SAN JOSÉ | C30: H. A. SEÑORA DE LOS ANGELES | D30: 406008
A31: SARAPIQUÍ | B31: LA VIRGEN | C31: H. A. SAN AGUSTÍN | D31: 410045
A33: PROVINCIA GUANACASTE
A34: LIBERIA | B34: LIBERIA | C34: C. P. LIBERIA (MODULO D3-D4) | D34: 501024
A35: CAÑAS | B35: CAÑAS | C35: H. A. MARY BLANCO | D35: 506017
A36: ABANGARES | B36: COLORADO | C36: PEÑAS BLANCAS | D36: 507026
A37: NANDAYURE | B37: CARMONA | C37: H. A. SAGRADO CORAZON DE JESÚS | D37: 509027
A39: PROVINCIA PUNTARENAS
A40: ESPARZA | B40: CALDERA | C40: TIVIVES | D40: 602019
A41: OSA | B41: BAHIA DRAKE | C41: ALTO LAGUNA | D41: 605039
A42: AGUIRRE | B42: QUEPOS | C42: H. A. PAQUITA | D42: 606038
A44: PROVINCIA LIMÓN
A45: LIMÓN | B45: RÍO BLANCO | C45: LOMA LINDA | D45: 701047
A46: POCOCÍ | B46: CARIARI | C46: H. A. CARIARI | D46: 702052
A47: GUÁCIMO | B47: GUÁCIMO | C47: H. A. DAVID GARRO | D47: 706018
A50: 1/ El TSE crea los distritos electorales, ejerciendo su facultad legal de dividir un Distrito Administrativo en los electorales que sean necesarios, con el fin de procurar la mayor comodidad del electorado para la emisión de sus votos. (Art. 10 Código El Electoral).
A54: Fuente: Contraloría Electoral del Tribunal Supremo de Elecciones.

Sheet 10
A1: CUADRO 10. COSTA RICA: DISTRITOS ELECTORALES REUBICADOS1/ EN OTRA LOCALIDAD DEL MISMO DISTRITO
A2: ADMINISTRATIVO EN EL PERÍODO 2014-2016, SEGÚN PROVINCIA Y CANTÓN
A3: ELECCIONES MUNICIPALES 7 DE FEBRERO 2016
A5: PROVINCIA Y CANTÓN | B5: DISTRITO ADMINISTRATIVO | C5: DISTRITO ELECTORAL | D5: CÓDIGO ELECTORAL
A7: SAN JOSÉ, MORA | B7: QUITIRRISI | C7: QUITIRRISI | D7: 1-07-VII-014
A8: PUNTARENAS, ESPARZA | B8: CALDERA | C8: ARTIEDA (CHUMICAL) | D8: 6-02-VI-002
A9: PUNTARENAS, ESPARZA | B9: CALDERA | C9: MATA DE LIMÓN | D9: 6-02-VI-004
A10: PUNTARENAS, ESPARZA | B10: CALDERA | C10: SALINAS | D10: 6-02-VI-006
A11: PUNTARENAS, COTO BRUS | B11: GUTIERREZ BROWN | C11: COLONIA GUTIERREZ BRAUN | D11: 6-08-VI-003
A12: PUNTARENAS, COTO BRUS | B12: GUTIERREZ BROWN | C12: LA GUINEA ABAJO | D12: 6-08-VI-021
A13: PUNTARENAS, COTO BRUS | B13: GUTIERREZ BROWN | C13: FILA PINAR | D13: 6-08-VI-022
A14: PUNTARENAS, COTO BRUS | B14: GUTIERREZ BROWN | C14: FLOR DEL ROBLE | D14: 6-08-VI-023
A15: PUNTARENAS, COTO BRUS | B15: GUTIERREZ BROWN | C15: BRISAS | D15: 6-08-VI-032
A16: PUNTARENAS, COTO BRUS | B16: GUTIERREZ BROWN | C16: ROBLE | D16: 6-08-VI-036
A18: 1/ La reubicación de un distrito electoral se realiza cuando dentro de su conformación se cambia la cabecera a otro poblado, igual sucede, si está incluido en un distrito administrativo que no le corresponde. (Reglamento para la creación de distritos electorales y juntas receptoras de votos).
A22: Fuente: Contraloría Electoral del Tribunal Supremo de Elecciones.

Sheet 11
A1: CUADRO 11. COSTA RICA: DISTRITOS ELECTORALES REFUNDIDOS 1/ EN EL PERÍODO 2014-2016
A2: SEGÚN PROVINCIA Y CANTÓN. ELECCIONES MUNICIPALES
A3: 7 DE FEBRERO 2016
A5: PROVINCIA Y CANTÓN | B5: DISTRITO ADMINISTRATIVO | C5: DISTRITO ELECTORAL | D5: CÓDIGO ELECTORAL
A7: SAN JOSÉ, MONTES DE OCA | B7: GRANADILLA | C7: GARANADILLA NORTE* | D7: 1-18-II-007
A8: CARTAGO, TURRIALBA | B8: SANTA CRUZ | C8: LA PASTORA* | D8: 3-05-IV-026
A12: 1/ El Tribunal Supremo Elecciones puede dejar sin efecto la vigencia del distrito y refundirlo en otro, cuando conste con evidencia, que el número de electores se ha reducido a menos de cincuenta, o bien, porque se presentan otras circunstancias que así lo ameritan. (Reglamento para la creación de distritos electorales y juntas receptoras de votos).
A17: Fuente: Contraloría Electoral del Tribunal Supremo de Elecciones

Sheet 12
A1: CUADRO 12. COSTA RICA: JUNTAS RECEPTORAS Y ELECTORADO EN CENTROS PENITENCIARIOS
A2: HOGARES DE ANCIANOS, ZONAS INDÍGENAS Y CENTROS DE SALUD MENTAL
A3: SEGÚN PROVINCIA. ELECCIONES MUNICIPALES 7 DE FEBRERO 2016
A5: PROVINCIA | B5: CENTROS PENITENCIARIOS | D5: HOGARES DE ANCIANOS | F5: ZONAS INDÍGENAS | H5: CENTROS DE SALUD MENTAL
B6: JUNTAS | C6: ELECTORADO | D6: JUNTAS | E6: ELECTORADO | F6: JUNTAS | G6: ELECTORADO | H6: JUNTAS | I6: ELECTORADO
A8: COSTA RICA | B8: =SUM(B10:B16) -> 32 | C8: =SUM(C10:C16) -> 9788 | D8: 50 | E8: 2355 | F8: 86 | G8: 32672 | H8: 3 | I8: 292
A10: SAN JOSÉ | B10: =+'13'!C9 -> 7 | C10: =+'13'!D9 -> 2429 | D10: =+'14'!C9 -> 13 | E10: =+'14'!D9 -> 725 | F10: =+'15'!C9 -> 5 | G10: =+'15'!D9 -> 1564 | H10: =+'16'!C9 -> 2 | I10: =+'16'!D9 -> 198
A11: ALAJUELA | B11: =+'13'!C14 -> 15 | C11: =+'13'!D14 -> 3799 | D11: =+'14'!C24 -> 9 | E11: =+'14'!D24 -> 670 | F11: =+'15'!C15 -> 2 | G11: =+'15'!D15 -> 572 | H11: - | I11: -
A12: CARTAGO | B12: =+'13'!C26 -> 1 | C12: =+'13'!D26 -> 590 | D12: =+'14'!C35 -> 2 | E12: =+'14'!D35 -> 163 | F12: =+'15'!C19 -> 10 | G12: =+'15'!D19 -> 2600 | H12: =+'16'!C13 -> 1 | I12: =+'16'!D13 -> 94
A13: HEREDIA | B13: =+'13'!C29 -> 2 | C13: =+'13'!D29 -> 65 | D13: =+'14'!C39 -> 4 | E13: =+'14'!D39 -> 191 | F13: - | G13: - | H13: - | I13: -
A14: GUANACASTE | B14: =+'13'!C33 -> 2 | C14: =+'13'!D33 -> 686 | D14: =+'14'!C45 -> 8 | E14: =+'14'!D45 -> 211 | F14: =+'15'!C30 -> 2 | G14: =+'15'!D30 -> 811 | H14: - | I14: -
A15: PUNTARENAS | B15: =+'13'!C37 -> 1 | C15: =+'13'!D37 -> 617 | D15: =+'14'!C55 -> 9 | E15: =+'14'!D55 -> 268 | F15: =+'15'!C34 -> 41 | G15: =+'15'!D34 -> 13632 | H15: - | I15: -
A16: LIMÓN | B16: =+'13'!C40 -> 4 | C16: =+'13'!D40 -> 1602 | D16: =+'14'!C66 -> 5 | E16: =+'14'!D66 -> 127 | F16: =+'15'!C71 -> 26 | G16: =+'15'!D71 -> 13493 | H16: - | I16: -
A19: Fuente: Sección Padrón Electoral del Tribunal Supremo de Elecciones.

Sheet 13
A1: CUADRO 13. COSTA RICA: JUNTAS RECEPTORAS Y ELECTORADO EN CENTROS PENITENCIARIOS
A2: SEGÚN PROVINCIA Y DISTRITO ELECTORAL. ELECCIONES MUNICIPALES
A3: 7 DE FEBRERO 2016
A5: CÓDIGO ELECTORAL | B5: PROVINCIA Y DISTRITO ELECTORAL | C5: NÚMERO DE JUNTAS | D5: ELECTORADO
B7: COSTA RICA | C7: =+C9+C14+C26+C33+C37+C40+C29 -> 32 | D7: =+D9+D14+D26+D33+D37+D40+D29 -> 9788
B9: SAN JOSÉ | C9: =SUM(C10:C12) -> 7 | D9: =SUM(D10:D12) -> 2429
A10: 103034 | B10: C.P. SAN RAFAEL ARRIBA | C10: 2 | D10: 480
A11: 119105 | B11: C.P. PALMARES | C11: 2 | D11: 911
A12: 101030 | B12: C.P. CRISTO REY | C12: 3 | D12: 1038
B14: ALAJUELA | C14: =SUM(C15:C24) -> 15 | D14: =SUM(D15:D24) -> 3799
A15: 201071 | B15: C.P. ADULTO JOVEN | C15: 1 | D15: 133
A16: 201065 | B16: C.P. ADULTO MAYOR | C16: 1 | D16: 141
A17: 201060 | B17: C.P. ÁMBITO B [MÍNIMA] | C17: 2 | D17: 595
A18: 201062 | B18: C.P. ÁMBITO C [MEDIANA ABIERTA] | C18: 1 | D18: 385
A19: 201063 | B19: C.P. ÁMBITOS D [MED CERRADA] E [MÁXIMA] | C19: 2 | D19: 441
A20: 201064 | B20: C.P. GERARDO RODRÍGUEZ ECHEVERRÍA | C20: 3 | D20: 888
A21: 201059 | B21: C.P. SAN RAFAEL | C21: 2 | D21: 502
A22: 201058 | B22: C.P. TALLERES INDUSTRIALES | C22: 1 | D22: 166
A23: 210093 | B23: C.P. PALMERA [LA MARINA] | C23: 1 | D23: 483
A24: 202043 | B24: C.P. SAN RAMÓN | C24: 1 | D24: 65
B26: CARTAGO | C26: =SUM(C27) -> 1 | D26: =SUM(D27) -> 590
A27: 301032 | B27: C.P. SAN FRANCISCO | C27: 1 | D27: 590
B29: HEREDIA | C29: =SUM(C30:C31) -> 2 | D29: =SUM(D30:D31) -> 65
A30: 401018 | B30: C.P. SAN AGUSTÍN | C30: 1 | D30: 8
A31: 406007 | B31: C.P. JUVENIL ZURQUI | C31: 1 | D31: 57
B33: GUANACASTE | C33: =SUM(C34:C35) -> 2 | D33: =SUM(D34:D35) -> 686
A34: 501011 | B34: C.P. LIBERIA [MODULO B CASITAS] | C34: 1 | D34: 435
A35: 501022 | B35: C.P. LIBERIA [MODULO D1-D2] | C35: 1 | D35: 251
B37: PUNTARENAS | C37: =SUM(C38) -> 1 | D37: =SUM(D38) -> 617
A38: 601094 | B38: C.P. EL ROBLE | C38: 1 | D38: 617
B40: LIMÓN | C40: =SUM(C41:C43) -> 4 | D40: =SUM(D41:D43) -> 1602
A41: 701037 | B41: C.P.RÍO BLANCO [SANDOVAL] | C41: 2 | D41: 647
A42: 702035 | B42: C.P. ROXANA [MODULOS A-B-C] | C42: 1 | D42: 527
A43: 702049 | B43: C.P. ROXANA [MODULOS D-E] | C43: 1 | D43: 428
A46: Fuente: Sección Padrón Electoral y Contraloría Electoral del Tribunal Supremo de Elecciones.

Sheet 14
A1: CUADRO 14. COSTA RICA: JUNTAS RECEPTORAS Y ELECTORADO EN HOGARES DE ANCIANOS
A2: SEGÚN PROVINCIA Y DISTRITO ELECTORAL. ELECCIONES MUNICIPALES
A3: 7 DE FEBRERO 2016
A5: CÓDIGO ELECTORAL | B5: PROVINCIA Y DISTRITO ELECTORAL | C5: NÚMERO DE JUNTAS | D5: ELECTORADO
B7: COSTA RICA | C7: =+C9+C24+C35+C45+C55+C66+C39 -> 50 | D7: =+D9+D24+D35+D45+D55+D66+D39 -> 2355
B9: SAN JOSÉ | C9: =SUM(C10:C22) -> 13 | D9: =SUM(D10:D22) -> 725
A10: 106024 | B10: H.A. SAN FRANCISCO DE ASÍS | C10: 1 | D10: 36
A11: 118010 | B11: H. A. CURRIDABAT | C11: 1 | D11: 53
A12: 103036 | B12: H.A. OFELIA CARVAJAL DE NARANJO | C12: 1 | D12: 66
A13: 103040 | B13: H. A. COM MORICE (LA CASONA) | C13: 1 | D13: 30
A14: 103037 | B14: H.A. SAN CAYETANO | C14: 1 | D14: 56
A15: 102008 | B15: H. A. MAGDALA | C15: 1 | D15: 47
A16: 108013 | B16: H. A. CORTEZA AMARILLA-EMMANUEL | C16: 1 | D16: 23
A17: 108002 | B17: H.A.CARLOS MARÍA ULLOA | C17: 1 | D17: 130
A18: 115007 | B18: H. A. MONTES DE OCA | C18: 1 | D18: 56
A19: 114006 | B19: H.A. CASA NAZARETH | C19: 1 | D19: 33
A20: 119108 | B20: H.A. MONS.DELFÍN QUESADA CASTRO | C20: 1 | D20: 85
A21: 104045 | B21: H.A. CORAZÓN DE JESÚS | C21: 1 | D21: 46
A22: 105016 | B22: H.A. LOS SANTOS | C22: 1 | D22: 64
B24: ALAJUELA | C24: =SUM(C25:C33) -> 9 | D24: =SUM(D25:D33) -> 670
A25: 201066 | B25: H.A. SANTIAGO CRESPO CALVO | C25: 1 | D25: 188
A26: 205016 | B26: H.A. HORTENSIA RODRÍGUEZ S.DE B. | C26: 1 | D26: 65
A27: 203045 | B27: H.A. JAFETH JIMÉNEZ MORALES | C27: 1 | D27: 95
A28: 206022 | B28: H.A. JOSÉ DEL OLMO | C28: 1 | D28: 50
A29: 209012 | B29: H.A. PRESB.JESÚS MARÍA VARGAS | C29: 1 | D29: 29
A30: 207009 | B30: H.A. PALMARES | C30: 1 | D30: 59
A31: 210094 | B31: H.A. SAN VICENTE DE PAÚL | C31: 1 | D31: 74
A32: 202045 | B32: H.A. SAN RAMÓN | C32: 1 | D32: 55
A33: 211012 | B33: H.A. SAN RAFAEL | C33: 1 | D33: 55
B35: CARTAGO | C35: =SUM(C36:C37) -> 2 | D35: =SUM(D36:D37) -> 163
A36: 301033 | B36: H.A. ASILO DE LA VEJEZ | C36: 1 | D36: 87
A37: 305068 | B37: H.A. SAN BUENAVENTURA | C37: 1 | D37: 76
B39: HEREDIA | C39: =SUM(C40:C43) -> 4 | D39: =SUM(D40:D43) -> 191
A40: 402012 | B40: H.A. REINA DE LOS ANGELES | C40: 1 | D40: 15
A41: 406008 | B41: H. A. SEÑORA DE LOS ANGELES | C41: 1 | D41: 59
A42: 409004 | B42: H.A.ALFREDO Y DELIA GONZÁLEZ FLORES | C42: 1 | D42: 95
A43: 410045 | B43: H. A. SAN AGUSTÍN | C43: 1 | D43: 22
B45: GUANACASTE | C45: =SUM(C46:C53) -> 8 | D45: =SUM(D46:D53) -> 211
A46: 507023 | B46: H.A. SAN JORGE | C46: 1 | D46: 36
A47: 506017 | B47: H. A. MARY BLANCO | C47: 1 | D47: 29
A48: 501012 | B48: H.A. LIBERIA | C48: 1 | D48: 21
A49: 509027 | B49: H. A. SAGRADO CORAZON DE JESÚS | C49: 1 | D49: 31
A50: 502084 | B50: H.A. SAN BLAS | C50: 1 | D50: 23
A51: 503045 | B51: H.A. NUESTRA SEÑORA DEL ROSARIO | C51: 1 | D51: 20
A52: 508024 | B52: H.A. TILARÁN | C52: 1 | D52: 36
A53: 402012 | B53: H.A. REINA DE LOS ANGELES | C53: 1 | D53: 15
B55: PUNTARENAS | C55: =SUM(C56:C64) -> 9 | D55: =SUM(D56:D64) -> 268
A56: 606038 | B56: H. A. PAQUITA | C56: 1 | D56: 18
A57: 610030 | B57: H.A. NEILY | C57: 1 | D57: 39
A58: 608045 | B58: H.A. COTO BRUS | C58: 1 | D58: 26
A59: 602018 | B59: H.A. CARLOS VENEGAS | C59: 1 | D59: 29
A60: 607037 | B60: H. A. GOLFITO | C60: 1 | D60: 21
A61: 604014 | B61: H.A. FRAY CASIANO DE MADRID | C61: 1 | D61: 35
A62: 605037 | B62: H. A. PALMAR SUR | C62: 1 | D62: 42
A63: 601103 | B63: H.A. MIGUEL MORENO | C63: 1 | D63: 36
A64: 601106 | B64: H.A. MARÍA INMACULADA | C64: 1 | D64: 22
B66: LIMÓN | C66: =SUM(C67:C71) -> 5 | D66: =SUM(D67:D71) -> 127
A67: 706018 | B67: H. A. DAVID GARRO | C67: 1 | D67: 16
A68: 701038 | B68: H.A. VÍCTOR CASCO TORRES | C68: 1 | D68: 24
A69: 702052 | B69: H. A. CARIARI | C69: 1 | D69: 28
A70: 702037 | B70: H.A. GUÁPILES | C70: 1 | D70: 39
A71: 704021 | B71: H.A. SANTA LUISA | C71: 1 | D71: 20
A74: Fuente: Sección Padrón Electoral y Contraloría Electoral del Tribunal Supremo de Elecciones.

Sheet 15
A1: CUADRO 15. COSTA RICA: JUNTAS RECEPTORAS Y ELECTORADO EN ZONAS INDÍGENAS
A2: SEGÚN PROVINCIA Y DISTRITO ELECTORAL. ELECCIONES MUNICIPALES
A3: 7 DE FEBRERO 2016
A5: CÓDIGO ELECTORAL | B5: PROVINCIA Y DISTRITO ELECTORAL | C5: NÚMERO DE JUNTAS | D5: ELECTORADO
B7: COSTA RICA | C7: =+C9+C15+C19+C30+C34+C71 -> 86 | D7: =+D9+D15+D19+D30+D34+D71 -> 32672
B9: SAN JOSÉ | C9: =SUM(C10:C13) -> 5 | D9: =SUM(D10:D13) -> 1564
A10: 104024 | B10: ZAPATÓN(SAN CARLOS) | C10: 1 | D10: 339
A11: 104044 | B11: BAJO REY | C11: 1 | D11: 47
A12: 107014 | B12: QUITIRRISÍ | C12: 2 | D12: 897
A13: 119069 | B13: CHINA KICHÁ | C13: 1 | D13: 281
B15: ALAJUELA | C15: =SUM(C16:C17) -> 2 | D15: =SUM(D16:D17) -> 572
A16: 215003 | B16: MARGARITA | C16: 1 | D16: 258
A17: 215010 | B17: TONJIBE | C17: 1 | D17: 314
B19: CARTAGO | C19: =SUM(C20:C28) -> 10 | D19: =SUM(D20:D28) -> 2600
A20: 305017 | B20: GRANO DE ORO O XARA | C20: 2 | D20: 741
A21: 305057 | B21: SIMIRIÑAC (JACUY) | C21: 1 | D21: 276
A22: 305058 | B22: DUCLAC (ALTO PACUARE) | C22: 1 | D22: 196
A23: 305059 | B23: JAKI (CAPILLA DOS CHIRRIPÓ ARRIBA) | C23: 1 | D23: 311
A24: 305060 | B24: BOLORIÑAC (CAPILLA UNO) | C24: 1 | D24: 281
A25: 305061 | B25: NIMARI-ÑAC (RÍO PEJE) | C25: 1 | D25: 218
A26: 305062 | B26: NAMALDI | C26: 1 | D26: 104
A27: 305063 | B27: TSIPIRI (QUEBRADA PLATANILLO) | C27: 1 | D27: 455
A28: 305077 | B28: JACBATA (CERRO AZUL) | C28: 1 | D28: 18
B30: GUANACASTE | C30: =SUM(C31:C32) -> 2 | D30: =SUM(D31:D32) -> 811
A31: 502080 | B31: MATAMBUGUITO | C31: 1 | D31: 169
A32: 511011 | B32: MATAMBU | C32: 1 | D32: 642
B34: PUNTARENAS | C34: =SUM(C35:C69) -> 41 | D34: =SUM(D35:D69) -> 13632
A35: 603003 | B35: SALITRE | C35: 1 | D35: 405
A36: 603006 | B36: BORUCA | C36: 2 | D36: 1166
A37: 603007 | B37: LAS PILAS | C37: 1 | D37: 130
A38: 603008 | B38: COLINAS (MAÍZ DE LOS UVA) | C38: 1 | D38: 344
A39: 603011 | B39: CURRÉ | C39: 1 | D39: 361
A40: 603012 | B40: LA DANTA O CONCEPCIÓN | C40: 1 | D40: 417
A41: 603014 | B41: UJARRÁS | C41: 2 | D41: 833
A42: 603019 | B42: BAJO LAS BRISAS | C42: 2 | D42: 752
A43: 603022 | B43: TÉRRABA | C43: 1 | D43: 534
A44: 603023 | B44: SAN RAFAEL DE CABAGRA | C44: 2 | D44: 764
A45: 603027 | B45: BIJAGUAL | C45: 1 | D45: 463
A46: 603028 | B46: CAJÓN | C46: 1 | D46: 249
A47: 603029 | B47: GUAGARAL | C47: 1 | D47: 229
A48: 603030 | B48: MAÍZ DE BORUCA | C48: 1 | D48: 355
A49: 603031 | B49: CHÁNGUENA (LA FILA) | C49: 1 | D49: 265
A50: 603032 | B50: PILÓN | C50: 1 | D50: 435
A51: 603033 | B51: LAS VEGAS DE RÍO CHÁNGUENA | C51: 1 | D51: 95
A52: 603034 | B52: LA BONGA | C52: 1 | D52: 261
A53: 603035 | B53: SAN VICENTE (UPIAV-2) | C53: 1 | D53: 128
A54: 603036 | B54: PARAÍSO | C54: 1 | D54: 207
A55: 603041 | B55: PUENTE DE SALITRE | C55: 1 | D55: 315
A56: 603051 | B56: SHAMBA | C56: 1 | D56: 187
A57: 607021 | B57: LA PEÑA DE BURICA | C57: 1 | D57: 195
A58: 607024 | B58: GUAYMI DE BURICA | C58: 1 | D58: 205
A59: 607025 | B59: ALTO CONTE(MOLO DUBTDO) | C59: 1 | D59: 267
A60: 607027 | B60: PROGRESO DE CONTEBURICA | C60: 1 | D60: 190
A61: 608016 | B61: SAN GERARDO | C61: 1 | D61: 123
A62: 608042 | B62: LA CASONA (GUAYMÍ) | C62: 2 | D62: 935
A63: 610003 | B63: BAJO LOS INDIOS | C63: 1 | D63: 235
A64: 610006 | B64: ABROJO NORTE [VEGAS DE ABROJO NORTE] | C64: 1 | D64: 590
A65: 610012 | B65: BARRIO NUEVO DE VERACRUZ | C65: 2 | D65: 749
A66: 610020 | B66: CARACOL DE LA VACA | C66: 1 | D66: 424
A67: 610021 | B67: VEREH | C67: 1 | D67: 400
A68: 610026 | B68: VEGAS DEL RÍO LA VACA (NIBIRIBOTDA) | C68: 1 | D68: 160
A69: 610027 | B69: ABROJO - MONTEZUMA | C69: 1 | D69: 264
B71: LIMÓN | C71: =SUM(C72:C88) -> 26 | D71: =SUM(D72:D88) -> 13493
A72: 701009 | B72: VESTA | C72: 1 | D72: 506
A73: 701021 | B73: BOCUARE | C73: 1 | D73: 231
A74: 701034 | B74: ALTO CWEN | C74: 1 | D74: 373
A75: 701035 | B75: XIQIARI | C75: 1 | D75: 544
A76: 701036 | B76: SINOLI | C76: 1 | D76: 170
A77: 703004 | B77: PACUARITO | C77: 1 | D77: 700
A78: 704001 | B78: BRATSI (BAMBÚ O DON DIEGO) | C78: 1 | D78: 425
A79: 704002 | B79: AMUBRI | C79: 3 | D79: 1812
A80: 704003 | B80: COROMA (COLOQCHA) | C80: 1 | D80: 394
A81: 704006 | B81: PUERTO VIEJO | C81: 2 | D81: 1385
A82: 704007 | B82: BRIBRÍ (FIELDS) | C82: 4 | D82: 2805
A83: 704008 | B83: SHIROLES (XIROLES) | C83: 3 | D83: 1818
A84: 704013 | B84: KATSI | C84: 1 | D84: 613
A85: 704015 | B85: SEPEQUE | C85: 2 | D85: 972
A86: 704019 | B86: SIBUJÚ | C86: 1 | D86: 295
A87: 704020 | B87: TELIRE (BLEY) | C87: 1 | D87: 213
A88: 705017 | B88: PALMERA(CATSAQIBI) | C88: 1 | D88: 237
A91: Fuente: Sección Padrón Electoral y Contraloría Electoral del Tribunal Supremo de Elecciones.

Sheet 16
A1: CUADRO 16. COSTA RICA: JUNTAS RECEPTORAS Y ELECTORADO EN CENTROS DE SALUD MENTAL
A2: SEGÚN PROVINCIA Y DISTRITO ELECTORAL. ELECCIONES MUNICIPALES
A3: 7 DE FEBRERO 2016
A5: CÓDIGO ELECTORAL | B5: PROVINCIA Y DISTRITO ELECTORAL | C5: NÚMERO DE JUNTAS | D5: ELECTORADO
B7: COSTA RICA | C7: =+C9+C13 -> 3 | D7: =+D9+D13 -> 292
B9: SAN JOSÉ | C9: =SUM(C10:C11) -> 2 | D9: =SUM(D10:D11) -> 198
A10: 101039 | B10: C.S.M. MANUEL ANTONIO CHAPUÍ | C10: 1 | D10: 141
A11: 101040 | B11: C.S.M. CAPEMCOL | C11: 1 | D11: 57
B13: CARTAGO | C13: =SUM(C14:C14) -> 1 | D13: =SUM(D14:D14) -> 94
A14: 303020 | B14: C.S.M. ROBERTO CHACÓN PAUT | C14: 1 | D14: 94
A17: Fuente: Sección Padrón Electoral y Contraloría Electoral del Tribunal Supremo de Elecciones.

Sheet 17
A1: CUADRO 17. COSTA RICA: PARTIDOS POLÍTICOS QUE PARTICIPAN EN LAS ELECCIONES
A2: SEGÚN ESCALA. ELECCIONES MUNICIPALES
A3: 7 DE FEBRERO 2016
A5: NOMBRE | B5: DIVISA
A7: ESCALA NACIONAL
A9: ACCESIBILIDAD SIN EXCLUSIÓN
A11: ACCIÓN CIUDADANA
A13: FRENTE AMPLIO
A15: INTEGRACIÓN NACIONAL
A17: LIBERACIÓN NACIONAL
A19: MOVIMIENTO LIBERTARIO
A21: NUEVA GENERACIÓN
A23: PARTIDO DE LOS TRABAJADORES
A25: RENOVACIÓN COSTARRICENSE
A27: REPUBLICANO SOCIAL CRISTIANO
A29: RESTAURACIÓN NACIONAL
A31: UNIDAD SOCIAL CRISTIANA
A33: ESCALA PROVINCIAL
A35: ALIANZA DEMÓCRATA CRISTIANA (CARTAGO)
A37: RECUPERANDO VALORES (LIMÓN)
A39: VERDE (CARTAGO)
A41: VIVA PUNTARENAS (PUNTARENAS)
A43: ESCALA CANTONAL
A46: ACCIÓN CANTONAL SIQUIRRES INDEPENDIENTE (SIQUIRRES, LIMÓN)
A48: ACUERDO DE ALIANZA DE QUEPOS (AGUIRRE, PUNTARENAS)
A50: ALIANZA CRISTIANA SANTANEÑA (SANTA ANA, SAN JOSÉ)
A52: ALIANZA POR PALMARES (PALMARES, ALAJUELA)
A54: ALIANZA POR SAN JOSÉ (SAN JOSÉ, SAN JOSÉ)
A56: ALIANZA SANCARLEÑA (SAN CARLOS, ALAJUELA)
A58: ALIANZA SOCIAL POR LA UNIÓN (LA UNIÓN. CARTAGO)
A60: AUTÉNTICO LABRADOR DE CORONADO (VÁZQUEZ DE CORONADO, SAN JOSÉ)
A62: AUTENTICO LIMONENSE (CENTRAL, LIMÓN)
A64: AUTENTICO SIQUIRREÑO (SIQUIRRES, LIMÓN)
A66: AUTÓNOMO OROMONTANO (MONTES DE ORO, PUNTARENAS)
A68: AVANCE MONTES DE OCA (MONTES DE OCA, SAN JOSÉ)
A70: BARVA UNIDA (BARVA, HEREDIA)
A72: COALICIÓN ALIANZA POR BELÉN
A74: COALICIÓN GENTE MONTES DE OCA
A76: COALICIÓN SOMOS TIBÁS
A78: COALICIÓN UNIDOS POR GUATUSO
A80: CURRIDABAT SIGLO XXI (CURRIDABAT, SAN JOSÉ)
A82: DEL SOL (SANTA ANA, SAN JOSÉ)
A84: DEMÓCRATA (VÁZQUES DE CORONADO, SAN JOSÉ)
A86: DESAMPARADOS UNIDOS (DESAMPARADOS, SAN JOSÉ)
A88: ECOLÓGICO COMUNAL COSTARRICENSE (DESAMPARADOS, SAN JOSÉ)
A90: FUERZA DEMOCRÁTICA DESAMPARADEÑA (DESAMPARADOS, SAN JOSÉ)
A92: FUERZA UNIDAS PARA EL CAMBIO (CENTRAL, SAN JOSÉ)
A94: GARABITO ECOLÓGICO (GARABITO, PUNTARENAS)
A96: INDEPENDIENTE ESCAZUCEÑO (ESCAZÚ, SAN JOSÉ)
A98: JUSTICIA GENERALEÑA (PÉREZ ZELEDÓN, SAN JOSÉ)
A100: LIGA RAMONENSE (SAN RAMÓN, ALAJUELA)
A102: LIMÓN INDEPENDIENTE (CENTRO, LIMÓN)
A104: MOVIMIENTO AVANCE SANTO DOMINGO
A106: NUEVA MAYORIA GRIEGA (GRECIA, ALAJUELA)
A108: PARRITA INDEPENDIENTE (PARRITA, PUNTARENAS)
A110: PROGRESO COMUNAL DESAMPARADEÑO (DESAMPARADOS, SAN JOSÉ)
A112: PUEBLO GARABITO (GARABITO, PUNTARENAS)
A114: PURISCALEÑOS DE CORAZÓN (PURISCAL, SAN JOSÉ)
A116: RENOVACIÓN CARTAGO (CENTRAL, CARTAGO)
A118: RENOVEMOS ALAJUELA (ALAJUELA, ALAJUELA)
A120: RESCATE CANTONAL LA UNIÓN (LA UNIÓN, CARTAGO)
A122: RESTAURACIÓN PARRITEÑA (PARRITA, PUNTARENAS)
A124: SOLIDARIDAD (CENTRAL, SAN JOSÉ)
A126: TODO POR FLORES
A128: UNIÓN GUARCO (EL GUARCO, CARTAGO)
A130: YUNTA PROGRESISTA ESCAZUCEÑA (ESCAZÚ, SAN JOSÉ)
A133: Fuente: Página Web Tribunal Supremo de Elecciones.

Sheet 18
A1: CUADRO 18. COSTA RICA: PRESUPUESTO ELECTORAL 2015 Y 2016 (SUBPROGRAMA 850-02)
A2: POR AÑO. ELECCIONES MUNICIPALES 7 DE FEBRERO 2016
A3: (DATOS EN COLONES)
A5: PARTIDA | B5: DESCRIPCIÓN | C5: 2015 | D5: 2016
A7: TOTAL | C7: =SUM(C9:C14) -> 3943113000 | D7: =SUM(D9:D14) -> 3456262200 | E7: *
A9: 0 | B9: Remuneraciones | C9: 2495432300 | D9: 1373948200
A10: 1 | B10: Servicios | C10: 737496000 | D10: 1725540000
A11: 2 | B11: Materiales y Suministros | C11: 331800000 | D11: 47166000
A12: 5 | B12: Bienes Duraderos | C12: 162210000 | D12: 0
A13: 6 | B13: Transferencias Corrientes | C13: 16174700 | D13: 9608000
A14: 9 | B14: Cuentas Especiales | C14: 200000000 | D14: 300000000
A16: Fuente: Dirección General de Registro Electoral y Financiamiento de Partidos Políticos Tribunal Supremo de Elecciones.
A18: *Originalmente, el monto destinado a "Elecciones Municipales 2016" (año 2016), era de ¢3.554.773.000,00, no obstante, en el mes de agosto, le fue recortada la suma de ¢98.510.800,00 como parte de una propuesta por parte del TSE a petición del Ministerio de Hacienda por lo que el monto final para elecciones municipales es de ¢3.456.262.200,00

Sheet 19
A1: CUADRO 19. COSTA RICA: CANDIDATURAS INSCRITAS POR ELECCIÓN, SEGÚN TIPO DE CANDIDATURA Y PROVINCIA
A2: ELECCIONES 2002, 2006, 2010 y 2016
A4: PROVINCIA Y TIPO DE CANDIDATURA | B4: 2002 | C4: 2006 | D4: 2010 | E4: 2016
A6: COSTA RICA | B6: =SUM(B7:B13) -> 25234 | C6: =SUM(C7:C13) -> 26708 | D6: =SUM(D7:D13) -> 23096 | E6: =SUM(E7:E13) -> 31879
A7: SAN JOSÉ | B7: =+B16+B25+B34+B43 -> 6907 | C7: =+C16+C25+C34+C43 -> 7262 | D7: =+D16+D25+D34+D43 -> 6414 | E7: =+E16+E25+E34+E43 -> 8540
A8: ALAJUELA | B8: =+B17+B26+B35+B44+B52+B58 -> 5056 | C8: 5368 | D8: 4508 | E8: 6759
A9: CARTAGO | B9: 2886 | C9: 3297 | D9: 2370 | E9: 3577
A10: HEREDIA | B10: =+B19+B28+B37+B46 -> 2647 | C10: =+C19+C28+C37+C46 -> 2473 | D10: =+D19+D28+D37+D46 -> 2453 | E10: =+E19+E28+E37+E46 -> 2972
A11: GUANACASTE | B11: =+B20+B29+B38+B47+B54+B60 -> 2722 | C11: 2980 | D11: 2454 | E11: 3299
A12: PUNTARENAS | B12: 3012 | C12: 3246 | D12: 2911 | E12: 4056
A13: LIMÓN | B13: =+B22+B31+B40+B49 -> 2004 | C13: =+C22+C31+C40+C49 -> 2082 | D13: =+D22+D31+D40+D49 -> 1986 | E13: =+E22+E31+E40+E49 -> 2676
A15: ALCALDÍAS Y VICEALCALDÍAS | B15: =SUM(B16:B22) -> 1089 | C15: =SUM(C16:C22) -> 1099 | D15: =SUM(D16:D22) -> 1008 | E15: =SUM(E16:E22) -> 1780
A16: SAN JOSÉ | B16: 266 | C16: 273 | D16: 258 | E16: 468
A17: ALAJUELA | B17: 185 | C17: 184 | D17: 182 | E17: 313
A18: CARTAGO | B18: 112 | C18: 118 | D18: 87 | E18: 200
A19: HEREDIA | B19: 135 | C19: 119 | D19: 117 | E19: 199
A20: GUANACASTE | B20: 144 | C20: 146 | D20: 115 | E20: 180
A21: PUNTARENAS | B21: 141 | C21: 157 | D21: 146 | E21: 259
A22: LIMÓN | B22: 106 | C22: 102 | D22: 103 | E22: 161
A24: REGIDURÍAS 1/ | B24: =SUM(B25:B31) -> 8973 | C24: =SUM(C25:C31) -> 10789 | D24: =SUM(D25:D31) -> 7234 | E24: =SUM(E25:E31) -> 7016
A25: SAN JOSÉ | B25: 2500 | C25: 3210 | D25: 2175 | E25: 2033
A26: ALAJUELA | B26: 1686 | C26: 1866 | D26: 1177 | E26: 1218
A27: CARTAGO | B27: 1115 | C27: 1465 | D27: 779 | E27: 821
A28: HEREDIA | B28: 1071 | C28: 1137 | D28: 818 | E28: 721
A29: GUANACASTE | B29: 828 | C29: 1183 | D29: 739 | E29: 644
A30: PUNTARENAS | B30: 1090 | C30: 1048 | D30: 802 | E30: 870
A31: LIMÓN | B31: 683 | C31: 880 | D31: 744 | E31: 709
A33: SINDICATURAS | B33: =SUM(B34:B40) -> 3488 | C33: =SUM(C34:C40) -> 3726 | D33: =SUM(D34:D40) -> 3578 | E33: =SUM(E34:E40) -> 6085
A34: SAN JOSÉ | B34: 936 | C34: 943 | D34: 958 | E34: 1630
A35: ALAJUELA | B35: 726 | C35: 790 | D35: 809 | E35: 1399
A36: CARTAGO | B36: 371 | C36: 484 | D36: 338 | E36: 741
A37: HEREDIA | B37: 349 | C37: 335 | D37: 356 | E37: 523
A38: GUANACASTE | B38: 437 | C38: 438 | D38: 380 | E38: 596
A39: PUNTARENAS | B39: 385 | C39: 467 | D39: 459 | E39: 747
A40: LIMÓN | B40: 284 | C40: 269 | D40: 278 | E40: 449
A42: CONCEJOS DE DISTRITO | B42: =SUM(B43:B49) -> 11454 | C42: =SUM(C43:C49) -> 10832 | D42: =SUM(D43:D49) -> 11004 | E42: =SUM(E43:E49) -> 16546
A43: SAN JOSÉ | B43: 3205 | C43: 2836 | D43: 3023 | E43: 4409
A44: ALAJUELA | B44: 2430 | C44: 2495 | D44: 2321 | E44: 3775
A45: CARTAGO | B45: 1222 | C45: 1182 | D45: 1109 | E45: 1703
A46: HEREDIA | B46: 1092 | C46: 882 | D46: 1162 | E46: 1529
A47: GUANACASTE | B47: 1289 | C47: 1176 | D47: 1181 | E47: 1813
A48: PUNTARENAS | B48: 1285 | C48: 1430 | D48: 1347 | E48: 1960
A49: LIMÓN | B49: 931 | C49: 831 | D49: 861 | E49: 1357
A51: INTENDENTES Y VICEINTENDENTES | B51: =SUM(B52:B55) -> 26 | C51: =SUM(C52:C55) -> 34 | D51: =SUM(D52:D55) -> 61 | E51: =SUM(E52:E55) -> 103
A52: ALAJUELA | B52: 4 | C52: 4 | D52: 4 | E52: 11
A53: CARTAGO | B53: 6 | C53: 6 | D53: 14 | E53: 26
A54: GUANACASTE | B54: 3 | C54: 4 | D54: 8 | E54: 14
A55: PUNTARENAS | B55: 13 | C55: 20 | D55: 35 | E55: 52
A57: CONCEJOS MUNICIPALES DE DISTRITO | B57: =SUM(B58:B61) -> 204 | C57: =SUM(C58:C61) -> 228 | D57: =SUM(D58:D61) -> 211 | E57: =SUM(E58:E61) -> 349
A58: ALAJUELA | B58: 25 | C58: 29 | D58: 15 | E58: 43
A59: CARTAGO | B59: 60 | C59: 42 | D59: 43 | E59: 86
A60: GUANACASTE | B60: 21 | C60: 33 | D60: 31 | E60: 52
A61: PUNTARENAS | B61: 98 | C61: 124 | D61: 122 | E61: 168
A64: 1/ Los candidaturas a regidores se presentaros en las elecciones generales en el mes de febrero de los años 2002, 2006 y 2010
A65: Nota: Datos al 26 de enero de 2016.
A66: Fuente: Cómputo de Votos y declaratorias de elección y Departamento de Registro de Partidos Políticos.

Sheet 20
A1: CUADRO 20. COSTA RICA: COMPOSICIÓN DE LAS PAPELETAS POR SEXO, SEGÚN CANDIDATURAS Y CARGO
A2: ELECCIONES MUNICIPALES 7 DE FEBRERO 2016
A3: (CIFRAS ABSOLUTAS Y RELATIVAS)
A5: CANDIDATURAS | B5: TOTAL | C5: HOMBRES | E5: MUJERES
C6: ABSOLUTO | D6: % | E6: ABSOLUTO | F6: %
A8: TOTAL | B8: =SUM(B10:B18) -> 31879 | C8: =SUM(C10:C18) -> 16199 | D8: =+C8/B8*100 -> 50.8140155 | E8: =SUM(E10:E18) -> 15680 | F8: =+E8/B8*100 -> 49.1859845
A10: ALCALDÍA | B10: =+C10+E10 -> 605 | C10: =+C24 -> 489 | D10: =+C10/B10*100 -> 80.82644628 | E10: =+E24 -> 116 | F10: =+E10/B10*100 -> 19.17355372
A11: VICEALCALDÍA PRIMERA | B11: 593 | C11: =+C25 -> 112 | D11: =+C11/B11*100 -> 18.88701518 | E11: =+E25 -> 481 | F11: 81.11298482
A12: VICEALCALDÍA SEGUNDA | B12: 582 | C12: =+C26 -> 434 | D12: =+C12/B12*100 -> 74.57044674 | E12: =+E26 -> 148 | F12: 25.42955326
A13: REGIDURÍA | B13: =+C13+E13 -> 7016 | C13: =+C27+C38 -> 3604 | D13: 51.36830103 | E13: =+E27+E38 -> 3412 | F13: 48.63169897
A14: SÍNDICO/A | B14: 6085 | C14: =+C28+C39 -> 3063 | D14: 50.336894 | E14: =+E28+E39 -> 3022 | F14: 49.663106
A15: CONCEJALES DE DISTRITO | B15: 16546 | C15: =+C29+C40 -> 8272 | D15: 49.99395624 | E15: =+E29+E40 -> 8274 | F15: 50.00604376
A16: INTENDENTE | B16: 53 | C16: =+C30 -> 39 | D16: 73.58490566 | E16: =+E30 -> 14 | F16: 26.41509434
A17: VICEINTENDENTE | B17: 50 | C17: =+C31 -> 12 | D17: 24 | E17: =+E31 -> 38 | F17: 76
A18: CONCEJAL MUNICIPAL DE DISTRITO | B18: 349 | C18: =+C32+C41 -> 174 | D18: 49.85673352 | E18: =+E32+E41 -> 175 | F18: 50.14326648
B20: EN PROPIEDAD
A22: TOTAL EN PROPIEDAD | B22: =SUM(B24:B32) -> 17616 | C22: =SUM(C24:C32) -> 9541 | D22: =+C22/B22*100 -> 54.16099001 | E22: =SUM(E24:E32) -> 8075 | F22: =+E22/B22*100 -> 45.83900999
A24: ALCALDÍA | B24: =+C24+E24 -> 605 | C24: 489 | D24: =+C24/B24*100 -> 80.82644628 | E24: 116 | F24: =+E24/B24*100 -> 19.17355372
A25: VICEALCALDÍA PRIMERA | B25: 593 | C25: 112 | D25: =+C25/B25*100 -> 18.88701518 | E25: 481 | F25: =+E25/B25*100 -> 81.11298482
A26: VICEALCALDÍA SEGUNDA | B26: =+C26+E26 -> 582 | C26: 434 | D26: =+C26/B26*100 -> 74.57044674 | E26: 148 | F26: =+E26/B26*100 -> 25.42955326
A27: REGIDURÍA | B27: =+C27+E27 -> 3547 | C27: 1909 | D27: 53.82012969 | E27: 1638 | F27: 46.17987031
A28: SÍNDICO/A | B28: 3169 | C28: 2027 | D28: 63.96339539 | E28: 1142 | F28: 36.03660461
A29: CONCEJALES DE DISTRITO | B29: 8840 | C29: 4430 | D29: 50.11312217 | E29: 4410 | F29: 49.88687783
A30: INTENDENTE | B30: 53 | C30: 39 | D30: 73.58490566 | E30: 14 | F30: 26.41509434
A31: VICEINTENDENTE | B31: 50 | C31: 12 | D31: 24 | E31: 38 | F31: 76
A32: CONCEJAL MUNICIPAL DE DISTRITO | B32: 177 | C32: 89 | D32: 50.28248588 | E32: 88 | F32: 49.71751412
B34: EN SUPLENCIA
A36: TOTAL EN SUPLENCIA | B36: =SUM(B38:B41) -> 14263 | C36: =SUM(C38:C41) -> 6658 | D36: =+C36/B36*100 -> 46.68022155 | E36: =SUM(E38:E41) -> 7605 | F36: =+E36/B36*100 -> 53.31977845
A38: REGIDURÍA | B38: =+C38+E38 -> 3469 | C38: 1695 | D38: =+C38/B38*100 -> 48.86134333 | E38: 1774 | F38: =+E38/B38*100 -> 51.13865667
A39: SÍNDICO/A | B39: =+C39+E39 -> 2916 | C39: 1036 | D39: =+C39/B39*100 -> 35.52812071 | E39: 1880 | F39: =+E39/B39*100 -> 64.47187929
A40: CONCEJALES DE DISTRITO | B40: =+C40+E40 -> 7706 | C40: 3842 | D40: =+C40/B40*100 -> 49.85725409 | E40: 3864 | F40: =+E40/B40*100 -> 50.14274591
A41: CONCEJAL MUNICIPAL DE DISTRITO | B41: =+C41+E41 -> 172 | C41: 85 | D41: =+C41/B41*100 -> 49.41860465 | E41: 87 | F41: =+E41/B41*100 -> 50.58139535
A44: Nota: Datos al 26 de enero de 2016.
A45: Fuente: Departamento de Registro de Partidos Políticos, Base de datos de candidaturas FEBRERO 2016.

Sheet G3
C3: Sexo
A4: Tipo de candidatura | B4: MUJER | C4: HOMBRE
A5: ALCALDÍA | B5: 116 | C5: 489
A6: VICEALCALDÍA PRIMERA | B6: 481 | C6: 112
A7: VICEALCALDÍA SEGUNDA | B7: 148 | C7: 434
A8: REGIDURÍA | B8: 3412 | C8: 3604
A9: SÍNDICO/A | B9: 3022 | C9: 3063
A10: CONCEJALES DE DISTRITO | B10: 8273 | C10: 8272
A11: INTENDENTE | B11: 14 | C11: 39
A12: VICEINTENDENTE | B12: 38 | C12: 12
A13: CONCEJAL MUNICIPAL DE DISTRITO | B13: 175 | C13: 174
A17: Nota: Datos al 26 de enero de 2016.
A18: Fuente: Tribunal Supremo de Elecciones. Departamento de Registro de Partidos Políticos, base de datos de candidaturas FEBRERO 2016.

Sheet 21
A1: CUADRO 21. COSTA RICA: CANDIDATURAS A ALCALDÍAS Y VICEALCALDÍAS POR SEXO, SEGÚN PARTIDO
A2: ELECCIONES MUNICIPALES 7 DE FEBRERO 2016
A3: (CIFRAS ABSOLUTAS Y RELATIVAS)
A5: PARTIDO | B5: TOTAL | G5: ALCALDÍAS | L5: VICEALCALDÍA PRIMERA | Q5: VICEALCALDÍA SEGUNDA
A6: PARTIDO POLITICO | B6: TOTAL | C6: HOMBRES | E6: MUJERES | G6: TOTAL | H6: HOMBRES | J6: MUJERES | L6: TOTAL | M6: HOMBRES | O6: MUJERES | Q6: TOTAL | R6: HOMBRES | T6: MUJERES
B7: ABS | C7: ABS | D7: % | E7: ABS | F7: % | G7: ABS | H7: ABS | I7: % | J7: ABS | K7: % | L7: ABS | M7: ABS | N7: % | O7: ABS | P7: % | Q7: ABS | R7: ABS | S7: % | T7: ABS | U7: %
A9: TOTAL | B9: =SUM(B11:B69) -> 1780 | C9: =SUM(C11:C69) -> 1035 | D9: =C9/B9*100 -> 58.14606742 | E9: =SUM(E11:E69) -> 745 | F9: =E9/B9*100 -> 41.85393258 | G9: =SUM(G11:G69) -> 605 | H9: =SUM(H11:H69) -> 489 | I9: =H9/G9*100 -> 80.82644628 | J9: =SUM(J11:J69) -> 116 | K9: =J9/G9*100 -> 19.17355372 | L9: =SUM(L11:L69) -> 593 | M9: =SUM(M11:M69) -> 112 | N9: =M9/L9*100 -> 18.88701518 | O9: =SUM(O11:O69) -> 481 | P9: =O9/L9*100 -> 81.11298482 | Q9: =SUM(Q11:Q69) -> 582 | R9: =SUM(R11:R69) -> 434 | S9: =R9/Q9*100 -> 74.57044674 | T9: =SUM(T11:T69) -> 148 | U9: =T9/Q9*100 -> 25.42955326
A11: ACCESIBILIDAD SIN EXCLUSIÓN | B11: =+C11+E11 -> 53 | C11: =+H11+M11+R11 -> 26 | D11: =C11/B11*100 -> 49.05660377 | E11: =+J11+O11+T11 -> 27 | F11: =E11/B11*100 -> 50.94339623 | G11: =+H11+J11 -> 18 | H11: 14 | I11: =H11/G11*100 -> 77.77777778 | J11: 4 | K11: =J11/G11*100 -> 22.22222222 | L11: =+M11+O11 -> 17 | M11: 3 | N11: =M11/L11*100 -> 17.64705882 | O11: 14 | P11: =O11/L11*100 -> 82.35294118 | Q11: =+R11+T11 -> 18 | R11: 9 | S11: =R11/Q11*100 -> 50 | T11: 9 | U11: =T11/Q11*100 -> 50
A12: ACCIÓN CANTONAL SIQUIRRES INDEPENDIENTE | B12: 3 | C12: 1 | D12: =C12/B12*100 -> 33.33333333 | E12: 2 | F12: =E12/B12*100 -> 66.66666667 | G12: 1 | H12: 1 | I12: 100 | J12: 0 | K12: 0 | L12: 1 | M12: 0 | N12: 0 | O12: 1 | P12: 100 | Q12: 1 | R12: 0 | S12: 0 | T12: 1 | U12: 100
A13: ACCIÓN CIUDADANA | B13: 218 | C13: 122 | D13: 55.96330275 | E13: 96 | F13: 44.03669725 | G13: 74 | H13: 62 | I13: 83.78378378 | J13: 12 | K13: 16.21621622 | L13: 73 | M13: 12 | N13: 16.43835616 | O13: 61 | P13: 83.56164384 | Q13: 71 | R13: 48 | S13: 67.6056338 | T13: 23 | U13: 32.3943662
A14: ACUERDO DE ALIANZA DE QUEPOS | B14: 3 | C14: 1 | D14: 33.33333333 | E14: 2 | F14: 66.66666667 | G14: 1 | H14: 0 | I14: =H14/G14*100 -> 0 | J14: 1 | K14: =J14/G14*100 -> 100 | L14: 1 | M14: 1 | N14: 100 | O14: 0 | P14: =O14/L14*100 -> 0 | Q14: 1 | R14: 0 | S14: =R14/Q14*100 -> 0 | T14: 1 | U14: =T14/Q14*100 -> 100
A15: ALIANZA CRISTIANA SANTANEÑA | B15: 3 | C15: 2 | D15: 66.66666667 | E15: 1 | F15: 33.33333333 | G15: 1 | H15: 1 | I15: 100 | J15: 0 | K15: 0 | L15: 1 | M15: 0 | N15: 0 | O15: 1 | P15: 100 | Q15: 1 | R15: 1 | S15: 100 | T15: 0 | U15: 0
A16: ALIANZA DEMOCRATA CRISTIANA | B16: 24 | C16: 13 | D16: 54.16666667 | E16: 11 | F16: 45.83333333 | G16: 8 | H16: 4 | I16: 50 | J16: 4 | K16: 50 | L16: 8 | M16: 4 | N16: 50 | O16: 4 | P16: 50 | Q16: 8 | R16: 5 | S16: 62.5 | T16: 3 | U16: 37.5
A17: ALIANZA POR PALMARES | B17: 3 | C17: 2 | D17: 66.66666667 | E17: 1 | F17: 33.33333333 | G17: 1 | H17: 1 | I17: 100 | J17: 0 | K17: 0 | L17: 1 | M17: 0 | N17: 0 | O17: 1 | P17: 100 | Q17: 1 | R17: 1 | S17: 100 | T17: 0 | U17: 0
A18: ALIANZA POR SAN JOSE | B18: 3 | C18: 2 | D18: 66.66666667 | E18: 1 | F18: 33.33333333 | G18: 1 | H18: 1 | I18: 100 | J18: 0 | K18: 0 | L18: 1 | M18: 0 | N18: 0 | O18: 1 | P18: 100 | Q18: 1 | R18: 1 | S18: 100 | T18: 0 | U18: 0
A19: ALIANZA SANCARLEÑA | B19: 3 | C19: 1 | D19: 33.33333333 | E19: 2 | F19: 66.66666667 | G19: 1 | H19: 1 | I19: 100 | J19: 0 | K19: 0 | L19: 1 | M19: 0 | N19: 0 | O19: 1 | P19: 100 | Q19: 1 | R19: 0 | S19: 0 | T19: 1 | U19: 100
A20: ALIANZA SOCIAL POR LA UNION | B20: 3 | C20: 2 | D20: 66.66666667 | E20: 1 | F20: 33.33333333 | G20: 1 | H20: 1 | I20: 100 | J20: 0 | K20: 0 | L20: 1 | M20: 0 | N20: 0 | O20: 1 | P20: 100 | Q20: 1 | R20: 1 | S20: 100 | T20: 0 | U20: 0
A21: AUTENTICO LABRADOR DE CORONADO | B21: 3 | C21: 2 | D21: 66.66666667 | E21: 1 | F21: 33.33333333 | G21: 1 | H21: 1 | I21: 100 | J21: 0 | K21: 0 | L21: 1 | M21: 0 | N21: 0 | O21: 1 | P21: 100 | Q21: 1 | R21: 1 | S21: 100 | T21: 0 | U21: 0
A22: AUTENTICO LIMONENSE | B22: 3 | C22: 2 | D22: 66.66666667 | E22: 1 | F22: 33.33333333 | G22: 1 | H22: 1 | I22: 100 | J22: 0 | K22: 0 | L22: 1 | M22: 0 | N22: 0 | O22: 1 | P22: 100 | Q22: 1 | R22: 1 | S22: 100 | T22: 0 | U22: 0
A23: AUTENTICO SIQUIRREÑO | B23: 3 | C23: 1 | D23: 33.33333333 | E23: 2 | F23: 66.66666667 | G23: 1 | H23: 0 | I23: 0 | J23: 1 | K23: 100 | L23: 1 | M23: 1 | N23: 100 | O23: 0 | P23: 0 | Q23: 1 | R23: 0 | S23: 0 | T23: 1 | U23: 100
A24: AUTÓNOMO OROMONTANO | B24: 3 | C24: 2 | D24: 66.66666667 | E24: 1 | F24: 33.33333333 | G24: 1 | H24: 0 | I24: 0 | J24: 1 | K24: 100 | L24: 1 | M24: 1 | N24: 100 | O24: 0 | P24: 0 | Q24: 1 | R24: 1 | S24: 100 | T24: 0 | U24: 0
A25: AVANCE MONTES DE OCA | B25: 3 | C25: 1 | D25: 33.33333333 | E25: 2 | F25: 66.66666667 | G25: 1 | H25: 1 | I25: 100 | J25: 0 | K25: 0 | L25: 1 | M25: 0 | N25: 0 | O25: 1 | P25: 100 | Q25: 1 | R25: 0 | S25: 0 | T25: 1 | U25: 100
A26: BARVA UNIDA | B26: 3 | C26: 1 | D26: 33.33333333 | E26: 2 | F26: 66.66666667 | G26: 1 | H26: 0 | I26: 0 | J26: 1 | K26: 100 | L26: 1 | M26: 1 | N26: 100 | O26: 0 | P26: 0 | Q26: 1 | R26: 0 | S26: 0 | T26: 1 | U26: 100
A27: COALICION ALIANZA POR BELEN | B27: 3 | C27: 2 | D27: 66.66666667 | E27: 1 | F27: 33.33333333 | G27: 1 | H27: 1 | I27: 100 | J27: 0 | K27: 0 | L27: 1 | M27: 0 | N27: 0 | O27: 1 | P27: 100 | Q27: 1 | R27: 1 | S27: 100 | T27: 0 | U27: 0
A28: COALICION GENTE MONTES DE OCA | B28: 3 | C28: 2 | D28: 66.66666667 | E28: 1 | F28: 33.33333333 | G28: 1 | H28: 1 | I28: 100 | J28: 0 | K28: 0 | L28: 1 | M28: 0 | N28: 0 | O28: 1 | P28: 100 | Q28: 1 | R28: 1 | S28: 100 | T28: 0 | U28: 0
A29: COALICION SOMOS TIBAS | B29: 3 | C29: 2 | D29: 66.66666667 | E29: 1 | F29: 33.33333333 | G29: 1 | H29: 1 | I29: 100 | J29: 0 | K29: 0 | L29: 1 | M29: 0 | N29: 0 | O29: 1 | P29: 100 | Q29: 1 | R29: 1 | S29: 100 | T29: 0 | U29: 0
A30: COALICION UNIDOS POR GUATUSO | B30: 3 | C30: 2 | D30: 66.66666667 | E30: 1 | F30: 33.33333333 | G30: 1 | H30: 1 | I30: 100 | J30: 0 | K30: 0 | L30: 1 | M30: 0 | N30: 0 | O30: 1 | P30: 100 | Q30: 1 | R30: 1 | S30: 100 | T30: 0 | U30: 0
A31: CURRIDABAT SIGLO XXI | B31: 3 | C31: 2 | D31: 66.66666667 | E31: 1 | F31: 33.33333333 | G31: 1 | H31: 1 | I31: 100 | J31: 0 | K31: 0 | L31: 1 | M31: 0 | N31: 0 | O31: 1 | P31: 100 | Q31: 1 | R31: 1 | S31: 100 | T31: 0 | U31: 0
A32: DE LOS TRABAJADORES | B32: 15 | C32: 9 | D32: 60 | E32: 6 | F32: 40 | G32: 5 | H32: 3 | I32: 60 | J32: 2 | K32: 40 | L32: 5 | M32: 2 | N32: 40 | O32: 3 | P32: 60 | Q32: 5 | R32: 4 | S32: 80 | T32: 1 | U32: 20
A33: DEL SOL | B33: 3 | C33: 2 | D33: 66.66666667 | E33: 1 | F33: 33.33333333 | G33: 1 | H33: 0 | I33: 0 | J33: 1 | K33: 100 | L33: 1 | M33: 1 | N33: 100 | O33: 0 | P33: 0 | Q33: 1 | R33: 1 | S33: 100 | T33: 0 | U33: 0
A34: DEMOCRATA | B34: 3 | C34: 2 | D34: 66.66666667 | E34: 1 | F34: 33.33333333 | G34: 1 | H34: 1 | I34: 100 | J34: 0 | K34: 0 | L34: 1 | M34: 0 | N34: 0 | O34: 1 | P34: 100 | Q34: 1 | R34: 1 | S34: 100 | T34: 0 | U34: 0
A35: DESAMPARADOS UNIDO | B35: 3 | C35: 1 | D35: 33.33333333 | E35: 2 | F35: 66.66666667 | G35: 1 | H35: 1 | I35: 100 | J35: 0 | K35: 0 | L35: 1 | M35: 0 | N35: 0 | O35: 1 | P35: 100 | Q35: 1 | R35: 0 | S35: 0 | T35: 1 | U35: 100
A36: ECOLOGICO COMUNAL COSTARRICENSE | B36: 3 | C36: 2 | D36: 66.66666667 | E36: 1 | F36: 33.33333333 | G36: 1 | H36: 1 | I36: 100 | J36: 0 | K36: 0 | L36: 1 | M36: 0 | N36: 0 | O36: 1 | P36: 100 | Q36: 1 | R36: 1 | S36: 100 | T36: 0 | U36: 0
A37: FRENTE AMPLIO | B37: 174 | C37: 99 | D37: 56.89655172 | E37: 75 | F37: 43.10344828 | G37: 59 | H37: 42 | I37: 71.18644068 | J37: 17 | K37: 28.81355932 | L37: 57 | M37: 17 | N37: 29.8245614 | O37: 40 | P37: 70.1754386 | Q37: 58 | R37: 40 | S37: 68.96551724 | T37: 18 | U37: 31.03448276
A38: FUERZA DEMOCRATICA DESAMPARADEÑA | B38: 3 | C38: 2 | D38: 66.66666667 | E38: 1 | F38: 33.33333333 | G38: 1 | H38: 1 | I38: 100 | J38: 0 | K38: 0 | L38: 1 | M38: 0 | N38: 0 | O38: 1 | P38: 100 | Q38: 1 | R38: 1 | S38: 100 | T38: 0 | U38: 0
A39: FUERZAS UNIDAS PARA EL CAMBIO | B39: 3 | C39: 2 | D39: 66.66666667 | E39: 1 | F39: 33.33333333 | G39: 1 | H39: 1 | I39: 100 | J39: 0 | K39: 0 | L39: 1 | M39: 0 | N39: 0 | O39: 1 | P39: 100 | Q39: 1 | R39: 1 | S39: 100 | T39: 0 | U39: 0
A40: GARABITO ECOLÓGICO | B40: 3 | C40: 2 | D40: 66.66666667 | E40: 1 | F40: 33.33333333 | G40: 1 | H40: 1 | I40: 100 | J40: 0 | K40: 0 | L40: 1 | M40: 0 | N40: 0 | O40: 1 | P40: 100 | Q40: 1 | R40: 1 | S40: 100 | T40: 0 | U40: 0
A41: INDEPENDIENTE ESCAZUCEÑO | B41: 3 | C41: 2 | D41: 66.66666667 | E41: 1 | F41: 33.33333333 | G41: 1 | H41: 1 | I41: 100 | J41: 0 | K41: 0 | L41: 1 | M41: 0 | N41: 0 | O41: 1 | P41: 100 | Q41: 1 | R41: 1 | S41: 100 | T41: 0 | U41: 0
A42: INTEGRACIÓN NACIONAL | B42: 24 | C42: 14 | D42: 58.33333333 | E42: 10 | F42: 41.66666667 | G42: 8 | H42: 7 | I42: 87.5 | J42: 1 | K42: 12.5 | L42: 8 | M42: 1 | N42: 12.5 | O42: 7 | P42: 87.5 | Q42: 8 | R42: 6 | S42: 75 | T42: 2 | U42: 25
A43: JUSTICIA GENERALEÑA | B43: =+C43+E43 -> 3 | C43: =+H43+M43+R43 -> 2 | D43: =C43/B43*100 -> 66.66666667 | E43: =+J43+O43+T43 -> 1 | F43: =E43/B43*100 -> 33.33333333 | G43: =+H43+J43 -> 1 | H43: 1 | I43: =H43/G43*100 -> 100 | J43: 0 | K43: =J43/G43*100 -> 0 | L43: =+M43+O43 -> 1 | M43: 0 | N43: =M43/L43*100 -> 0 | O43: 1 | P43: =O43/L43*100 -> 100 | Q43: =+R43+T43 -> 1 | R43: 1 | S43: =R43/Q43*100 -> 100 | T43: 0 | U43: =T43/Q43*100 -> 0
A44: LIBERACIÓN NACIONAL | B44: 242 | C44: 144 | D44: 59.50413223 | E44: 98 | F44: 40.49586777 | G44: 81 | H44: 68 | I44: 83.95061728 | J44: 13 | K44: 16.04938272 | L44: 81 | M44: 13 | N44: 16.04938272 | O44: 68 | P44: 83.95061728 | Q44: 80 | R44: 63 | S44: 78.75 | T44: 17 | U44: 21.25
A45: LIGA RAMONENSE | B45: 3 | C45: 2 | D45: 66.66666667 | E45: 1 | F45: 33.33333333 | G45: 1 | H45: 1 | I45: 100 | J45: 0 | K45: 0 | L45: 1 | M45: 0 | N45: 0 | O45: 1 | P45: 100 | Q45: 1 | R45: 1 | S45: 100 | T45: 0 | U45: 0
A46: LIMON INDEPENDIENTE | B46: 3 | C46: 1 | D46: 33.33333333 | E46: 2 | F46: 66.66666667 | G46: 1 | H46: 0 | I46: 0 | J46: 1 | K46: 100 | L46: 1 | M46: 1 | N46: 100 | O46: 0 | P46: 0 | Q46: 1 | R46: 0 | S46: 0 | T46: 1 | U46: 100
A47: MOVIMIENTO AVANCE SANTO DOMINGO | B47: 3 | C47: 2 | D47: 66.66666667 | E47: 1 | F47: 33.33333333 | G47: 1 | H47: 1 | I47: 100 | J47: 0 | K47: 0 | L47: 1 | M47: 0 | N47: 0 | O47: 1 | P47: 100 | Q47: 1 | R47: 1 | S47: 100 | T47: 0 | U47: 0
A48: MOVIMIENTO LIBERTARIO | B48: 196 | C48: 116 | D48: 59.18367347 | E48: 80 | F48: 40.81632653 | G48: 67 | H48: 55 | I48: 82.08955224 | J48: 12 | K48: 17.91044776 | L48: 66 | M48: 12 | N48: 18.18181818 | O48: 54 | P48: 81.81818182 | Q48: 63 | R48: 49 | S48: 77.77777778 | T48: 14 | U48: 22.22222222
A49: NUEVA GENERACION | B49: 123 | C49: 72 | D49: 58.53658537 | E49: 51 | F49: 41.46341463 | G49: 42 | H49: 30 | I49: 71.42857143 | J49: 12 | K49: 28.57142857 | L49: 41 | M49: 11 | N49: 26.82926829 | O49: 30 | P49: 73.17073171 | Q49: 40 | R49: 31 | S49: 77.5 | T49: 9 | U49: 22.5
A50: NUEVA MAYORIA GRIEGA | B50: 3 | C50: 2 | D50: 66.66666667 | E50: 1 | F50: 33.33333333 | G50: 1 | H50: 1 | I50: 100 | J50: 0 | K50: 0 | L50: 1 | M50: 0 | N50: 0 | O50: 1 | P50: 100 | Q50: 1 | R50: 1 | S50: 100 | T50: 0 | U50: 0
A51: PARRITA INDEPENDIENTE | B51: 3 | C51: 2 | D51: 66.66666667 | E51: 1 | F51: 33.33333333 | G51: 1 | H51: 1 | I51: 100 | J51: 0 | K51: 0 | L51: 1 | M51: 0 | N51: 0 | O51: 1 | P51: 100 | Q51: 1 | R51: 1 | S51: 100 | T51: 0 | U51: 0
A52: PROGRESO COMUNAL DESAMPARADEÑO | B52: 3 | C52: 2 | D52: 66.66666667 | E52: 1 | F52: 33.33333333 | G52: 1 | H52: 1 | I52: 100 | J52: 0 | K52: 0 | L52: 1 | M52: 0 | N52: 0 | O52: 1 | P52: 100 | Q52: 1 | R52: 1 | S52: 100 | T52: 0 | U52: 0
A53: PUEBLO GARABITO | B53: 3 | C53: 2 | D53: 66.66666667 | E53: 1 | F53: 33.33333333 | G53: 1 | H53: 1 | I53: 100 | J53: 0 | K53: 0 | L53: 1 | M53: 0 | N53: 0 | O53: 1 | P53: 100 | Q53: 1 | R53: 1 | S53: 100 | T53: 0 | U53: 0
A54: PURISCALEÑOS DE CORAZON | B54: 3 | C54: 2 | D54: 66.66666667 | E54: 1 | F54: 33.33333333 | G54: 1 | H54: 1 | I54: 100 | J54: 0 | K54: 0 | L54: 1 | M54: 0 | N54: 0 | O54: 1 | P54: 100 | Q54: 1 | R54: 1 | S54: 100 | T54: 0 | U54: 0
A55: RECUPERANDO VALORES | B55: 9 | C55: 5 | D55: 55.55555556 | E55: 4 | F55: 44.44444444 | G55: 3 | H55: 3 | I55: 100 | J55: 0 | K55: 0 | L55: 3 | M55: 0 | N55: 0 | O55: 3 | P55: 100 | Q55: 3 | R55: 2 | S55: 66.66666667 | T55: 1 | U55: 33.33333333
A56: RENOVACION CARTAGO | B56: 3 | C56: 2 | D56: 66.66666667 | E56: 1 | F56: 33.33333333 | G56: 1 | H56: 1 | I56: 100 | J56: 0 | K56: 0 | L56: 1 | M56: 0 | N56: 0 | O56: 1 | P56: 100 | Q56: 1 | R56: 1 | S56: 100 | T56: 0 | U56: 0
A57: RENOVACIÓN COSTARRICENSE | B57: 92 | C57: 51 | D57: 55.43478261 | E57: 41 | F57: 44.56521739 | G57: 32 | H57: 27 | I57: 84.375 | J57: 5 | K57: 15.625 | L57: 32 | M57: 5 | N57: 15.625 | O57: 27 | P57: 84.375 | Q57: 28 | R57: 19 | S57: 67.85714286 | T57: 9 | U57: 32.14285714
A58: RENOVEMOS ALAJUELA | B58: 3 | C58: 2 | D58: 66.66666667 | E58: 1 | F58: 33.33333333 | G58: 1 | H58: 1 | I58: 100 | J58: 0 | K58: 0 | L58: 1 | M58: 0 | N58: 0 | O58: 1 | P58: 100 | Q58: 1 | R58: 1 | S58: 100 | T58: 0 | U58: 0
A59: REPUBLICANO SOCIAL CRISTIANO | B59: 179 | C59: 111 | D59: 62.01117318 | E59: 68 | F59: 37.98882682 | G59: 63 | H59: 52 | I59: 82.53968254 | J59: 11 | K59: 17.46031746 | L59: 58 | M59: 10 | N59: 17.24137931 | O59: 48 | P59: 82.75862069 | Q59: 58 | R59: 49 | S59: 84.48275862 | T59: 9 | U59: 15.51724138
A60: RESCATE CANTONAL LA UNION | B60: 3 | C60: 1 | D60: 33.33333333 | E60: 2 | F60: 66.66666667 | G60: 1 | H60: 1 | I60: 100 | J60: 0 | K60: 0 | L60: 1 | M60: 0 | N60: 0 | O60: 1 | P60: 100 | Q60: 1 | R60: 0 | S60: 0 | T60: 1 | U60: 100
A61: RESTAURACIÓN NACIONAL | B61: 40 | C61: 23 | D61: 57.5 | E61: 17 | F61: 42.5 | G61: 14 | H61: 11 | I61: 78.57142857 | J61: 3 | K61: 21.42857143 | L61: 14 | M61: 3 | N61: 21.42857143 | O61: 11 | P61: 78.57142857 | Q61: 12 | R61: 9 | S61: 75 | T61: 3 | U61: 25
A62: RESTAURACION PARRITEÑA | B62: 3 | C62: 2 | D62: 66.66666667 | E62: 1 | F62: 33.33333333 | G62: 1 | H62: 1 | I62: 100 | J62: 0 | K62: 0 | L62: 1 | M62: 0 | N62: 0 | O62: 1 | P62: 100 | Q62: 1 | R62: 1 | S62: 100 | T62: 0 | U62: 0
A63: SOLIDARIDAD | B63: 3 | C63: 2 | D63: 66.66666667 | E63: 1 | F63: 33.33333333 | G63: 1 | H63: 1 | I63: 100 | J63: 0 | K63: 0 | L63: 1 | M63: 0 | N63: 0 | O63: 1 | P63: 100 | Q63: 1 | R63: 1 | S63: 100 | T63: 0 | U63: 0
A64: TODO POR FLORES | B64: 3 | C64: 2 | D64: 66.66666667 | E64: 1 | F64: 33.33333333 | G64: 1 | H64: 1 | I64: 100 | J64: 0 | K64: 0 | L64: 1 | M64: 0 | N64: 0 | O64: 1 | P64: 100 | Q64: 1 | R64: 1 | S64: 100 | T64: 0 | U64: 0
A65: UNIDAD SOCIAL CRISTIANA | B65: 236 | C65: 141 | D65: 59.74576271 | E65: 95 | F65: 40.25423729 | G65: 79 | H65: 66 | I65: 83.5443038 | J65: 13 | K65: 16.4556962 | L65: 78 | M65: 12 | N65: 15.38461538 | O65: 66 | P65: 84.61538462 | Q65: 79 | R65: 63 | S65: 79.74683544 | T65: 16 | U65: 20.25316456
A66: UNION GUARQUEÑO | B66: 3 | C66: 2 | D66: 66.66666667 | E66: 1 | F66: 33.33333333 | G66: 1 | H66: 1 | I66: 100 | J66: 0 | K66: 0 | L66: 1 | M66: 0 | N66: 0 | O66: 1 | P66: 100 | Q66: 1 | R66: 1 | S66: 100 | T66: 0 | U66: 0
A67: VERDE | B67: 9 | C67: 5 | D67: 55.55555556 | E67: 4 | F67: 44.44444444 | G67: 3 | H67: 3 | I67: 100 | J67: 0 | K67: 0 | L67: 3 | M67: 0 | N67: 0 | O67: 3 | P67: 100 | Q67: 3 | R67: 2 | S67: 66.66666667 | T67: 1 | U67: 33.33333333
A68: VIVA PUNTARENAS | B68: 17 | C68: 8 | D68: 47.05882353 | E68: 9 | F68: 52.94117647 | G68: 6 | H68: 5 | I68: 83.33333333 | J68: 1 | K68: 16.66666667 | L68: 6 | M68: 1 | N68: 16.66666667 | O68: 5 | P68: 83.33333333 | Q68: 5 | R68: 2 | S68: 40 | T68: 3 | U68: 60
A69: YUNTA PROGRESISTA ESCAZUCEÑA | B69: 3 | C69: 1 | D69: 33.33333333 | E69: 2 | F69: 66.66666667 | G69: 1 | H69: 1 | I69: 100 | J69: 0 | K69: 0 | L69: 1 | M69: 0 | N69: 0 | O69: 1 | P69: 100 | Q69: 1 | R69: 0 | S69: 0 | T69: 1 | U69: 100
A72: Nota: Datos al 26 de enero de 2016.
A73: Fuente: Departamento de Registro de Partidos Políticos, Base de datos de candidaturas febrero 2016.

Sheet 22
A1: CUADRO 22. COSTA RICA: CANDIDATURAS A ALCALDÍAS Y VICEALCALDÍAS POR SEXO, SEGÚN PROVINCIA Y CANTÓN
A2: ELECCIONES MUNICIPALES 7 DE FEBRERO 2016
A3: (CIFRAS ABSOLUTAS Y RELATIVAS)
A5: PROVINCIA Y CANTÓN | B5: TOTAL | G5: ALCALDÍAS | L5: VICEALCALDÍA PRIMERA | Q5: VICEALCALDÍA SEGUNDA
B6: TOTAL | C6: HOMBRES | E6: MUJERES | G6: TOTAL | H6: HOMBRES | J6: MUJERES | L6: TOTAL | M6: HOMBRES | O6: MUJERES | Q6: TOTAL | R6: HOMBRES | T6: MUJERES
C7: ABS | D7: % | E7: ABS | F7: % | H7: ABS | I7: % | J7: ABS | K7: % | M7: ABS | N7: % | O7: ABS | P7: % | R7: ABS | S7: % | T7: ABS | U7: %
A9: COSTA RICA | B9: =+B10+B31+B47+B56+B67+B79+B91 -> 1780 | C9: =+C10+C31+C47+C56+C67+C79+C91 -> 1035 | D9: =C9/$B9*100 -> 58.14606742 | E9: =+E10+E31+E47+E56+E67+E79+E91 -> 745 | F9: =E9/$B9*100 -> 41.85393258 | G9: =G10+G31+G47+G56+G67+G79+G91 -> 605 | H9: =H10+H31+H47+H56+H67+H79+H91 -> 489 | I9: =H9/$G9*100 -> 80.82644628 | J9: =J10+J31+J47+J56+J67+J79+J91 -> 116 | K9: =J9/$G9*100 -> 19.17355372 | L9: =L10+L31+L47+L56+L67+L79+L91 -> 593 | M9: =M10+M31+M47+M56+M67+M79+M91 -> 112 | N9: =M9/$L9*100 -> 18.88701518 | O9: =O10+O31+O47+O56+O67+O79+O91 -> 481 | P9: =O9/$L9*100 -> 81.11298482 | Q9: =Q10+Q31+Q47+Q56+Q67+Q79+Q91 -> 582 | R9: =R10+R31+R47+R56+R67+R79+R91 -> 434 | S9: =R9/$Q9*100 -> 74.57044674 | T9: =T10+T31+T47+T56+T67+T79+T91 -> 148 | U9: =T9/$Q9*100 -> 25.42955326
A10: PROVINCIA SAN JOSÉ | B10: =SUM(B11:B30) -> 468 | C10: =SUM(C11:C30) -> 273 | D10: =C10/$B10*100 -> 58.33333333 | E10: =SUM(E11:E30) -> 195 | F10: =E10/$B10*100 -> 41.66666667 | G10: =SUM(G11:G30) -> 159 | H10: =SUM(H11:H30) -> 132 | I10: 83.01886792 | J10: =SUM(J11:J30) -> 27 | K10: =J10/$G10*100 -> 16.98113208 | L10: =SUM(L11:L30) -> 154 | M10: =SUM(M11:M30) -> 25 | N10: 16.23376623 | O10: =SUM(O11:O30) -> 129 | P10: 83.76623377 | Q10: =SUM(Q11:Q30) -> 155 | R10: =SUM(R11:R30) -> 116 | S10: 74.83870968 | T10: =SUM(T11:T30) -> 39 | U10: 25.16129032
A11: SAN JOSÉ | B11: =+C11+E11 -> 37 | C11: =+H11+M11+R11 -> 24 | D11: =C11/$B11*100 -> 64.86486486 | E11: =+J11+O11+T11 -> 13 | F11: =E11/$B11*100 -> 35.13513514 | G11: =+H11+J11 -> 13 | H11: 11 | I11: 84.61538462 | J11: 2 | K11: =J11/$G11*100 -> 15.38461538 | L11: =+M11+O11 -> 12 | M11: 2 | N11: 16.66666667 | O11: 10 | P11: 83.33333333 | Q11: =+R11+T11 -> 12 | R11: 11 | S11: 91.66666667 | T11: 1 | U11: 8.333333333
A12: ESCAZÚ | B12: =+C12+E12 -> 30 | C12: =+H12+M12+R12 -> 15 | D12: =C12/$B12*100 -> 50 | E12: =+J12+O12+T12 -> 15 | F12: 50 | G12: =+H12+J12 -> 10 | H12: 8 | I12: 80 | J12: 2 | K12: 20 | L12: 10 | M12: 2 | N12: 20 | O12: 8 | P12: 80 | Q12: 10 | R12: 5 | S12: 50 | T12: 5 | U12: 50
A13: DESAMPARADOS | B13: 41 | C13: 24 | D13: =C13/$B13*100 -> 58.53658537 | E13: 17 | F13: 41.46341463 | G13: 14 | H13: 13 | I13: 92.85714286 | J13: 1 | K13: 7.142857143 | L13: 14 | M13: 1 | N13: 7.142857143 | O13: 13 | P13: 92.85714286 | Q13: 13 | R13: 10 | S13: 76.92307692 | T13: 3 | U13: 23.07692308
A14: PURISCAL | B14: 20 | C14: 11 | D14: 55 | E14: 9 | F14: 45 | G14: 7 | H14: 5 | I14: 71.42857143 | J14: 2 | K14: 28.57142857 | L14: 7 | M14: 2 | N14: 28.57142857 | O14: 5 | P14: 71.42857143 | Q14: 6 | R14: 4 | S14: 66.66666667 | T14: 2 | U14: 33.33333333
A15: TARRAZÚ | B15: 18 | C15: 10 | D15: 55.55555556 | E15: 8 | F15: 44.44444444 | G15: 6 | H15: 4 | I15: 66.66666667 | J15: 2 | K15: 33.33333333 | L15: 6 | M15: 2 | N15: 33.33333333 | O15: 4 | P15: 66.66666667 | Q15: 6 | R15: 4 | S15: 66.66666667 | T15: 2 | U15: 33.33333333
A16: ASERRÍ | B16: 17 | C16: 10 | D16: 58.82352941 | E16: 7 | F16: 41.17647059 | G16: 6 | H16: 4 | I16: 66.66666667 | J16: 2 | K16: 33.33333333 | L16: 5 | M16: 1 | N16: 20 | O16: 4 | P16: 80 | Q16: 6 | R16: 5 | S16: 83.33333333 | T16: 1 | U16: 16.66666667
A17: MORA | B17: 17 | C17: 10 | D17: 58.82352941 | E17: 7 | F17: 41.17647059 | G17: 6 | H17: 6 | I17: 100 | J17: 0 | K17: 0 | L17: 5 | M17: 0 | N17: 0 | O17: 5 | P17: 100 | Q17: 6 | R17: 4 | S17: 66.66666667 | T17: 2 | U17: 33.33333333
A18: GOICOECHEA | B18: 27 | C18: 17 | D18: 62.96296296 | E18: 10 | F18: 37.03703704 | G18: 9 | H18: 8 | I18: 88.88888889 | J18: 1 | K18: 11.11111111 | L18: 9 | M18: 1 | N18: 11.11111111 | O18: 8 | P18: 88.88888889 | Q18: 9 | R18: 8 | S18: 88.88888889 | T18: 1 | U18: 11.11111111
A19: SANTA ANA | B19: 30 | C19: 18 | D19: 60 | E19: 12 | F19: 40 | G19: 10 | H19: 8 | I19: 80 | J19: 2 | K19: 20 | L19: 10 | M19: 2 | N19: 20 | O19: 8 | P19: 80 | Q19: 10 | R19: 8 | S19: 80 | T19: 2 | U19: 20
A20: ALAJUELITA | B20: 24 | C20: 13 | D20: 54.16666667 | E20: 11 | F20: 45.83333333 | G20: 8 | H20: 6 | I20: 75 | J20: 2 | K20: 25 | L20: 8 | M20: 2 | N20: 25 | O20: 6 | P20: 75 | Q20: 8 | R20: 5 | S20: 62.5 | T20: 3 | U20: 37.5
A21: VÁZQUEZ DE CORONADO | B21: 24 | C21: 14 | D21: 58.33333333 | E21: 10 | F21: 41.66666667 | G21: 8 | H21: 6 | I21: 75 | J21: 2 | K21: 25 | L21: 8 | M21: 2 | N21: 25 | O21: 6 | P21: 75 | Q21: 8 | R21: 6 | S21: 75 | T21: 2 | U21: 25
A22: ACOSTA | B22: 9 | C22: 6 | D22: 66.66666667 | E22: 3 | F22: 33.33333333 | G22: 3 | H22: 3 | I22: 100 | J22: 0 | K22: 0 | L22: 3 | M22: 0 | N22: 0 | O22: 3 | P22: 100 | Q22: 3 | R22: 3 | S22: 100 | T22: 0 | U22: 0
A23: TIBÁS | B23: 24 | C23: 14 | D23: 58.33333333 | E23: 10 | F23: 41.66666667 | G23: 8 | H23: 7 | I23: 87.5 | J23: 1 | K23: 12.5 | L23: 8 | M23: 1 | N23: 12.5 | O23: 7 | P23: 87.5 | Q23: 8 | R23: 6 | S23: 75 | T23: 2 | U23: 25
A24: MORAVIA | B24: 23 | C24: 12 | D24: 52.17391304 | E24: 11 | F24: 47.82608696 | G24: 8 | H24: 7 | I24: 87.5 | J24: 1 | K24: 12.5 | L24: 7 | M24: 1 | N24: 14.28571429 | O24: 6 | P24: 85.71428571 | Q24: 8 | R24: 4 | S24: 50 | T24: 4 | U24: 50
A25: MONTES DE OCA | B25: 21 | C25: 11 | D25: 52.38095238 | E25: 10 | F25: 47.61904762 | G25: 7 | H25: 7 | I25: 100 | J25: 0 | K25: 0 | L25: 7 | M25: 0 | N25: 0 | O25: 7 | P25: 100 | Q25: 7 | R25: 4 | S25: 57.14285714 | T25: 3 | U25: 42.85714286
A26: TURRUBARES | B26: 15 | C26: 10 | D26: 66.66666667 | E26: 5 | F26: 33.33333333 | G26: 5 | H26: 5 | I26: 100 | J26: 0 | K26: 0 | L26: 5 | M26: 0 | N26: 0 | O26: 5 | P26: 100 | Q26: 5 | R26: 5 | S26: 100 | T26: 0 | U26: 0
A27: DOTA | B27: 17 | C27: 11 | D27: 64.70588235 | E27: 6 | F27: 35.29411765 | G27: 6 | H27: 5 | I27: 83.33333333 | J27: 1 | K27: 16.66666667 | L27: 6 | M27: 1 | N27: 16.66666667 | O27: 5 | P27: 83.33333333 | Q27: 5 | R27: 5 | S27: 100 | T27: 0 | U27: 0
A28: CURRIDABAT | B28: 35 | C28: 19 | D28: 54.28571429 | E28: 16 | F28: 45.71428571 | G28: 12 | H28: 9 | I28: 75 | J28: 3 | K28: 25 | L28: 11 | M28: 2 | N28: 18.18181818 | O28: 9 | P28: 81.81818182 | Q28: 12 | R28: 8 | S28: 66.66666667 | T28: 4 | U28: 33.33333333
A29: PÉREZ ZELEDÓN | B29: 30 | C29: 19 | D29: 63.33333333 | E29: 11 | F29: 36.66666667 | G29: 10 | H29: 7 | I29: 70 | J29: 3 | K29: 30 | L29: 10 | M29: 3 | N29: 30 | O29: 7 | P29: 70 | Q29: 10 | R29: 9 | S29: 90 | T29: 1 | U29: 10
A30: LEÓN CORTÉS | B30: 9 | C30: 5 | D30: 55.55555556 | E30: 4 | F30: 44.44444444 | G30: 3 | H30: 3 | I30: 100 | J30: 0 | K30: 0 | L30: 3 | M30: 0 | N30: 0 | O30: 3 | P30: 100 | Q30: 3 | R30: 2 | S30: 66.66666667 | T30: 1 | U30: 33.33333333
A31: PROVINCIA ALAJUELA | B31: =SUM(B32:B46) -> 313 | C31: =SUM(C32:C46) -> 188 | D31: =C31/$B31*100 -> 60.06389776 | E31: =SUM(E32:E46) -> 125 | F31: =E31/$B31*100 -> 39.93610224 | G31: =SUM(G32:G46) -> 107 | H31: =SUM(H32:H46) -> 86 | I31: 80.37383178 | J31: =SUM(J32:J46) -> 21 | K31: 19.62616822 | L31: =SUM(L32:L46) -> 105 | M31: =SUM(M32:M46) -> 20 | N31: 19.04761905 | O31: =SUM(O32:O46) -> 85 | P31: 80.95238095 | Q31: =SUM(Q32:Q46) -> 101 | R31: =SUM(R32:R46) -> 82 | S31: 81.18811881 | T31: =SUM(T32:T46) -> 19 | U31: 18.81188119
A32: ALAJUELA | B32: =+C32+E32 -> 33 | C32: =+H32+M32+R32 -> 18 | D32: =C32/$B32*100 -> 54.54545455 | E32: =+J32+O32+T32 -> 15 | F32: =E32/$B32*100 -> 45.45454545 | G32: =+H32+J32 -> 11 | H32: 6 | I32: 54.54545455 | J32: 5 | K32: 45.45454545 | L32: =+M32+O32 -> 11 | M32: 5 | N32: 45.45454545 | O32: 6 | P32: 54.54545455 | Q32: =+R32+T32 -> 11 | R32: 7 | S32: 63.63636364 | T32: 4 | U32: 36.36363636
A33: SAN RAMÓN | B33: 27 | C33: 16 | D33: =C33/$B33*100 -> 59.25925926 | E33: =+J33+O33+T33 -> 11 | F33: =E33/$B33*100 -> 40.74074074 | G33: 9 | H33: 9 | I33: 100 | J33: 0 | K33: 0 | L33: 9 | M33: 0 | N33: 0 | O33: 9 | P33: 100 | Q33: 9 | R33: 7 | S33: 77.77777778 | T33: 2 | U33: 22.22222222
A34: GRECIA | B34: 24 | C34: 12 | D34: 50 | E34: 12 | F34: 50 | G34: 8 | H34: 7 | I34: 87.5 | J34: 1 | K34: 12.5 | L34: 8 | M34: 1 | N34: 12.5 | O34: 7 | P34: 87.5 | Q34: 8 | R34: 4 | S34: 50 | T34: 4 | U34: 50
A35: SAN MATEO | B35: 17 | C35: 9 | D35: 52.94117647 | E35: 8 | F35: =E35/$B35*100 -> 47.05882353 | G35: 6 | H35: 5 | I35: 83.33333333 | J35: 1 | K35: 16.66666667 | L35: 6 | M35: 1 | N35: 16.66666667 | O35: 5 | P35: 83.33333333 | Q35: 5 | R35: 3 | S35: 60 | T35: 2 | U35: 40
A36: ATENAS | B36: 18 | C36: 12 | D36: 66.66666667 | E36: 6 | F36: 33.33333333 | G36: 6 | H36: 5 | I36: 83.33333333 | J36: 1 | K36: 16.66666667 | L36: 6 | M36: 1 | N36: 16.66666667 | O36: 5 | P36: 83.33333333 | Q36: 6 | R36: 6 | S36: 100 | T36: 0 | U36: 0
A37: NARANJO | B37: 23 | C37: 15 | D37: 65.2173913 | E37: 8 | F37: 34.7826087 | G37: 8 | H37: 6 | I37: 75 | J37: 2 | K37: 25 | L37: 8 | M37: 2 | N37: 25 | O37: 6 | P37: 75 | Q37: 7 | R37: 7 | S37: 100 | T37: 0 | U37: 0
A38: PALMARES | B38: 30 | C38: 19 | D38: 63.33333333 | E38: 11 | F38: 36.66666667 | G38: 10 | H38: 6 | I38: 60 | J38: 4 | K38: 40 | L38: 10 | M38: 4 | N38: 40 | O38: 6 | P38: 60 | Q38: 10 | R38: 9 | S38: 90 | T38: 1 | U38: 10
A39: POÁS | B39: 23 | C39: 15 | D39: 65.2173913 | E39: 8 | F39: 34.7826087 | G39: 8 | H39: 8 | I39: 100 | J39: 0 | K39: 0 | L39: 8 | M39: 0 | N39: 0 | O39: 8 | P39: 100 | Q39: 7 | R39: 7 | S39: 100 | T39: 0 | U39: 0
A40: OROTINA | B40: 15 | C40: 9 | D40: 60 | E40: 6 | F40: 40 | G40: 6 | H40: 2 | I40: 33.33333333 | J40: 4 | K40: 66.66666667 | L40: 5 | M40: 3 | N40: 60 | O40: 2 | P40: 40 | Q40: 4 | R40: 4 | S40: 100 | T40: 0 | U40: 0
A41: SAN CARLOS | B41: 24 | C41: 13 | D41: 54.16666667 | E41: 11 | F41: 45.83333333 | G41: 8 | H41: 6 | I41: =H41/$G41*100 -> 75 | J41: 2 | K41: 25 | L41: 8 | M41: 2 | N41: 25 | O41: 6 | P41: 75 | Q41: 8 | R41: 5 | S41: 62.5 | T41: 3 | U41: 37.5
A42: ALFARO RUIZ | B42: 12 | C42: 8 | D42: 66.66666667 | E42: 4 | F42: 33.33333333 | G42: 4 | H42: 4 | I42: 100 | J42: 0 | K42: 0 | L42: 4 | M42: 0 | N42: 0 | O42: 4 | P42: 100 | Q42: 4 | R42: 4 | S42: 100 | T42: 0 | U42: 0
A43: VALVERDE VEGA | B43: 12 | C43: 8 | D43: 66.66666667 | E43: 4 | F43: 33.33333333 | G43: 4 | H43: 4 | I43: 100 | J43: 0 | K43: 0 | L43: 4 | M43: 0 | N43: 0 | O43: 4 | P43: 100 | Q43: 4 | R43: 4 | S43: 100 | T43: 0 | U43: 0
A44: UPALA | B44: 14 | C44: 9 | D44: 64.28571429 | E44: 5 | F44: 35.71428571 | G44: 5 | H44: 5 | I44: 100 | J44: 0 | K44: 0 | L44: 4 | M44: 0 | N44: 0 | O44: 4 | P44: 100 | Q44: 5 | R44: 4 | S44: 80 | T44: 1 | U44: 20
A45: LOS CHILES | B45: 23 | C45: 15 | D45: 65.2173913 | E45: 8 | F45: 34.7826087 | G45: 8 | H45: 8 | I45: 100 | J45: 0 | K45: 0 | L45: 8 | M45: 0 | N45: 0 | O45: 8 | P45: 100 | Q45: 7 | R45: 7 | S45: 100 | T45: 0 | U45: 0
A46: GUATUSO | B46: 18 | C46: 10 | D46: 55.55555556 | E46: 8 | F46: =E46/$B46*100 -> 44.44444444 | G46: 6 | H46: 5 | I46: 83.33333333 | J46: 1 | K46: 16.66666667 | L46: 6 | M46: 1 | N46: 16.66666667 | O46: 5 | P46: 83.33333333 | Q46: 6 | R46: 4 | S46: 66.66666667 | T46: 2 | U46: 33.33333333
A47: PROVINCIA CARTAGO | B47: =SUM(B48:B55) -> 200 | C47: =SUM(C48:C55) -> 116 | D47: =C47/$B47*100 -> 58 | E47: =SUM(E48:E55) -> 84 | F47: =E47/$B47*100 -> 42 | G47: =SUM(G48:G55) -> 68 | H47: =SUM(H48:H55) -> 52 | I47: 76.47058824 | J47: =SUM(J48:J55) -> 16 | K47: 23.52941176 | L47: =SUM(L48:L55) -> 67 | M47: =SUM(M48:M55) -> 16 | N47: 23.88059701 | O47: =SUM(O48:O55) -> 51 | P47: 76.11940299 | Q47: =SUM(Q48:Q55) -> 65 | R47: =SUM(R48:R55) -> 48 | S47: 73.84615385 | T47: =SUM(T48:T55) -> 17 | U47: 26.15384615
A48: CARTAGO | B48: =+C48+E48 -> 33 | C48: =+H48+M48+R48 -> 18 | D48: =C48/$B48*100 -> 54.54545455 | E48: =+J48+O48+T48 -> 15 | F48: =E48/$B48*100 -> 45.45454545 | G48: =+H48+J48 -> 11 | H48: 10 | I48: 90.90909091 | J48: 1 | K48: 9.090909091 | L48: =+M48+O48 -> 11 | M48: 1 | N48: 9.090909091 | O48: 10 | P48: 90.90909091 | Q48: =+R48+T48 -> 11 | R48: 7 | S48: 63.63636364 | T48: 4 | U48: 36.36363636
A49: PARAÍSO | B49: =+C49+E49 -> 30 | C49: =+H49+M49+R49 -> 17 | D49: =C49/$B49*100 -> 56.66666667 | E49: =+J49+O49+T49 -> 13 | F49: =E49/$B49*100 -> 43.33333333 | G49: 10 | H49: 9 | I49: 90 | J49: 1 | K49: 10 | L49: 10 | M49: 1 | N49: 10 | O49: 9 | P49: 90 | Q49: 10 | R49: 7 | S49: 70 | T49: 3 | U49: 30
A50: LA UNIÓN | B50: 35 | C50: =+H50+M50+R50 -> 21 | D50: 60 | E50: =+J50+O50+T50 -> 14 | F50: 40 | G50: 12 | H50: 9 | I50: 75 | J50: 3 | K50: 25 | L50: 12 | M50: 3 | N50: 25 | O50: 9 | P50: 75 | Q50: 11 | R50: 9 | S50: 81.81818182 | T50: 2 | U50: 18.18181818
A51: JIMÉNEZ | B51: 18 | C51: 11 | D51: 61.11111111 | E51: 7 | F51: 38.88888889 | G51: 6 | H51: 4 | I51: 66.66666667 | J51: 2 | K51: 33.33333333 | L51: 6 | M51: 2 | N51: 33.33333333 | O51: 4 | P51: 66.66666667 | Q51: 6 | R51: 5 | S51: 83.33333333 | T51: 1 | U51: 16.66666667
A52: TURRIALBA | B52: 19 | C52: 12 | D52: 63.15789474 | E52: 7 | F52: 36.84210526 | G52: 7 | H52: 4 | I52: 57.14285714 | J52: 3 | K52: 42.85714286 | L52: 6 | M52: 3 | N52: 50 | O52: 3 | P52: 50 | Q52: 6 | R52: 5 | S52: 83.33333333 | T52: 1 | U52: 16.66666667
A53: ALVARADO | B53: 21 | C53: =+H53+M53+R53 -> 14 | D53: 66.66666667 | E53: =+J53+O53+T53 -> 7 | F53: 33.33333333 | G53: 7 | H53: 6 | I53: 85.71428571 | J53: 1 | K53: 14.28571429 | L53: 7 | M53: 1 | N53: 14.28571429 | O53: 6 | P53: 85.71428571 | Q53: 7 | R53: 7 | S53: 100 | T53: 0 | U53: 0
A54: OREAMUNO | B54: 21 | C54: 11 | D54: 52.38095238 | E54: 10 | F54: 47.61904762 | G54: 7 | H54: 4 | I54: 57.14285714 | J54: 3 | K54: 42.85714286 | L54: 7 | M54: 3 | N54: 42.85714286 | O54: 4 | P54: 57.14285714 | Q54: 7 | R54: 4 | S54: 57.14285714 | T54: 3 | U54: 42.85714286
A55: EL GUARCO | B55: 23 | C55: 12 | D55: 52.17391304 | E55: 11 | F55: 47.82608696 | G55: 8 | H55: 6 | I55: 75 | J55: 2 | K55: 25 | L55: 8 | M55: 2 | N55: 25 | O55: 6 | P55: 75 | Q55: 7 | R55: 4 | S55: 57.14285714 | T55: 3 | U55: 42.85714286
A56: PROVINCIA HEREDIA | B56: =SUM(B57:B66) -> 199 | C56: =SUM(C57:C66) -> 117 | D56: =C56/$B56*100 -> 58.79396985 | E56: =SUM(E57:E66) -> 82 | F56: =E56/$B56*100 -> 41.20603015 | G56: =SUM(G57:G66) -> 69 | H56: =SUM(H57:H66) -> 49 | I56: 71.01449275 | J56: =SUM(J57:J66) -> 20 | K56: 28.98550725 | L56: =SUM(L57:L66) -> 67 | M56: =SUM(M57:M66) -> 19 | N56: 28.35820896 | O56: =SUM(O57:O66) -> 48 | P56: 71.64179104 | Q56: =SUM(Q57:Q66) -> 63 | R56: =SUM(R57:R66) -> 49 | S56: 77.77777778 | T56: =SUM(T57:T66) -> 14 | U56: 22.22222222
A57: HEREDIA | B57: =+C57+E57 -> 19 | C57: =+H57+M57+R57 -> 11 | D57: =C57/$B57*100 -> 57.89473684 | E57: =+J57+O57+T57 -> 8 | F57: =E57/$B57*100 -> 42.10526316 | G57: =+H57+J57 -> 7 | H57: 5 | I57: 71.42857143 | J57: 2 | K57: 28.57142857 | L57: =+M57+O57 -> 7 | M57: 2 | N57: 28.57142857 | O57: 5 | P57: 71.42857143 | Q57: =+R57+T57 -> 5 | R57: 4 | S57: 80 | T57: 1 | U57: 20
A58: BARVA | B58: =+C58+E58 -> 24 | C58: =+H58+M58+R58 -> 14 | D58: =C58/$B58*100 -> 58.33333333 | E58: =+J58+O58+T58 -> 10 | F58: =E58/$B58*100 -> 41.66666667 | G58: 8 | H58: 6 | I58: 75 | J58: 2 | K58: 25 | L58: 8 | M58: 2 | N58: 25 | O58: 6 | P58: 75 | Q58: 8 | R58: 6 | S58: 75 | T58: 2 | U58: 25
A59: SANTO DOMINGO | B59: 21 | C59: 12 | D59: 57.14285714 | E59: 9 | F59: 42.85714286 | G59: 7 | H59: 5 | I59: 71.42857143 | J59: 2 | K59: 28.57142857 | L59: 7 | M59: 2 | N59: 28.57142857 | O59: 5 | P59: 71.42857143 | Q59: 7 | R59: 5 | S59: 71.42857143 | T59: 2 | U59: 28.57142857
A60: SANTA BÁRBARA | B60: 21 | C60: 13 | D60: 61.9047619 | E60: 8 | F60: 38.0952381 | G60: 7 | H60: 6 | I60: 85.71428571 | J60: 1 | K60: 14.28571429 | L60: 7 | M60: 1 | N60: 14.28571429 | O60: 6 | P60: 85.71428571 | Q60: 7 | R60: 6 | S60: 85.71428571 | T60: 1 | U60: 14.28571429
A61: SAN RAFAEL | B61: 18 | C61: 11 | D61: 61.11111111 | E61: 7 | F61: 38.88888889 | G61: 6 | H61: 4 | I61: 66.66666667 | J61: 2 | K61: 33.33333333 | L61: 6 | M61: 2 | N61: 33.33333333 | O61: 4 | P61: 66.66666667 | Q61: 6 | R61: 5 | S61: 83.33333333 | T61: 1 | U61: 16.66666667
A62: SAN ISIDRO | B62: 15 | C62: 9 | D62: 60 | E62: 6 | F62: 40 | G62: 6 | H62: 4 | I62: 66.66666667 | J62: 2 | K62: 33.33333333 | L62: 5 | M62: 2 | N62: 40 | O62: 3 | P62: 60 | Q62: 4 | R62: 3 | S62: 75 | T62: 1 | U62: 25
A63: BELÉN | B63: 15 | C63: 10 | D63: 66.66666667 | E63: 5 | F63: 33.33333333 | G63: 5 | H63: 5 | I63: 100 | J63: 0 | K63: 0 | L63: 5 | M63: 0 | N63: 0 | O63: 5 | P63: 100 | Q63: 5 | R63: 5 | S63: 100 | T63: 0 | U63: 0
A64: FLORES | B64: 19 | C64: 10 | D64: 52.63157895 | E64: 9 | F64: 47.36842105 | G64: 7 | H64: 2 | I64: 28.57142857 | J64: 5 | K64: 71.42857143 | L64: 6 | M64: 4 | N64: 66.66666667 | O64: 2 | P64: 33.33333333 | Q64: 6 | R64: 4 | S64: 66.66666667 | T64: 2 | U64: 33.33333333
A65: SAN PABLO | B65: 23 | C65: 14 | D65: 60.86956522 | E65: 9 | F65: 39.13043478 | G65: 8 | H65: 5 | I65: 62.5 | J65: 3 | K65: 37.5 | L65: 8 | M65: 3 | N65: 37.5 | O65: 5 | P65: 62.5 | Q65: 7 | R65: 6 | S65: 85.71428571 | T65: 1 | U65: 14.28571429
A66: SARAPIQUÍ | B66: 24 | C66: 13 | D66: 54.16666667 | E66: 11 | F66: 45.83333333 | G66: 8 | H66: 7 | I66: 87.5 | J66: 1 | K66: 12.5 | L66: 8 | M66: 1 | N66: 12.5 | O66: 7 | P66: 87.5 | Q66: 8 | R66: 5 | S66: 62.5 | T66: 3 | U66: 37.5
A67: PROVINCIA GUANACASTE | B67: =SUM(B68:B78) -> 180 | C67: =SUM(C68:C78) -> 102 | D67: =C67/$B67*100 -> 56.66666667 | E67: =SUM(E68:E78) -> 78 | F67: =E67/$B67*100 -> 43.33333333 | G67: =SUM(G68:G78) -> 61 | H67: =SUM(H68:H78) -> 49 | I67: 80.32786885 | J67: =SUM(J68:J78) -> 12 | K67: 19.67213115 | L67: =SUM(L68:L78) -> 59 | M67: =SUM(M68:M78) -> 12 | N67: 20.33898305 | O67: =SUM(O68:O78) -> 47 | P67: 79.66101695 | Q67: =SUM(Q68:Q78) -> 60 | R67: =SUM(R68:R78) -> 41 | S67: 68.33333333 | T67: =SUM(T68:T78) -> 19 | U67: 31.66666667
A68: LIBERIA | B68: =+C68+E68 -> 24 | C68: =+H68+M68+R68 -> 15 | D68: 62.5 | E68: =+J68+O68+T68 -> 9 | F68: 37.5 | G68: =+H68+J68 -> 8 | H68: 6 | I68: 75 | J68: 2 | K68: 25 | L68: =+M68+O68 -> 8 | M68: 2 | N68: 25 | O68: 6 | P68: 75 | Q68: =+R68+T68 -> 8 | R68: 7 | S68: 87.5 | T68: 1 | U68: 12.5
A69: NICOYA | B69: =+C69+E69 -> 15 | C69: =+H69+M69+R69 -> 7 | D69: 46.66666667 | E69: =+J69+O69+T69 -> 8 | F69: 53.33333333 | G69: 5 | H69: 4 | I69: 80 | J69: 1 | K69: 20 | L69: 5 | M69: 1 | N69: 20 | O69: 4 | P69: 80 | Q69: 5 | R69: 2 | S69: 40 | T69: 3 | U69: 60
A70: SANTA CRUZ | B70: 23 | C70: 15 | D70: 65.2173913 | E70: 8 | F70: 34.7826087 | G70: 8 | H70: 6 | I70: 75 | J70: 2 | K70: 25 | L70: 8 | M70: 2 | N70: 25 | O70: 6 | P70: 75 | Q70: 7 | R70: 7 | S70: 100 | T70: 0 | U70: 0
A71: BAGACES | B71: 17 | C71: 8 | D71: 47.05882353 | E71: 9 | F71: 52.94117647 | G71: 6 | H71: 5 | I71: 83.33333333 | J71: 1 | K71: 16.66666667 | L71: 5 | M71: 1 | N71: 20 | O71: 4 | P71: 80 | Q71: 6 | R71: 2 | S71: 33.33333333 | T71: 4 | U71: 66.66666667
A72: CARRILLO | B72: 15 | C72: 7 | D72: 46.66666667 | E72: 8 | F72: 53.33333333 | G72: 5 | H72: 5 | I72: 100 | J72: 0 | K72: 0 | L72: 5 | M72: 0 | N72: 0 | O72: 5 | P72: 100 | Q72: 5 | R72: 2 | S72: 40 | T72: 3 | U72: 60
A73: CAÑAS | B73: 12 | C73: 7 | D73: 58.33333333 | E73: 5 | F73: 41.66666667 | G73: 4 | H73: 3 | I73: =H73/$G73*100 -> 75 | J73: 1 | K73: 25 | L73: 4 | M73: 1 | N73: =M73/$L73*100 -> 25 | O73: 3 | P73: =O73/$L73*100 -> 75 | Q73: 4 | R73: 3 | S73: =R73/$Q73*100 -> 75 | T73: 1 | U73: =T73/$Q73*100 -> 25
A74: ABANGARES | B74: 21 | C74: 10 | D74: 47.61904762 | E74: 11 | F74: 52.38095238 | G74: 7 | H74: 5 | I74: =H74/$G74*100 -> 71.42857143 | J74: 2 | K74: =J74/$G74*100 -> 28.57142857 | L74: 7 | M74: 2 | N74: 28.57142857 | O74: 5 | P74: 71.42857143 | Q74: 7 | R74: 3 | S74: 42.85714286 | T74: 4 | U74: 57.14285714
A75: TILARÁN | B75: 15 | C75: 10 | D75: 66.66666667 | E75: 5 | F75: 33.33333333 | G75: 5 | H75: 5 | I75: 100 | J75: 0 | K75: 0 | L75: 5 | M75: 0 | N75: 0 | O75: 5 | P75: 100 | Q75: 5 | R75: 5 | S75: 100 | T75: 0 | U75: 0
A76: NANDAYURE | B76: 18 | C76: 10 | D76: 55.55555556 | E76: 8 | F76: 44.44444444 | G76: 6 | H76: 5 | I76: 83.33333333 | J76: 1 | K76: 16.66666667 | L76: 6 | M76: 1 | N76: 16.66666667 | O76: 5 | P76: 83.33333333 | Q76: 6 | R76: 4 | S76: 66.66666667 | T76: 2 | U76: 33.33333333
A77: LA CRUZ | B77: 8 | C77: 5 | D77: 62.5 | E77: 3 | F77: 37.5 | G77: 3 | H77: 3 | I77: 100 | J77: 0 | K77: 0 | L77: 2 | M77: 0 | N77: 0 | O77: 2 | P77: 100 | Q77: 3 | R77: 2 | S77: 66.66666667 | T77: 1 | U77: 33.33333333
A78: HOJANCHA | B78: 12 | C78: 8 | D78: 66.66666667 | E78: 4 | F78: 33.33333333 | G78: 4 | H78: 2 | I78: 50 | J78: 2 | K78: 50 | L78: 4 | M78: 2 | N78: 50 | O78: 2 | P78: 50 | Q78: 4 | R78: 4 | S78: 100 | T78: 0 | U78: 0
A79: PROVINCIA PUNTARENAS | B79: =SUM(B80:B90) -> 259 | C79: =SUM(C80:C90) -> 149 | D79: =C79/$B79*100 -> 57.52895753 | E79: =SUM(E80:E90) -> 110 | F79: =E79/$B79*100 -> 42.47104247 | G79: =SUM(G80:G90) -> 87 | H79: =SUM(H80:H90) -> 75 | I79: 86.20689655 | J79: =SUM(J80:J90) -> 12 | K79: 13.79310345 | L79: =SUM(L80:L90) -> 87 | M79: =SUM(M80:M90) -> 12 | N79: 13.79310345 | O79: =SUM(O80:O90) -> 75 | P79: 86.20689655 | Q79: =SUM(Q80:Q90) -> 85 | R79: =SUM(R80:R90) -> 62 | S79: 72.94117647 | T79: =SUM(T80:T90) -> 23 | U79: 27.05882353
A80: PUNTARENAS | B80: =+C80+E80 -> 33 | C80: =+H80+M80+R80 -> 17 | D80: 51.51515152 | E80: =+J80+O80+T80 -> 16 | F80: 48.48484848 | G80: =+H80+J80 -> 11 | H80: 9 | I80: 81.81818182 | J80: 2 | K80: 18.18181818 | L80: =+M80+O80 -> 11 | M80: 2 | N80: 18.18181818 | O80: 9 | P80: 81.81818182 | Q80: =+R80+T80 -> 11 | R80: 6 | S80: 54.54545455 | T80: 5 | U80: 45.45454545
A81: ESPARZA | B81: =+C81+E81 -> 21 | C81: =+H81+M81+R81 -> 12 | D81: 57.14285714 | E81: =+J81+O81+T81 -> 9 | F81: 42.85714286 | G81: 7 | H81: 7 | I81: 100 | J81: 0 | K81: 0 | L81: 7 | M81: 0 | N81: 0 | O81: 7 | P81: 100 | Q81: 7 | R81: 5 | S81: 71.42857143 | T81: 2 | U81: 28.57142857
A82: BUENOS AIRES | B82: 23 | C82: 14 | D82: 60.86956522 | E82: 9 | F82: 39.13043478 | G82: 8 | H82: 6 | I82: 75 | J82: 2 | K82: 25 | L82: 8 | M82: 2 | N82: 25 | O82: 6 | P82: 75 | Q82: 7 | R82: 6 | S82: 85.71428571 | T82: 1 | U82: 14.28571429
A83: MONTES DE ORO | B83: 18 | C83: 11 | D83: 61.11111111 | E83: 7 | F83: 38.88888889 | G83: 6 | H83: 5 | I83: 83.33333333 | J83: 1 | K83: 16.66666667 | L83: 6 | M83: 1 | N83: 16.66666667 | O83: 5 | P83: 83.33333333 | Q83: 6 | R83: 5 | S83: 83.33333333 | T83: 1 | U83: 16.66666667
A84: OSA | B84: 23 | C84: 14 | D84: 60.86956522 | E84: 9 | F84: 39.13043478 | G84: 8 | H84: 8 | I84: 100 | J84: 0 | K84: 0 | L84: 8 | M84: 0 | N84: 0 | O84: 8 | P84: 100 | Q84: 7 | R84: 6 | S84: 85.71428571 | T84: 1 | U84: 14.28571429
A85: AGUIRRE | B85: 33 | C85: 18 | D85: 54.54545455 | E85: 15 | F85: 45.45454545 | G85: 11 | H85: 7 | I85: 63.63636364 | J85: 4 | K85: 36.36363636 | L85: 11 | M85: 4 | N85: 36.36363636 | O85: 7 | P85: 63.63636364 | Q85: 11 | R85: 7 | S85: 63.63636364 | T85: 4 | U85: 36.36363636
A86: GOLFITO | B86: 24 | C86: 14 | D86: 58.33333333 | E86: 10 | F86: 41.66666667 | G86: 8 | H86: 7 | I86: 87.5 | J86: 1 | K86: 12.5 | L86: 8 | M86: 1 | N86: 12.5 | O86: 7 | P86: 87.5 | Q86: 8 | R86: 6 | S86: 75 | T86: 2 | U86: 25
A87: COTO BRUS | B87: 15 | C87: 9 | D87: 60 | E87: 6 | F87: 40 | G87: 5 | H87: 4 | I87: 80 | J87: 1 | K87: 20 | L87: 5 | M87: 1 | N87: 20 | O87: 4 | P87: 80 | Q87: 5 | R87: 4 | S87: 80 | T87: 1 | U87: 20
A88: PARRITA | B88: 24 | C88: 11 | D88: 45.83333333 | E88: 13 | F88: 54.16666667 | G88: 8 | H88: 7 | I88: 87.5 | J88: 1 | K88: 12.5 | L88: 8 | M88: 1 | N88: 12.5 | O88: 7 | P88: 87.5 | Q88: 8 | R88: 3 | S88: 37.5 | T88: 5 | U88: 62.5
A89: CORREDORES | B89: 21 | C89: 13 | D89: 61.9047619 | E89: 8 | F89: 38.0952381 | G89: 7 | H89: 7 | I89: 100 | J89: 0 | K89: 0 | L89: 7 | M89: 0 | N89: 0 | O89: 7 | P89: 100 | Q89: 7 | R89: 6 | S89: 85.71428571 | T89: 1 | U89: 14.28571429
A90: GARABITO | B90: =+C90+E90 -> 24 | C90: =+H90+M90+R90 -> 16 | D90: =C90/$B90*100 -> 66.66666667 | E90: =+J90+O90+T90 -> 8 | F90: =E90/$B90*100 -> 33.33333333 | G90: 8 | H90: 8 | I90: 100 | J90: 0 | K90: 0 | L90: 8 | M90: 0 | N90: 0 | O90: 8 | P90: 100 | Q90: 8 | R90: 8 | S90: 100 | T90: 0 | U90: 0
A91: PROVINCIA LIMÓN | B91: =SUM(B92:B97) -> 161 | C91: =SUM(C92:C97) -> 90 | D91: =C91/$B91*100 -> 55.90062112 | E91: =SUM(E92:E97) -> 71 | F91: =E91/$B91*100 -> 44.09937888 | G91: =SUM(G92:G97) -> 54 | H91: =SUM(H92:H97) -> 46 | I91: 85.18518519 | J91: =SUM(J92:J97) -> 8 | K91: 14.81481481 | L91: =SUM(L92:L97) -> 54 | M91: =SUM(M92:M97) -> 8 | N91: 14.81481481 | O91: =SUM(O92:O97) -> 46 | P91: 85.18518519 | Q91: =SUM(Q92:Q97) -> 53 | R91: =SUM(R92:R97) -> 36 | S91: 67.9245283 | T91: =SUM(T92:T97) -> 17 | U91: 32.0754717
A92: LIMÓN | B92: =+C92+E92 -> 30 | C92: =+H92+M92+R92 -> 16 | D92: =C92/$B92*100 -> 53.33333333 | E92: =+J92+O92+T92 -> 14 | F92: =E92/$B92*100 -> 46.66666667 | G92: =+H92+J92 -> 10 | H92: 9 | I92: 90 | J92: 1 | K92: 10 | L92: =+M92+O92 -> 10 | M92: 1 | N92: 10 | O92: 9 | P92: 90 | Q92: =+R92+T92 -> 10 | R92: 6 | S92: 60 | T92: 4 | U92: 40
A93: POCOCÍ | B93: =+C93+E93 -> 27 | C93: =+H93+M93+R93 -> 16 | D93: =C93/$B93*100 -> 59.25925926 | E93: =+J93+O93+T93 -> 11 | F93: =E93/$B93*100 -> 40.74074074 | G93: 9 | H93: 8 | I93: 88.88888889 | J93: 1 | K93: 11.11111111 | L93: 9 | M93: 1 | N93: 11.11111111 | O93: 8 | P93: 88.88888889 | Q93: 9 | R93: 7 | S93: 77.77777778 | T93: 2 | U93: 22.22222222
A94: SIQUIRRES | B94: =+C94+E94 -> 36 | C94: 20 | D94: 55.55555556 | E94: 16 | F94: 44.44444444 | G94: 12 | H94: 9 | I94: 75 | J94: 3 | K94: 25 | L94: 12 | M94: 3 | N94: 25 | O94: 9 | P94: 75 | Q94: 12 | R94: 8 | S94: 66.66666667 | T94: 4 | U94: 33.33333333
A95: TALAMANCA | B95: 21 | C95: 11 | D95: 52.38095238 | E95: 10 | F95: 47.61904762 | G95: 7 | H95: 6 | I95: 85.71428571 | J95: 1 | K95: 14.28571429 | L95: 7 | M95: 1 | N95: 14.28571429 | O95: 6 | P95: 85.71428571 | Q95: 7 | R95: 4 | S95: 57.14285714 | T95: 3 | U95: 42.85714286
A96: MATINA | B96: 23 | C96: 12 | D96: 52.17391304 | E96: 11 | F96: 47.82608696 | G96: 8 | H96: 7 | I96: 87.5 | J96: 1 | K96: 12.5 | L96: 8 | M96: 1 | N96: 12.5 | O96: 7 | P96: 87.5 | Q96: 7 | R96: 4 | S96: 57.14285714 | T96: 3 | U96: 42.85714286
A97: GUÁCIMO | B97: =+C97+E97 -> 24 | C97: =+H97+M97+R97 -> 15 | D97: =C97/$B97*100 -> 62.5 | E97: =+J97+O97+T97 -> 9 | F97: =E97/$B97*100 -> 37.5 | G97: 8 | H97: 7 | I97: 87.5 | J97: 1 | K97: 12.5 | L97: 8 | M97: 1 | N97: 12.5 | O97: 7 | P97: 87.5 | Q97: 8 | R97: 7 | S97: 87.5 | T97: 1 | U97: 12.5
A100: Nota: Datos al 26 de enero de 2016.
A101: Fuente: Departamento de Registro de Partidos Políticos, Base de datos de candidaturas febrero 2016.

Sheet 23
A1: CUADRO 23. COSTA RICA: CANDIDATURAS A REGIDORES (AS) EN PROPIEDAD Y SUPLENCIA POR SEXO, SEGÚN PARTIDO
A2: ELECCIONES MUNICIPALES 7 DE FEBRERO 2016
A3: (CIFRAS ABSOLUTAS Y RELATIVAS)
A5: PARTIDO | B5: REGIDORES(AS) | G5: EN PROPIEDAD | L5: EN SUPLENCIA
A6: PARTIDO POLITICO | B6: TOTAL | C6: HOMBRES | E6: MUJERES | G6: TOTAL | H6: HOMBRES | J6: MUJERES | L6: TOTAL | M6: HOMBRES | O6: MUJERES
B7: ABS | C7: ABS | D7: % | E7: ABS | F7: % | G7: ABS | H7: ABS | I7: % | J7: ABS | K7: % | L7: ABS | M7: ABS | N7: % | O7: ABS | P7: %
A9: TOTAL | B9: =SUM(B11:B69) -> 7016 | C9: =SUM(C11:C69) -> 3604 | D9: =C9/B9*100 -> 51.36830103 | E9: =SUM(E11:E69) -> 3412 | F9: =E9/B9*100 -> 48.63169897 | G9: =SUM(G11:G69) -> 3547 | H9: =SUM(H11:H69) -> 1909 | I9: =H9/G9*100 -> 53.82012969 | J9: =SUM(J11:J69) -> 1638 | K9: =J9/G9*100 -> 46.17987031 | L9: =SUM(L11:L69) -> 3469 | M9: =SUM(M11:M69) -> 1695 | N9: =M9/L9*100 -> 48.86134333 | O9: =SUM(O11:O69) -> 1774 | P9: =O9/L9*100 -> 51.13865667
A11: ACCESIBILIDAD SIN EXCLUSIÓN | B11: =+C11+E11 -> 268 | C11: =+H11+M11 -> 137 | D11: =C11/B11*100 -> 51.11940299 | E11: =+J11+O11 -> 131 | F11: =E11/B11*100 -> 48.88059701 | G11: =+H11+J11 -> 134 | H11: 73 | I11: =H11/G11*100 -> 54.47761194 | J11: 61 | K11: =J11/G11*100 -> 45.52238806 | L11: =+M11+O11 -> 134 | M11: 64 | N11: =M11/L11*100 -> 47.76119403 | O11: 70 | P11: =O11/L11*100 -> 52.23880597
A12: ACCIÓN CANTONAL SIQUIRRES INDEPENDIENTE | B12: 13 | C12: 7 | D12: 53.84615385 | E12: 6 | F12: 46.15384615 | G12: 7 | H12: 4 | I12: 57.14285714 | J12: 3 | K12: 42.85714286 | L12: 6 | M12: 3 | N12: 50 | O12: 3 | P12: 50
A13: ACCIÓN CIUDADANA | B13: 875 | C13: 437 | D13: 49.94285714 | E13: 438 | F13: 50.05714286 | G13: 433 | H13: 227 | I13: 52.42494226 | J13: 206 | K13: 47.57505774 | L13: 442 | M13: 210 | N13: 47.51131222 | O13: 232 | P13: 52.48868778
A14: ACUERDO DE ALIANZA DE QUEPOS | B14: 10 | C14: 6 | D14: 60 | E14: 4 | F14: 40 | G14: 5 | H14: 3 | I14: 60 | J14: 2 | K14: 40 | L14: 5 | M14: 3 | N14: 60 | O14: 2 | P14: 40
A15: ALIANZA CRISTIANA SANTANEÑA | B15: 14 | C15: 7 | D15: 50 | E15: 7 | F15: 50 | G15: 7 | H15: 4 | I15: 57.14285714 | J15: 3 | K15: 42.85714286 | L15: 7 | M15: 3 | N15: 42.85714286 | O15: 4 | P15: 57.14285714
A16: ALIANZA DEMOCRATA CRISTIANA | B16: 86 | C16: 43 | D16: 50 | E16: 43 | F16: 50 | G16: 44 | H16: 25 | I16: 56.81818182 | J16: 19 | K16: 43.18181818 | L16: 42 | M16: 18 | N16: 42.85714286 | O16: 24 | P16: 57.14285714
A17: ALIANZA POR PALMARES | B17: 10 | C17: 6 | D17: 60 | E17: 4 | F17: 40 | G17: 5 | H17: 3 | I17: 60 | J17: 2 | K17: 40 | L17: 5 | M17: 3 | N17: 60 | O17: 2 | P17: 40
A18: ALIANZA POR SAN JOSE | B18: 22 | C18: 12 | D18: 54.54545455 | E18: 10 | F18: 45.45454545 | G18: 11 | H18: 6 | I18: 54.54545455 | J18: 5 | K18: 45.45454545 | L18: 11 | M18: 6 | N18: 54.54545455 | O18: 5 | P18: 45.45454545
A19: ALIANZA SANCARLEÑA | B19: 18 | C19: 10 | D19: 55.55555556 | E19: 8 | F19: 44.44444444 | G19: 9 | H19: 5 | I19: 55.55555556 | J19: 4 | K19: 44.44444444 | L19: 9 | M19: 5 | N19: 55.55555556 | O19: 4 | P19: 44.44444444
A20: ALIANZA SOCIAL POR LA UNION | B20: 18 | C20: 9 | D20: 50 | E20: 9 | F20: 50 | G20: 9 | H20: 4 | I20: 44.44444444 | J20: 5 | K20: 55.55555556 | L20: 9 | M20: 5 | N20: 55.55555556 | O20: 4 | P20: 44.44444444
A21: AUTENTICO LABRADOR DE CORONADO | B21: 14 | C21: 7 | D21: 50 | E21: 7 | F21: 50 | G21: 7 | H21: 4 | I21: 57.14285714 | J21: 3 | K21: 42.85714286 | L21: 7 | M21: 3 | N21: 42.85714286 | O21: 4 | P21: 57.14285714
A22: AUTENTICO LIMONENSE | B22: 18 | C22: 9 | D22: 50 | E22: 9 | F22: 50 | G22: 9 | H22: 4 | I22: 44.44444444 | J22: 5 | K22: 55.55555556 | L22: 9 | M22: 5 | N22: 55.55555556 | O22: 4 | P22: 44.44444444
A23: AUTENTICO SIQUIRREÑO | B23: 14 | C23: 7 | D23: 50 | E23: 7 | F23: 50 | G23: 7 | H23: 4 | I23: 57.14285714 | J23: 3 | K23: 42.85714286 | L23: 7 | M23: 3 | N23: 42.85714286 | O23: 4 | P23: 57.14285714
A24: AUTÓNOMO OROMONTANO | B24: 10 | C24: 5 | D24: 50 | E24: 5 | F24: 50 | G24: 5 | H24: 3 | I24: 60 | J24: 2 | K24: 40 | L24: 5 | M24: 2 | N24: 40 | O24: 3 | P24: 60
A25: AVANCE MONTES DE OCA | B25: 14 | C25: 7 | D25: 50 | E25: 7 | F25: 50 | G25: 7 | H25: 4 | I25: 57.14285714 | J25: 3 | K25: 42.85714286 | L25: 7 | M25: 3 | N25: 42.85714286 | O25: 4 | P25: 57.14285714
A26: BARVA UNIDA | B26: 10 | C26: 5 | D26: 50 | E26: 5 | F26: 50 | G26: 5 | H26: 3 | I26: 60 | J26: 2 | K26: 40 | L26: 5 | M26: 2 | N26: 40 | O26: 3 | P26: 60
A27: COALICION ALIANZA POR BELEN | B27: 10 | C27: 5 | D27: 50 | E27: 5 | F27: 50 | G27: 5 | H27: 2 | I27: 40 | J27: 3 | K27: 60 | L27: 5 | M27: 3 | N27: 60 | O27: 2 | P27: 40
A28: COALICION GENTE MONTES DE OCA | B28: 14 | C28: 8 | D28: 57.14285714 | E28: 6 | F28: 42.85714286 | G28: 7 | H28: 4 | I28: 57.14285714 | J28: 3 | K28: 42.85714286 | L28: 7 | M28: 4 | N28: 57.14285714 | O28: 3 | P28: 42.85714286
A29: COALICION SOMOS TIBAS | B29: 11 | C29: 6 | D29: 54.54545455 | E29: 5 | F29: 45.45454545 | G29: 5 | H29: 3 | I29: 60 | J29: 2 | K29: 40 | L29: 6 | M29: 3 | N29: 50 | O29: 3 | P29: 50
A30: COALICION UNIDOS POR GUATUSO | B30: 5 | C30: 3 | D30: 60 | E30: 2 | F30: 40 | G30: 5 | H30: 3 | I30: 60 | J30: 2 | K30: 40 | L30: 0 | M30: 0 | N30: 0 | O30: 0 | P30: 0
A31: CURRIDABAT SIGLO XXI | B31: 14 | C31: 7 | D31: 50 | E31: 7 | F31: 50 | G31: 7 | H31: 4 | I31: 57.14285714 | J31: 3 | K31: 42.85714286 | L31: 7 | M31: 3 | N31: 42.85714286 | O31: 4 | P31: 57.14285714
A32: DE LOS TRABAJADORES | B32: 30 | C32: 15 | D32: 50 | E32: 15 | F32: 50 | G32: 15 | H32: 7 | I32: 46.66666667 | J32: 8 | K32: 53.33333333 | L32: 15 | M32: 8 | N32: 53.33333333 | O32: 7 | P32: 46.66666667
A33: DEL SOL | B33: 14 | C33: 7 | D33: 50 | E33: 7 | F33: 50 | G33: 7 | H33: 4 | I33: 57.14285714 | J33: 3 | K33: 42.85714286 | L33: 7 | M33: 3 | N33: 42.85714286 | O33: 4 | P33: 57.14285714
A34: DEMOCRATA | B34: 11 | C34: 5 | D34: 45.45454545 | E34: 6 | F34: 54.54545455 | G34: 7 | H34: 3 | I34: 42.85714286 | J34: 4 | K34: 57.14285714 | L34: 4 | M34: 2 | N34: 50 | O34: 2 | P34: 50
A35: DESAMPARADOS UNIDO | B35: 22 | C35: 11 | D35: 50 | E35: 11 | F35: 50 | G35: 11 | H35: 6 | I35: 54.54545455 | J35: 5 | K35: 45.45454545 | L35: 11 | M35: 5 | N35: 45.45454545 | O35: 6 | P35: 54.54545455
A36: ECOLOGICO COMUNAL COSTARRICENSE | B36: 22 | C36: 11 | D36: 50 | E36: 11 | F36: 50 | G36: 11 | H36: 6 | I36: 54.54545455 | J36: 5 | K36: 45.45454545 | L36: 11 | M36: 5 | N36: 45.45454545 | O36: 6 | P36: 54.54545455
A37: FRENTE AMPLIO | B37: 738 | C37: 387 | D37: 52.43902439 | E37: 351 | F37: 47.56097561 | G37: 367 | H37: 202 | I37: 55.04087193 | J37: 165 | K37: 44.95912807 | L37: 371 | M37: 185 | N37: 49.86522911 | O37: 186 | P37: 50.13477089
A38: FUERZA DEMOCRATICA DESAMPARADEÑA | B38: 9 | C38: 5 | D38: 55.55555556 | E38: 4 | F38: 44.44444444 | G38: 5 | H38: 3 | I38: 60 | J38: 2 | K38: 40 | L38: 4 | M38: 2 | N38: 50 | O38: 2 | P38: 50
A39: FUERZAS UNIDAS PARA EL CAMBIO | B39: 21 | C39: 10 | D39: 47.61904762 | E39: 11 | F39: 52.38095238 | G39: 11 | H39: 5 | I39: 45.45454545 | J39: 6 | K39: 54.54545455 | L39: 10 | M39: 5 | N39: 50 | O39: 5 | P39: 50
A40: GARABITO ECOLÓGICO | B40: 10 | C40: 5 | D40: 50 | E40: 5 | F40: 50 | G40: 5 | H40: 2 | I40: 40 | J40: 3 | K40: 60 | L40: 5 | M40: 3 | N40: 60 | O40: 2 | P40: 40
A41: INDEPENDIENTE ESCAZUCEÑO | B41: 14 | C41: 6 | D41: 42.85714286 | E41: 8 | F41: 57.14285714 | G41: 7 | H41: 3 | I41: 42.85714286 | J41: 4 | K41: 57.14285714 | L41: 7 | M41: 3 | N41: 42.85714286 | O41: 4 | P41: 57.14285714
A42: INTEGRACIÓN NACIONAL | B42: 80 | C42: 43 | D42: 53.75 | E42: 37 | F42: 46.25 | G42: 43 | H42: 25 | I42: 58.13953488 | J42: 18 | K42: 41.86046512 | L42: 37 | M42: 18 | N42: 48.64864865 | O42: 19 | P42: 51.35135135
A43: JUSTICIA GENERALEÑA | B43: =+C43+E43 -> 18 | C43: =+H43+M43 -> 9 | D43: =C43/B43*100 -> 50 | E43: =+J43+O43 -> 9 | F43: =E43/B43*100 -> 50 | G43: =+H43+J43 -> 9 | H43: 5 | I43: =H43/G43*100 -> 55.55555556 | J43: 4 | K43: =J43/G43*100 -> 44.44444444 | L43: =+M43+O43 -> 9 | M43: 4 | N43: =M43/L43*100 -> 44.44444444 | O43: 5 | P43: =O43/L43*100 -> 55.55555556
A44: LIBERACIÓN NACIONAL | B44: 973 | C44: 496 | D44: 50.97636177 | E44: 477 | F44: 49.02363823 | G44: 488 | H44: 262 | I44: 53.68852459 | J44: 226 | K44: 46.31147541 | L44: 485 | M44: 234 | N44: 48.24742268 | O44: 251 | P44: 51.75257732
A45: LIGA RAMONENSE | B45: 14 | C45: 7 | D45: 50 | E45: 7 | F45: 50 | G45: 7 | H45: 3 | I45: 42.85714286 | J45: 4 | K45: 57.14285714 | L45: 7 | M45: 4 | N45: 57.14285714 | O45: 3 | P45: 42.85714286
A46: LIMON INDEPENDIENTE | B46: 18 | C46: 9 | D46: 50 | E46: 9 | F46: 50 | G46: 9 | H46: 5 | I46: 55.55555556 | J46: 4 | K46: 44.44444444 | L46: 9 | M46: 4 | N46: 44.44444444 | O46: 5 | P46: 55.55555556
A47: MOVIMIENTO AVANCE SANTO DOMINGO | B47: 10 | C47: 5 | D47: 50 | E47: 5 | F47: 50 | G47: 5 | H47: 2 | I47: 40 | J47: 3 | K47: 60 | L47: 5 | M47: 3 | N47: 60 | O47: 2 | P47: 40
A48: MOVIMIENTO LIBERTARIO | B48: 575 | C48: 296 | D48: 51.47826087 | E48: 279 | F48: 48.52173913 | G48: 300 | H48: 162 | I48: 54 | J48: 138 | K48: 46 | L48: 275 | M48: 134 | N48: 48.72727273 | O48: 141 | P48: 51.27272727
A49: NUEVA GENERACION | B49: 416 | C49: 211 | D49: 50.72115385 | E49: 205 | F49: 49.27884615 | G49: 217 | H49: 120 | I49: 55.29953917 | J49: 97 | K49: 44.70046083 | L49: 199 | M49: 91 | N49: 45.72864322 | O49: 108 | P49: 54.27135678
A50: NUEVA MAYORIA GRIEGA | B50: 14 | C50: 8 | D50: 57.14285714 | E50: 6 | F50: 42.85714286 | G50: 7 | H50: 4 | I50: 57.14285714 | J50: 3 | K50: 42.85714286 | L50: 7 | M50: 4 | N50: 57.14285714 | O50: 3 | P50: 42.85714286
A51: PARRITA INDEPENDIENTE | B51: 10 | C51: 6 | D51: 60 | E51: 4 | F51: 40 | G51: 5 | H51: 3 | I51: 60 | J51: 2 | K51: 40 | L51: 5 | M51: 3 | N51: 60 | O51: 2 | P51: 40
A52: PROGRESO COMUNAL DESAMPARADEÑO | B52: 4 | C52: 2 | D52: 50 | E52: 2 | F52: 50 | G52: 2 | H52: 1 | I52: 50 | J52: 1 | K52: 50 | L52: 2 | M52: 1 | N52: 50 | O52: 1 | P52: 50
A53: PUEBLO GARABITO | B53: 10 | C53: 5 | D53: 50 | E53: 5 | F53: 50 | G53: 5 | H53: 2 | I53: 40 | J53: 3 | K53: 60 | L53: 5 | M53: 3 | N53: 60 | O53: 2 | P53: 40
A54: PURISCALEÑOS DE CORAZON | B54: 10 | C54: 6 | D54: 60 | E54: 4 | F54: 40 | G54: 5 | H54: 3 | I54: 60 | J54: 2 | K54: 40 | L54: 5 | M54: 3 | N54: 60 | O54: 2 | P54: 40
A55: RECUPERANDO VALORES | B55: 44 | C55: 22 | D55: 50 | E55: 22 | F55: 50 | G55: 22 | H55: 12 | I55: 54.54545455 | J55: 10 | K55: 45.45454545 | L55: 22 | M55: 10 | N55: 45.45454545 | O55: 12 | P55: 54.54545455
A56: RENOVACION CARTAGO | B56: 17 | C56: 8 | D56: 47.05882353 | E56: 9 | F56: 52.94117647 | G56: 9 | H56: 5 | I56: 55.55555556 | J56: 4 | K56: 44.44444444 | L56: 8 | M56: 3 | N56: 37.5 | O56: 5 | P56: 62.5
A57: RENOVACIÓN COSTARRICENSE | B57: 443 | C57: 222 | D57: 50.11286682 | E57: 221 | F57: 49.88713318 | G57: 228 | H57: 124 | I57: 54.38596491 | J57: 104 | K57: 45.61403509 | L57: 215 | M57: 98 | N57: 45.58139535 | O57: 117 | P57: 54.41860465
A58: RENOVEMOS ALAJUELA | B58: 21 | C58: 11 | D58: 52.38095238 | E58: 10 | F58: 47.61904762 | G58: 10 | H58: 5 | I58: 50 | J58: 5 | K58: 50 | L58: 11 | M58: 6 | N58: 54.54545455 | O58: 5 | P58: 45.45454545
A59: REPUBLICANO SOCIAL CRISTIANO | B59: 700 | C59: 362 | D59: 51.71428571 | E59: 338 | F59: 48.28571429 | G59: 356 | H59: 185 | I59: 51.96629213 | J59: 171 | K59: 48.03370787 | L59: 344 | M59: 177 | N59: 51.45348837 | O59: 167 | P59: 48.54651163
A60: RESCATE CANTONAL LA UNION | B60: 18 | C60: 9 | D60: 50 | E60: 9 | F60: 50 | G60: 9 | H60: 5 | I60: 55.55555556 | J60: 4 | K60: 44.44444444 | L60: 9 | M60: 4 | N60: 44.44444444 | O60: 5 | P60: 55.55555556
A61: RESTAURACIÓN NACIONAL | B61: 145 | C61: 73 | D61: 50.34482759 | E61: 72 | F61: 49.65517241 | G61: 73 | H61: 39 | I61: 53.42465753 | J61: 34 | K61: 46.57534247 | L61: 72 | M61: 34 | N61: 47.22222222 | O61: 38 | P61: 52.77777778
A62: RESTAURACION PARRITEÑA | B62: 8 | C62: 4 | D62: 50 | E62: 4 | F62: 50 | G62: 4 | H62: 2 | I62: 50 | J62: 2 | K62: 50 | L62: 4 | M62: 2 | N62: 50 | O62: 2 | P62: 50
A63: SOLIDARIDAD | B63: 22 | C63: 11 | D63: 50 | E63: 11 | F63: 50 | G63: 11 | H63: 6 | I63: 54.54545455 | J63: 5 | K63: 45.45454545 | L63: 11 | M63: 5 | N63: 45.45454545 | O63: 6 | P63: 54.54545455
A64: TODO POR FLORES | B64: 10 | C64: 5 | D64: 50 | E64: 5 | F64: 50 | G64: 5 | H64: 2 | I64: 40 | J64: 3 | K64: 60 | L64: 5 | M64: 3 | N64: 60 | O64: 2 | P64: 40
A65: UNIDAD SOCIAL CRISTIANA | B65: 952 | C65: 505 | D65: 53.04621849 | E65: 447 | F65: 46.95378151 | G65: 475 | H65: 261 | I65: 54.94736842 | J65: 214 | K65: 45.05263158 | L65: 477 | M65: 244 | N65: 51.15303983 | O65: 233 | P65: 48.84696017
A66: UNION GUARQUEÑO | B66: 10 | C66: 5 | D66: 50 | E66: 5 | F66: 50 | G66: 5 | H66: 3 | I66: 60 | J66: 2 | K66: 40 | L66: 5 | M66: 2 | N66: 40 | O66: 3 | P66: 60
A67: VERDE | B67: 42 | C67: 21 | D67: 50 | E67: 21 | F67: 50 | G67: 22 | H67: 10 | I67: 45.45454545 | J67: 12 | K67: 54.54545455 | L67: 20 | M67: 11 | N67: 55 | O67: 9 | P67: 45
A68: VIVA PUNTARENAS | B68: 59 | C68: 31 | D68: 52.54237288 | E68: 28 | F68: 47.45762712 | G68: 30 | H68: 17 | I68: 56.66666667 | J68: 13 | K68: 43.33333333 | L68: 29 | M68: 14 | N68: 48.27586207 | O68: 15 | P68: 51.72413793
A69: YUNTA PROGRESISTA ESCAZUCEÑA | B69: 14 | C69: 7 | D69: 50 | E69: 7 | F69: 50 | G69: 7 | H69: 3 | I69: 42.85714286 | J69: 4 | K69: 57.14285714 | L69: 7 | M69: 4 | N69: 57.14285714 | O69: 3 | P69: 42.85714286
A72: Nota: Datos al 26 de enero de 2016.
A73: Fuente: Departamento de Registro de Partidos Políticos, Base de datos de candidaturas febrero 2016

Sheet 24
A1: CUADRO 24. COSTA RICA: CANDIDATURAS A REGIDORES (AS) EN PROPIEDAD Y SUPLENCIA POR SEXO, SEGÚN PROVINCIA Y CANTÓN
A2: ELECCIONES MUNICIPALES 7 DE FEBRERO 2016
A3: (CIFRAS ABSOLUTAS Y RELATIVAS)
A5: PROVINCIA Y CANTÓN | B5: REGIDORES(AS) | G5: EN PROPIEDAD | L5: EN SUPLENCIA
B6: TOTAL | C6: HOMBRES | E6: MUJERES | G6: TOTAL | H6: HOMBRES | J6: MUJERES | L6: TOTAL | M6: HOMBRES | O6: MUJERES
C7: ABS | D7: % | E7: ABS | F7: % | H7: ABS | I7: % | J7: ABS | K7: % | M7: ABS | N7: % | O7: ABS | P7: %
A9: COSTA RICA | B9: =G9+L9 -> 7016 | C9: =H9+M9 -> 3604 | D9: =C9/$B9*100 -> 51.36830103 | E9: =J9+O9 -> 3412 | F9: =E9/$B9*100 -> 48.63169897 | G9: =+G10+G31+G47+G56+G67+G79+G91 -> 3547 | H9: =+H10+H31+H47+H56+H67+H79+H91 -> 1909 | I9: =H9/$G9*100 -> 53.82012969 | J9: =+J10+J31+J47+J56+J67+J79+J91 -> 1638 | K9: =J9/$G9*100 -> 46.17987031 | L9: =+L10+L31+L47+L56+L67+L79+L91 -> 3469 | M9: =+M10+M31+M47+M56+M67+M79+M91 -> 1695 | N9: =M9/$L9*100 -> 48.86134333 | O9: =+O10+O31+O47+O56+O67+O79+O91 -> 1774 | P9: =O9/$L9*100 -> 51.13865667 | S9: Cargo
A10: PROVINCIA SAN JOSÉ | B10: =+G10+L10 -> 2033 | C10: =+H10+M10 -> 1032 | D10: =C10/$B10*100 -> 50.76242007 | E10: =+J10+O10 -> 1001 | F10: =E10/$B10*100 -> 49.23757993 | G10: =SUM(G11:G30) -> 1023 | H10: =SUM(H11:H30) -> 543 | I10: =H10/$G10*100 -> 53.07917889 | J10: =SUM(J11:J30) -> 480 | K10: =J10/$G10*100 -> 46.92082111 | L10: =SUM(L11:L30) -> 1010 | M10: =SUM(M11:M30) -> 489 | N10: =M10/$L10*100 -> 48.41584158 | O10: =SUM(O11:O30) -> 521 | P10: =O10/$L10*100 -> 51.58415842 | S10: Sexo | U10: Total
A11: SAN JOSÉ | B11: =+G11+L11 -> 245 | C11: =+H11+M11 -> 130 | D11: 53.06122449 | E11: =+J11+O11 -> 115 | F11: 46.93877551 | G11: =+H11+J11 -> 124 | H11: 68 | I11: =H11/$G11*100 -> 54.83870968 | J11: 56 | K11: =J11/$G11*100 -> 45.16129032 | L11: =+M11+O11 -> 121 | M11: 62 | N11: 51.23966942 | O11: 59 | P11: 48.76033058 | S11: HOMBRE | T11: MUJER
A12: ESCAZÚ | B12: =+G12+L12 -> 140 | C12: =+H12+M12 -> 69 | D12: 49.28571429 | E12: =+J12+O12 -> 71 | F12: 50.71428571 | G12: 70 | H12: 34 | I12: 48.57142857 | J12: 36 | K12: 51.42857143 | L12: 70 | M12: 35 | N12: 50 | O12: 35 | P12: 50
A13: DESAMPARADOS | B13: 237 | C13: 119 | D13: 50.21097046 | E13: 118 | F13: 49.78902954 | G13: 117 | H13: 59 | I13: 50.42735043 | J13: 58 | K13: 49.57264957 | L13: 120 | M13: 60 | N13: 50 | O13: 60 | P13: 50
A14: PURISCAL | B14: 56 | C14: 28 | D14: 50 | E14: 28 | F14: 50 | G14: 29 | H14: 16 | I14: 55.17241379 | J14: 13 | K14: 44.82758621 | L14: 27 | M14: 12 | N14: 44.44444444 | O14: 15 | P14: 55.55555556
A15: TARRAZÚ | B15: 58 | C15: 29 | D15: 50 | E15: 29 | F15: 50 | G15: 29 | H15: 17 | I15: 58.62068966 | J15: 12 | K15: 41.37931034 | L15: 29 | M15: 12 | N15: 41.37931034 | O15: 17 | P15: 58.62068966
A16: ASERRÍ | B16: 67 | C16: 34 | D16: 50.74626866 | E16: 33 | F16: 49.25373134 | G16: 34 | H16: 19 | I16: 55.88235294 | J16: 15 | K16: 44.11764706 | L16: 33 | M16: 15 | N16: 45.45454545 | O16: 18 | P16: 54.54545455
A17: MORA | B17: 59 | C17: 31 | D17: 52.54237288 | E17: 28 | F17: 47.45762712 | G17: 30 | H17: 16 | I17: 53.33333333 | J17: 14 | K17: 46.66666667 | L17: 29 | M17: 15 | N17: 51.72413793 | O17: 14 | P17: 48.27586207
A18: GOICOECHEA | B18: 141 | C18: 74 | D18: 52.4822695 | E18: 67 | F18: 47.5177305 | G18: 69 | H18: 38 | I18: 55.07246377 | J18: 31 | K18: 44.92753623 | L18: 72 | M18: 36 | N18: 50 | O18: 36 | P18: 50
A19: SANTA ANA | B19: 123 | C19: 61 | D19: 49.59349593 | E19: 62 | F19: 50.40650407 | G19: 61 | H19: 34 | I19: 55.73770492 | J19: 27 | K19: 44.26229508 | L19: 62 | M19: 27 | N19: 43.5483871 | O19: 35 | P19: 56.4516129
A20: ALAJUELITA | B20: 92 | C20: 46 | D20: 50 | E20: 46 | F20: 50 | G20: 47 | H20: 25 | I20: 53.19148936 | J20: 22 | K20: 46.80851064 | L20: 45 | M20: 21 | N20: 46.66666667 | O20: 24 | P20: 53.33333333
A21: VÁZQUEZ DE CORONADO | B21: 104 | C21: 51 | D21: 49.03846154 | E21: 53 | F21: 50.96153846 | G21: =+H21+J21 -> 53 | H21: 25 | I21: 47.16981132 | J21: 28 | K21: 52.83018868 | L21: 51 | M21: 26 | N21: 50.98039216 | O21: 25 | P21: 49.01960784
A22: ACOSTA | B22: 30 | C22: 15 | D22: 50 | E22: 15 | F22: 50 | G22: 15 | H22: 7 | I22: 46.66666667 | J22: 8 | K22: 53.33333333 | L22: 15 | M22: 8 | N22: 53.33333333 | O22: 7 | P22: 46.66666667
A23: TIBÁS | B23: 88 | C23: 43 | D23: 48.86363636 | E23: 45 | F23: 51.13636364 | G23: 44 | H23: 21 | I23: 47.72727273 | J23: 23 | K23: 52.27272727 | L23: 44 | M23: 22 | N23: 50 | O23: 22 | P23: 50
A24: MORAVIA | B24: 80 | C24: =+H24+M24 -> 40 | D24: 50 | E24: =+J24+O24 -> 40 | F24: 50 | G24: 40 | H24: 20 | I24: 50 | J24: 20 | K24: 50 | L24: 40 | M24: 20 | N24: 50 | O24: 20 | P24: 50
A25: MONTES DE OCA | B25: 95 | C25: 49 | D25: 51.57894737 | E25: 46 | F25: 48.42105263 | G25: 48 | H25: 27 | I25: 56.25 | J25: 21 | K25: 43.75 | L25: 47 | M25: 22 | N25: 46.80851064 | O25: 25 | P25: 53.19148936
A26: TURRUBARES | B26: 47 | C26: 27 | D26: 57.44680851 | E26: 20 | F26: 42.55319149 | G26: 25 | H26: 15 | I26: 60 | J26: 10 | K26: 40 | L26: 22 | M26: 12 | N26: 54.54545455 | O26: 10 | P26: 45.45454545
A27: DOTA | B27: 48 | C27: 24 | D27: 50 | E27: 24 | F27: 50 | G27: 24 | H27: 12 | I27: 50 | J27: 12 | K27: 50 | L27: 24 | M27: 12 | N27: 50 | O27: 12 | P27: 50
A28: CURRIDABAT | B28: 124 | C28: 61 | D28: 49.19354839 | E28: 63 | F28: 50.80645161 | G28: 64 | H28: 35 | I28: 54.6875 | J28: 29 | K28: 45.3125 | L28: 60 | M28: 26 | N28: 43.33333333 | O28: 34 | P28: 56.66666667
A29: PÉREZ ZELEDÓN | B29: 176 | C29: 89 | D29: 50.56818182 | E29: 87 | F29: 49.43181818 | G29: 89 | H29: 49 | I29: 55.05617978 | J29: 40 | K29: 44.94382022 | L29: 87 | M29: 40 | N29: 45.97701149 | O29: 47 | P29: 54.02298851
A30: LEÓN CORTÉS | B30: 23 | C30: =+H30+M30 -> 12 | D30: 52.17391304 | E30: 11 | F30: 47.82608696 | G30: 11 | H30: 6 | I30: 54.54545455 | J30: 5 | K30: 45.45454545 | L30: 12 | M30: 6 | N30: 50 | O30: 6 | P30: 50
A31: PROVINCIA ALAJUELA | B31: =+G31+L31 -> 1218 | C31: =+H31+M31 -> 633 | D31: =C31/$B31*100 -> 51.97044335 | E31: =+J31+O31 -> 585 | F31: =E31/$B31*100 -> 48.02955665 | G31: =+H31+J31 -> 616 | H31: =SUM(H32:H46) -> 336 | I31: =H31/$G31*100 -> 54.54545455 | J31: =SUM(J32:J46) -> 280 | K31: =J31/$G31*100 -> 45.45454545 | L31: =+M31+O31 -> 602 | M31: =SUM(M32:M46) -> 297 | N31: =M31/$L31*100 -> 49.33554817 | O31: =SUM(O32:O46) -> 305 | P31: =O31/$L31*100 -> 50.66445183
A32: ALAJUELA | B32: 214 | C32: =+H32+M32 -> 111 | D32: 51.86915888 | E32: =+J32+O32 -> 103 | F32: 48.13084112 | G32: 106 | H32: 56 | I32: 52.83018868 | J32: 50 | K32: 47.16981132 | L32: 108 | M32: 55 | N32: 50.92592593 | O32: 53 | P32: 49.07407407
A33: SAN RAMÓN | B33: 119 | C33: 61 | D33: 51.2605042 | E33: 58 | F33: 48.7394958 | G33: 63 | H33: 33 | I33: 52.38095238 | J33: 30 | K33: 47.61904762 | L33: 56 | M33: 28 | N33: 50 | O33: 28 | P33: 50
A34: GRECIA | B34: 122 | C34: 65 | D34: 53.27868852 | E34: 57 | F34: 46.72131148 | G34: 61 | H34: 35 | I34: 57.37704918 | J34: 26 | K34: 42.62295082 | L34: 61 | M34: 30 | N34: 49.18032787 | O34: 31 | P34: 50.81967213
A35: SAN MATEO | B35: 54 | C35: 27 | D35: 50 | E35: 27 | F35: 50 | G35: 28 | H35: 15 | I35: 53.57142857 | J35: 13 | K35: 46.42857143 | L35: 26 | M35: 12 | N35: 46.15384615 | O35: 14 | P35: 53.84615385
A36: ATENAS | B36: 60 | C36: 31 | D36: 51.66666667 | E36: 29 | F36: 48.33333333 | G36: 30 | H36: 16 | I36: 53.33333333 | J36: 14 | K36: 46.66666667 | L36: 30 | M36: 15 | N36: 50 | O36: 15 | P36: 50
A37: NARANJO | B37: 77 | C37: 38 | D37: 49.35064935 | E37: 39 | F37: 50.64935065 | G37: 39 | H37: 21 | I37: 53.84615385 | J37: 18 | K37: 46.15384615 | L37: 38 | M37: 17 | N37: 44.73684211 | O37: 21 | P37: 55.26315789
A38: PALMARES | B38: 90 | C38: 50 | D38: 55.55555556 | E38: 40 | F38: 44.44444444 | G38: 46 | H38: 26 | I38: 56.52173913 | J38: 20 | K38: 43.47826087 | L38: 44 | M38: 24 | N38: 54.54545455 | O38: 20 | P38: 45.45454545
A39: POÁS | B39: 70 | C39: 38 | D39: 54.28571429 | E39: 32 | F39: 45.71428571 | G39: 35 | H39: 21 | I39: 60 | J39: 14 | K39: 40 | L39: 35 | M39: 17 | N39: 48.57142857 | O39: 18 | P39: 51.42857143
A40: OROTINA | B40: 46 | C40: 24 | D40: 52.17391304 | E40: 22 | F40: 47.82608696 | G40: 23 | H40: 12 | I40: 52.17391304 | J40: 11 | K40: 47.82608696 | L40: 23 | M40: 12 | N40: 52.17391304 | O40: 11 | P40: 47.82608696
A41: SAN CARLOS | B41: 126 | C41: 65 | D41: 51.58730159 | E41: 61 | F41: 48.41269841 | G41: 63 | H41: 33 | I41: 52.38095238 | J41: 30 | K41: 47.61904762 | L41: 63 | M41: 32 | N41: 50.79365079 | O41: 31 | P41: 49.20634921
A42: ALFARO RUIZ | B42: =+G42+L42 -> 32 | C42: 18 | D42: 56.25 | E42: 14 | F42: 43.75 | G42: 17 | H42: 10 | I42: 58.82352941 | J42: 7 | K42: 41.17647059 | L42: 15 | M42: 8 | N42: 53.33333333 | O42: 7 | P42: 46.66666667
A43: VALVERDE VEGA | B43: 38 | C43: 18 | D43: 47.36842105 | E43: 20 | F43: 52.63157895 | G43: 19 | H43: 10 | I43: 52.63157895 | J43: 9 | K43: 47.36842105 | L43: 19 | M43: 8 | N43: 42.10526316 | O43: 11 | P43: 57.89473684
A44: UPALA | B44: 52 | C44: 28 | D44: 53.84615385 | E44: 24 | F44: 46.15384615 | G44: 25 | H44: 14 | I44: 56 | J44: 11 | K44: 44 | L44: 27 | M44: 14 | N44: 51.85185185 | O44: 13 | P44: 48.14814815
A45: LOS CHILES | B45: 67 | C45: 34 | D45: 50.74626866 | E45: 33 | F45: 49.25373134 | G45: 33 | H45: 19 | I45: 57.57575758 | J45: 14 | K45: 42.42424242 | L45: 34 | M45: 15 | N45: 44.11764706 | O45: 19 | P45: 55.88235294
A46: GUATUSO | B46: 51 | C46: 25 | D46: 49.01960784 | E46: 26 | F46: 50.98039216 | G46: 28 | H46: 15 | I46: 53.57142857 | J46: 13 | K46: 46.42857143 | L46: 23 | M46: 10 | N46: 43.47826087 | O46: 13 | P46: 56.52173913
A47: PROVINCIA CARTAGO | B47: 821 | C47: 414 | D47: 50.42630938 | E47: =+J47+O47 -> 407 | F47: 49.57369062 | G47: 416 | H47: =SUM(H48:H55) -> 219 | I47: 52.64423077 | J47: =SUM(J48:J55) -> 197 | K47: 47.35576923 | L47: 405 | M47: =SUM(M48:M55) -> 195 | N47: 48.14814815 | O47: =SUM(O48:O55) -> 210 | P47: 51.85185185
A48: CARTAGO | B48: 168 | C48: 86 | D48: 51.19047619 | E48: 82 | F48: 48.80952381 | G48: 86 | H48: 47 | I48: 54.65116279 | J48: 39 | K48: 45.34883721 | L48: 82 | M48: 39 | N48: 47.56097561 | O48: 43 | P48: 52.43902439
A49: PARAÍSO | B49: 114 | C49: 57 | D49: 50 | E49: 57 | F49: 50 | G49: 58 | H49: 30 | I49: 51.72413793 | J49: 28 | K49: 48.27586207 | L49: 56 | M49: 27 | N49: 48.21428571 | O49: 29 | P49: 51.78571429
A50: LA UNIÓN | B50: 190 | C50: 94 | D50: 49.47368421 | E50: 96 | F50: 50.52631579 | G50: 93 | H50: 47 | I50: 50.53763441 | J50: 46 | K50: 49.46236559 | L50: 97 | M50: 47 | N50: 48.45360825 | O50: 50 | P50: 51.54639175
A51: JIMÉNEZ | B51: 60 | C51: 32 | D51: 53.33333333 | E51: 28 | F51: 46.66666667 | G51: 30 | H51: 18 | I51: 60 | J51: 12 | K51: 40 | L51: 30 | M51: 14 | N51: 46.66666667 | O51: 16 | P51: 53.33333333
A52: TURRIALBA | B52: 82 | C52: 40 | D52: 48.7804878 | E52: 42 | F52: 51.2195122 | G52: 44 | H52: 23 | I52: 52.27272727 | J52: 21 | K52: 47.72727273 | L52: 38 | M52: 17 | N52: 44.73684211 | O52: 21 | P52: 55.26315789
A53: ALVARADO | B53: 63 | C53: 33 | D53: 52.38095238 | E53: 30 | F53: 47.61904762 | G53: 33 | H53: 17 | I53: 51.51515152 | J53: 16 | K53: 48.48484848 | L53: 30 | M53: 16 | N53: 53.33333333 | O53: 14 | P53: 46.66666667
A54: OREAMUNO | B54: 68 | C54: 34 | D54: 50 | E54: 34 | F54: 50 | G54: 34 | H54: 17 | I54: 50 | J54: 17 | K54: 50 | L54: 34 | M54: 17 | N54: 50 | O54: 17 | P54: 50
A55: EL GUARCO | B55: 76 | C55: 38 | D55: 50 | E55: 38 | F55: 50 | G55: 38 | H55: 20 | I55: 52.63157895 | J55: 18 | K55: 47.36842105 | L55: 38 | M55: 18 | N55: 47.36842105 | O55: 20 | P55: 52.63157895
A56: PROVINCIA HEREDIA | B56: 721 | C56: 374 | D56: 51.87239945 | E56: 347 | F56: 48.12760055 | G56: 369 | H56: =SUM(H57:H66) -> 197 | I56: 53.38753388 | J56: =SUM(J57:J66) -> 172 | K56: 46.61246612 | L56: =+M56+O56 -> 352 | M56: =SUM(M57:M66) -> 177 | N56: 50.28409091 | O56: =SUM(O57:O66) -> 175 | P56: 49.71590909
A57: HEREDIA | B57: 139 | C57: 71 | D57: 51.07913669 | E57: 68 | F57: 48.92086331 | G57: 70 | H57: 38 | I57: 54.28571429 | J57: 32 | K57: 45.71428571 | L57: =+M57+O57 -> 69 | M57: 33 | N57: 47.82608696 | O57: 36 | P57: 52.17391304
A58: BARVA | B58: 76 | C58: 38 | D58: 50 | E58: 38 | F58: 50 | G58: 38 | H58: 19 | I58: 50 | J58: 19 | K58: 50 | L58: 38 | M58: 19 | N58: 50 | O58: 19 | P58: 50
A59: SANTO DOMINGO | B59: 62 | C59: 30 | D59: 48.38709677 | E59: 32 | F59: 51.61290323 | G59: 33 | H59: 15 | I59: 45.45454545 | J59: 18 | K59: 54.54545455 | L59: 29 | M59: 15 | N59: 51.72413793 | O59: 14 | P59: 48.27586207
A60: SANTA BÁRBARA | B60: 63 | C60: 34 | D60: 53.96825397 | E60: 29 | F60: 46.03174603 | G60: 31 | H60: 18 | I60: 58.06451613 | J60: 13 | K60: 41.93548387 | L60: 32 | M60: 16 | N60: 50 | O60: 16 | P60: 50
A61: SAN RAFAEL | B61: 78 | C61: 41 | D61: 52.56410256 | E61: 37 | F61: 47.43589744 | G61: 40 | H61: 22 | I61: 55 | J61: 18 | K61: 45 | L61: 38 | M61: 19 | N61: 50 | O61: 19 | P61: 50
A62: SAN ISIDRO | B62: 51 | C62: 28 | D62: 54.90196078 | E62: 23 | F62: 45.09803922 | G62: 25 | H62: 14 | I62: 56 | J62: 11 | K62: 44 | L62: 26 | M62: 14 | N62: 53.84615385 | O62: 12 | P62: 46.15384615
A63: BELÉN | B63: 46 | C63: 25 | D63: 54.34782609 | E63: 21 | F63: 45.65217391 | G63: 23 | H63: 13 | I63: 56.52173913 | J63: 10 | K63: 43.47826087 | L63: 23 | M63: 12 | N63: 52.17391304 | O63: 11 | P63: 47.82608696
A64: FLORES | B64: 61 | C64: 31 | D64: 50.81967213 | E64: 30 | F64: 49.18032787 | G64: 30 | H64: 15 | I64: 50 | J64: 15 | K64: 50 | L64: 31 | M64: 16 | N64: 51.61290323 | O64: 15 | P64: 48.38709677
A65: SAN PABLO | B65: 58 | C65: 31 | D65: 53.44827586 | E65: 27 | F65: 46.55172414 | G65: 31 | H65: 16 | I65: 51.61290323 | J65: 15 | K65: 48.38709677 | L65: 27 | M65: 15 | N65: 55.55555556 | O65: 12 | P65: 44.44444444
A66: SARAPIQUÍ | B66: 87 | C66: 45 | D66: 51.72413793 | E66: 42 | F66: 48.27586207 | G66: 48 | H66: 27 | I66: 56.25 | J66: 21 | K66: 43.75 | L66: 39 | M66: 18 | N66: 46.15384615 | O66: 21 | P66: 53.84615385
A67: PROVINCIA GUANACASTE | B67: 644 | C67: 338 | D67: 52.48447205 | E67: 306 | F67: 47.51552795 | G67: 330 | H67: =SUM(H68:H78) -> 182 | I67: 55.15151515 | J67: =SUM(J68:J78) -> 148 | K67: 44.84848485 | L67: =+M67+O67 -> 314 | M67: =SUM(M68:M78) -> 156 | N67: 49.68152866 | O67: =SUM(O68:O78) -> 158 | P67: 50.31847134
A68: LIBERIA | B68: 102 | C68: 53 | D68: 51.96078431 | E68: 49 | F68: 48.03921569 | G68: 52 | H68: 26 | I68: 50 | J68: 26 | K68: 50 | L68: =+M68+O68 -> 50 | M68: 27 | N68: 54 | O68: 23 | P68: 46
A69: NICOYA | B69: 71 | C69: 38 | D69: 53.52112676 | E69: 33 | F69: 46.47887324 | G69: 35 | H69: 19 | I69: 54.28571429 | J69: 16 | K69: 45.71428571 | L69: 36 | M69: 19 | N69: 52.77777778 | O69: 17 | P69: 47.22222222
A70: SANTA CRUZ | B70: 92 | C70: 46 | D70: 50 | E70: 46 | F70: 50 | G70: 50 | H70: 28 | I70: 56 | J70: 22 | K70: 44 | L70: 42 | M70: 18 | N70: 42.85714286 | O70: 24 | P70: 57.14285714
A71: BAGACES | B71: 55 | C71: 27 | D71: 49.09090909 | E71: 28 | F71: 50.90909091 | G71: 28 | H71: 13 | I71: 46.42857143 | J71: 15 | K71: 53.57142857 | L71: 27 | M71: 14 | N71: 51.85185185 | O71: 13 | P71: 48.14814815
A72: CARRILLO | B72: 55 | C72: 29 | D72: 52.72727273 | E72: 26 | F72: 47.27272727 | G72: 30 | H72: 18 | I72: 60 | J72: 12 | K72: 40 | L72: 25 | M72: 11 | N72: 44 | O72: 14 | P72: 56
A73: CAÑAS | B73: 38 | C73: 21 | D73: =C73/$B73*100 -> 55.26315789 | E73: 17 | F73: =E73/$B73*100 -> 44.73684211 | G73: 19 | H73: 12 | I73: =H73/$G73*100 -> 63.15789474 | J73: 7 | K73: =J73/$G73*100 -> 36.84210526 | L73: 19 | M73: 9 | N73: =M73/$L73*100 -> 47.36842105 | O73: 10 | P73: =O73/$L73*100 -> 52.63157895
A74: ABANGARES | B74: =+G74+L74 -> 64 | C74: 35 | D74: 54.6875 | E74: 29 | F74: 45.3125 | G74: 32 | H74: 18 | I74: 56.25 | J74: 14 | K74: 43.75 | L74: 32 | M74: 17 | N74: 53.125 | O74: 15 | P74: 46.875
A75: TILARÁN | B75: 47 | C75: 24 | D75: 51.06382979 | E75: 23 | F75: 48.93617021 | G75: =+H75+J75 -> 24 | H75: 14 | I75: 58.33333333 | J75: 10 | K75: 41.66666667 | L75: 23 | M75: 10 | N75: 43.47826087 | O75: 13 | P75: 56.52173913
A76: NANDAYURE | B76: 55 | C76: 30 | D76: 54.54545455 | E76: 25 | F76: 45.45454545 | G76: 29 | H76: 16 | I76: 55.17241379 | J76: 13 | K76: 44.82758621 | L76: 26 | M76: 14 | N76: 53.84615385 | O76: 12 | P76: 46.15384615
A77: LA CRUZ | B77: 28 | C77: 15 | D77: 53.57142857 | E77: 13 | F77: 46.42857143 | G77: 13 | H77: 7 | I77: 53.84615385 | J77: 6 | K77: 46.15384615 | L77: 15 | M77: 8 | N77: 53.33333333 | O77: 7 | P77: 46.66666667
A78: HOJANCHA | B78: 37 | C78: 20 | D78: 54.05405405 | E78: 17 | F78: 45.94594595 | G78: 18 | H78: 11 | I78: 61.11111111 | J78: 7 | K78: 38.88888889 | L78: 19 | M78: 9 | N78: 47.36842105 | O78: 10 | P78: 52.63157895
A79: PROVINCIA PUNTARENAS | B79: 870 | C79: 452 | D79: 51.95402299 | E79: =+J79+O79 -> 418 | F79: 48.04597701 | G79: 437 | H79: =SUM(H80:H90) -> 242 | I79: 55.37757437 | J79: =SUM(J80:J90) -> 195 | K79: 44.62242563 | L79: =+M79+O79 -> 433 | M79: =SUM(M80:M90) -> 210 | N79: 48.49884527 | O79: =SUM(O80:O90) -> 223 | P79: 51.50115473
A80: PUNTARENAS | B80: 142 | C80: 74 | D80: 52.11267606 | E80: 68 | F80: 47.88732394 | G80: 69 | H80: 39 | I80: 56.52173913 | J80: 30 | K80: 43.47826087 | L80: =+M80+O80 -> 73 | M80: 35 | N80: 47.94520548 | O80: 38 | P80: 52.05479452
A81: ESPARZA | B81: 61 | C81: 30 | D81: 49.18032787 | E81: 31 | F81: 50.81967213 | G81: 31 | H81: 17 | I81: 54.83870968 | J81: 14 | K81: 45.16129032 | L81: 30 | M81: 13 | N81: 43.33333333 | O81: 17 | P81: 56.66666667
A82: BUENOS AIRES | B82: 87 | C82: 43 | D82: 49.42528736 | E82: 44 | F82: 50.57471264 | G82: 43 | H82: 23 | I82: 53.48837209 | J82: 20 | K82: 46.51162791 | L82: 44 | M82: 20 | N82: 45.45454545 | O82: 24 | P82: 54.54545455
A83: MONTES DE ORO | B83: 53 | C83: 29 | D83: 54.71698113 | E83: 24 | F83: 45.28301887 | G83: 27 | H83: 15 | I83: 55.55555556 | J83: 12 | K83: 44.44444444 | L83: 26 | M83: 14 | N83: 53.84615385 | O83: 12 | P83: 46.15384615
A84: OSA | B84: 76 | C84: 41 | D84: 53.94736842 | E84: 35 | F84: 46.05263158 | G84: 40 | H84: 21 | I84: 52.5 | J84: 19 | K84: 47.5 | L84: 36 | M84: 20 | N84: 55.55555556 | O84: 16 | P84: 44.44444444
A85: AGUIRRE | B85: 99 | C85: 52 | D85: 52.52525253 | E85: 47 | F85: 47.47474747 | G85: 52 | H85: 28 | I85: 53.84615385 | J85: 24 | K85: 46.15384615 | L85: 47 | M85: 24 | N85: 51.06382979 | O85: 23 | P85: 48.93617021
A86: GOLFITO | B86: 74 | C86: 38 | D86: 51.35135135 | E86: 36 | F86: 48.64864865 | G86: 37 | H86: 22 | I86: 59.45945946 | J86: 15 | K86: 40.54054054 | L86: 37 | M86: 16 | N86: 43.24324324 | O86: 21 | P86: 56.75675676
A87: COTO BRUS | B87: 52 | C87: 28 | D87: 53.84615385 | E87: 24 | F87: 46.15384615 | G87: 26 | H87: 15 | I87: 57.69230769 | J87: 11 | K87: 42.30769231 | L87: 26 | M87: 13 | N87: 50 | O87: 13 | P87: 50
A88: PARRITA | B88: 77 | C88: 39 | D88: 50.64935065 | E88: 38 | F88: 49.35064935 | G88: 39 | H88: 21 | I88: 53.84615385 | J88: 18 | K88: 46.15384615 | L88: 38 | M88: 18 | N88: 47.36842105 | O88: 20 | P88: 52.63157895
A89: CORREDORES | B89: 72 | C89: 37 | D89: 51.38888889 | E89: 35 | F89: 48.61111111 | G89: 36 | H89: 21 | I89: 58.33333333 | J89: 15 | K89: 41.66666667 | L89: 36 | M89: 16 | N89: 44.44444444 | O89: 20 | P89: 55.55555556
A90: GARABITO | B90: 77 | C90: 41 | D90: 53.24675325 | E90: 36 | F90: 46.75324675 | G90: 37 | H90: 20 | I90: 54.05405405 | J90: 17 | K90: 45.94594595 | L90: 40 | M90: 21 | N90: 52.5 | O90: 19 | P90: 47.5
A91: PROVINCIA LIMÓN | B91: 709 | C91: 361 | D91: 50.9167842 | E91: 348 | F91: 49.0832158 | G91: 356 | H91: =SUM(H92:H97) -> 190 | I91: 53.37078652 | J91: =SUM(J92:J97) -> 166 | K91: 46.62921348 | L91: =+M91+O91 -> 353 | M91: =SUM(M92:M97) -> 171 | N91: 48.44192635 | O91: =SUM(O92:O97) -> 182 | P91: 51.55807365
A92: LIMÓN | B92: 171 | C92: 87 | D92: 50.87719298 | E92: 84 | F92: 49.12280702 | G92: 84 | H92: 43 | I92: 51.19047619 | J92: 41 | K92: 48.80952381 | L92: =+M92+O92 -> 87 | M92: 44 | N92: 50.57471264 | O92: 43 | P92: 49.42528736
A93: POCOCÍ | B93: 157 | C93: 78 | D93: 49.68152866 | E93: 79 | F93: 50.31847134 | G93: 78 | H93: 41 | I93: 52.56410256 | J93: 37 | K93: 47.43589744 | L93: 79 | M93: 37 | N93: 46.83544304 | O93: 42 | P93: 53.16455696
A94: SIQUIRRES | B94: 147 | C94: 76 | D94: 51.70068027 | E94: 71 | F94: 48.29931973 | G94: 73 | H94: 42 | I94: 57.53424658 | J94: 31 | K94: 42.46575342 | L94: 74 | M94: 34 | N94: 45.94594595 | O94: 40 | P94: 54.05405405
A95: TALAMANCA | B95: 59 | C95: 32 | D95: 54.23728814 | E95: 27 | F95: 45.76271186 | G95: 29 | H95: 15 | I95: 51.72413793 | J95: 14 | K95: 48.27586207 | L95: 30 | M95: 17 | N95: 56.66666667 | O95: 13 | P95: 43.33333333
A96: MATINA | B96: 76 | C96: 39 | D96: 51.31578947 | E96: 37 | F96: 48.68421053 | G96: 38 | H96: 21 | I96: 55.26315789 | J96: 17 | K96: 44.73684211 | L96: 38 | M96: 18 | N96: 47.36842105 | O96: 20 | P96: 52.63157895
A97: GUÁCIMO | B97: 99 | C97: 49 | D97: 49.49494949 | E97: =+J97+O97 -> 50 | F97: 50.50505051 | G97: 54 | H97: 28 | I97: 51.85185185 | J97: 26 | K97: 48.14814815 | L97: 45 | M97: 21 | N97: 46.66666667 | O97: 24 | P97: 53.33333333
A100: Nota: Datos al 26 de enero de 2016.
A101: Fuente: Departamento de Registro de Partidos Políticos, Base de datos de candidaturas febrero 2016.

Sheet 25
A1: CUADRO 25. COSTA RICA: CANDIDATURAS A SÍNDICOS(AS) EN PROPIEDAD Y SUPLENCIA POR SEXO, SEGÚN PARTIDO
A2: ELECCIONES MUNICIPALES 7 DE FEBRERO 2016
A3: (CIFRAS ABSOLUTAS Y RELATIVAS)
A5: PARTIDO | B5: SÍNDICOS(AS) | G5: EN PROPIEDAD | L5: EN SUPLENCIA
A6: PARTIDO POLITICO | B6: TOTAL | C6: HOMBRES | E6: MUJERES | G6: TOTAL | H6: HOMBRES | J6: MUJERES | L6: TOTAL | M6: HOMBRES | O6: MUJERES
B7: ABS | C7: ABS | D7: % | E7: ABS | F7: % | G7: ABS | H7: ABS | I7: % | J7: ABS | K7: % | L7: ABS | M7: ABS | N7: % | O7: ABS | P7: %
A9: TOTAL | B9: =SUM(B11:B69) -> 6085 | C9: =SUM(C11:C69) -> 3063 | D9: =C9/B9*100 -> 50.336894 | E9: =SUM(E11:E69) -> 3022 | F9: =E9/B9*100 -> 49.663106 | G9: =SUM(G11:G69) -> 3169 | H9: =SUM(H11:H69) -> 2027 | I9: =H9/G9*100 -> 63.96339539 | J9: =SUM(J11:J69) -> 1142 | K9: =J9/G9*100 -> 36.03660461 | L9: =SUM(L11:L69) -> 2916 | M9: =SUM(M11:M69) -> 1036 | N9: =M9/L9*100 -> 35.52812071 | O9: =SUM(O11:O69) -> 1880 | P9: =O9/L9*100 -> 64.47187929
A11: ACCESIBILIDAD SIN EXCLUSIÓN | B11: =+C11+E11 -> 172 | C11: =+H11+M11 -> 86 | D11: =C11/B11*100 -> 50 | E11: =+J11+O11 -> 86 | F11: =E11/B11*100 -> 50 | G11: =+H11+J11 -> 89 | H11: 55 | I11: =H11/G11*100 -> 61.79775281 | J11: 34 | K11: =J11/G11*100 -> 38.20224719 | L11: =+M11+O11 -> 83 | M11: 31 | N11: =M11/L11*100 -> 37.34939759 | O11: 52 | P11: =O11/L11*100 -> 62.65060241
A12: ACCIÓN CANTONAL SIQUIRRES INDEPENDIENTE | B12: 12 | C12: 6 | D12: 50 | E12: 6 | F12: 50 | G12: 6 | H12: 3 | I12: 50 | J12: 3 | K12: 50 | L12: 6 | M12: 3 | N12: =M12/L12*100 -> 50 | O12: 3 | P12: 50
A13: ACCIÓN CIUDADANA | B13: 802 | C13: 402 | D13: 50.12468828 | E13: 400 | F13: 49.87531172 | G13: 410 | H13: 250 | I13: 60.97560976 | J13: 160 | K13: 39.02439024 | L13: 392 | M13: 152 | N13: 38.7755102 | O13: 240 | P13: 61.2244898
A14: ACUERDO DE ALIANZA DE QUEPOS | B14: 6 | C14: 3 | D14: 50 | E14: 3 | F14: 50 | G14: 3 | H14: 2 | I14: 66.66666667 | J14: 1 | K14: 33.33333333 | L14: 3 | M14: 1 | N14: 33.33333333 | O14: 2 | P14: 66.66666667
A15: ALIANZA CRISTIANA SANTANEÑA | B15: 4 | C15: 2 | D15: 50 | E15: 2 | F15: 50 | G15: 3 | H15: 1 | I15: 33.33333333 | J15: 2 | K15: 66.66666667 | L15: 1 | M15: 1 | N15: 100 | O15: 0 | P15: 0
A16: ALIANZA DEMOCRATA CRISTIANA | B16: 73 | C16: 38 | D16: 52.05479452 | E16: 35 | F16: 47.94520548 | G16: 38 | H16: 21 | I16: 55.26315789 | J16: 17 | K16: 44.73684211 | L16: 35 | M16: 17 | N16: 48.57142857 | O16: 18 | P16: 51.42857143
A17: ALIANZA POR PALMARES | B17: 13 | C17: 7 | D17: 53.84615385 | E17: 6 | F17: 46.15384615 | G17: 7 | H17: 7 | I17: 100 | J17: 0 | K17: 0 | L17: 6 | M17: 0 | N17: 0 | O17: 6 | P17: 100
A18: ALIANZA POR SAN JOSE | B18: 22 | C18: 11 | D18: 50 | E18: 11 | F18: 50 | G18: 11 | H18: 3 | I18: 27.27272727 | J18: 8 | K18: 72.72727273 | L18: 11 | M18: 8 | N18: 72.72727273 | O18: 3 | P18: 27.27272727
A19: ALIANZA SANCARLEÑA | B19: 20 | C19: 10 | D19: 50 | E19: 10 | F19: 50 | G19: 10 | H19: 7 | I19: 70 | J19: 3 | K19: 30 | L19: 10 | M19: 3 | N19: 30 | O19: 7 | P19: 70
A20: ALIANZA SOCIAL POR LA UNION | B20: 12 | C20: 6 | D20: 50 | E20: 6 | F20: 50 | G20: 7 | H20: 4 | I20: 57.14285714 | J20: 3 | K20: 42.85714286 | L20: 5 | M20: 2 | N20: 40 | O20: 3 | P20: 60
A21: AUTENTICO LABRADOR DE CORONADO | B21: 9 | C21: 4 | D21: 44.44444444 | E21: 5 | F21: 55.55555556 | G21: 4 | H21: 2 | I21: 50 | J21: 2 | K21: 50 | L21: 5 | M21: 2 | N21: 40 | O21: 3 | P21: 60
A22: AUTENTICO LIMONENSE | B22: 8 | C22: 4 | D22: 50 | E22: 4 | F22: 50 | G22: 4 | H22: 3 | I22: 75 | J22: 1 | K22: 25 | L22: 4 | M22: 1 | N22: 25 | O22: 3 | P22: 75
A23: AUTENTICO SIQUIRREÑO | B23: 12 | C23: 6 | D23: 50 | E23: 6 | F23: 50 | G23: 6 | H23: 1 | I23: 16.66666667 | J23: 5 | K23: 83.33333333 | L23: 6 | M23: 5 | N23: 83.33333333 | O23: 1 | P23: 16.66666667
A24: AUTÓNOMO OROMONTANO | B24: 6 | C24: 3 | D24: 50 | E24: 3 | F24: 50 | G24: 3 | H24: 3 | I24: 100 | J24: 0 | K24: 0 | L24: 3 | M24: 0 | N24: 0 | O24: 3 | P24: 100
A25: AVANCE MONTES DE OCA | B25: 7 | C25: 3 | D25: 42.85714286 | E25: 4 | F25: 57.14285714 | G25: 4 | H25: 1 | I25: 25 | J25: 3 | K25: 75 | L25: 3 | M25: 2 | N25: 66.66666667 | O25: 1 | P25: 33.33333333
A26: BARVA UNIDA | B26: 5 | C26: 2 | D26: 40 | E26: 3 | F26: 60 | G26: 3 | H26: 1 | I26: 33.33333333 | J26: 2 | K26: 66.66666667 | L26: 2 | M26: 1 | N26: 50 | O26: 1 | P26: 50
A27: COALICION ALIANZA POR BELEN | B27: 6 | C27: 3 | D27: 50 | E27: 3 | F27: 50 | G27: 3 | H27: 2 | I27: 66.66666667 | J27: 1 | K27: 33.33333333 | L27: 3 | M27: 1 | N27: 33.33333333 | O27: 2 | P27: 66.66666667
A28: COALICION GENTE MONTES DE OCA | B28: 8 | C28: 4 | D28: 50 | E28: 4 | F28: 50 | G28: 4 | H28: 2 | I28: 50 | J28: 2 | K28: 50 | L28: 4 | M28: 2 | N28: 50 | O28: 2 | P28: 50
A29: COALICION SOMOS TIBAS | B29: 8 | C29: 4 | D29: 50 | E29: 4 | F29: 50 | G29: 4 | H29: 2 | I29: 50 | J29: 2 | K29: 50 | L29: 4 | M29: 2 | N29: 50 | O29: 2 | P29: 50
A30: COALICION UNIDOS POR GUATUSO | B30: 4 | C30: 2 | D30: 50 | E30: 2 | F30: 50 | G30: 3 | H30: 2 | I30: 66.66666667 | J30: 1 | K30: 33.33333333 | L30: 1 | M30: 0 | N30: 0 | O30: 1 | P30: 100
A31: CURRIDABAT SIGLO XXI | B31: 8 | C31: 4 | D31: 50 | E31: 4 | F31: 50 | G31: 4 | H31: 4 | I31: 100 | J31: 0 | K31: 0 | L31: 4 | M31: 0 | N31: 0 | O31: 4 | P31: 100
A32: DE LOS TRABAJADORES | B32: 8 | C32: 4 | D32: 50 | E32: 4 | F32: 50 | G32: 4 | H32: 3 | I32: 75 | J32: 1 | K32: 25 | L32: 4 | M32: 1 | N32: 25 | O32: 3 | P32: 75
A33: DEL SOL | B33: 12 | C33: 6 | D33: 50 | E33: 6 | F33: 50 | G33: 6 | H33: 3 | I33: 50 | J33: 3 | K33: 50 | L33: 6 | M33: 3 | N33: 50 | O33: 3 | P33: 50
A34: DEMOCRATA | B34: 3 | C34: 2 | D34: 66.66666667 | E34: 1 | F34: 33.33333333 | G34: 3 | H34: 2 | I34: 66.66666667 | J34: 1 | K34: 33.33333333 | L34: 0 | M34: 0 | N34: 0 | O34: 0 | P34: 0
A35: DESAMPARADOS UNIDO | B35: 26 | C35: 13 | D35: 50 | E35: 13 | F35: 50 | G35: 13 | H35: 9 | I35: 69.23076923 | J35: 4 | K35: 30.76923077 | L35: 13 | M35: 4 | N35: 30.76923077 | O35: 9 | P35: 69.23076923
A36: ECOLOGICO COMUNAL COSTARRICENSE | B36: 24 | C36: 11 | D36: 45.83333333 | E36: 13 | F36: 54.16666667 | G36: 12 | H36: 8 | I36: 66.66666667 | J36: 4 | K36: 33.33333333 | L36: 12 | M36: 3 | N36: 25 | O36: 9 | P36: 75
A37: FRENTE AMPLIO | B37: 591 | C37: 290 | D37: 49.06937394 | E37: 301 | F37: 50.93062606 | G37: 306 | H37: 190 | I37: 62.09150327 | J37: 116 | K37: 37.90849673 | L37: 285 | M37: 100 | N37: 35.0877193 | O37: 185 | P37: 64.9122807
A38: FUERZA DEMOCRATICA DESAMPARADEÑA | B38: 19 | C38: 10 | D38: 52.63157895 | E38: 9 | F38: 47.36842105 | G38: 10 | H38: 8 | I38: 80 | J38: 2 | K38: 20 | L38: 9 | M38: 2 | N38: 22.22222222 | O38: 7 | P38: 77.77777778
A39: FUERZAS UNIDAS PARA EL CAMBIO | B39: 20 | C39: 11 | D39: 55 | E39: 9 | F39: 45 | G39: 11 | H39: 7 | I39: 63.63636364 | J39: 4 | K39: 36.36363636 | L39: 9 | M39: 4 | N39: 44.44444444 | O39: 5 | P39: 55.55555556
A40: GARABITO ECOLÓGICO | B40: 4 | C40: 2 | D40: 50 | E40: 2 | F40: 50 | G40: 2 | H40: 1 | I40: 50 | J40: 1 | K40: 50 | L40: 2 | M40: 1 | N40: 50 | O40: 1 | P40: 50
A41: INDEPENDIENTE ESCAZUCEÑO | B41: 6 | C41: 3 | D41: 50 | E41: 3 | F41: 50 | G41: 3 | H41: 0 | I41: 0 | J41: 3 | K41: 100 | L41: 3 | M41: 3 | N41: 100 | O41: 0 | P41: 0
A42: INTEGRACIÓN NACIONAL | B42: 92 | C42: 44 | D42: 47.82608696 | E42: 48 | F42: 52.17391304 | G42: 46 | H42: 29 | I42: 63.04347826 | J42: 17 | K42: 36.95652174 | L42: 46 | M42: 15 | N42: 32.60869565 | O42: 31 | P42: 67.39130435
A43: JUSTICIA GENERALEÑA | B43: =+C43+E43 -> 18 | C43: =+H43+M43 -> 9 | D43: =C43/B43*100 -> 50 | E43: =+J43+O43 -> 9 | F43: =E43/B43*100 -> 50 | G43: =+H43+J43 -> 9 | H43: 7 | I43: =H43/G43*100 -> 77.77777778 | J43: 2 | K43: =J43/G43*100 -> 22.22222222 | L43: =+M43+O43 -> 9 | M43: 2 | N43: =M43/L43*100 -> 22.22222222 | O43: 7 | P43: =O43/L43*100 -> 77.77777778
A44: LIBERACIÓN NACIONAL | B44: 951 | C44: 475 | D44: 49.94742376 | E44: 476 | F44: 50.05257624 | G44: 477 | H44: 293 | I44: 61.42557652 | J44: 184 | K44: 38.57442348 | L44: 474 | M44: 182 | N44: 38.39662447 | O44: 292 | P44: 61.60337553
A45: LIGA RAMONENSE | B45: 19 | C45: 10 | D45: 52.63157895 | E45: 9 | F45: 47.36842105 | G45: 10 | H45: 10 | I45: 100 | J45: 0 | K45: 0 | L45: 9 | M45: 0 | N45: 0 | O45: 9 | P45: 100
A46: LIMON INDEPENDIENTE | B46: 8 | C46: 4 | D46: 50 | E46: 4 | F46: 50 | G46: 4 | H46: 3 | I46: 75 | J46: 1 | K46: 25 | L46: 4 | M46: 1 | N46: 25 | O46: 3 | P46: 75
A47: MOVIMIENTO AVANCE SANTO DOMINGO | B47: 15 | C47: 8 | D47: 53.33333333 | E47: 7 | F47: 46.66666667 | G47: 8 | H47: 6 | I47: 75 | J47: 2 | K47: 25 | L47: 7 | M47: 2 | N47: 28.57142857 | O47: 5 | P47: 71.42857143
A48: MOVIMIENTO LIBERTARIO | B48: 490 | C48: 256 | D48: 52.24489796 | E48: 234 | F48: 47.75510204 | G48: 279 | H48: 187 | I48: 67.02508961 | J48: 92 | K48: 32.97491039 | L48: 211 | M48: 69 | N48: 32.7014218 | O48: 142 | P48: 67.2985782
A49: NUEVA GENERACION | B49: 348 | C49: 172 | D49: 49.42528736 | E49: 176 | F49: 50.57471264 | G49: 189 | H49: 108 | I49: 57.14285714 | J49: 81 | K49: 42.85714286 | L49: 159 | M49: 64 | N49: 40.25157233 | O49: 95 | P49: 59.74842767
A50: NUEVA MAYORIA GRIEGA | B50: 15 | C50: 7 | D50: 46.66666667 | E50: 8 | F50: 53.33333333 | G50: 8 | H50: 6 | I50: 75 | J50: 2 | K50: 25 | L50: 7 | M50: 1 | N50: 14.28571429 | O50: 6 | P50: 85.71428571
A51: PARRITA INDEPENDIENTE | B51: 2 | C51: 1 | D51: 50 | E51: 1 | F51: 50 | G51: 1 | H51: 1 | I51: 100 | J51: 0 | K51: 0 | L51: 1 | M51: 0 | N51: 0 | O51: 1 | P51: 100
A52: PROGRESO COMUNAL DESAMPARADEÑO | B52: 2 | C52: 1 | D52: 50 | E52: 1 | F52: 50 | G52: 1 | H52: 1 | I52: 100 | J52: 0 | K52: 0 | L52: 1 | M52: 0 | N52: 0 | O52: 1 | P52: 100
A53: PUEBLO GARABITO | B53: 4 | C53: 2 | D53: 50 | E53: 2 | F53: 50 | G53: 2 | H53: 1 | I53: 50 | J53: 1 | K53: 50 | L53: 2 | M53: 1 | N53: 50 | O53: 1 | P53: 50
A54: PURISCALEÑOS DE CORAZON | B54: 14 | C54: 9 | D54: 64.28571429 | E54: 5 | F54: 35.71428571 | G54: 8 | H54: 5 | I54: 62.5 | J54: 3 | K54: 37.5 | L54: 6 | M54: 4 | N54: 66.66666667 | O54: 2 | P54: 33.33333333
A55: RECUPERANDO VALORES | B55: 31 | C55: 16 | D55: 51.61290323 | E55: 15 | F55: 48.38709677 | G55: 16 | H55: 6 | I55: 37.5 | J55: 10 | K55: 62.5 | L55: 15 | M55: 10 | N55: 66.66666667 | O55: 5 | P55: 33.33333333
A56: RENOVACION CARTAGO | B56: 18 | C56: 8 | D56: 44.44444444 | E56: 10 | F56: 55.55555556 | G56: 11 | H56: 7 | I56: 63.63636364 | J56: 4 | K56: 36.36363636 | L56: 7 | M56: 1 | N56: 14.28571429 | O56: 6 | P56: 85.71428571
A57: RENOVACIÓN COSTARRICENSE | B57: 318 | C57: 159 | D57: 50 | E57: 159 | F57: 50 | G57: 172 | H57: 110 | I57: 63.95348837 | J57: 62 | K57: 36.04651163 | L57: 146 | M57: 49 | N57: 33.56164384 | O57: 97 | P57: 66.43835616
A58: RENOVEMOS ALAJUELA | B58: 27 | C58: 13 | D58: 48.14814815 | E58: 14 | F58: 51.85185185 | G58: 14 | H58: 9 | I58: 64.28571429 | J58: 5 | K58: 35.71428571 | L58: 13 | M58: 4 | N58: 30.76923077 | O58: 9 | P58: 69.23076923
A59: REPUBLICANO SOCIAL CRISTIANO | B59: 621 | C59: 324 | D59: 52.17391304 | E59: 297 | F59: 47.82608696 | G59: 327 | H59: 236 | I59: 72.17125382 | J59: 91 | K59: 27.82874618 | L59: 294 | M59: 88 | N59: 29.93197279 | O59: 206 | P59: 70.06802721
A60: RESCATE CANTONAL LA UNION | B60: 16 | C60: 8 | D60: 50 | E60: 8 | F60: 50 | G60: 8 | H60: 5 | I60: 62.5 | J60: 3 | K60: 37.5 | L60: 8 | M60: 3 | N60: 37.5 | O60: 5 | P60: 62.5
A61: RESTAURACIÓN NACIONAL | B61: 106 | C61: 55 | D61: 51.88679245 | E61: 51 | F61: 48.11320755 | G61: 55 | H61: 33 | I61: 60 | J61: 22 | K61: 40 | L61: 51 | M61: 22 | N61: 43.1372549 | O61: 29 | P61: 56.8627451
A62: RESTAURACION PARRITEÑA | B62: 2 | C62: 1 | D62: 50 | E62: 1 | F62: 50 | G62: 1 | H62: 0 | I62: 0 | J62: 1 | K62: 100 | L62: 1 | M62: 1 | N62: 100 | O62: 0 | P62: 0
A63: SOLIDARIDAD | B63: 21 | C63: 10 | D63: 47.61904762 | E63: 11 | F63: 52.38095238 | G63: 11 | H63: 7 | I63: 63.63636364 | J63: 4 | K63: 36.36363636 | L63: 10 | M63: 3 | N63: 30 | O63: 7 | P63: 70
A64: TODO POR FLORES | B64: 6 | C64: 3 | D64: 50 | E64: 3 | F64: 50 | G64: 3 | H64: 3 | I64: 100 | J64: 0 | K64: 0 | L64: 3 | M64: 0 | N64: 0 | O64: 3 | P64: 100
A65: UNIDAD SOCIAL CRISTIANA | B65: 908 | C65: 454 | D65: 50 | E65: 454 | F65: 50 | G65: 457 | H65: 309 | I65: 67.61487965 | J65: 148 | K65: 32.38512035 | L65: 451 | M65: 145 | N65: 32.15077605 | O65: 306 | P65: 67.84922395
A66: UNION GUARQUEÑO | B66: 8 | C66: 4 | D66: 50 | E66: 4 | F66: 50 | G66: 4 | H66: 4 | I66: 100 | J66: 0 | K66: 0 | L66: 4 | M66: 0 | N66: 0 | O66: 4 | P66: 100
A67: VERDE | B67: 28 | C67: 13 | D67: 46.42857143 | E67: 15 | F67: 53.57142857 | G67: 16 | H67: 11 | I67: 68.75 | J67: 5 | K67: 31.25 | L67: 12 | M67: 2 | N67: 16.66666667 | O67: 10 | P67: 83.33333333
A68: VIVA PUNTARENAS | B68: 62 | C68: 33 | D68: 53.22580645 | E68: 29 | F68: 46.77419355 | G68: 34 | H68: 22 | I68: 64.70588235 | J68: 12 | K68: 35.29411765 | L68: 28 | M68: 11 | N68: 39.28571429 | O68: 17 | P68: 60.71428571
A69: YUNTA PROGRESISTA ESCAZUCEÑA | B69: 5 | C69: 2 | D69: 40 | E69: 3 | F69: 60 | G69: 2 | H69: 1 | I69: 50 | J69: 1 | K69: 50 | L69: 3 | M69: 1 | N69: 33.33333333 | O69: 2 | P69: 66.66666667
A72: Nota: Datos al 26 de enero de 2016.
A73: Fuente: Departamento de Registro de Partidos Políticos, Base de datos de candidaturas febrero 2016

Sheet 26
A1: CUADRO 26. COSTA RICA: CANDIDATURAS A SÍNDICOS(AS) EN PROPIEDAD Y SUPLENCIA POR SEXO, SEGÚN PROVINCIA Y CANTÓN
A2: ELECCIONES MUNICIPALES 7 DE FEBRERO 2016
A3: (CIFRAS ABSOLUTAS Y RELATIVAS)
A5: PROVINCIA Y CANTÓN | B5: SÍNDICOS(AS) | G5: EN PROPIEDAD | L5: EN SUPLENCIA
B6: TOTAL | C6: HOMBRES | E6: MUJERES | G6: TOTAL | H6: HOMBRES | J6: MUJERES | L6: TOTAL | M6: HOMBRES | O6: MUJERES
C7: ABS | D7: % | E7: ABS | F7: % | H7: ABS | I7: % | J7: ABS | K7: % | M7: ABS | N7: % | O7: ABS | P7: %
A9: COSTA RICA | B9: =G9+L9 -> 6085 | C9: =H9+M9 -> 3063 | D9: =C9/$B9*100 -> 50.336894 | E9: =J9+O9 -> 3022 | F9: =E9/$B9*100 -> 49.663106 | G9: =+G10+G31+G47+G56+G67+G79+G91 -> 3169 | H9: =+H10+H31+H47+H56+H67+H79+H91 -> 2027 | I9: =H9/$G9*100 -> 63.96339539 | J9: =+J10+J31+J47+J56+J67+J79+J91 -> 1142 | K9: =J9/$G9*100 -> 36.03660461 | L9: =+L10+L31+L47+L56+L67+L79+L91 -> 2916 | M9: =+M10+M31+M47+M56+M67+M79+M91 -> 1036 | N9: =M9/$L9*100 -> 35.52812071 | O9: =+O10+O31+O47+O56+O67+O79+O91 -> 1880 | P9: =O9/$L9*100 -> 64.47187929 | S9: Cargo
A10: PROVINCIA SAN JOSÉ | B10: =+G10+L10 -> 1630 | C10: 827 | D10: 50.73619632 | E10: =+J10+O10 -> 803 | F10: 49.26380368 | G10: =SUM(G11:G30) -> 857 | H10: =SUM(H11:H30) -> 521 | I10: 60.79346558 | J10: =SUM(J11:J30) -> 336 | K10: 39.20653442 | L10: =SUM(L11:L30) -> 773 | M10: =SUM(M11:M30) -> 306 | N10: 39.58602846 | O10: =SUM(O11:O30) -> 467 | P10: 60.41397154 | S10: Sexo | U10: Total
A11: SAN JOSÉ | B11: =+G11+L11 -> 237 | C11: =+H11+M11 -> 119 | D11: 50.21097046 | E11: =+J11+O11 -> 118 | F11: 49.78902954 | G11: =+H11+J11 -> 124 | H11: 69 | I11: 55.64516129 | J11: 55 | K11: 44.35483871 | L11: =+M11+O11 -> 113 | M11: 50 | N11: 44.24778761 | O11: 63 | P11: 55.75221239 | S11: HOMBRE | T11: MUJER
A12: ESCAZÚ | B12: 60 | C12: 31 | D12: 51.66666667 | E12: =+J12+O12 -> 29 | F12: 48.33333333 | G12: 31 | H12: 17 | I12: 54.83870968 | J12: 14 | K12: 45.16129032 | L12: 29 | M12: 14 | N12: 48.27586207 | O12: 15 | P12: 51.72413793
A13: DESAMPARADOS | B13: 264 | C13: 132 | D13: 50 | E13: 132 | F13: 50 | G13: 136 | H13: 89 | I13: 65.44117647 | J13: 47 | K13: 34.55882353 | L13: 128 | M13: 43 | N13: 33.59375 | O13: 85 | P13: 66.40625
A14: PURISCAL | B14: 81 | C14: 46 | D14: 56.79012346 | E14: 35 | F14: 43.20987654 | G14: 45 | H14: 31 | I14: 68.88888889 | J14: 14 | K14: 31.11111111 | L14: 36 | M14: 15 | N14: 41.66666667 | O14: 21 | P14: 58.33333333
A15: TARRAZÚ | B15: 31 | C15: 16 | D15: 51.61290323 | E15: 15 | F15: 48.38709677 | G15: 16 | H15: 15 | I15: 93.75 | J15: 1 | K15: 6.25 | L15: 15 | M15: 1 | N15: 6.666666667 | O15: 14 | P15: 93.33333333
A16: ASERRÍ | B16: 63 | C16: 32 | D16: 50.79365079 | E16: 31 | F16: 49.20634921 | G16: 35 | H16: 23 | I16: 65.71428571 | J16: 12 | K16: 34.28571429 | L16: 28 | M16: 9 | N16: 32.14285714 | O16: 19 | P16: 67.85714286
A17: MORA | B17: 58 | C17: 31 | D17: 53.44827586 | E17: 27 | F17: 46.55172414 | G17: 31 | H17: 19 | I17: 61.29032258 | J17: 12 | K17: 38.70967742 | L17: 27 | M17: 12 | N17: 44.44444444 | O17: 15 | P17: 55.55555556
A18: GOICOECHEA | B18: 95 | C18: 47 | D18: 49.47368421 | E18: 48 | F18: 50.52631579 | G18: 49 | H18: 22 | I18: 44.89795918 | J18: 27 | K18: 55.10204082 | L18: 46 | M18: 25 | N18: 54.34782609 | O18: 21 | P18: 45.65217391
A19: SANTA ANA | B19: 85 | C19: 43 | D19: 50.58823529 | E19: 42 | F19: 49.41176471 | G19: 43 | H19: 23 | I19: 53.48837209 | J19: 20 | K19: 46.51162791 | L19: 42 | M19: 20 | N19: 47.61904762 | O19: 22 | P19: 52.38095238
A20: ALAJUELITA | B20: 71 | C20: 37 | D20: 52.11267606 | E20: 34 | F20: 47.88732394 | G20: 38 | H20: 20 | I20: 52.63157895 | J20: 18 | K20: 47.36842105 | L20: 33 | M20: 17 | N20: 51.51515152 | O20: 16 | P20: 48.48484848
A21: VÁZQUEZ DE CORONADO | B21: 61 | C21: 32 | D21: 52.45901639 | E21: 29 | F21: 47.54098361 | G21: 35 | H21: 20 | I21: 57.14285714 | J21: 15 | K21: 42.85714286 | L21: 26 | M21: 12 | N21: 46.15384615 | O21: 14 | P21: 53.84615385
A22: ACOSTA | B22: 30 | C22: 15 | D22: 50 | E22: 15 | F22: 50 | G22: 15 | H22: 9 | I22: 60 | J22: 6 | K22: 40 | L22: 15 | M22: 6 | N22: 40 | O22: 9 | P22: 60
A23: TIBÁS | B23: 66 | C23: 31 | D23: 46.96969697 | E23: 35 | F23: 53.03030303 | G23: 33 | H23: 17 | I23: 51.51515152 | J23: 16 | K23: 48.48484848 | L23: 33 | M23: 14 | N23: 42.42424242 | O23: 19 | P23: 57.57575758
A24: MORAVIA | B24: 43 | C24: =+H24+M24 -> 21 | D24: 48.8372093 | E24: =+J24+O24 -> 22 | F24: 51.1627907 | G24: 22 | H24: 10 | I24: 45.45454545 | J24: 12 | K24: 54.54545455 | L24: 21 | M24: 11 | N24: 52.38095238 | O24: 10 | P24: 47.61904762
A25: MONTES DE OCA | B25: 49 | C25: 24 | D25: 48.97959184 | E25: 25 | F25: 51.02040816 | G25: 26 | H25: 11 | I25: 42.30769231 | J25: 15 | K25: 57.69230769 | L25: 23 | M25: 13 | N25: 56.52173913 | O25: 10 | P25: 43.47826087
A26: TURRUBARES | B26: 40 | C26: 20 | D26: 50 | E26: 20 | F26: 50 | G26: 23 | H26: 12 | I26: 52.17391304 | J26: 11 | K26: 47.82608696 | L26: 17 | M26: 8 | N26: 47.05882353 | O26: 9 | P26: 52.94117647
A27: DOTA | B27: 27 | C27: 13 | D27: 48.14814815 | E27: 14 | F27: 51.85185185 | G27: 13 | H27: 5 | I27: 38.46153846 | J27: 8 | K27: 61.53846154 | L27: 14 | M27: 8 | N27: 57.14285714 | O27: 6 | P27: 42.85714286
A28: CURRIDABAT | B28: 56 | C28: 28 | D28: 50 | E28: 28 | F28: 50 | G28: 31 | H28: 19 | I28: 61.29032258 | J28: 12 | K28: 38.70967742 | L28: 25 | M28: 9 | N28: 36 | O28: 16 | P28: 64
A29: PÉREZ ZELEDÓN | B29: 190 | C29: 97 | D29: 51.05263158 | E29: 93 | F29: 48.94736842 | G29: 99 | H29: 83 | I29: 83.83838384 | J29: 16 | K29: 16.16161616 | L29: 91 | M29: 14 | N29: 15.38461538 | O29: 77 | P29: 84.61538462
A30: LEÓN CORTÉS | B30: 23 | C30: =+H30+M30 -> 12 | D30: 52.17391304 | E30: 11 | F30: 47.82608696 | G30: 12 | H30: 7 | I30: 58.33333333 | J30: 5 | K30: 41.66666667 | L30: 11 | M30: 5 | N30: 45.45454545 | O30: 6 | P30: 54.54545455
A31: PROVINCIA ALAJUELA | B31: 1399 | C31: 699 | D31: 49.96426019 | E31: 700 | F31: 50.03573981 | G31: 720 | H31: =SUM(H32:H46) -> 482 | I31: 66.94444444 | J31: =SUM(J32:J46) -> 238 | K31: 33.05555556 | L31: 679 | M31: =SUM(M32:M46) -> 217 | N31: 31.95876289 | O31: =SUM(O32:O46) -> 462 | P31: 68.04123711
A32: ALAJUELA | B32: 241 | C32: =+H32+M32 -> 122 | D32: 50.62240664 | E32: 119 | F32: 49.37759336 | G32: 122 | H32: 81 | I32: 66.39344262 | J32: 41 | K32: 33.60655738 | L32: 119 | M32: 41 | N32: 34.45378151 | O32: 78 | P32: 65.54621849
A33: SAN RAMÓN | B33: 186 | C33: 93 | D33: 50 | E33: 93 | F33: 50 | G33: 95 | H33: 71 | I33: 74.73684211 | J33: 24 | K33: 25.26315789 | L33: 91 | M33: 22 | N33: 24.17582418 | O33: 69 | P33: 75.82417582
A34: GRECIA | B34: 121 | C34: 60 | D34: 49.58677686 | E34: 61 | F34: 50.41322314 | G34: 61 | H34: 37 | I34: 60.6557377 | J34: 24 | K34: 39.3442623 | L34: 60 | M34: 23 | N34: 38.33333333 | O34: 37 | P34: 61.66666667
A35: SAN MATEO | B35: 44 | C35: 22 | D35: 50 | E35: 22 | F35: 50 | G35: 23 | H35: 16 | I35: 69.56521739 | J35: 7 | K35: 30.43478261 | L35: 21 | M35: 6 | N35: 28.57142857 | O35: 15 | P35: 71.42857143
A36: ATENAS | B36: 81 | C36: 41 | D36: 50.61728395 | E36: 40 | F36: 49.38271605 | G36: 42 | H36: 29 | I36: 69.04761905 | J36: 13 | K36: 30.95238095 | L36: 39 | M36: 12 | N36: 30.76923077 | O36: 27 | P36: 69.23076923
A37: NARANJO | B37: 127 | C37: 65 | D37: 51.18110236 | E37: 62 | F37: 48.81889764 | G37: 65 | H37: 47 | I37: 72.30769231 | J37: 18 | K37: 27.69230769 | L37: 62 | M37: 18 | N37: 29.03225806 | O37: 44 | P37: 70.96774194
A38: PALMARES | B38: 110 | C38: 55 | D38: 50 | E38: 55 | F38: 50 | G38: 57 | H38: 39 | I38: 68.42105263 | J38: 18 | K38: 31.57894737 | L38: 53 | M38: 16 | N38: 30.18867925 | O38: 37 | P38: 69.81132075
A39: POÁS | B39: 54 | C39: 27 | D39: 50 | E39: 27 | F39: 50 | G39: 28 | H39: 16 | I39: 57.14285714 | J39: 12 | K39: 42.85714286 | L39: 26 | M39: 11 | N39: 42.30769231 | O39: 15 | P39: 57.69230769
A40: OROTINA | B40: 40 | C40: 20 | D40: 50 | E40: 20 | F40: 50 | G40: 22 | H40: 14 | I40: 63.63636364 | J40: 8 | K40: 36.36363636 | L40: 18 | M40: 6 | N40: 33.33333333 | O40: 12 | P40: 66.66666667
A41: SAN CARLOS | B41: 173 | C41: 87 | D41: 50.28901734 | E41: 86 | F41: 49.71098266 | G41: 89 | H41: 54 | I41: 60.6741573 | J41: 35 | K41: 39.3258427 | L41: 84 | M41: 33 | N41: 39.28571429 | O41: 51 | P41: 60.71428571
A42: ALFARO RUIZ | B42: =+G42+L42 -> 42 | C42: 21 | D42: 50 | E42: 21 | F42: 50 | G42: 23 | H42: 15 | I42: 65.2173913 | J42: 8 | K42: 34.7826087 | L42: 19 | M42: 6 | N42: 31.57894737 | O42: 13 | P42: 68.42105263
A43: VALVERDE VEGA | B43: 37 | C43: 18 | D43: 48.64864865 | E43: 19 | F43: 51.35135135 | G43: 18 | H43: 13 | I43: 72.22222222 | J43: 5 | K43: 27.77777778 | L43: 19 | M43: 5 | N43: 26.31578947 | O43: 14 | P43: 73.68421053
A44: UPALA | B44: 60 | C44: 27 | D44: 45 | E44: 33 | F44: 55 | G44: 29 | H44: 19 | I44: 65.51724138 | J44: 10 | K44: 34.48275862 | L44: 31 | M44: 8 | N44: 25.80645161 | O44: 23 | P44: 74.19354839
A45: LOS CHILES | B45: 44 | C45: 21 | D45: 47.72727273 | E45: 23 | F45: 52.27272727 | G45: 24 | H45: 16 | I45: 66.66666667 | J45: 8 | K45: 33.33333333 | L45: 20 | M45: 5 | N45: 25 | O45: 15 | P45: 75
A46: GUATUSO | B46: 39 | C46: 20 | D46: 51.28205128 | E46: 19 | F46: 48.71794872 | G46: 22 | H46: 15 | I46: 68.18181818 | J46: 7 | K46: 31.81818182 | L46: 17 | M46: 5 | N46: 29.41176471 | O46: 12 | P46: 70.58823529
A47: PROVINCIA CARTAGO | B47: 741 | C47: 376 | D47: 50.74224022 | E47: 365 | F47: 49.25775978 | G47: 385 | H47: =SUM(H48:H55) -> 244 | I47: 63.37662338 | J47: =SUM(J48:J55) -> 141 | K47: 36.62337662 | L47: 356 | M47: =SUM(M48:M55) -> 132 | N47: 37.07865169 | O47: =SUM(O48:O55) -> 224 | P47: 62.92134831
A48: CARTAGO | B48: 187 | C48: 94 | D48: 50.26737968 | E48: 93 | F48: 49.73262032 | G48: 99 | H48: 64 | I48: 64.64646465 | J48: 35 | K48: 35.35353535 | L48: 88 | M48: 30 | N48: 34.09090909 | O48: 58 | P48: 65.90909091
A49: PARAÍSO | B49: 95 | C49: 50 | D49: 52.63157895 | E49: 45 | F49: 47.36842105 | G49: 49 | H49: 38 | I49: 77.55102041 | J49: 11 | K49: 22.44897959 | L49: 46 | M49: 12 | N49: 26.08695652 | O49: 34 | P49: 73.91304348
A50: LA UNIÓN | B50: 165 | C50: 84 | D50: 50.90909091 | E50: 81 | F50: 49.09090909 | G50: 88 | H50: 43 | I50: 48.86363636 | J50: 45 | K50: 51.13636364 | L50: 77 | M50: 41 | N50: 53.24675325 | O50: 36 | P50: 46.75324675
A51: JIMÉNEZ | B51: 29 | C51: 15 | D51: 51.72413793 | E51: 14 | F51: 48.27586207 | G51: 13 | H51: 9 | I51: 69.23076923 | J51: 4 | K51: 30.76923077 | L51: 16 | M51: 6 | N51: 37.5 | O51: 10 | P51: 62.5
A52: TURRIALBA | B52: 119 | C52: 59 | D52: 49.57983193 | E52: 60 | F52: 50.42016807 | G52: 61 | H52: 43 | I52: 70.49180328 | J52: 18 | K52: 29.50819672 | L52: 58 | M52: 16 | N52: 27.5862069 | O52: 42 | P52: 72.4137931
A53: ALVARADO | B53: 34 | C53: 18 | D53: 52.94117647 | E53: 16 | F53: 47.05882353 | G53: 16 | H53: 12 | I53: 75 | J53: 4 | K53: 25 | L53: 18 | M53: 6 | N53: 33.33333333 | O53: 12 | P53: 66.66666667
A54: OREAMUNO | B54: 59 | C54: 30 | D54: 50.84745763 | E54: 29 | F54: 49.15254237 | G54: 31 | H54: 18 | I54: 58.06451613 | J54: 13 | K54: 41.93548387 | L54: 28 | M54: 12 | N54: 42.85714286 | O54: 16 | P54: 57.14285714
A55: EL GUARCO | B55: 53 | C55: 26 | D55: 49.05660377 | E55: 27 | F55: 50.94339623 | G55: 28 | H55: 17 | I55: 60.71428571 | J55: 11 | K55: 39.28571429 | L55: 25 | M55: 9 | N55: 36 | O55: 16 | P55: 64
A56: PROVINCIA HEREDIA | B56: 523 | C56: 261 | D56: 49.90439771 | E56: 262 | F56: 50.09560229 | G56: 276 | H56: =SUM(H57:H66) -> 171 | I56: 61.95652174 | J56: =SUM(J57:J66) -> 105 | K56: 38.04347826 | L56: =+M56+O56 -> 247 | M56: =SUM(M57:M66) -> 90 | N56: 36.43724696 | O56: =SUM(O57:O66) -> 157 | P56: 63.56275304
A57: HEREDIA | B57: 63 | C57: 31 | D57: 49.20634921 | E57: 32 | F57: 50.79365079 | G57: 33 | H57: 20 | I57: 60.60606061 | J57: 13 | K57: 39.39393939 | L57: =+M57+O57 -> 30 | M57: 11 | N57: 36.66666667 | O57: 19 | P57: 63.33333333
A58: BARVA | B58: 80 | C58: 39 | D58: 48.75 | E58: 41 | F58: 51.25 | G58: 42 | H58: 22 | I58: 52.38095238 | J58: 20 | K58: 47.61904762 | L58: 38 | M58: 17 | N58: 44.73684211 | O58: 21 | P58: 55.26315789
A59: SANTO DOMINGO | B59: 81 | C59: 40 | D59: 49.38271605 | E59: 41 | F59: 50.61728395 | G59: 43 | H59: 25 | I59: 58.13953488 | J59: 18 | K59: 41.86046512 | L59: 38 | M59: 15 | N59: 39.47368421 | O59: 23 | P59: 60.52631579
A60: SANTA BÁRBARA | B60: 67 | C60: 34 | D60: 50.74626866 | E60: 33 | F60: 49.25373134 | G60: 35 | H60: 23 | I60: 65.71428571 | J60: 12 | K60: 34.28571429 | L60: 32 | M60: 11 | N60: 34.375 | O60: 21 | P60: 65.625
A61: SAN RAFAEL | B61: 55 | C61: 27 | D61: 49.09090909 | E61: 28 | F61: 50.90909091 | G61: 28 | H61: 16 | I61: 57.14285714 | J61: 12 | K61: 42.85714286 | L61: 27 | M61: 11 | N61: 40.74074074 | O61: 16 | P61: 59.25925926
A62: SAN ISIDRO | B62: 36 | C62: 19 | D62: 52.77777778 | E62: 17 | F62: 47.22222222 | G62: 20 | H62: 15 | I62: 75 | J62: 5 | K62: 25 | L62: 16 | M62: 4 | N62: 25 | O62: 12 | P62: 75
A63: BELÉN | B63: 26 | C63: 12 | D63: 46.15384615 | E63: 14 | F63: 53.84615385 | G63: 15 | H63: 5 | I63: 33.33333333 | J63: 10 | K63: 66.66666667 | L63: 11 | M63: 7 | N63: 63.63636364 | O63: 4 | P63: 36.36363636
A64: FLORES | B64: 36 | C64: 18 | D64: 50 | E64: 18 | F64: 50 | G64: 18 | H64: 13 | I64: 72.22222222 | J64: 5 | K64: 27.77777778 | L64: 18 | M64: 5 | N64: 27.77777778 | O64: 13 | P64: 72.22222222
A65: SAN PABLO | B65: 20 | C65: 11 | D65: 55 | E65: 9 | F65: 45 | G65: 11 | H65: 9 | I65: 81.81818182 | J65: 2 | K65: 18.18181818 | L65: 9 | M65: 2 | N65: 22.22222222 | O65: 7 | P65: 77.77777778
A66: SARAPIQUÍ | B66: 59 | C66: 30 | D66: 50.84745763 | E66: 29 | F66: 49.15254237 | G66: 31 | H66: 23 | I66: 74.19354839 | J66: 8 | K66: 25.80645161 | L66: 28 | M66: 7 | N66: 25 | O66: 21 | P66: 75
A67: PROVINCIA GUANACASTE | B67: 596 | C67: 296 | D67: 49.66442953 | E67: 300 | F67: 50.33557047 | G67: 314 | H67: =SUM(H68:H78) -> 200 | I67: 63.69426752 | J67: =SUM(J68:J78) -> 114 | K67: 36.30573248 | L67: =+M67+O67 -> 282 | M67: =SUM(M68:M78) -> 96 | N67: 34.04255319 | O67: =SUM(O68:O78) -> 186 | P67: 65.95744681
A68: LIBERIA | B68: 56 | C68: 26 | D68: 46.42857143 | E68: 30 | F68: 53.57142857 | G68: 30 | H68: 17 | I68: 56.66666667 | J68: 13 | K68: 43.33333333 | L68: =+M68+O68 -> 26 | M68: 9 | N68: 34.61538462 | O68: 17 | P68: 65.38461538
A69: NICOYA | B69: 61 | C69: 31 | D69: 50.81967213 | E69: 30 | F69: 49.18032787 | G69: 32 | H69: 24 | I69: 75 | J69: 8 | K69: 25 | L69: 29 | M69: 7 | N69: 24.13793103 | O69: 22 | P69: 75.86206897
A70: SANTA CRUZ | B70: 113 | C70: 56 | D70: 49.55752212 | E70: 57 | F70: 50.44247788 | G70: 66 | H70: 42 | I70: 63.63636364 | J70: 24 | K70: 36.36363636 | L70: 47 | M70: 14 | N70: 29.78723404 | O70: 33 | P70: 70.21276596
A71: BAGACES | B71: 45 | C71: 22 | D71: 48.88888889 | E71: 23 | F71: 51.11111111 | G71: 23 | H71: 13 | I71: 56.52173913 | J71: 10 | K71: 43.47826087 | L71: 22 | M71: 9 | N71: 40.90909091 | O71: 13 | P71: 59.09090909
A72: CARRILLO | B72: 44 | C72: 21 | D72: 47.72727273 | E72: 23 | F72: 52.27272727 | G72: 24 | H72: 15 | I72: 62.5 | J72: 9 | K72: 37.5 | L72: 20 | M72: 6 | N72: 30 | O72: 14 | P72: 70
A73: CAÑAS | B73: 37 | C73: 18 | D73: =C73/$B73*100 -> 48.64864865 | E73: 19 | F73: =E73/$B73*100 -> 51.35135135 | G73: 19 | H73: 11 | I73: =H73/$G73*100 -> 57.89473684 | J73: 8 | K73: =J73/$G73*100 -> 42.10526316 | L73: 18 | M73: 7 | N73: =M73/$L73*100 -> 38.88888889 | O73: 11 | P73: =O73/$L73*100 -> 61.11111111
A74: ABANGARES | B74: =+G74+L74 -> 48 | C74: 24 | D74: 50 | E74: 24 | F74: 50 | G74: 23 | H74: 14 | I74: 60.86956522 | J74: 9 | K74: 39.13043478 | L74: 25 | M74: 10 | N74: 40 | O74: 15 | P74: 60
A75: TILARÁN | B75: 65 | C75: 34 | D75: 52.30769231 | E75: 31 | F75: 47.69230769 | G75: =+H75+J75 -> 33 | H75: 26 | I75: 78.78787879 | J75: 7 | K75: 21.21212121 | L75: 32 | M75: 8 | N75: 25 | O75: 24 | P75: 75
A76: NANDAYURE | B76: 72 | C76: 36 | D76: 50 | E76: 36 | F76: 50 | G76: 36 | H76: 27 | I76: 75 | J76: 9 | K76: 25 | L76: 36 | M76: 9 | N76: 25 | O76: 27 | P76: 75
A77: LA CRUZ | B77: 24 | C77: 12 | D77: 50 | E77: 12 | F77: 50 | G77: 12 | H77: 4 | I77: 33.33333333 | J77: 8 | K77: 66.66666667 | L77: 12 | M77: 8 | N77: 66.66666667 | O77: 4 | P77: 33.33333333
A78: HOJANCHA | B78: 31 | C78: 16 | D78: 51.61290323 | E78: 15 | F78: 48.38709677 | G78: 16 | H78: 7 | I78: 43.75 | J78: 9 | K78: 56.25 | L78: 15 | M78: 9 | N78: 60 | O78: 6 | P78: 40
A79: PROVINCIA PUNTARENAS | B79: 747 | C79: 377 | D79: 50.46854083 | E79: 370 | F79: 49.53145917 | G79: 379 | H79: =SUM(H80:H90) -> 257 | I79: 67.81002639 | J79: =SUM(J80:J90) -> 122 | K79: 32.18997361 | L79: =+M79+O79 -> 368 | M79: =SUM(M80:M90) -> 120 | N79: 32.60869565 | O79: =SUM(O80:O90) -> 248 | P79: 67.39130435
A80: PUNTARENAS | B80: 214 | C80: 105 | D80: 49.06542056 | E80: 109 | F80: 50.93457944 | G80: 106 | H80: 75 | I80: 70.75471698 | J80: 31 | K80: 29.24528302 | L80: =+M80+O80 -> 108 | M80: 30 | N80: 27.77777778 | O80: 78 | P80: 72.22222222
A81: ESPARZA | B81: 67 | C81: 33 | D81: 49.25373134 | E81: 34 | F81: 50.74626866 | G81: 34 | H81: 16 | I81: 47.05882353 | J81: 18 | K81: 52.94117647 | L81: 33 | M81: 17 | N81: 51.51515152 | O81: 16 | P81: 48.48484848
A82: BUENOS AIRES | B82: 87 | C82: 47 | D82: 54.02298851 | E82: 40 | F82: 45.97701149 | G82: 46 | H82: 35 | I82: 76.08695652 | J82: 11 | K82: 23.91304348 | L82: 41 | M82: 12 | N82: 29.26829268 | O82: 29 | P82: 70.73170732
A83: MONTES DE ORO | B83: 33 | C83: 17 | D83: 51.51515152 | E83: 16 | F83: 48.48484848 | G83: 17 | H83: 13 | I83: 76.47058824 | J83: 4 | K83: 23.52941176 | L83: 16 | M83: 4 | N83: 25 | O83: 12 | P83: 75
A84: OSA | B84: 78 | C84: 39 | D84: 50 | E84: 39 | F84: 50 | G84: 39 | H84: 22 | I84: 56.41025641 | J84: 17 | K84: 43.58974359 | L84: 39 | M84: 17 | N84: 43.58974359 | O84: 22 | P84: 56.41025641
A85: AGUIRRE | B85: 60 | C85: 30 | D85: 50 | E85: 30 | F85: 50 | G85: 30 | H85: 19 | I85: 63.33333333 | J85: 11 | K85: 36.66666667 | L85: 30 | M85: 11 | N85: 36.66666667 | O85: 19 | P85: 63.33333333
A86: GOLFITO | B86: 57 | C86: 28 | D86: 49.12280702 | E86: 29 | F86: 50.87719298 | G86: 30 | H86: 19 | I86: 63.33333333 | J86: 11 | K86: 36.66666667 | L86: 27 | M86: 9 | N86: 33.33333333 | O86: 18 | P86: 66.66666667
A87: COTO BRUS | B87: 55 | C87: 29 | D87: 52.72727273 | E87: 26 | F87: 47.27272727 | G87: 29 | H87: 23 | I87: 79.31034483 | J87: 6 | K87: 20.68965517 | L87: 26 | M87: 6 | N87: 23.07692308 | O87: 20 | P87: 76.92307692
A88: PARRITA | B88: 16 | C88: 8 | D88: 50 | E88: 8 | F88: 50 | G88: 8 | H88: 5 | I88: 62.5 | J88: 3 | K88: 37.5 | L88: 8 | M88: 3 | N88: 37.5 | O88: 5 | P88: 62.5
A89: CORREDORES | B89: 49 | C89: 25 | D89: 51.02040816 | E89: 24 | F89: 48.97959184 | G89: 24 | H89: 21 | I89: 87.5 | J89: 3 | K89: 12.5 | L89: 25 | M89: 4 | N89: 16 | O89: 21 | P89: 84
A90: GARABITO | B90: 31 | C90: 16 | D90: 51.61290323 | E90: 15 | F90: 48.38709677 | G90: 16 | H90: 9 | I90: 56.25 | J90: 7 | K90: 43.75 | L90: 15 | M90: 7 | N90: 46.66666667 | O90: 8 | P90: 53.33333333
A91: PROVINCIA LIMÓN | B91: 449 | C91: 227 | D91: 50.55679287 | E91: 222 | F91: 49.44320713 | G91: 238 | H91: =SUM(H92:H97) -> 152 | I91: 63.86554622 | J91: =SUM(J92:J97) -> 86 | K91: 36.13445378 | L91: =+M91+O91 -> 211 | M91: =SUM(M92:M97) -> 75 | N91: 35.5450237 | O91: =SUM(O92:O97) -> 136 | P91: 64.4549763
A92: LIMÓN | B92: 69 | C92: 35 | D92: 50.72463768 | E92: 34 | F92: 49.27536232 | G92: 37 | H92: 23 | I92: 62.16216216 | J92: 14 | K92: 37.83783784 | L92: =+M92+O92 -> 32 | M92: 12 | N92: 37.5 | O92: 20 | P92: 62.5
A93: POCOCÍ | B93: 94 | C93: 47 | D93: 50 | E93: 47 | F93: 50 | G93: 51 | H93: 40 | I93: 78.43137255 | J93: 11 | K93: 21.56862745 | L93: 43 | M93: 7 | N93: 16.27906977 | O93: 36 | P93: 83.72093023
A94: SIQUIRRES | B94: 124 | C94: 64 | D94: 51.61290323 | E94: 60 | F94: 48.38709677 | G94: 67 | H94: 32 | I94: 47.76119403 | J94: 35 | K94: 52.23880597 | L94: 57 | M94: 32 | N94: 56.14035088 | O94: 25 | P94: 43.85964912
A95: TALAMANCA | B95: 46 | C95: 23 | D95: 50 | E95: 23 | F95: 50 | G95: 24 | H95: 18 | I95: 75 | J95: 6 | K95: 25 | L95: 22 | M95: 5 | N95: 22.72727273 | O95: 17 | P95: 77.27272727
A96: MATINA | B96: 48 | C96: 24 | D96: 50 | E96: 24 | F96: 50 | G96: 24 | H96: 14 | I96: 58.33333333 | J96: 10 | K96: 41.66666667 | L96: 24 | M96: 10 | N96: 41.66666667 | O96: 14 | P96: 58.33333333
A97: GUÁCIMO | B97: 68 | C97: 34 | D97: 50 | E97: 34 | F97: 50 | G97: 35 | H97: 25 | I97: 71.42857143 | J97: 10 | K97: 28.57142857 | L97: 33 | M97: 9 | N97: 27.27272727 | O97: 24 | P97: 72.72727273
A100: Nota: Datos al 26 de enero de 2016.
A101: Fuente: Departamento de Registro de Partidos Políticos, Base de datos de candidaturas febrero 2016.

Sheet 27
A1: CUADRO 27. COSTA RICA: CANDIDATURAS A CONCEJALES DE DISTRITO EN PROPIEDAD Y SUPLENCIA POR SEXO, SEGÚN PARTIDO
A2: ELECCIONES MUNICIPALES 7 DE FEBRERO 2016
A3: (CIFRAS ABSOLUTAS Y RELATIVAS)
A5: PARTIDO | B5: CONCEJALES DE DISTRITO | G5: EN PROPIEDAD | L5: EN SUPLENCIA
A6: PARTIDO POLITICO | B6: TOTAL | C6: HOMBRES | E6: MUJERES | G6: TOTAL | H6: HOMBRES | J6: MUJERES | L6: TOTAL | M6: HOMBRES | O6: MUJERES
B7: ABS | C7: ABS | D7: % | E7: ABS | F7: % | G7: ABS | H7: ABS | I7: % | J7: ABS | K7: % | L7: ABS | M7: ABS | N7: % | O7: ABS | P7: %
A9: TOTAL | B9: =SUM(B11:B66) -> 16546 | C9: =SUM(C11:C66) -> 8272 | D9: =C9/B9*100 -> 49.99395624 | E9: =SUM(E11:E66) -> 8274 | F9: =E9/B9*100 -> 50.00604376 | G9: =SUM(G11:G66) -> 8840 | H9: =SUM(H11:H66) -> 4430 | I9: =H9/G9*100 -> 50.11312217 | J9: =SUM(J11:J66) -> 4410 | K9: =J9/G9*100 -> 49.88687783 | L9: =SUM(L11:L66) -> 7706 | M9: =SUM(M11:M66) -> 3842 | N9: =M9/L9*100 -> 49.85725409 | O9: =SUM(O11:O66) -> 3864 | P9: =O9/L9*100 -> 50.14274591
A11: ACCESIBILIDAD SIN EXCLUSIÓN | B11: =+C11+E11 -> 182 | C11: =+H11+M11 -> 91 | D11: =C11/B11*100 -> 50 | E11: =+J11+O11 -> 91 | F11: =E11/B11*100 -> 50 | G11: =+H11+J11 -> 96 | H11: 49 | I11: =H11/G11*100 -> 51.04166667 | J11: 47 | K11: =J11/G11*100 -> 48.95833333 | L11: =+M11+O11 -> 86 | M11: 42 | N11: =M11/L11*100 -> 48.8372093 | O11: 44 | P11: =O11/L11*100 -> 51.1627907
A12: ACCIÓN CANTONAL SIQUIRRES INDEPENDIENTE | B12: 6 | C12: 3 | D12: 50 | E12: 3 | F12: 50 | G12: 5 | H12: 2 | I12: 40 | J12: 3 | K12: 60 | L12: 1 | M12: 1 | N12: 100 | O12: 0 | P12: 0
A13: ACCIÓN CIUDADANA | B13: 2462 | C13: 1235 | D13: 50.16246954 | E13: 1227 | F13: 49.83753046 | G13: 1291 | H13: 650 | I13: 50.348567 | J13: 641 | K13: 49.651433 | L13: 1171 | M13: 585 | N13: 49.95730145 | O13: 586 | P13: 50.04269855
A14: ACUERDO DE ALIANZA DE QUEPOS | B14: 24 | C14: 12 | D14: 50 | E14: 12 | F14: 50 | G14: 12 | H14: 6 | I14: 50 | J14: 6 | K14: 50 | L14: 12 | M14: 6 | N14: 50 | O14: 6 | P14: 50
A15: ALIANZA DEMOCRATA CRISTIANA | B15: 248 | C15: 120 | D15: 48.38709677 | E15: 128 | F15: 51.61290323 | G15: 130 | H15: 65 | I15: 50 | J15: 65 | K15: 50 | L15: 118 | M15: 55 | N15: 46.61016949 | O15: 63 | P15: 53.38983051
A16: ALIANZA POR PALMARES | B16: 46 | C16: 22 | D16: 47.82608696 | E16: 24 | F16: 52.17391304 | G16: 23 | H16: 10 | I16: 43.47826087 | J16: 13 | K16: 56.52173913 | L16: 23 | M16: 12 | N16: 52.17391304 | O16: 11 | P16: 47.82608696
A17: ALIANZA POR SAN JOSE | B17: 87 | C17: 43 | D17: 49.42528736 | E17: 44 | F17: 50.57471264 | G17: 43 | H17: 21 | I17: 48.8372093 | J17: 22 | K17: 51.1627907 | L17: 44 | M17: 22 | N17: 50 | O17: 22 | P17: 50
A18: ALIANZA SANCARLEÑA | B18: 61 | C18: 32 | D18: 52.45901639 | E18: 29 | F18: 47.54098361 | G18: 31 | H18: 15 | I18: 48.38709677 | J18: 16 | K18: 51.61290323 | L18: 30 | M18: 17 | N18: 56.66666667 | O18: 13 | P18: 43.33333333
A19: ALIANZA SOCIAL POR LA UNION | B19: 8 | C19: 6 | D19: 75 | E19: 2 | F19: 25 | G19: 5 | H19: 5 | I19: 100 | J19: 0 | K19: 0 | L19: 3 | M19: 1 | N19: 33.33333333 | O19: 2 | P19: 66.66666667
A20: AUTENTICO LABRADOR DE CORONADO | B20: 26 | C20: 12 | D20: 46.15384615 | E20: 14 | F20: 53.84615385 | G20: 15 | H20: 7 | I20: 46.66666667 | J20: 8 | K20: 53.33333333 | L20: 11 | M20: 5 | N20: 45.45454545 | O20: 6 | P20: 54.54545455
A21: AUTENTICO LIMONENSE | B21: 31 | C21: 16 | D21: 51.61290323 | E21: 15 | F21: 48.38709677 | G21: 16 | H21: 8 | I21: 50 | J21: 8 | K21: 50 | L21: 15 | M21: 8 | N21: 53.33333333 | O21: 7 | P21: 46.66666667
A22: AUTENTICO SIQUIRREÑO | B22: 31 | C22: 14 | D22: 45.16129032 | E22: 17 | F22: 54.83870968 | G22: 20 | H22: 9 | I22: 45 | J22: 11 | K22: 55 | L22: 11 | M22: 5 | N22: 45.45454545 | O22: 6 | P22: 54.54545455
A23: AUTÓNOMO OROMONTANO | B23: 23 | C23: 11 | D23: 47.82608696 | E23: 12 | F23: 52.17391304 | G23: 12 | H23: 6 | I23: 50 | J23: 6 | K23: 50 | L23: 11 | M23: 5 | N23: 45.45454545 | O23: 6 | P23: 54.54545455
A24: AVANCE MONTES DE OCA | B24: 14 | C24: 7 | D24: 50 | E24: 7 | F24: 50 | G24: 7 | H24: 3 | I24: 42.85714286 | J24: 4 | K24: 57.14285714 | L24: 7 | M24: 4 | N24: 57.14285714 | O24: 3 | P24: 42.85714286
A25: BARVA UNIDA | B25: 2 | C25: 2 | D25: 100 | E25: 0 | F25: 0 | G25: 2 | H25: 2 | I25: 100 | J25: 0 | K25: 0 | L25: 0 | M25: 0 | N25: 0 | O25: 0 | P25: 0
A26: COALICION ALIANZA POR BELEN | B26: 21 | C26: 12 | D26: 57.14285714 | E26: 9 | F26: 42.85714286 | G26: 10 | H26: 6 | I26: 60 | J26: 4 | K26: 40 | L26: 11 | M26: 6 | N26: 54.54545455 | O26: 5 | P26: 45.45454545
A27: COALICION GENTE MONTES DE OCA | B27: 29 | C27: 14 | D27: 48.27586207 | E27: 15 | F27: 51.72413793 | G27: 16 | H27: 8 | I27: 50 | J27: 8 | K27: 50 | L27: 13 | M27: 6 | N27: 46.15384615 | O27: 7 | P27: 53.84615385
A28: COALICION SOMOS TIBAS | B28: 26 | C28: 14 | D28: 53.84615385 | E28: 12 | F28: 46.15384615 | G28: 13 | H28: 7 | I28: 53.84615385 | J28: 6 | K28: 46.15384615 | L28: 13 | M28: 7 | N28: 53.84615385 | O28: 6 | P28: 46.15384615
A29: COALICION UNIDOS POR GUATUSO | B29: 14 | C29: 7 | D29: 50 | E29: 7 | F29: 50 | G29: 6 | H29: 3 | I29: 50 | J29: 3 | K29: 50 | L29: 8 | M29: 4 | N29: 50 | O29: 4 | P29: 50
A30: CURRIDABAT SIGLO XXI | B30: 32 | C30: 16 | D30: 50 | E30: 16 | F30: 50 | G30: 16 | H30: 8 | I30: 50 | J30: 8 | K30: 50 | L30: 16 | M30: 8 | N30: 50 | O30: 8 | P30: 50
A31: DE LOS TRABAJADORES | B31: 8 | C31: 4 | D31: 50 | E31: 4 | F31: 50 | G31: 4 | H31: 3 | I31: 75 | J31: 1 | K31: 25 | L31: 4 | M31: 1 | N31: 25 | O31: 3 | P31: 75
A32: DEL SOL | B32: 37 | C32: 18 | D32: 48.64864865 | E32: 19 | F32: 51.35135135 | G32: 19 | H32: 9 | I32: 47.36842105 | J32: 10 | K32: 52.63157895 | L32: 18 | M32: 9 | N32: 50 | O32: 9 | P32: 50
A33: DESAMPARADOS UNIDO | B33: 61 | C33: 33 | D33: 54.09836066 | E33: 28 | F33: 45.90163934 | G33: 34 | H33: 18 | I33: 52.94117647 | J33: 16 | K33: 47.05882353 | L33: 27 | M33: 15 | N33: 55.55555556 | O33: 12 | P33: 44.44444444
A34: ECOLOGICO COMUNAL COSTARRICENSE | B34: 62 | C34: 34 | D34: 54.83870968 | E34: 28 | F34: 45.16129032 | G34: 30 | H34: 18 | I34: 60 | J34: 12 | K34: 40 | L34: 32 | M34: 16 | N34: 50 | O34: 16 | P34: 50
A35: FRENTE AMPLIO | B35: 1538 | C35: 764 | D35: 49.67490247 | E35: 774 | F35: 50.32509753 | G35: 838 | H35: 418 | I35: 49.88066826 | J35: 420 | K35: 50.11933174 | L35: 700 | M35: 346 | N35: 49.42857143 | O35: 354 | P35: 50.57142857
A36: FUERZA DEMOCRATICA DESAMPARADEÑA | B36: 20 | C36: 11 | D36: 55 | E36: 9 | F36: 45 | G36: 17 | H36: 9 | I36: 52.94117647 | J36: 8 | K36: 47.05882353 | L36: 3 | M36: 2 | N36: 66.66666667 | O36: 1 | P36: 33.33333333
A37: FUERZAS UNIDAS PARA EL CAMBIO | B37: 7 | C37: 4 | D37: 57.14285714 | E37: 3 | F37: 42.85714286 | G37: 7 | H37: 4 | I37: 57.14285714 | J37: 3 | K37: 42.85714286 | L37: 0 | M37: 0 | N37: 0 | O37: 0 | P37: 0
A38: GARABITO ECOLÓGICO | B38: 8 | C38: 4 | D38: 50 | E38: 4 | F38: 50 | G38: 4 | H38: 2 | I38: 50 | J38: 2 | K38: 50 | L38: 4 | M38: 2 | N38: 50 | O38: 2 | P38: 50
A39: INDEPENDIENTE ESCAZUCEÑO | B39: 23 | C39: 12 | D39: 52.17391304 | E39: 11 | F39: 47.82608696 | G39: 11 | H39: 6 | I39: 54.54545455 | J39: 5 | K39: 45.45454545 | L39: 12 | M39: 6 | N39: 50 | O39: 6 | P39: 50
A40: INTEGRACIÓN NACIONAL | B40: 241 | C40: 115 | D40: 47.71784232 | E40: 126 | F40: 52.28215768 | G40: 137 | H40: 68 | I40: 49.6350365 | J40: 69 | K40: 50.3649635 | L40: 104 | M40: 47 | N40: 45.19230769 | O40: 57 | P40: 54.80769231
A41: JUSTICIA GENERALEÑA | B41: 26 | C41: 13 | D41: 50 | E41: 13 | F41: 50 | G41: 25 | H41: 13 | I41: 52 | J41: 12 | K41: 48 | L41: 1 | M41: 0 | N41: 0 | O41: 1 | P41: 100
A42: LIBERACIÓN NACIONAL | B42: 3471 | C42: 1742 | D42: 50.18726592 | E42: 1729 | F42: 49.81273408 | G42: 1805 | H42: 902 | I42: 49.97229917 | J42: 903 | K42: 50.02770083 | L42: 1666 | M42: 840 | N42: 50.42016807 | O42: 826 | P42: 49.57983193
A43: LIGA RAMONENSE | B43: =+C43+E43 -> 7 | C43: =+H43+M43 -> 3 | D43: =C43/B43*100 -> 42.85714286 | E43: =+J43+O43 -> 4 | F43: =E43/B43*100 -> 57.14285714 | G43: =+H43+J43 -> 7 | H43: 3 | I43: =H43/G43*100 -> 42.85714286 | J43: 4 | K43: =J43/G43*100 -> 57.14285714 | L43: =+M43+O43 -> 0 | M43: 0 | N43: 0 | O43: 0 | P43: 0
A44: LIMON INDEPENDIENTE | B44: 32 | C44: 16 | D44: 50 | E44: 16 | F44: 50 | G44: 16 | H44: 8 | I44: 50 | J44: 8 | K44: 50 | L44: 16 | M44: 8 | N44: =M44/L44*100 -> 50 | O44: 8 | P44: =O44/L44*100 -> 50
A45: MOVIMIENTO AVANCE SANTO DOMINGO | B45: 54 | C45: 29 | D45: 53.7037037 | E45: 25 | F45: 46.2962963 | G45: 27 | H45: 14 | I45: 51.85185185 | J45: 13 | K45: 48.14814815 | L45: 27 | M45: 15 | N45: 55.55555556 | O45: 12 | P45: 44.44444444
A46: MOVIMIENTO LIBERTARIO | B46: 843 | C46: 407 | D46: 48.27995255 | E46: 436 | F46: 51.72004745 | G46: 493 | H46: 247 | I46: 50.10141988 | J46: 246 | K46: 49.89858012 | L46: 350 | M46: 160 | N46: 45.71428571 | O46: 190 | P46: 54.28571429
A47: NUEVA GENERACION | B47: 325 | C47: 165 | D47: 50.76923077 | E47: 160 | F47: 49.23076923 | G47: 201 | H47: 104 | I47: 51.74129353 | J47: 97 | K47: 48.25870647 | L47: 124 | M47: 61 | N47: 49.19354839 | O47: 63 | P47: 50.80645161
A48: NUEVA MAYORIA GRIEGA | B48: 63 | C48: 32 | D48: 50.79365079 | E48: 31 | F48: 49.20634921 | G48: 32 | H48: 16 | I48: 50 | J48: 16 | K48: 50 | L48: 31 | M48: 16 | N48: 51.61290323 | O48: 15 | P48: 48.38709677
A49: PARRITA INDEPENDIENTE | B49: 8 | C49: 4 | D49: 50 | E49: 4 | F49: 50 | G49: 4 | H49: 2 | I49: 50 | J49: 2 | K49: 50 | L49: 4 | M49: 2 | N49: 50 | O49: 2 | P49: 50
A50: PROGRESO COMUNAL DESAMPARADEÑO | B50: 8 | C50: 4 | D50: 50 | E50: 4 | F50: 50 | G50: 4 | H50: 2 | I50: 50 | J50: 2 | K50: 50 | L50: 4 | M50: 2 | N50: 50 | O50: 2 | P50: 50
A51: PUEBLO GARABITO | B51: 12 | C51: 5 | D51: 41.66666667 | E51: 7 | F51: 58.33333333 | G51: 7 | H51: 3 | I51: 42.85714286 | J51: 4 | K51: 57.14285714 | L51: 5 | M51: 2 | N51: 40 | O51: 3 | P51: 60
A52: RECUPERANDO VALORES | B52: 90 | C52: 46 | D52: 51.11111111 | E52: 44 | F52: 48.88888889 | G52: 45 | H52: 23 | I52: 51.11111111 | J52: 22 | K52: 48.88888889 | L52: 45 | M52: 23 | N52: 51.11111111 | O52: 22 | P52: 48.88888889
A53: RENOVACION CARTAGO | B53: 27 | C53: 12 | D53: 44.44444444 | E53: 15 | F53: 55.55555556 | G53: 8 | H53: 4 | I53: 50 | J53: 4 | K53: 50 | L53: 19 | M53: 8 | N53: 42.10526316 | O53: 11 | P53: 57.89473684
A54: RENOVACIÓN COSTARRICENSE | B54: 928 | C54: 468 | D54: 50.43103448 | E54: 460 | F54: 49.56896552 | G54: 505 | H54: 247 | I54: 48.91089109 | J54: 258 | K54: 51.08910891 | L54: 423 | M54: 221 | N54: 52.24586288 | O54: 202 | P54: 47.75413712
A55: RENOVEMOS ALAJUELA | B55: 91 | C55: 45 | D55: 49.45054945 | E55: 46 | F55: 50.54945055 | G55: 47 | H55: 23 | I55: 48.93617021 | J55: 24 | K55: 51.06382979 | L55: 44 | M55: 22 | N55: 50 | O55: 22 | P55: 50
A56: REPUBLICANO SOCIAL CRISTIANO | B56: 1588 | C56: 799 | D56: 50.31486146 | E56: 789 | F56: 49.68513854 | G56: 871 | H56: 441 | I56: 50.63145809 | J56: 430 | K56: 49.36854191 | L56: 717 | M56: 358 | N56: 49.93026499 | O56: 359 | P56: 50.06973501
A57: RESCATE CANTONAL LA UNION | B57: 62 | C57: 30 | D57: 48.38709677 | E57: 32 | F57: 51.61290323 | G57: 31 | H57: 15 | I57: 48.38709677 | J57: 16 | K57: 51.61290323 | L57: 31 | M57: 15 | N57: 48.38709677 | O57: 16 | P57: 51.61290323
A58: RESTAURACIÓN NACIONAL | B58: 115 | C58: 55 | D58: 47.82608696 | E58: 60 | F58: 52.17391304 | G58: 76 | H58: 35 | I58: 46.05263158 | J58: 41 | K58: 53.94736842 | L58: 39 | M58: 20 | N58: 51.28205128 | O58: 19 | P58: 48.71794872
A59: RESTAURACION PARRITEÑA | B59: 3 | C59: 1 | D59: 33.33333333 | E59: 2 | F59: 66.66666667 | G59: 3 | H59: 1 | I59: 33.33333333 | J59: 2 | K59: 66.66666667 | L59: 0 | M59: 0 | N59: 0 | O59: 0 | P59: 0
A60: SOLIDARIDAD | B60: 78 | C60: 37 | D60: 47.43589744 | E60: 41 | F60: 52.56410256 | G60: 38 | H60: 18 | I60: 47.36842105 | J60: 20 | K60: 52.63157895 | L60: 40 | M60: 19 | N60: 47.5 | O60: 21 | P60: 52.5
A61: TODO POR FLORES | B61: 23 | C61: 12 | D61: 52.17391304 | E61: 11 | F61: 47.82608696 | G61: 11 | H61: 6 | I61: 54.54545455 | J61: 5 | K61: 45.45454545 | L61: 12 | M61: 6 | N61: 50 | O61: 6 | P61: 50
A62: UNIDAD SOCIAL CRISTIANA | B62: 3106 | C62: 1555 | D62: 50.0643915 | E62: 1551 | F62: 49.9356085 | G62: 1605 | H62: 803 | I62: 50.03115265 | J62: 802 | K62: 49.96884735 | L62: 1501 | M62: 752 | N62: 50.09993338 | O62: 749 | P62: 49.90006662
A63: UNION GUARQUEÑO | B63: 32 | C63: 16 | D63: 50 | E63: 16 | F63: 50 | G63: 16 | H63: 8 | I63: 50 | J63: 8 | K63: 50 | L63: 16 | M63: 8 | N63: 50 | O63: 8 | P63: 50
A64: VERDE | B64: 36 | C64: 18 | D64: 50 | E64: 18 | F64: 50 | G64: 20 | H64: 10 | I64: 50 | J64: 10 | K64: 50 | L64: 16 | M64: 8 | N64: 50 | O64: 8 | P64: 50
A65: VIVA PUNTARENAS | B65: 119 | C65: 59 | D65: 49.57983193 | E65: 60 | F65: 50.42016807 | G65: 64 | H65: 32 | I65: 50 | J65: 32 | K65: 50 | L65: 55 | M65: 27 | N65: 49.09090909 | O65: 28 | P65: 50.90909091
A66: YUNTA PROGRESISTA ESCAZUCEÑA | B66: 21 | C66: 11 | D66: 52.38095238 | E66: 10 | F66: 47.61904762 | G66: 9 | H66: 5 | I66: 55.55555556 | J66: 4 | K66: 44.44444444 | L66: 12 | M66: 6 | N66: 50 | O66: 6 | P66: 50
A69: Nota: Datos al 26 de enero de 2016.
A70: Fuente: Departamento de Registro de Partidos Políticos, Base de datos de candidaturas febrero 2016.

Sheet 28
A1: CUADRO 28. COSTA RICA: CANDIDATURAS A CONCEJALES DE DISTRITO EN PROPIEDAD Y SUPLENCIA POR SEXO, SEGÚN PROVINCIA Y CANTÓN
A2: ELECCIONES MUNICIPLAES 7 DE FEBRERO 2016
A3: (CIFRAS ABSOLUTAS Y RELATIVAS)
A5: PROVINCIA Y CANTÓN | B5: CONCEJALES DE DISTRITO | G5: EN PROPIEDAD | L5: EN SUPLENCIA
B6: TOTAL | C6: HOMBRES | E6: MUJERES | G6: TOTAL | H6: HOMBRES | J6: MUJERES | L6: TOTAL | M6: HOMBRES | O6: MUJERES
C7: ABS | D7: % | E7: ABS | F7: % | H7: ABS | I7: % | J7: ABS | K7: % | M7: ABS | N7: % | O7: ABS | P7: %
A9: COSTA RICA | B9: =G9+L9 -> 16546 | C9: =H9+M9 -> 8272 | D9: =C9/$B9*100 -> 49.99395624 | E9: =J9+O9 -> 8274 | F9: =E9/$B9*100 -> 50.00604376 | G9: =+G10+G31+G47+G56+G67+G79+G91 -> 8840 | H9: =+H10+H31+H47+H56+H67+H79+H91 -> 4430 | I9: =H9/$G9*100 -> 50.11312217 | J9: =+J10+J31+J47+J56+J67+J79+J91 -> 4410 | K9: =J9/$G9*100 -> 49.88687783 | L9: =+L10+L31+L47+L56+L67+L79+L91 -> 7706 | M9: =+M10+M31+M47+M56+M67+M79+M91 -> 3842 | N9: =M9/$L9*100 -> 49.85725409 | O9: =+O10+O31+O47+O56+O67+O79+O91 -> 3864 | P9: =O9/$L9*100 -> 50.14274591
A10: PROVINCIA SAN JOSÉ | B10: =+G10+L10 -> 4409 | C10: 2201 | D10: 49.92061692 | E10: =+J10+O10 -> 2208 | F10: 50.07938308 | G10: =+H10+J10 -> 2359 | H10: =SUM(H11:H30) -> 1179 | I10: 49.97880458 | J10: =SUM(J11:J30) -> 1180 | K10: 50.02119542 | L10: =+M10+O10 -> 2050 | M10: =SUM(M11:M30) -> 1022 | N10: 49.85365854 | O10: =SUM(O11:O30) -> 1028 | P10: 50.14634146
A11: SAN JOSÉ | B11: =+G11+L11 -> 751 | C11: =+H11+M11 -> 365 | D11: =C11/$B11*100 -> 48.60186418 | E11: =+J11+O11 -> 386 | F11: 51.39813582 | G11: 393 | H11: 194 | I11: 49.36386768 | J11: 199 | K11: 50.63613232 | L11: =+M11+O11 -> 358 | M11: 171 | N11: 47.76536313 | O11: 187 | P11: 52.23463687
A12: ESCAZÚ | B12: 166 | C12: =+H12+M12 -> 87 | D12: 52.40963855 | E12: =+J12+O12 -> 79 | F12: 47.59036145 | G12: 89 | H12: 47 | I12: 52.80898876 | J12: 42 | K12: 47.19101124 | L12: 77 | M12: 40 | N12: 51.94805195 | O12: 37 | P12: 48.05194805
A13: DESAMPARADOS | B13: 654 | C13: 328 | D13: 50.1529052 | E13: =+J13+O13 -> 326 | F13: 49.8470948 | G13: 339 | H13: 173 | I13: 51.03244838 | J13: 166 | K13: 48.96755162 | L13: 315 | M13: 155 | N13: 49.20634921 | O13: 160 | P13: 50.79365079
A14: PURISCAL | B14: 197 | C14: 104 | D14: 52.79187817 | E14: 93 | F14: 47.20812183 | G14: 103 | H14: 58 | I14: 56.31067961 | J14: 45 | K14: 43.68932039 | L14: 94 | M14: 46 | N14: 48.93617021 | O14: 48 | P14: 51.06382979
A15: TARRAZÚ | B15: 97 | C15: 49 | D15: 50.51546392 | E15: 48 | F15: 49.48453608 | G15: 49 | H15: 25 | I15: 51.02040816 | J15: 24 | K15: 48.97959184 | L15: 48 | M15: 24 | N15: 50 | O15: 24 | P15: 50
A16: ASERRÍ | B16: 190 | C16: 95 | D16: 50 | E16: 95 | F16: 50 | G16: 99 | H16: 50 | I16: 50.50505051 | J16: 49 | K16: 49.49494949 | L16: 91 | M16: 45 | N16: 49.45054945 | O16: 46 | P16: 50.54945055
A17: MORA | B17: 174 | C17: 87 | D17: 50 | E17: 87 | F17: 50 | G17: 102 | H17: 52 | I17: 50.98039216 | J17: 50 | K17: 49.01960784 | L17: 72 | M17: 35 | N17: 48.61111111 | O17: 37 | P17: 51.38888889
A18: GOICOECHEA | B18: 253 | C18: 126 | D18: 49.80237154 | E18: 127 | F18: 50.19762846 | G18: 131 | H18: 63 | I18: 48.09160305 | J18: 68 | K18: 51.90839695 | L18: 122 | M18: 63 | N18: 51.63934426 | O18: 59 | P18: 48.36065574
A19: SANTA ANA | B19: 237 | C19: 118 | D19: 49.78902954 | E19: 119 | F19: 50.21097046 | G19: 129 | H19: 63 | I19: 48.8372093 | J19: 66 | K19: 51.1627907 | L19: 108 | M19: 55 | N19: 50.92592593 | O19: 53 | P19: 49.07407407
A20: ALAJUELITA | B20: 170 | C20: 82 | D20: 48.23529412 | E20: 88 | F20: 51.76470588 | G20: 86 | H20: 40 | I20: 46.51162791 | J20: 46 | K20: 53.48837209 | L20: 84 | M20: 42 | N20: 50 | O20: 42 | P20: 50
A21: VÁZQUEZ DE CORONADO | B21: 192 | C21: 98 | D21: 51.04166667 | E21: 94 | F21: 48.95833333 | G21: 107 | H21: 52 | I21: 48.59813084 | J21: 55 | K21: 51.40186916 | L21: 85 | M21: 46 | N21: 54.11764706 | O21: 39 | P21: 45.88235294
A22: ACOSTA | B22: 116 | C22: 60 | D22: 51.72413793 | E22: 56 | F22: 48.27586207 | G22: 60 | H22: 30 | I22: 50 | J22: 30 | K22: 50 | L22: 56 | M22: 30 | N22: 53.57142857 | O22: 26 | P22: 46.42857143
A23: TIBÁS | B23: 150 | C23: 72 | D23: 48 | E23: 78 | F23: 52 | G23: 78 | H23: 38 | I23: 48.71794872 | J23: 40 | K23: 51.28205128 | L23: 72 | M23: 34 | N23: 47.22222222 | O23: 38 | P23: 52.77777778
A24: MORAVIA | B24: 121 | C24: =+H24+M24 -> 60 | D24: 49.58677686 | E24: =+J24+O24 -> 61 | F24: 50.41322314 | G24: 65 | H24: 32 | I24: 49.23076923 | J24: 33 | K24: 50.76923077 | L24: 56 | M24: 28 | N24: 50 | O24: 28 | P24: 50
A25: MONTES DE OCA | B25: 114 | C25: 57 | D25: 50 | E25: 57 | F25: 50 | G25: 59 | H25: 28 | I25: 47.45762712 | J25: 31 | K25: 52.54237288 | L25: 55 | M25: 29 | N25: 52.72727273 | O25: 26 | P25: 47.27272727
A26: TURRUBARES | B26: 114 | C26: 57 | D26: 50 | E26: 57 | F26: 50 | G26: 62 | H26: 30 | I26: 48.38709677 | J26: 32 | K26: 51.61290323 | L26: 52 | M26: 27 | N26: 51.92307692 | O26: 25 | P26: 48.07692308
A27: DOTA | B27: 81 | C27: 40 | D27: 49.38271605 | E27: 41 | F27: 50.61728395 | G27: 44 | H27: 21 | I27: 47.72727273 | J27: 23 | K27: 52.27272727 | L27: 37 | M27: 19 | N27: 51.35135135 | O27: 18 | P27: 48.64864865
A28: CURRIDABAT | B28: 135 | C28: 67 | D28: 49.62962963 | E28: 68 | F28: 50.37037037 | G28: 71 | H28: 33 | I28: 46.47887324 | J28: 38 | K28: 53.52112676 | L28: 64 | M28: 34 | N28: 53.125 | O28: 30 | P28: 46.875
A29: PÉREZ ZELEDÓN | B29: 426 | C29: 214 | D29: 50.23474178 | E29: 212 | F29: 49.76525822 | G29: 254 | H29: 131 | I29: 51.57480315 | J29: 123 | K29: 48.42519685 | L29: 172 | M29: 83 | N29: 48.25581395 | O29: 89 | P29: 51.74418605
A30: LEÓN CORTÉS | B30: 71 | C30: =+H30+M30 -> 35 | D30: 49.29577465 | E30: 36 | F30: 50.70422535 | G30: 39 | H30: 19 | I30: 48.71794872 | J30: 20 | K30: 51.28205128 | L30: 32 | M30: 16 | N30: 50 | O30: 16 | P30: 50
A31: PROVINCIA ALAJUELA | B31: 3775 | C31: 1890 | D31: 50.06622517 | E31: 1885 | F31: 49.93377483 | G31: 2031 | H31: =SUM(H32:H46) -> 1022 | I31: 50.32003939 | J31: =SUM(J32:J46) -> 1009 | K31: 49.67996061 | L31: =+M31+O31 -> 1744 | M31: =SUM(M32:M46) -> 868 | N31: 49.7706422 | O31: =SUM(O32:O46) -> 876 | P31: =O31/$L31*100 -> 50.2293578
A32: ALAJUELA | B32: 764 | C32: =+H32+M32 -> 386 | D32: 50.52356021 | E32: 378 | F32: 49.47643979 | G32: 410 | H32: 204 | I32: 49.75609756 | J32: 206 | K32: 50.24390244 | L32: 354 | M32: 182 | N32: 51.41242938 | O32: 172 | P32: 48.58757062
A33: SAN RAMÓN | B33: 411 | C33: 200 | D33: 48.66180049 | E33: 211 | F33: 51.33819951 | G33: 220 | H33: 110 | I33: 50 | J33: 110 | K33: 50 | L33: 191 | M33: 90 | N33: 47.12041885 | O33: 101 | P33: 52.87958115
A34: GRECIA | B34: 307 | C34: 152 | D34: 49.51140065 | E34: 155 | F34: 50.48859935 | G34: 172 | H34: 88 | I34: 51.1627907 | J34: 84 | K34: 48.8372093 | L34: 135 | M34: 64 | N34: 47.40740741 | O34: 71 | P34: 52.59259259
A35: SAN MATEO | B35: 106 | C35: 55 | D35: 51.88679245 | E35: 51 | F35: 48.11320755 | G35: 57 | H35: 30 | I35: 52.63157895 | J35: 27 | K35: 47.36842105 | L35: 49 | M35: 25 | N35: 51.02040816 | O35: 24 | P35: 48.97959184
A36: ATENAS | B36: 238 | C36: 124 | D36: 52.10084034 | E36: 114 | F36: 47.89915966 | G36: 132 | H36: 69 | I36: 52.27272727 | J36: 63 | K36: 47.72727273 | L36: 106 | M36: 55 | N36: 51.88679245 | O36: 51 | P36: 48.11320755
A37: NARANJO | B37: 293 | C37: 144 | D37: 49.14675768 | E37: 149 | F37: 50.85324232 | G37: 168 | H37: 87 | I37: 51.78571429 | J37: 81 | K37: 48.21428571 | L37: 125 | M37: 57 | N37: 45.6 | O37: 68 | P37: 54.4
A38: PALMARES | B38: 258 | C38: 134 | D38: 51.9379845 | E38: 124 | F38: 48.0620155 | G38: 133 | H38: 66 | I38: 49.62406015 | J38: 67 | K38: 50.37593985 | L38: 125 | M38: 68 | N38: 54.4 | O38: 57 | P38: 45.6
A39: POÁS | B39: 159 | C39: 79 | D39: 49.68553459 | E39: 80 | F39: 50.31446541 | G39: 91 | H39: 45 | I39: 49.45054945 | J39: 46 | K39: 50.54945055 | L39: 68 | M39: 34 | N39: 50 | O39: 34 | P39: 50
A40: OROTINA | B40: 125 | C40: 61 | D40: 48.8 | E40: 64 | F40: 51.2 | G40: 66 | H40: 32 | I40: 48.48484848 | J40: 34 | K40: 51.51515152 | L40: 59 | M40: 29 | N40: 49.15254237 | O40: 30 | P40: 50.84745763
A41: SAN CARLOS | B41: 507 | C41: 249 | D41: 49.11242604 | E41: 258 | F41: 50.88757396 | G41: 268 | H41: 131 | I41: 48.88059701 | J41: 137 | K41: 51.11940299 | L41: 239 | M41: 118 | N41: 49.37238494 | O41: 121 | P41: 50.62761506
A42: ALFARO RUIZ | B42: =+G42+L42 -> 116 | C42: 58 | D42: 50 | E42: 58 | F42: 50 | G42: 59 | H42: 29 | I42: 49.15254237 | J42: 30 | K42: 50.84745763 | L42: 57 | M42: 29 | N42: 50.87719298 | O42: 28 | P42: 49.12280702
A43: VALVERDE VEGA | B43: 99 | C43: 51 | D43: 51.51515152 | E43: 48 | F43: 48.48484848 | G43: 49 | H43: 25 | I43: 51.02040816 | J43: 24 | K43: 48.97959184 | L43: 50 | M43: 26 | N43: 52 | O43: 24 | P43: 48
A44: UPALA | B44: 179 | C44: 88 | D44: 49.16201117 | E44: 91 | F44: 50.83798883 | G44: 94 | H44: 46 | I44: 48.93617021 | J44: 48 | K44: 51.06382979 | L44: 85 | M44: 42 | N44: 49.41176471 | O44: 43 | P44: 50.58823529
A45: LOS CHILES | B45: 94 | C45: 49 | D45: 52.12765957 | E45: 45 | F45: 47.87234043 | G45: 53 | H45: 29 | I45: 54.71698113 | J45: 24 | K45: 45.28301887 | L45: 41 | M45: 20 | N45: 48.7804878 | O45: 21 | P45: 51.2195122
A46: GUATUSO | B46: 119 | C46: 60 | D46: 50.42016807 | E46: 59 | F46: 49.57983193 | G46: 59 | H46: 31 | I46: 52.54237288 | J46: 28 | K46: 47.45762712 | L46: 60 | M46: 29 | N46: 48.33333333 | O46: 31 | P46: 51.66666667
A47: PROVINCIA CARTAGO | B47: 1703 | C47: 846 | D47: 49.67704052 | E47: 857 | F47: 50.32295948 | G47: 924 | H47: =SUM(H48:H55) -> 459 | I47: 49.67532468 | J47: =SUM(J48:J55) -> 465 | K47: 50.32467532 | L47: =+M47+O47 -> 779 | M47: =SUM(M48:M55) -> 387 | N47: 49.67907574 | O47: =SUM(O48:O55) -> 392 | P47: 50.32092426
A48: CARTAGO | B48: 437 | C48: 215 | D48: 49.19908467 | E48: 222 | F48: 50.80091533 | G48: 223 | H48: 111 | I48: 49.77578475 | J48: 112 | K48: 50.22421525 | L48: 214 | M48: 104 | N48: 48.59813084 | O48: 110 | P48: 51.40186916
A49: PARAÍSO | B49: 260 | C49: 126 | D49: 48.46153846 | E49: 134 | F49: 51.53846154 | G49: 139 | H49: 66 | I49: 47.48201439 | J49: 73 | K49: 52.51798561 | L49: 121 | M49: 60 | N49: 49.58677686 | O49: 61 | P49: 50.41322314
A50: LA UNIÓN | B50: 350 | C50: 175 | D50: 50 | E50: 175 | F50: 50 | G50: 179 | H50: 92 | I50: 51.39664804 | J50: 87 | K50: 48.60335196 | L50: 171 | M50: 83 | N50: 48.5380117 | O50: 88 | P50: 51.4619883
A51: JIMÉNEZ | B51: 53 | C51: 27 | D51: 50.94339623 | E51: 26 | F51: 49.05660377 | G51: 27 | H51: 13 | I51: 48.14814815 | J51: 14 | K51: 51.85185185 | L51: 26 | M51: 14 | N51: 53.84615385 | O51: 12 | P51: 46.15384615
A52: TURRIALBA | B52: 259 | C52: 129 | D52: 49.80694981 | E52: 130 | F52: 50.19305019 | G52: 171 | H52: 86 | I52: 50.29239766 | J52: 85 | K52: 49.70760234 | L52: 88 | M52: 43 | N52: 48.86363636 | O52: 45 | P52: 51.13636364
A53: ALVARADO | B53: 44 | C53: 24 | D53: 54.54545455 | E53: 20 | F53: 45.45454545 | G53: 21 | H53: 11 | I53: 52.38095238 | J53: 10 | K53: 47.61904762 | L53: 23 | M53: 13 | N53: 56.52173913 | O53: 10 | P53: 43.47826087
A54: OREAMUNO | B54: 132 | C54: 65 | D54: 49.24242424 | E54: 67 | F54: 50.75757576 | G54: 70 | H54: 31 | I54: 44.28571429 | J54: 39 | K54: 55.71428571 | L54: 62 | M54: 34 | N54: 54.83870968 | O54: 28 | P54: 45.16129032
A55: EL GUARCO | B55: 168 | C55: 85 | D55: 50.5952381 | E55: 83 | F55: 49.4047619 | G55: 94 | H55: 49 | I55: 52.12765957 | J55: 45 | K55: 47.87234043 | L55: 74 | M55: 36 | N55: 48.64864865 | O55: 38 | P55: 51.35135135
A56: PROVINCIA HEREDIA | B56: 1529 | C56: 761 | D56: 49.77109222 | E56: 768 | F56: 50.22890778 | G56: 822 | H56: =SUM(H57:H66) -> 407 | I56: 49.513382 | J56: =SUM(J57:J66) -> 415 | K56: 50.486618 | L56: =+M56+O56 -> 707 | M56: =SUM(M57:M66) -> 354 | N56: 50.07072136 | O56: =SUM(O57:O66) -> 353 | P56: 49.92927864
A57: HEREDIA | B57: 177 | C57: 90 | D57: 50.84745763 | E57: 87 | F57: 49.15254237 | G57: 106 | H57: 54 | I57: 50.94339623 | J57: 52 | K57: 49.05660377 | L57: =+M57+O57 -> 71 | M57: 36 | N57: 50.70422535 | O57: 35 | P57: 49.29577465
A58: BARVA | B58: 240 | C58: 120 | D58: 50 | E58: 120 | F58: 50 | G58: 126 | H58: 63 | I58: 50 | J58: 63 | K58: 50 | L58: 114 | M58: 57 | N58: 50 | O58: 57 | P58: 50
A59: SANTO DOMINGO | B59: 242 | C59: 122 | D59: 50.41322314 | E59: 120 | F59: 49.58677686 | G59: 128 | H59: 63 | I59: 49.21875 | J59: 65 | K59: 50.78125 | L59: 114 | M59: 59 | N59: 51.75438596 | O59: 55 | P59: 48.24561404
A60: SANTA BÁRBARA | B60: 208 | C60: 102 | D60: 49.03846154 | E60: 106 | F60: 50.96153846 | G60: 111 | H60: 54 | I60: 48.64864865 | J60: 57 | K60: 51.35135135 | L60: 97 | M60: 48 | N60: 49.48453608 | O60: 49 | P60: 50.51546392
A61: SAN RAFAEL | B61: 160 | C61: 80 | D61: 50 | E61: 80 | F61: 50 | G61: 85 | H61: 41 | I61: 48.23529412 | J61: 44 | K61: 51.76470588 | L61: 75 | M61: 39 | N61: 52 | O61: 36 | P61: 48
A62: SAN ISIDRO | B62: 97 | C62: 47 | D62: 48.45360825 | E62: 50 | F62: 51.54639175 | G62: 49 | H62: 24 | I62: 48.97959184 | J62: 25 | K62: 51.02040816 | L62: 48 | M62: 23 | N62: 47.91666667 | O62: 25 | P62: 52.08333333
A63: BELÉN | B63: 81 | C63: 39 | D63: 48.14814815 | E63: 42 | F63: 51.85185185 | G63: 43 | H63: 21 | I63: 48.8372093 | J63: 22 | K63: 51.1627907 | L63: 38 | M63: 18 | N63: 47.36842105 | O63: 20 | P63: 52.63157895
A64: FLORES | B64: 110 | C64: 55 | D64: 50 | E64: 55 | F64: 50 | G64: 57 | H64: 28 | I64: 49.12280702 | J64: 29 | K64: 50.87719298 | L64: 53 | M64: 27 | N64: 50.94339623 | O64: 26 | P64: 49.05660377
A65: SAN PABLO | B65: 47 | C65: 23 | D65: 48.93617021 | E65: 24 | F65: 51.06382979 | G65: 27 | H65: 13 | I65: 48.14814815 | J65: 14 | K65: 51.85185185 | L65: 20 | M65: 10 | N65: 50 | O65: 10 | P65: 50
A66: SARAPIQUÍ | B66: 167 | C66: 83 | D66: 49.7005988 | E66: 84 | F66: 50.2994012 | G66: 90 | H66: 46 | I66: 51.11111111 | J66: 44 | K66: 48.88888889 | L66: 77 | M66: 37 | N66: 48.05194805 | O66: 40 | P66: 51.94805195
A67: PROVINCIA GUANACASTE | B67: 1813 | C67: 913 | D67: 50.35852179 | E67: 900 | F67: 49.64147821 | G67: 954 | H67: =SUM(H68:H78) -> 485 | I67: 50.83857442 | J67: =SUM(J68:J78) -> 469 | K67: 49.16142558 | L67: =+M67+O67 -> 859 | M67: =SUM(M68:M78) -> 428 | N67: 49.82537835 | O67: =SUM(O68:O78) -> 431 | P67: 50.17462165
A68: LIBERIA | B68: 180 | C68: 91 | D68: 50.55555556 | E68: 89 | F68: 49.44444444 | G68: 91 | H68: 46 | I68: 50.54945055 | J68: 45 | K68: 49.45054945 | L68: =+M68+O68 -> 89 | M68: 45 | N68: 50.56179775 | O68: 44 | P68: 49.43820225
A69: NICOYA | B69: 250 | C69: 127 | D69: 50.8 | E69: 123 | F69: 49.2 | G69: 131 | H69: 66 | I69: 50.38167939 | J69: 65 | K69: 49.61832061 | L69: 119 | M69: 61 | N69: 51.2605042 | O69: 58 | P69: 48.7394958
A70: SANTA CRUZ | B70: 274 | C70: 135 | D70: 49.27007299 | E70: 139 | F70: 50.72992701 | G70: 153 | H70: 75 | I70: 49.01960784 | J70: 78 | K70: 50.98039216 | L70: 121 | M70: 60 | N70: 49.58677686 | O70: 61 | P70: 50.41322314
A71: BAGACES | B71: 142 | C71: 69 | D71: 48.5915493 | E71: 73 | F71: 51.4084507 | G71: 76 | H71: 38 | I71: 50 | J71: 38 | K71: 50 | L71: 66 | M71: 31 | N71: 46.96969697 | O71: 35 | P71: 53.03030303
A72: CARRILLO | B72: 147 | C72: 75 | D72: 51.02040816 | E72: 72 | F72: 48.97959184 | G72: 75 | H72: 38 | I72: 50.66666667 | J72: 37 | K72: 49.33333333 | L72: 72 | M72: 37 | N72: 51.38888889 | O72: 35 | P72: 48.61111111
A73: CAÑAS | B73: 141 | C73: 70 | D73: =C73/$B73*100 -> 49.64539007 | E73: 71 | F73: =E73/$B73*100 -> 50.35460993 | G73: 73 | H73: 36 | I73: =H73/$G73*100 -> 49.31506849 | J73: 37 | K73: =J73/$G73*100 -> 50.68493151 | L73: 68 | M73: 34 | N73: =M73/$L73*100 -> 50 | O73: 34 | P73: =O73/$L73*100 -> 50
A74: ABANGARES | B74: =+G74+L74 -> 97 | C74: 51 | D74: 52.57731959 | E74: 46 | F74: 47.42268041 | G74: =+H74+J74 -> 50 | H74: 27 | I74: 54 | J74: 23 | K74: 46 | L74: 47 | M74: 24 | N74: 51.06382979 | O74: 23 | P74: 48.93617021
A75: TILARÁN | B75: 202 | C75: 101 | D75: 50 | E75: 101 | F75: 50 | G75: 102 | H75: 53 | I75: 51.96078431 | J75: 49 | K75: 48.03921569 | L75: 100 | M75: 48 | N75: 48 | O75: 52 | P75: 52
A76: NANDAYURE | B76: 208 | C76: 107 | D76: 51.44230769 | E76: 101 | F76: 48.55769231 | G76: 111 | H76: 59 | I76: 53.15315315 | J76: 52 | K76: 46.84684685 | L76: 97 | M76: 48 | N76: 49.48453608 | O76: 49 | P76: 50.51546392
A77: LA CRUZ | B77: 91 | C77: 44 | D77: 48.35164835 | E77: 47 | F77: 51.64835165 | G77: 45 | H77: 22 | I77: 48.88888889 | J77: 23 | K77: 51.11111111 | L77: 46 | M77: 22 | N77: 47.82608696 | O77: 24 | P77: 52.17391304
A78: HOJANCHA | B78: 81 | C78: 43 | D78: 53.08641975 | E78: 38 | F78: 46.91358025 | G78: 47 | H78: 25 | I78: 53.19148936 | J78: 22 | K78: 46.80851064 | L78: 34 | M78: 18 | N78: 52.94117647 | O78: 16 | P78: 47.05882353
A79: PROVINCIA PUNTARENAS | B79: 1960 | C79: 987 | D79: 50.35714286 | E79: 973 | F79: 49.64285714 | G79: 1025 | H79: =SUM(H80:H90) -> 515 | I79: 50.24390244 | J79: =SUM(J80:J90) -> 510 | K79: 49.75609756 | L79: =+M79+O79 -> 935 | M79: =SUM(M80:M90) -> 472 | N79: 50.48128342 | O79: =SUM(O80:O90) -> 463 | P79: 49.51871658
A80: PUNTARENAS | B80: 430 | C80: 216 | D80: 50.23255814 | E80: 214 | F80: 49.76744186 | G80: 226 | H80: 115 | I80: 50.88495575 | J80: 111 | K80: 49.11504425 | L80: =+M80+O80 -> 204 | M80: 101 | N80: 49.50980392 | O80: 103 | P80: 50.49019608
A81: ESPARZA | B81: 181 | C81: 89 | D81: 49.17127072 | E81: 92 | F81: 50.82872928 | G81: 99 | H81: 47 | I81: 47.47474747 | J81: 52 | K81: 52.52525253 | L81: 82 | M81: 42 | N81: 51.2195122 | O81: 40 | P81: 48.7804878
A82: BUENOS AIRES | B82: 216 | C82: 109 | D82: 50.46296296 | E82: 107 | F82: 49.53703704 | G82: 119 | H82: 61 | I82: 51.2605042 | J82: 58 | K82: 48.7394958 | L82: 97 | M82: 48 | N82: 49.48453608 | O82: 49 | P82: 50.51546392
A83: MONTES DE ORO | B83: 100 | C83: 53 | D83: 53 | E83: 47 | F83: 47 | G83: 50 | H83: 28 | I83: 56 | J83: 22 | K83: 44 | L83: 50 | M83: 25 | N83: 50 | O83: 25 | P83: 50
A84: OSA | B84: 202 | C84: 104 | D84: 51.48514851 | E84: 98 | F84: 48.51485149 | G84: 113 | H84: 57 | I84: 50.44247788 | J84: 56 | K84: 49.55752212 | L84: 89 | M84: 47 | N84: 52.80898876 | O84: 42 | P84: 47.19101124
A85: AGUIRRE | B85: 188 | C85: 95 | D85: 50.53191489 | E85: 93 | F85: 49.46808511 | G85: 90 | H85: 44 | I85: 48.88888889 | J85: 46 | K85: 51.11111111 | L85: 98 | M85: 51 | N85: 52.04081633 | O85: 47 | P85: 47.95918367
A86: GOLFITO | B86: 179 | C86: 88 | D86: 49.16201117 | E86: 91 | F86: 50.83798883 | G86: 91 | H86: 44 | I86: 48.35164835 | J86: 47 | K86: 51.64835165 | L86: 88 | M86: 44 | N86: 50 | O86: 44 | P86: 50
A87: COTO BRUS | B87: 148 | C87: 76 | D87: 51.35135135 | E87: 72 | F87: 48.64864865 | G87: 75 | H87: 39 | I87: 52 | J87: 36 | K87: 48 | L87: 73 | M87: 37 | N87: 50.68493151 | O87: 36 | P87: 49.31506849
A88: PARRITA | B88: 56 | C88: 28 | D88: 50 | E88: 28 | F88: 50 | G88: 31 | H88: 15 | I88: 48.38709677 | J88: 16 | K88: 51.61290323 | L88: 25 | M88: 13 | N88: 52 | O88: 12 | P88: 48
A89: CORREDORES | B89: 169 | C89: 85 | D89: 50.29585799 | E89: 84 | F89: 49.70414201 | G89: 83 | H89: 41 | I89: 49.39759036 | J89: 42 | K89: 50.60240964 | L89: 86 | M89: 44 | N89: 51.1627907 | O89: 42 | P89: 48.8372093
A90: GARABITO | B90: 91 | C90: 44 | D90: 48.35164835 | E90: 47 | F90: 51.64835165 | G90: 48 | H90: 24 | I90: 50 | J90: 24 | K90: 50 | L90: 43 | M90: 20 | N90: 46.51162791 | O90: 23 | P90: 53.48837209
A91: PROVINCIA LIMÓN | B91: 1357 | C91: 674 | D91: 49.66838615 | E91: 683 | F91: 50.33161385 | G91: 725 | H91: =SUM(H92:H97) -> 363 | I91: 50.06896552 | J91: =SUM(J92:J97) -> 362 | K91: 49.93103448 | L91: =+M91+O91 -> 632 | M91: =SUM(M92:M97) -> 311 | N91: 49.20886076 | O91: =SUM(O92:O97) -> 321 | P91: 50.79113924
A92: LIMÓN | B92: 230 | C92: 111 | D92: 48.26086957 | E92: 119 | F92: 51.73913043 | G92: 121 | H92: 57 | I92: 47.10743802 | J92: 64 | K92: 52.89256198 | L92: =+M92+O92 -> 109 | M92: 54 | N92: 49.5412844 | O92: 55 | P92: 50.4587156
A93: POCOCÍ | B93: 303 | C93: 150 | D93: 49.5049505 | E93: 153 | F93: 50.4950495 | G93: 166 | H93: 83 | I93: 50 | J93: 83 | K93: 50 | L93: 137 | M93: 67 | N93: 48.90510949 | O93: 70 | P93: 51.09489051
A94: SIQUIRRES | B94: 314 | C94: 158 | D94: 50.31847134 | E94: 156 | F94: 49.68152866 | G94: 166 | H94: 85 | I94: 51.20481928 | J94: 81 | K94: 48.79518072 | L94: 148 | M94: 73 | N94: 49.32432432 | O94: 75 | P94: 50.67567568
A95: TALAMANCA | B95: 134 | C95: 68 | D95: 50.74626866 | E95: 66 | F95: 49.25373134 | G95: 73 | H95: 37 | I95: 50.68493151 | J95: 36 | K95: 49.31506849 | L95: 61 | M95: 31 | N95: 50.81967213 | O95: 30 | P95: 49.18032787
A96: MATINA | B96: 139 | C96: 70 | D96: 50.35971223 | E96: 69 | F96: 49.64028777 | G96: 71 | H96: 37 | I96: 52.11267606 | J96: 34 | K96: 47.88732394 | L96: 68 | M96: 33 | N96: 48.52941176 | O96: 35 | P96: 51.47058824
A97: GUÁCIMO | B97: 237 | C97: 117 | D97: 49.36708861 | E97: 120 | F97: 50.63291139 | G97: 128 | H97: 64 | I97: 50 | J97: 64 | K97: 50 | L97: 109 | M97: 53 | N97: 48.62385321 | O97: 56 | P97: 51.37614679
A100: Nota: Datos al 26 de enero de 2016.
A101: Fuente: Departamento de Registro de Partidos Políticos, Base de datos de candidaturas febrero 2016.

Sheet 29
A1: CUADRO 29. COSTA RICA: CANDIDATURAS A INTENDENCIAS Y VICEINTENDENCIAS POR SEXO, SEGÚN PARTIDO
A2: ELECCIONES MUNICIPALES 7 DE FEBRERO 2016
A3: (CIFRAS ABSOLUTAS Y RELATIVAS)
A5: PARTIDO | B5: TOTAL | G5: INTENDENCIAS | L5: VICEINTENDENCIAS
A6: PARTIDO POLITICO | B6: TOTAL | C6: HOMBRES | E6: MUJERES | G6: TOTAL | H6: HOMBRES | J6: MUJERES | L6: TOTAL | M6: HOMBRES | O6: MUJERES
B7: ABS | C7: ABS | D7: % | E7: ABS | F7: % | G7: ABS | H7: ABS | I7: % | J7: ABS | K7: % | L7: ABS | M7: ABS | N7: % | O7: ABS | P7: %
A9: TOTAL | B9: =SUM(B11:B23) -> 103 | C9: =SUM(C11:C23) -> 51 | D9: =C9/B9*100 -> 49.51456311 | E9: =SUM(E11:E23) -> 52 | F9: =E9/B9*100 -> 50.48543689 | G9: =SUM(G11:G23) -> 53 | H9: =SUM(H11:H23) -> 39 | I9: =H9/G9*100 -> 73.58490566 | J9: =SUM(J11:J23) -> 14 | K9: =J9/G9*100 -> 26.41509434 | L9: =SUM(L11:L23) -> 50 | M9: =SUM(M11:M23) -> 12 | N9: =M9/L9*100 -> 24 | O9: =SUM(O11:O23) -> 38 | P9: =O9/L9*100 -> 76
A11: ACCESIBILIDAD SIN EXCLUSIÓN | B11: =+C11+E11 -> 2 | C11: =+H11+M11 -> 1 | D11: =C11/B11*100 -> 50 | E11: =+J11+O11 -> 1 | F11: =E11/B11*100 -> 50 | G11: =+H11+J11 -> 1 | H11: 1 | I11: =H11/G11*100 -> 100 | J11: 0 | K11: =J11/G11*100 -> 0 | L11: =+M11+O11 -> 1 | M11: 0 | N11: =M11/L11*100 -> 0 | O11: 1 | P11: =O11/L11*100 -> 100
A12: ACCIÓN CIUDADANA | B12: 14 | C12: 7 | D12: 50 | E12: 7 | F12: 50 | G12: 7 | H12: 7 | I12: 100 | J12: 0 | K12: 0 | L12: 7 | M12: 0 | N12: 0 | O12: 7 | P12: 100
A13: ALIANZA DEMOCRATA CRISTIANA | B13: 4 | C13: 2 | D13: 50 | E13: 2 | F13: 50 | G13: 2 | H13: 1 | I13: 50 | J13: 1 | K13: 50 | L13: 2 | M13: 1 | N13: 50 | O13: 1 | P13: 50
A14: FRENTE AMPLIO | B14: 7 | C14: 3 | D14: 42.85714286 | E14: 4 | F14: 57.14285714 | G14: 4 | H14: 2 | I14: 50 | J14: 2 | K14: 50 | L14: 3 | M14: 1 | N14: 33.33333333 | O14: 2 | P14: 66.66666667
A15: INTEGRACIÓN NACIONAL | B15: 6 | C15: 3 | D15: 50 | E15: 3 | F15: 50 | G15: 3 | H15: 2 | I15: 66.66666667 | J15: 1 | K15: 33.33333333 | L15: 3 | M15: 1 | N15: 33.33333333 | O15: 2 | P15: 66.66666667
A16: LIBERACIÓN NACIONAL | B16: 16 | C16: 8 | D16: 50 | E16: 8 | F16: 50 | G16: 8 | H16: 6 | I16: 75 | J16: 2 | K16: 25 | L16: 8 | M16: 2 | N16: 25 | O16: 6 | P16: 75
A17: MOVIMIENTO LIBERTARIO | B17: 9 | C17: 4 | D17: 44.44444444 | E17: 5 | F17: 55.55555556 | G17: 5 | H17: 4 | I17: 80 | J17: 1 | K17: 20 | L17: 4 | M17: 0 | N17: 0 | O17: 4 | P17: 100
A18: NUEVA GENERACION | B18: 6 | C18: 3 | D18: 50 | E18: 3 | F18: 50 | G18: 3 | H18: 2 | I18: 66.66666667 | J18: 1 | K18: 33.33333333 | L18: 3 | M18: 1 | N18: 33.33333333 | O18: 2 | P18: 66.66666667
A19: RENOVACIÓN COSTARRICENSE | B19: 2 | C19: 1 | D19: 50 | E19: 1 | F19: 50 | G19: 1 | H19: 1 | I19: 100 | J19: 0 | K19: 0 | L19: 1 | M19: 0 | N19: 0 | O19: 1 | P19: 100
A20: REPUBLICANO SOCIAL CRISTIANO | B20: 15 | C20: 8 | D20: 53.33333333 | E20: 7 | F20: 46.66666667 | G20: 8 | H20: 5 | I20: 62.5 | J20: 3 | K20: 37.5 | L20: 7 | M20: 3 | N20: 42.85714286 | O20: 4 | P20: 57.14285714
A21: RESTAURACIÓN NACIONAL | B21: 2 | C21: 1 | D21: 50 | E21: 1 | F21: 50 | G21: 1 | H21: 1 | I21: 100 | J21: 0 | K21: 0 | L21: 1 | M21: 0 | N21: 0 | O21: 1 | P21: 100
A22: UNIDAD SOCIAL CRISTIANA | B22: 16 | C22: 8 | D22: 50 | E22: 8 | F22: 50 | G22: 8 | H22: 5 | I22: 62.5 | J22: 3 | K22: 37.5 | L22: 8 | M22: 3 | N22: 37.5 | O22: 5 | P22: 62.5
A23: VIVA PUNTARENAS | B23: 4 | C23: 2 | D23: 50 | E23: 2 | F23: 50 | G23: 2 | H23: 2 | I23: 100 | J23: 0 | K23: 0 | L23: 2 | M23: 0 | N23: 0 | O23: 2 | P23: 100
A26: Nota: Datos al 26 de enero de 2016.
A27: Fuente: Departamento de Registro de Partidos Políticos, Base de datos de candidaturas febrero 2016.

Sheet 30
A1: CUADRO 30. COSTA RICA: CANDIDATURAS A INTENDENCIAS Y VICEINTENDENCIAS POR SEXO, SEGÚN PROVINCIA Y DISTRITO ADMINISTRATIVO
A2: ELECCIONES MUNICIPALES 7 DE FEBRERO 2016
A3: (CIFRAS ABSOLUTAS Y RELATIVAS)
A5: PROVINCIA / DISTRITO ADMINISTRATIVO | B5: TOTAL | G5: INTENDENCIAS | L5: VICEINTENDENCIAS
A6: PARTIDO POLITICO | B6: TOTAL | C6: HOMBRES | E6: MUJERES | G6: TOTAL | H6: HOMBRES | J6: MUJERES | L6: TOTAL | M6: HOMBRES | O6: MUJERES
C7: ABS | D7: % | E7: ABS | F7: % | G7: ABS | H7: ABS | I7: % | J7: ABS | K7: % | L7: ABS | M7: ABS | N7: % | O7: ABS | P7: %
A9: COSTA RICA | B9: =+B10+B12+B15+B17 -> 103 | C9: =+C10+C12+C15+C17 -> 51 | D9: =C9/$B9*100 -> 49.51456311 | E9: =+E10+E12+E15+E17 -> 52 | F9: =E9/$B9*100 -> 50.48543689 | G9: =+G10+G12+G15+G17 -> 53 | H9: =+H10+H12+H15+H17 -> 39 | I9: =H9/$G9*100 -> 73.58490566 | J9: =+J10+J12+J15+J17 -> 14 | K9: =J9/$G9*100 -> 26.41509434 | L9: =+L10+L12+L15+L17 -> 50 | M9: =+M10+M12+M15+M17 -> 12 | N9: =M9/$L9*100 -> 24 | O9: =+O10+O12+O15+O17 -> 38 | P9: =O9/$L9*100 -> 76
A10: PROVINCIA ALAJUELA | B10: =SUM(B11) -> 11 | C10: =SUM(C11) -> 5 | D10: =C10/$B10*100 -> 45.45454545 | E10: =SUM(E11) -> 6 | F10: =E10/$B10*100 -> 54.54545455 | G10: =SUM(G11) -> 6 | H10: =SUM(H11) -> 4 | I10: =H10/$G10*100 -> 66.66666667 | J10: =SUM(J11) -> 2 | K10: =J10/$G10*100 -> 33.33333333 | L10: =SUM(L11) -> 5 | M10: =SUM(M11) -> 1 | N10: =M10/$L10*100 -> 20 | O10: =SUM(O11) -> 4 | P10: =O10/$L10*100 -> 80
A11: PEÑAS BLANCAS | B11: =+C11+E11 -> 11 | C11: =+H11+M11 -> 5 | D11: =C11/$B11*100 -> 45.45454545 | E11: =+J11+O11 -> 6 | F11: =E11/$B11*100 -> 54.54545455 | G11: =+H11+J11 -> 6 | H11: 4 | I11: =H11/G11*100 -> 66.66666667 | J11: 2 | K11: =J11/G11*100 -> 33.33333333 | L11: =+M11+O11 -> 5 | M11: 1 | N11: =M11/L11*100 -> 20 | O11: 4 | P11: =O11/L11*100 -> 80
A12: PROVINCIA CARTAGO | B12: =SUM(B13:B14) -> 26 | C12: =SUM(C13:C14) -> 13 | D12: =C12/$B12*100 -> 50 | E12: =SUM(E13:E14) -> 13 | F12: =E12/$B12*100 -> 50 | G12: =SUM(G13:G14) -> 13 | H12: =SUM(H13:H14) -> 10 | I12: =H12/$G12*100 -> 76.92307692 | J12: =SUM(J13:J14) -> 3 | K12: =J12/$G12*100 -> 23.07692308 | L12: =SUM(L13:L14) -> 13 | M12: =SUM(M13:M14) -> 3 | N12: =M12/$L12*100 -> 23.07692308 | O12: =SUM(O13:O14) -> 10 | P12: =O12/$L12*100 -> 76.92307692
A13: TUCURRIQUE | B13: =+C13+E13 -> 12 | C13: =+H13+M13 -> 6 | D13: =C13/$B13*100 -> 50 | E13: =+J13+O13 -> 6 | F13: =E13/$B13*100 -> 50 | G13: 6 | H13: 5 | I13: =H13/G13*100 -> 83.33333333 | J13: 1 | K13: =J13/G13*100 -> 16.66666667 | L13: =+M13+O13 -> 6 | M13: 1 | N13: =M13/L13*100 -> 16.66666667 | O13: 5 | P13: =O13/L13*100 -> 83.33333333
A14: CERVANTES | B14: 14 | C14: =+H14+M14 -> 7 | D14: 50 | E14: =+J14+O14 -> 7 | F14: 50 | G14: 7 | H14: 5 | I14: =H14/G14*100 -> 71.42857143 | J14: 2 | K14: =J14/G14*100 -> 28.57142857 | L14: 7 | M14: 2 | N14: =M14/L14*100 -> 28.57142857 | O14: 5 | P14: =O14/L14*100 -> 71.42857143
A15: PROVINCIA GUANACASTE | B15: =SUM(B16) -> 14 | C15: =SUM(C16) -> 7 | D15: =C15/$B15*100 -> 50 | E15: =SUM(E16) -> 7 | F15: =E15/$B15*100 -> 50 | G15: =SUM(G16) -> 7 | H15: =SUM(H16) -> 5 | I15: =H15/$G15*100 -> 71.42857143 | J15: =SUM(J16) -> 2 | K15: =J15/$G15*100 -> 28.57142857 | L15: =SUM(L16) -> 7 | M15: =SUM(M16) -> 2 | N15: =M15/$L15*100 -> 28.57142857 | O15: =SUM(O16) -> 5 | P15: =O15/$L15*100 -> 71.42857143
A16: COLORADO | B16: =+C16+E16 -> 14 | C16: =+H16+M16 -> 7 | D16: 50 | E16: =+J16+O16 -> 7 | F16: 50 | G16: =+H16+J16 -> 7 | H16: 5 | I16: =H16/G16*100 -> 71.42857143 | J16: 2 | K16: =J16/G16*100 -> 28.57142857 | L16: =+M16+O16 -> 7 | M16: 2 | N16: =M16/L16*100 -> 28.57142857 | O16: 5 | P16: =O16/L16*100 -> 71.42857143
A17: PROVINCIA PUNTARENAS | B17: =SUM(B18:B21) -> 52 | C17: =SUM(C18:C21) -> 26 | D17: =C17/$B17*100 -> 50 | E17: =SUM(E18:E21) -> 26 | F17: =E17/$B17*100 -> 50 | G17: =SUM(G18:G21) -> 27 | H17: =SUM(H18:H21) -> 20 | I17: =H17/$G17*100 -> 74.07407407 | J17: =SUM(J18:J21) -> 7 | K17: =J17/$G17*100 -> 25.92592593 | L17: =SUM(L18:L21) -> 25 | M17: =SUM(M18:M21) -> 6 | N17: =M17/$L17*100 -> 24 | O17: =SUM(O18:O21) -> 19 | P17: =O17/$L17*100 -> 76
A18: LEPANTO | B18: =+C18+E18 -> 11 | C18: =+H18+M18 -> 6 | D18: =C18/$B18*100 -> 54.54545455 | E18: =+J18+O18 -> 5 | F18: =E18/$B18*100 -> 45.45454545 | G18: =+H18+J18 -> 6 | H18: 5 | I18: =H18/G18*100 -> 83.33333333 | J18: 1 | K18: =J18/G18*100 -> 16.66666667 | L18: =+M18+O18 -> 5 | M18: 1 | N18: =M18/L18*100 -> 20 | O18: 4 | P18: =O18/L18*100 -> 80
A19: PAQUERA | B19: 18 | C19: 9 | D19: 50 | E19: 9 | F19: =E19/$B19*100 -> 50 | G19: 9 | H19: 7 | I19: =H19/G19*100 -> 77.77777778 | J19: 2 | K19: =J19/G19*100 -> 22.22222222 | L19: 9 | M19: 2 | N19: =M19/L19*100 -> 22.22222222 | O19: 7 | P19: =O19/L19*100 -> 77.77777778
A20: MONTE VERDE | B20: 9 | C20: 4 | D20: 44.44444444 | E20: 5 | F20: =E20/$B20*100 -> 55.55555556 | G20: 5 | H20: 3 | I20: =H20/G20*100 -> 60 | J20: 2 | K20: =J20/G20*100 -> 40 | L20: 4 | M20: 1 | N20: =M20/L20*100 -> 25 | O20: 3 | P20: =O20/L20*100 -> 75
A21: COBANO | B21: =+C21+E21 -> 14 | C21: =+H21+M21 -> 7 | D21: 50 | E21: =+J21+O21 -> 7 | F21: =E21/$B21*100 -> 50 | G21: =+H21+J21 -> 7 | H21: 5 | I21: =H21/G21*100 -> 71.42857143 | J21: 2 | K21: =J21/G21*100 -> 28.57142857 | L21: =+M21+O21 -> 7 | M21: 2 | N21: =M21/L21*100 -> 28.57142857 | O21: 5 | P21: =O21/L21*100 -> 71.42857143
A24: Nota: Datos al 26 de enero de 2016.
A25: Fuente: Departamento de Registro de Partidos Políticos, Base de datos de candidaturas febrero 2016.

Sheet 31
A1: CUADRO 31. COSTA RICA: CANDIDATURAS A CONCEJALES MUNICIPALES DE DISTRITO EN PROPIEDAD Y SUPLENCIA POR SEXO, SEGÚN PARTIDO
A2: ELECCIONES MUNICIPALES 7 DE FEBRERO 2016
A3: (CIFRAS ABSOLUTAS Y RELATIVAS)
A5: PARTIDO | B5: CONCEJALES MUNICIPALES DE DISTRITO | G5: EN PROPIEDAD | L5: EN SUPLENCIA
A6: PARTIDO POLITICO | B6: TOTAL | C6: HOMBRES | E6: MUJERES | G6: TOTAL | H6: HOMBRES | J6: MUJERES | L6: TOTAL | M6: HOMBRES | O6: MUJERES
B7: ABS | C7: ABS | D7: % | E7: ABS | F7: % | G7: ABS | H7: ABS | I7: % | J7: ABS | K7: % | L7: ABS | M7: ABS | N7: % | O7: ABS | P7: %
A9: TOTAL | B9: =SUM(B11:B21) -> 349 | C9: =SUM(C11:C21) -> 174 | D9: =C9/B9*100 -> 49.85673352 | E9: =SUM(E11:E21) -> 175 | F9: =E9/B9*100 -> 50.14326648 | G9: =SUM(G11:G21) -> 177 | H9: =SUM(H11:H21) -> 89 | I9: =H9/G9*100 -> 50.28248588 | J9: =SUM(J11:J21) -> 88 | K9: =J9/G9*100 -> 49.71751412 | L9: =SUM(L11:L21) -> 172 | M9: =SUM(M11:M21) -> 85 | N9: =M9/L9*100 -> 49.41860465 | O9: =SUM(O11:O21) -> 87 | P9: =O9/L9*100 -> 50.58139535
A11: ACCESIBILIDAD SIN EXCLUSIÓN | B11: =+C11+E11 -> 4 | C11: =+H11+M11 -> 2 | D11: =C11/B11*100 -> 50 | E11: =+J11+O11 -> 2 | F11: =E11/B11*100 -> 50 | G11: =+H11+J11 -> 0 | H11: 0 | I11: 0 | J11: 0 | K11: 0 | L11: =+M11+O11 -> 4 | M11: 2 | N11: =M11/L11*100 -> 50 | O11: 2 | P11: =O11/L11*100 -> 50
A12: ACCIÓN CIUDADANA | B12: 52 | C12: 26 | D12: 50 | E12: 26 | F12: 50 | G12: 26 | H12: 13 | I12: =H12/G12*100 -> 50 | J12: 13 | K12: =J12/G12*100 -> 50 | L12: 26 | M12: 13 | N12: 50 | O12: 13 | P12: 50
A13: ALIANZA DEMOCRATA CRISTIANA | B13: 15 | C13: 7 | D13: 46.66666667 | E13: 8 | F13: 53.33333333 | G13: 8 | H13: 4 | I13: 50 | J13: 4 | K13: 50 | L13: 7 | M13: 3 | N13: 42.85714286 | O13: 4 | P13: 57.14285714
A14: FRENTE AMPLIO | B14: 33 | C14: 17 | D14: 51.51515152 | E14: 16 | F14: 48.48484848 | G14: 17 | H14: 8 | I14: 47.05882353 | J14: 9 | K14: 52.94117647 | L14: 16 | M14: 9 | N14: 56.25 | O14: 7 | P14: 43.75
A15: INTEGRACIÓN NACIONAL | B15: 19 | C15: 9 | D15: 47.36842105 | E15: 10 | F15: 52.63157895 | G15: 10 | H15: 5 | I15: 50 | J15: 5 | K15: 50 | L15: 9 | M15: 4 | N15: 44.44444444 | O15: 5 | P15: 55.55555556
A16: LIBERACIÓN NACIONAL | B16: 59 | C16: 30 | D16: 50.84745763 | E16: 29 | F16: 49.15254237 | G16: 30 | H16: 15 | I16: 50 | J16: 15 | K16: 50 | L16: 29 | M16: 15 | N16: 51.72413793 | O16: 14 | P16: 48.27586207
A17: MOVIMIENTO LIBERTARIO | B17: 24 | C17: 11 | D17: 45.83333333 | E17: 13 | F17: 54.16666667 | G17: 12 | H17: 7 | I17: 58.33333333 | J17: 5 | K17: 41.66666667 | L17: 12 | M17: 4 | N17: 33.33333333 | O17: 8 | P17: 66.66666667
A18: NUEVA GENERACION | B18: 22 | C18: 11 | D18: 50 | E18: 11 | F18: 50 | G18: 12 | H18: 6 | I18: 50 | J18: 6 | K18: 50 | L18: 10 | M18: 5 | N18: 50 | O18: 5 | P18: 50
A19: RENOVACIÓN COSTARRICENSE | B19: 8 | C19: 4 | D19: 50 | E19: 4 | F19: 50 | G19: 4 | H19: 2 | I19: 50 | J19: 2 | K19: 50 | L19: 4 | M19: 2 | N19: 50 | O19: 2 | P19: 50
A20: REPUBLICANO SOCIAL CRISTIANO | B20: 51 | C20: 26 | D20: 50.98039216 | E20: 25 | F20: 49.01960784 | G20: 28 | H20: 14 | I20: 50 | J20: 14 | K20: 50 | L20: 23 | M20: 12 | N20: 52.17391304 | O20: 11 | P20: 47.82608696
A21: UNIDAD SOCIAL CRISTIANA | B21: 62 | C21: 31 | D21: 50 | E21: 31 | F21: 50 | G21: 30 | H21: 15 | I21: 50 | J21: 15 | K21: 50 | L21: 32 | M21: 16 | N21: 50 | O21: 16 | P21: 50
A24: Nota: Datos al 26 de enero de 2016.
A25: Fuente: Departamento de Registro de Partidos Políticos, Base de datos de candidaturas febrero 2016.

Sheet 32
A1: CUADRO 32. COSTA RICA: CANDIDATURAS A CONCEJALES MUNICIPALES DE DISTRITO EN PROPIEDAD Y SUPLENCIA POR SEXO
A2: SEGÚN PROVINCIA Y DISTRITO ADMINISTRATIVO. ELECCIONES MUNICIPALES
A3: 7 DE FEBRERO 2016
A4: (CIFRAS ABSOLUTAS Y RELATIVAS)
A6: DISTRITO ADMINISTRATIVO | B6: CONCEJALES MUNICIPALES DE DISTRITO | G6: EN PROPIEDAD | L6: EN SUPLENCIA
A7: PARTIDO POLITICO | B7: TOTAL | C7: HOMBRES | E7: MUJERES | G7: TOTAL | H7: HOMBRES | J7: MUJERES | L7: TOTAL | M7: HOMBRES | O7: MUJERES
B8: ABS | C8: ABS | D8: % | E8: ABS | F8: % | G8: ABS | H8: ABS | I8: % | J8: ABS | K8: % | L8: ABS | M8: ABS | N8: % | O8: ABS | P8: %
A10: TOTAL | B10: =+B11+B13+B16+B18 -> 349 | C10: =+C11+C13+C16+C18 -> 174 | D10: =C10/$B10*100 -> 49.85673352 | E10: =+E11+E13+E16+E18 -> 175 | F10: =E10/$B10*100 -> 50.14326648 | G10: =+G11+G13+G16+G18 -> 177 | H10: =+H11+H13+H16+H18 -> 89 | I10: =H10/$G10*100 -> 50.28248588 | J10: =+J11+J13+J16+J18 -> 88 | K10: =J10/$G10*100 -> 49.71751412 | L10: =+L11+L13+L16+L18 -> 172 | M10: =+M11+M13+M16+M18 -> 85 | N10: =M10/$L10*100 -> 49.41860465 | O10: =+O11+O13+O16+O18 -> 87 | P10: =O10/$L10*100 -> 50.58139535
A11: PROVINCIA ALAJUELA | B11: =SUM(B12) -> 43 | C11: =SUM(C12) -> 21 | D11: =C11/$B11*100 -> 48.8372093 | E11: =SUM(E12) -> 22 | F11: =E11/$B11*100 -> 51.1627907 | G11: =SUM(G12) -> 22 | H11: =SUM(H12) -> 10 | I11: =H11/$G11*100 -> 45.45454545 | J11: =SUM(J12) -> 12 | K11: =J11/$G11*100 -> 54.54545455 | L11: =SUM(L12) -> 21 | M11: =SUM(M12) -> 11 | N11: =M11/$L11*100 -> 52.38095238 | O11: =SUM(O12) -> 10 | P11: =O11/$L11*100 -> 47.61904762
A12: PEÑAS BLANCAS | B12: =+C12+E12 -> 43 | C12: =+H12+M12 -> 21 | D12: =C12/$B12*100 -> 48.8372093 | E12: =+J12+O12 -> 22 | F12: =E12/$B12*100 -> 51.1627907 | G12: =+H12+J12 -> 22 | H12: 10 | I12: =H12/G12*100 -> 45.45454545 | J12: 12 | K12: =J12/G12*100 -> 54.54545455 | L12: =+M12+O12 -> 21 | M12: 11 | N12: =M12/L12*100 -> 52.38095238 | O12: 10 | P12: =O12/L12*100 -> 47.61904762
A13: PROVINCIA CARTAGO | B13: =SUM(B14:B15) -> 86 | C13: =SUM(C14:C15) -> 43 | D13: =C13/$B13*100 -> 50 | E13: =SUM(E14:E15) -> 43 | F13: =E13/$B13*100 -> 50 | G13: =SUM(G14:G15) -> 45 | H13: =SUM(H14:H15) -> 23 | I13: =H13/$G13*100 -> 51.11111111 | J13: =SUM(J14:J15) -> 22 | K13: =J13/$G13*100 -> 48.88888889 | L13: =SUM(L14:L15) -> 41 | M13: =SUM(M14:M15) -> 20 | N13: =M13/$L13*100 -> 48.7804878 | O13: =SUM(O14:O15) -> 21 | P13: =O13/$L13*100 -> 51.2195122
A14: TUCURRIQUE | B14: =+C14+E14 -> 47 | C14: =+H14+M14 -> 24 | D14: =C14/$B14*100 -> 51.06382979 | E14: =+J14+O14 -> 23 | F14: =E14/$B14*100 -> 48.93617021 | G14: 23 | H14: 12 | I14: 52.17391304 | J14: 11 | K14: 47.82608696 | L14: 24 | M14: 12 | N14: 50 | O14: 12 | P14: 50
A15: CERVANTES | B15: =+C15+E15 -> 39 | C15: =+H15+M15 -> 19 | D15: 48.71794872 | E15: =+J15+O15 -> 20 | F15: 51.28205128 | G15: 22 | H15: 11 | I15: 50 | J15: 11 | K15: 50 | L15: 17 | M15: 8 | N15: 47.05882353 | O15: 9 | P15: 52.94117647
A16: PROVINCIA GUANACASTE | B16: =SUM(B17) -> 52 | C16: =SUM(C17) -> 25 | D16: =C16/$B16*100 -> 48.07692308 | E16: =SUM(E17) -> 27 | F16: =E16/$B16*100 -> 51.92307692 | G16: =SUM(G17) -> 27 | H16: =SUM(H17) -> 13 | I16: =H16/$G16*100 -> 48.14814815 | J16: =SUM(J17) -> 14 | K16: =J16/$G16*100 -> 51.85185185 | L16: =SUM(L17) -> 25 | M16: =SUM(M17) -> 12 | N16: =M16/$L16*100 -> 48 | O16: =SUM(O17) -> 13 | P16: =O16/$L16*100 -> 52
A17: COLORADO | B17: =+C17+E17 -> 52 | C17: =+H17+M17 -> 25 | D17: 48.07692308 | E17: =+J17+O17 -> 27 | F17: 51.92307692 | G17: =+H17+J17 -> 27 | H17: 13 | I17: =H17/G17*100 -> 48.14814815 | J17: 14 | K17: =J17/G17*100 -> 51.85185185 | L17: =+M17+O17 -> 25 | M17: 12 | N17: =M17/L17*100 -> 48 | O17: 13 | P17: =O17/L17*100 -> 52
A18: PROVINCIA PUNTARENAS | B18: =SUM(B19:B22) -> 168 | C18: =SUM(C19:C22) -> 85 | D18: =C18/$B18*100 -> 50.5952381 | E18: =SUM(E19:E22) -> 83 | F18: =E18/$B18*100 -> 49.4047619 | G18: =SUM(G19:G22) -> 83 | H18: =SUM(H19:H22) -> 43 | I18: =H18/$G18*100 -> 51.80722892 | J18: =SUM(J19:J22) -> 40 | K18: =J18/$G18*100 -> 48.19277108 | L18: =SUM(L19:L22) -> 85 | M18: =SUM(M19:M22) -> 42 | N18: =M18/$L18*100 -> 49.41176471 | O18: =SUM(O19:O22) -> 43 | P18: =O18/$L18*100 -> 50.58823529
A19: LEPANTO | B19: =+C19+E19 -> 49 | C19: =+H19+M19 -> 24 | D19: 48.97959184 | E19: =+J19+O19 -> 25 | F19: 51.02040816 | G19: =+H19+J19 -> 25 | H19: 12 | I19: =H19/G19*100 -> 48 | J19: 13 | K19: =J19/G19*100 -> 52 | L19: =+M19+O19 -> 24 | M19: 12 | N19: =M19/L19*100 -> 50 | O19: 12 | P19: =O19/L19*100 -> 50
A20: PAQUERA | B20: =+C20+E20 -> 44 | C20: =+H20+M20 -> 23 | D20: =C20/$B20*100 -> 52.27272727 | E20: =+J20+O20 -> 21 | F20: =E20/$B20*100 -> 47.72727273 | G20: =+H20+J20 -> 21 | H20: 11 | I20: =H20/G20*100 -> 52.38095238 | J20: 10 | K20: =J20/G20*100 -> 47.61904762 | L20: =+M20+O20 -> 23 | M20: 12 | N20: =M20/L20*100 -> 52.17391304 | O20: 11 | P20: =O20/L20*100 -> 47.82608696
A21: MONTE VERDE | B21: 31 | C21: 16 | D21: 51.61290323 | E21: 15 | F21: 48.38709677 | G21: 15 | H21: 8 | I21: 53.33333333 | J21: 7 | K21: 46.66666667 | L21: 16 | M21: 8 | N21: =M21/L21*100 -> 50 | O21: 8 | P21: 50
A22: COBANO | B22: 44 | C22: 22 | D22: 50 | E22: 22 | F22: 50 | G22: 22 | H22: 12 | I22: 54.54545455 | J22: 10 | K22: 45.45454545 | L22: 22 | M22: 10 | N22: 45.45454545 | O22: 12 | P22: 54.54545455
A25: Nota: Datos al 26 de enero de 2016.
A26: Fuente: Departamento de Registro de Partidos Políticos, Base de datos de candidaturas febrero 2016.

Sheet 33
A1: CUADRO 33. COSTA RICA: CANDIDATURAS A ALCALDÍAS Y VICEALCALDÍAS POR SEXO, SEGÚN GRUPOS DE EDAD
A2: ELECCIONES MUNICIPALES 7 DE FEBRERO 2016
A4: GRUPOS DE EDAD | B4: TOTAL | E4: ALCALDÍAS | H4: VICEALCALDÍA PRIMERA | K4: VICEALCALDÍA PRIMERA
B5: TOTAL | C5: HOMBRES | D5: MUJERES | E5: TOTAL | F5: HOMBRES | G5: MUJERES | H5: TOTAL | I5: HOMBRES | J5: MUJERES | K5: TOTAL | L5: HOMBRES | M5: MUJERES
A7: TOTAL | B7: =SUM(B9:B19) -> 1780 | C7: 1035 | D7: 745 | E7: 605 | F7: 489 | G7: 116 | H7: 593 | I7: 112 | J7: 481 | K7: 582 | L7: 434 | M7: 148
A9: 18 A 24 | B9: =+C9+D9 -> 83 | C9: =+F9+I9+L9 -> 40 | D9: 43 | E9: =+F9+G9 -> 5 | F9: 3 | G9: 2 | H9: =+I9+J9 -> 32 | I9: 7 | J9: 25 | K9: =+L9+M9 -> 46 | L9: 30 | M9: 16
A10: 25 A 29 | B10: 133 | C10: 62 | D10: 71 | E10: 15 | F10: 11 | G10: 4 | H10: 64 | I10: 15 | J10: 49 | K10: 54 | L10: 36 | M10: 18
A11: 30 A 34 | B11: 174 | C11: 78 | D11: 96 | E11: 34 | F11: 26 | G11: 8 | H11: 80 | I11: 7 | J11: 73 | K11: 60 | L11: 45 | M11: 15
A12: 35 A 39 | B12: 179 | C12: 79 | D12: 100 | E12: 38 | F12: 28 | G12: 10 | H12: 81 | I12: 9 | J12: 72 | K12: 60 | L12: 42 | M12: 18
A13: 40 A 44 | B13: 172 | C13: 85 | D13: 87 | E13: 56 | F13: 44 | G13: 12 | H13: 69 | I13: 14 | J13: 55 | K13: 47 | L13: 27 | M13: 20
A14: 45 A 49 | B14: 233 | C14: 137 | D14: 96 | E14: 68 | F14: 51 | G14: 17 | H14: 75 | I14: 18 | J14: 57 | K14: 90 | L14: 68 | M14: 22
A15: 50 A 54 | B15: 269 | C15: 164 | D15: 105 | E15: 128 | F15: 99 | G15: 29 | H15: 81 | I15: 18 | J15: 63 | K15: 60 | L15: 47 | M15: 13
A16: 55 A 59 | B16: 243 | C16: 167 | D16: 76 | E16: 124 | F16: 104 | G16: 20 | H16: 50 | I16: 7 | J16: 43 | K16: 69 | L16: 56 | M16: 13
A17: 60 A 64 | B17: 182 | C17: 137 | D17: 45 | E17: 92 | F17: 81 | G17: 11 | H17: 39 | I17: 9 | J17: 30 | K17: 51 | L17: 47 | M17: 4
A18: 65 A 69 | B18: 75 | C18: 55 | D18: 20 | E18: 33 | F18: 30 | G18: 3 | H18: 16 | I18: 5 | J18: 11 | K18: 26 | L18: 20 | M18: 6
A19: 70 Y MÁS | B19: 37 | C19: 31 | D19: 6 | E19: 12 | F19: 12 | G19: 0 | H19: 6 | I19: 3 | J19: 3 | K19: 19 | L19: 16 | M19: 3
A22: Nota: Datos al 26 de enero de 2016.
A23: Fuente: Departamento de Registro de Partidos Políticos, Base de datos de candidaturas febrero 2016.

Sheet G4
A3: HOMBRES | B3: MUJERES
A5: =+'33'!C9 -> 40 | B5: =-1*'33'!D9 -> -43 | C5: 18 - 24 | D5: =CONCATENATE(C5," ") -> 18 - 24
A6: =+'33'!C10 -> 62 | B6: =-1*'33'!D10 -> -71 | C6: 25 - 29 | D6: 25 - 29
A7: =+'33'!C11 -> 78 | B7: =-1*'33'!D11 -> -96 | C7: 30 - 34 | D7: 30 - 34
A8: =+'33'!C12 -> 79 | B8: =-1*'33'!D12 -> -100 | C8: 35 - 39 | D8: 35 - 39
A9: =+'33'!C13 -> 85 | B9: =-1*'33'!D13 -> -87 | C9: 40 - 44 | D9: 40 - 44
A10: =+'33'!C14 -> 137 | B10: =-1*'33'!D14 -> -96 | C10: 45 - 49 | D10: 45 - 49
A11: =+'33'!C15 -> 164 | B11: =-1*'33'!D15 -> -105 | C11: 50 - 54 | D11: 50 - 54
A12: =+'33'!C16 -> 167 | B12: =-1*'33'!D16 -> -76 | C12: 55 - 59 | D12: 55 - 59
A13: =+'33'!C17 -> 137 | B13: =-1*'33'!D17 -> -45 | C13: 60 - 64 | D13: 60 - 64
A14: =+'33'!C18 -> 55 | B14: =-1*'33'!D18 -> -20 | C14: 65 - 69 | D14: 65 - 69
A15: =+'33'!C19 -> 31 | B15: =-1*'33'!D19 -> -6 | C15: 70 Y MÁS | D15: 70 Y MÁS
L18: =CONCATENATE(K18," ") -> 
A27: Nota: Datos al 26 de enero de 2016.
A28: Fuente: Departamento de Registro de Partidos Políticos, Base de datos de candidaturas febrero 2016.

Sheet 34
A1: CUADRO 34. COSTA RICA: CANDIDATURAS A REGIDORES(AS) EN PROPIEDAD Y SUPLENCIA POR SEXO
A2: SEGÚN GRUPOS DE EDAD. ELECCIONES MUNICIPALES
A3: 7 DE FEBRERO 2016
A5: GRUPOS DE EDAD | B5: REGIDORES (AS) | E5: EN PROPIEDAD | H5: EN SUPLENCIA
B6: TOTAL | C6: HOMBRES | D6: MUJERES | E6: TOTAL | F6: HOMBRES | G6: MUJERES | H6: TOTAL | I6: HOMBRES | J6: MUJERES
A8: TOTAL | B8: =SUM(B10:B20) -> 7016 | C8: 3604 | D8: 3412 | E8: 3547 | F8: 1909 | G8: 1638 | H8: 3469 | I8: 1695 | J8: 1774
A10: 18 - 24 | B10: =+C10+D10 -> 576 | C10: =+F10+I10 -> 278 | D10: 298 | E10: =+F10+G10 -> 256 | F10: 132 | G10: 124 | H10: =+I10+J10 -> 320 | I10: 146 | J10: 174
A11: 25 - 29 | B11: 679 | C11: 311 | D11: 368 | E11: 288 | F11: 140 | G11: 148 | H11: 391 | I11: 171 | J11: 220
A12: 30 - 34 | B12: 755 | C12: 366 | D12: 389 | E12: 369 | F12: 179 | G12: 190 | H12: 386 | I12: 187 | J12: 199
A13: 35 - 39 | B13: 727 | C13: 320 | D13: 407 | E13: 357 | F13: 169 | G13: 188 | H13: 370 | I13: 151 | J13: 219
A14: 40 - 44 | B14: 664 | C14: 304 | D14: 360 | E14: 335 | F14: 170 | G14: 165 | H14: 329 | I14: 134 | J14: 195
A15: 45 - 49 | B15: 806 | C15: 399 | D15: 407 | E15: 428 | F15: 215 | G15: 213 | H15: 378 | I15: 184 | J15: 194
A16: 50 - 54 | B16: 873 | C16: 443 | D16: 430 | E16: 443 | F16: 231 | G16: 212 | H16: 430 | I16: 212 | J16: 218
A17: 55 - 59 | B17: 763 | C17: 428 | D17: 335 | E17: 437 | F17: 256 | G17: 181 | H17: 326 | I17: 172 | J17: 154
A18: 60 - 64 | B18: 578 | C18: 336 | D18: 242 | E18: 326 | F18: 193 | G18: 133 | H18: 252 | I18: 143 | J18: 109
A19: 65 - 69 | B19: 348 | C19: 237 | D19: 111 | E19: 190 | F19: 128 | G19: 62 | H19: 158 | I19: 109 | J19: 49
A20: 70 Y MÁS | B20: 247 | C20: 182 | D20: 65 | E20: 118 | F20: 96 | G20: 22 | H20: 129 | I20: 86 | J20: 43
A23: Nota: Datos al 26 de enero de 2016.
A24: Fuente: Departamento de Registro de Partidos Políticos, Base de datos de candidaturas febrero 2016.

Sheet G5
A3: HOMBRES | B3: MUJERES
A5: =+'35'!C10 -> 190 | B5: =+'35'!D10*-1 -> -247 | C5: 18 - 24 | D5: =CONCATENATE(C5," ") -> 18 - 24
A6: =+'35'!C11 -> 233 | B6: =+'35'!D11*-1 -> -309 | C6: 25 - 29 | D6: 25 - 29
A7: =+'35'!C12 -> 242 | B7: =+'35'!D12*-1 -> -348 | C7: 30 - 34 | D7: 30 - 34
A8: =+'35'!C13 -> 258 | B8: =+'35'!D13*-1 -> -389 | C8: 35 - 39 | D8: 35 - 39
A9: =+'35'!C14 -> 299 | B9: =+'35'!D14*-1 -> -386 | C9: 40 - 44 | D9: 40 - 44
A10: =+'35'!C15 -> 385 | B10: =+'35'!D15*-1 -> -378 | C10: 45 - 49 | D10: 45 - 49
A11: =+'35'!C16 -> 428 | B11: =+'35'!D16*-1 -> -355 | C11: 50 - 54 | D11: 50 - 54
A12: =+'35'!C17 -> 396 | B12: =+'35'!D17*-1 -> -292 | C12: 55 - 59 | D12: 55 - 59
A13: =+'35'!C18 -> 273 | B13: =+'35'!D18*-1 -> -182 | C13: 60 - 64 | D13: 60 - 64
A14: =+'35'!C19 -> 198 | B14: =+'35'!D19*-1 -> -94 | C14: 65 - 69 | D14: 65 - 69
A15: =+'35'!C20 -> 161 | B15: =+'35'!D20*-1 -> -42 | C15: 70 Y MÁS | D15: 70 Y MÁS
L18: =CONCATENATE(K18," ") -> 
A27: Nota: Datos al 26 de enero de 2016.
A28: Fuente: Departamento de Registro de Partidos Políticos, Base de datos de candidaturas febrero 2016.

Sheet 35
A1: CUADRO 35. COSTA RICA: CANDIDATURAS A SÍNDICOS(AS) EN PROPIEDAD Y SUPLENCIA POR SEXO
A2: SEGÚN GRUPOS DE EDAD. ELECCIONES MUNICIPALES
A3: 7 DE FEBRERO 2016
A5: GRUPOS DE EDAD | B5: SÍNDICOS(AS) | E5: EN PROPIEDAD | H5: EN SUPLENCIA
B6: TOTAL | C6: HOMBRES | D6: MUJERES | E6: TOTAL | F6: HOMBRES | G6: MUJERES | H6: TOTAL | I6: HOMBRES | J6: MUJERES
A8: TOTAL | B8: =SUM(B10:B20) -> 6085 | C8: 3063 | D8: 3022 | E8: 3169 | F8: 2027 | G8: 1142 | H8: 2916 | I8: 1036 | J8: 1880
A10: 18 - 24 | B10: =+C10+D10 -> 437 | C10: =+F10+I10 -> 190 | D10: 247 | E10: =+F10+G10 -> 159 | F10: 91 | G10: 68 | H10: =+I10+J10 -> 278 | I10: 99 | J10: 179
A11: 25 - 29 | B11: 542 | C11: 233 | D11: 309 | E11: 219 | F11: 129 | G11: 90 | H11: 323 | I11: 104 | J11: 219
A12: 30 - 34 | B12: 590 | C12: 242 | D12: 348 | E12: 257 | F12: 137 | G12: 120 | H12: 333 | I12: 105 | J12: 228
A13: 35 - 39 | B13: 647 | C13: 258 | D13: 389 | E13: 313 | F13: 166 | G13: 147 | H13: 334 | I13: 92 | J13: 242
A14: 40 - 44 | B14: 685 | C14: 299 | D14: 386 | E14: 350 | F14: 210 | G14: 140 | H14: 335 | I14: 89 | J14: 246
A15: 45 - 49 | B15: 763 | C15: 385 | D15: 378 | E15: 435 | F15: 273 | G15: 162 | H15: 328 | I15: 112 | J15: 216
A16: 50 - 54 | B16: 783 | C16: 428 | D16: 355 | E16: 451 | F16: 290 | G16: 161 | H16: 332 | I16: 138 | J16: 194
A17: 55 - 59 | B17: 688 | C17: 396 | D17: 292 | E17: 399 | F17: 274 | G17: 125 | H17: 289 | I17: 122 | J17: 167
A18: 60 - 64 | B18: 455 | C18: 273 | D18: 182 | E18: 274 | F18: 196 | G18: 78 | H18: 181 | I18: 77 | J18: 104
A19: 65 - 69 | B19: 292 | C19: 198 | D19: 94 | E19: 193 | F19: 159 | G19: 34 | H19: 99 | I19: 39 | J19: 60
A20: 70 Y MÁS | B20: 203 | C20: 161 | D20: 42 | E20: 119 | F20: 102 | G20: 17 | H20: 84 | I20: 59 | J20: 25
A23: Nota: Datos al 26 de enero de 2016.
A24: Fuente: Departamento de Registro de Partidos Políticos, Base de datos de candidaturas febrero 2016.

Sheet G6
A3: HOMBRES | B3: MUJERES
A5: =+'35'!C10 -> 190 | B5: =+'35'!D10*-1 -> -247 | C5: 18 - 24 | D5: =CONCATENATE(C5," ") -> 18 - 24
A6: =+'35'!C11 -> 233 | B6: =+'35'!D11*-1 -> -309 | C6: 25 - 29 | D6: 25 - 29
A7: =+'35'!C12 -> 242 | B7: =+'35'!D12*-1 -> -348 | C7: 30 - 34 | D7: 30 - 34
A8: =+'35'!C13 -> 258 | B8: =+'35'!D13*-1 -> -389 | C8: 35 - 39 | D8: 35 - 39
A9: =+'35'!C14 -> 299 | B9: =+'35'!D14*-1 -> -386 | C9: 40 - 44 | D9: 40 - 44
A10: =+'35'!C15 -> 385 | B10: =+'35'!D15*-1 -> -378 | C10: 45 - 49 | D10: 45 - 49
A11: =+'35'!C16 -> 428 | B11: =+'35'!D16*-1 -> -355 | C11: 50 - 54 | D11: 50 - 54
A12: =+'35'!C17 -> 396 | B12: =+'35'!D17*-1 -> -292 | C12: 55 - 59 | D12: 55 - 59
A13: =+'35'!C18 -> 273 | B13: =+'35'!D18*-1 -> -182 | C13: 60 - 64 | D13: 60 - 64
A14: =+'35'!C19 -> 198 | B14: =+'35'!D19*-1 -> -94 | C14: 65 - 69 | D14: 65 - 69
A15: =+'35'!C20 -> 161 | B15: =+'35'!D20*-1 -> -42 | C15: 70 Y MÁS | D15: 70 Y MÁS
L18: =CONCATENATE(K18," ") -> 
A27: Nota: Datos al 26 de enero de 2016.
A28: Fuente: Departamento de Registro de Partidos Políticos, Base de datos de candidaturas febrero 2016.

Sheet 36
A1: CUADRO 36. COSTA RICA: CANDIDATURAS A CONCEJALES DE DISTRITO EN PROPIEDAD Y SUPLENCIA POR SEXO
A2: SEGÚN GRUPOS DE EDAD. ELECCIONES MUNICIPALES
A3: 7 DE FEBRERO 2016
A5: GRUPOS DE EDAD | B5: CONCEJALES DE DISTRITO | E5: EN PROPIEDAD | H5: EN SUPLENCIA
B6: TOTAL | C6: HOMBRES | D6: MUJERES | E6: TOTAL | F6: HOMBRES | G6: MUJERES | H6: TOTAL | I6: HOMBRES | J6: MUJERES
A8: TOTAL | B8: =SUM(B10:B20) -> 16546 | C8: 8272 | D8: 8274 | E8: 8839 | F8: 4429 | G8: 4410 | H8: 7707 | I8: 3843 | J8: 3864
A10: 18 - 24 | B10: =+C10+D10 -> 1741 | C10: =+F10+I10 -> 822 | D10: 919 | E10: =+F10+G10 -> 888 | F10: 413 | G10: 475 | H10: =+I10+J10 -> 853 | I10: 409 | J10: 444
A11: 25 - 29 | B11: 1896 | C11: 890 | D11: 1006 | E11: 920 | F11: 414 | G11: 506 | H11: 976 | I11: 476 | J11: 500
A12: 30 - 34 | B12: 1792 | C12: 763 | D12: 1029 | E12: 926 | F12: 386 | G12: 540 | H12: 866 | I12: 377 | J12: 489
A13: 35 - 39 | B13: 1669 | C13: 740 | D13: 929 | E13: 907 | F13: 393 | G13: 514 | H13: 762 | I13: 347 | J13: 415
A14: 40 - 44 | B14: 1774 | C14: 795 | D14: 979 | E14: 960 | F14: 439 | G14: 521 | H14: 814 | I14: 356 | J14: 458
A15: 45 - 49 | B15: 1855 | C15: 917 | D15: 938 | E15: 1007 | F15: 500 | G15: 507 | H15: 848 | I15: 417 | J15: 431
A16: 50 - 54 | B16: 1869 | C16: 941 | D16: 928 | E16: 1034 | F16: 525 | G16: 509 | H16: 835 | I16: 416 | J16: 419
A17: 55 - 59 | B17: 1492 | C17: 814 | D17: 678 | E17: 819 | F17: 451 | G17: 368 | H17: 673 | I17: 363 | J17: 310
A18: 60 - 64 | B18: 1077 | C18: 648 | D18: 429 | E18: 596 | F18: 364 | G18: 232 | H18: 481 | I18: 284 | J18: 197
A19: 65 - 69 | B19: 712 | C19: 471 | D19: 241 | E19: 407 | F19: 269 | G19: 138 | H19: 305 | I19: 202 | J19: 103
A20: 70 Y MÁS | B20: 669 | C20: 471 | D20: 198 | E20: 375 | F20: 275 | G20: 100 | H20: 294 | I20: 196 | J20: 98
A23: Nota: Datos al 26 de enero de 2016.
A24: Fuente: Departamento de Registro de Partidos Políticos, Base de datos de candidaturas febrero 2016.

Sheet G7
A3: HOMBRES | B3: MUJERES
A5: =+'36'!C10 -> 822 | B5: =+'36'!D10*-1 -> -919 | C5: 18 - 24 | D5: =CONCATENATE(C5," ") -> 18 - 24
A6: =+'36'!C11 -> 890 | B6: =+'36'!D11*-1 -> -1006 | C6: 25 - 29 | D6: 25 - 29
A7: =+'36'!C12 -> 763 | B7: =+'36'!D12*-1 -> -1029 | C7: 30 - 34 | D7: 30 - 34
A8: =+'36'!C13 -> 740 | B8: =+'36'!D13*-1 -> -929 | C8: 35 - 39 | D8: 35 - 39
A9: =+'36'!C14 -> 795 | B9: =+'36'!D14*-1 -> -979 | C9: 40 - 44 | D9: 40 - 44
A10: =+'36'!C15 -> 917 | B10: =+'36'!D15*-1 -> -938 | C10: 45 - 49 | D10: 45 - 49
A11: =+'36'!C16 -> 941 | B11: =+'36'!D16*-1 -> -928 | C11: 50 - 54 | D11: 50 - 54
A12: =+'36'!C17 -> 814 | B12: =+'36'!D17*-1 -> -678 | C12: 55 - 59 | D12: 55 - 59
A13: =+'36'!C18 -> 648 | B13: =+'36'!D18*-1 -> -429 | C13: 60 - 64 | D13: 60 - 64
A14: =+'36'!C19 -> 471 | B14: =+'36'!D19*-1 -> -241 | C14: 65 - 69 | D14: 65 - 69
A15: =+'36'!C20 -> 471 | B15: =+'36'!D20*-1 -> -198 | C15: 70 Y MÁS | D15: 70 Y MÁS
A27: Nota: Datos al 26 de enero de 2016.
A28: Fuente: Departamento de Registro de Partidos Políticos, Base de datos de candidaturas febrero 2016.

Sheet 37
A1: CUADRO 37. COSTA RICA: CANDIDATURAS A INTENDENCIAS Y VICEINTENDENCIAS POR SEXO
A2: SEGÚN GRUPOS DE EDAD. ELECCIONES MUNICIPALES
A3: 7 DE FEBRERO 2016
A5: GRUPOS DE EDAD | B5: TOTAL | E5: INTENDENCIAS | H5: VICEINTENDENCIAS
B6: TOTAL | C6: HOMBRES | D6: MUJERES | E6: TOTAL | F6: HOMBRES | G6: MUJERES | H6: TOTAL | I6: HOMBRES | J6: MUJERES
A8: TOTAL | B8: =SUM(B10:B20) -> 103 | C8: 51 | D8: 52 | E8: 53 | F8: 39 | G8: 14 | H8: 50 | I8: 12 | J8: 38
A10: 18 - 24 | B10: =+C10+D10 -> 6 | C10: =+F10+I10 -> 0 | D10: 6 | E10: =+F10+G10 -> 0 | F10: 0 | G10: 0 | H10: =+I10+J10 -> 6 | I10: 0 | J10: 6
A11: 25 - 29 | B11: 11 | C11: 0 | D11: 11 | E11: 2 | F11: 0 | G11: 2 | H11: 9 | I11: 0 | J11: 9
A12: 30 - 34 | B12: 9 | C12: 5 | D12: 4 | E12: 3 | F12: 2 | G12: 1 | H12: 6 | I12: 3 | J12: 3
A13: 35 - 39 | B13: =+C13+D13 -> 8 | C13: =+F13+I13 -> 3 | D13: =+G13+J13 -> 5 | E13: =+F13+G13 -> 5 | F13: 3 | G13: 2 | H13: =+I13+J13 -> 3 | I13: 0 | J13: 3
A14: 40 - 44 | B14: 13 | C14: 9 | D14: 4 | E14: 3 | F14: 3 | G14: 0 | H14: 10 | I14: 6 | J14: 4
A15: 45 - 49 | B15: 25 | C15: 13 | D15: 12 | E15: 16 | F15: 12 | G15: 4 | H15: 9 | I15: 1 | J15: 8
A16: 50 - 54 | B16: 13 | C16: 10 | D16: 3 | E16: 10 | F16: 9 | G16: 1 | H16: 3 | I16: 1 | J16: 2
A17: 55 - 59 | B17: 11 | C17: 5 | D17: 6 | E17: 7 | F17: 4 | G17: 3 | H17: 4 | I17: 1 | J17: 3
A18: 60 - 64 | B18: =+C18+D18 -> 5 | C18: =+F18+I18 -> 4 | D18: =+G18+J18 -> 1 | E18: =+F18+G18 -> 5 | F18: 4 | G18: 1 | H18: =+I18+J18 -> 0 | I18: 0 | J18: 0
A19: 65 - 69 | B19: 2 | C19: 2 | D19: 0 | E19: 2 | F19: 2 | G19: 0 | H19: 0 | I19: 0 | J19: 0
A20: 70 Y MÁS | B20: =+C20+D20 -> 0 | C20: =+F20+I20 -> 0 | D20: =+G20+J20 -> 0 | E20: =+F20+G20 -> 0 | F20: 0 | G20: 0 | H20: =+I20+J20 -> 0 | I20: 0 | J20: 0
A23: Nota: Datos al 26 de enero de 2016.
A24: Fuente: Departamento de Registro de Partidos Políticos, Base de datos de candidaturas febrero 2016.

Sheet 38
A1: CUADRO 38. COSTA RICA: CANDIDATURAS A CONCEJALES MUNICIPALES DE DISTRITO EN PROPIEDAD Y SUPLENCIA
A2: POR SEXO, SEGÚN GRUPOS DE EDAD. ELECCIONES MUNICIPALES
A3: 7 DE FEBRERO 2016
A5: GRUPOS DE EDAD | B5: CONCEJALES MUNICIPALES DE DISTRITO | E5: EN PROPIEDAD | H5: EN SUPLENCIA
B6: TOTAL | C6: HOMBRES | D6: MUJERES | E6: TOTAL | F6: HOMBRES | G6: MUJERES | H6: TOTAL | I6: HOMBRES | J6: MUJERES
A8: TOTAL | B8: =SUM(B10:B20) -> 349 | C8: 174 | D8: 175 | E8: 177 | F8: 89 | G8: 88 | H8: 172 | I8: 85 | J8: 87
A10: 18 - 24 | B10: =+C10+D10 -> 26 | C10: =+F10+I10 -> 8 | D10: 18 | E10: =+F10+G10 -> 12 | F10: 4 | G10: 8 | H10: =+I10+J10 -> 14 | I10: 4 | J10: 10
A11: 25 - 29 | B11: 32 | C11: 13 | D11: 19 | E11: 18 | F11: 9 | G11: 9 | H11: 14 | I11: 4 | J11: 10
A12: 30 - 34 | B12: 47 | C12: 18 | D12: 29 | E12: 22 | F12: 7 | G12: 15 | H12: 25 | I12: 11 | J12: 14
A13: 35 - 39 | B13: 46 | C13: 22 | D13: 24 | E13: 18 | F13: 8 | G13: 10 | H13: 28 | I13: 14 | J13: 14
A14: 40 - 44 | B14: 44 | C14: 21 | D14: 23 | E14: 26 | F14: 15 | G14: 11 | H14: 18 | I14: 6 | J14: 12
A15: 45 - 49 | B15: 59 | C15: 29 | D15: 30 | E15: 32 | F15: 15 | G15: 17 | H15: 27 | I15: 14 | J15: 13
A16: 50 - 54 | B16: 38 | C16: 23 | D16: 15 | E16: 20 | F16: 9 | G16: 11 | H16: 18 | I16: 14 | J16: 4
A17: 55 - 59 | B17: 30 | C17: 19 | D17: 11 | E17: 13 | F17: 10 | G17: 3 | H17: 17 | I17: 9 | J17: 8
A18: 60 - 64 | B18: 13 | C18: 10 | D18: 3 | E18: 5 | F18: 4 | G18: 1 | H18: 8 | I18: 6 | J18: 2
A19: 65 - 69 | B19: 8 | C19: 6 | D19: 2 | E19: 6 | F19: 4 | G19: 2 | H19: 2 | I19: 2 | J19: 0
A20: 70 Y MÁS | B20: 6 | C20: 5 | D20: 1 | E20: 5 | F20: 4 | G20: 1 | H20: 1 | I20: 1 | J20: 0
A23: Nota: Datos al 26 de enero de 2016.
A24: Fuente: Departamento de Registro de Partidos Políticos, Base de datos de candidaturas febrero 2016.

Sheet MENUDATOS (hidden)
A1: Cuadro 1 | B1: TOTAL Y VARIACIÓN DEL PADRÓN NACIONAL ELECTORAL, SEGÚN PROVINCIA Y SEXO | C1: 1
A2: Gráfico 1 | B2: PADRÓN NACIONAL ELECTORAL POR PROCESO ELECTORAL, SEGÚN PROVINCIA | C2: G1
A3: Cuadro 2 | B3: PADRÓN NACIONAL ELECTORAL POR SEXO, SEGÚN PROVINCIA Y CANTÓN | C3: 2
A4: Cuadro 3 | B4: PADRÓN NACIONAL ELECTORAL POR SEXO, SEGÚN EDAD | C4: 3
A5: Cuadro 4 | B5: PADRÓN NACIONAL ELECTORAL POR SEXO, SEGÚN GRUPOS DE EDAD | C5: 4
A6: Gráfico 2 | B6: DISTRIBUCIÓN DEL PADRÓN NACIONAL ELECTORAL POR SEXO Y GRUPOS DE EDAD | C6: G2
A7: Cuadro 5 | B7: PADRÓN NACIONAL ELECTORAL POR PROVINCIA, SEGÚN SEXO Y GRUPOS DE EDAD | C7: 5
A8: Cuadro 6 | B8: ELECTORADO NATURALIZADO POR PAÍS DE ORIGEN, SEGÚN SEXO Y GRUPO DE EDAD | C8: 6
B9: ---- MENU PRINCIPAL ---- | C9: INICIO
A11: Cuadro 7 | B11: CANTONES, DISTRITOS ADMINISTRATIVOS Y ELECTORALES, SEGÚN PROVINCIA | C11: 7
A12: Cuadro 8 | B12: MOVIMIENTOS A LA DIVISIÓN TERRITORIAL ELECTORAL, SEGÚN PROVINCIA | C12: 8
A13: Cuadro 9 | B13: DISTRITOS ELECTORALES CREADOS, SEGÚN PROVINCIA Y CANTÓN | C13: 9
A14: Cuadro 10 | B14: DISTRITOS ELECTORALES REUBICADOS EN OTRA LOCALIDAD DEL MISMO DISTRITO ELECTORAL, SEGÚN PROVINCIA Y CANTÓN | C14: 10
A15: Cuadro 11 | B15: DISTRITOS ELECTORALES REFUNDIDOS, SEGÚN PROVINCIA Y CANTÓN | C15: 11
B16: ---- MENU PRINCIPAL ---- | C16: INICIO
A18: Cuadro 12 | B18: JUNTAS RECEPTORAS Y ELECTORADO EN CENTROS PENITENCIARIOS, HOGARES DE ANCIANOS Y ZONAS INDÍGENAS, SEGÚN PROVINCIA | C18: 12
A19: Cuadro 13 | B19: JUNTAS RECEPTORAS Y ELECTORADO EN CENTROS PENITENCIARIOS, SEGÚN PROVINCIA Y DISTRITO ELECTORAL | C19: 13
A20: Cuadro 14 | B20: JUNTAS RECEPTORAS Y ELECTORADO EN HOGARES DE ANCIANOS, SEGÚN PROVINCIA Y DISTRITO ELECTORAL | C20: 14
A21: Cuadro 15 | B21: JUNTAS RECEPTORAS Y ELECTORADO EN ZONAS INDÍGENAS, SEGÚN PROVINCIA Y DISTRITO ELECTORAL | C21: 15
A22: Cuadro 16 | B22: JUNTAS RECEPTORAS Y ELECTORADO EN CENTROS DE SALUD MENTAL, SEGÚN PROVINCIA Y DISTRITO ELECTORAL | C22: 16
B23: ---- MENU PRINCIPAL ---- | C23: INICIO
A25: Cuadro 17 | B25: PARTIDOS POLÍTICOS QUE PARTICIPAN EN LAS ELECCIONES, SEGÚN ESCALA | C25: 17
A26: Cuadro 18 | B26: PRESUPUESTO ELECTORAL 2016 (SUBPROGRAMA 850-02) PARA ELECCIONES | C26: 18
A27: Cuadro 19 | B27: CANDIDATURAS INSCRITAS POR ELECCIÓN, SEGÚN PROVINCIA Y TIPO DE CANDIDATURA | C27: 19
A28: Cuadro 20 | B28: COMPOSICIÓN DE LAS PAPELETAS POR SEXO, SEGÚN CANDIDATURAS Y CARGO | C28: 20
A29: Gráfico 3 | B29: DISTRIBUCIÓN DE LAS CANDIDATURAS POR SEXO, SEGÚN TIPO DE CANDIDATURA | C29: G3
A30: Cuadro 21 | B30: CANDIDATURAS A ALCALDÍAS Y VICEALCALDÍAS POR SEXO SEGÚN PARTIDO | C30: 21
A31: Cuadro 22 | B31: CANDIDATURAS A ALCALDÍAS Y VICEALCALDÍAS POR SEXO SEGÚN PROVINCIA Y CANTÓN | C31: 22
A32: Cuadro 23 | B32: CANDIDATURAS A REGIDORES (AS) EN PROPIEDAD Y SUPLENCIA POR SEXO, SEGÚN PARTIDO | C32: 23
A33: Cuadro 24 | B33: CANDIDATURAS A REGIDORES (AS) EN PROPIEDAD Y SUPLENCIA POR SEXO, SEGÚN PROVINCIA Y CANTÓN | C33: 24
A34: Cuadro 25 | B34: CANDIDATURAS A SÍNDICOS(AS) EN PROPIEDAD Y SUPLENCIA POR SEXO, SEGÚN PARTIDO | C34: 25
A35: Cuadro 26 | B35: CANDIDATURAS A SÍNDICOS(AS) EN PROPIEDAD Y SUPLENCIA POR SEXO, SEGÚN PROVINCIA Y CANTÓN | C35: 26
A36: Cuadro 27 | B36: CANDIDATURAS A CONCEJALES DE DISTRITO EN PROPIEDAD Y SUPLENCIA POR SEXO, SEGÚN PARTIDO | C36: 27
A37: Cuadro 28 | B37: CANDIDATURAS A CONCEJALES DE DISTRITO EN PROPIEDAD Y SUPLENCIA POR SEXO, SEGÚN PROVINCIA Y CANTÓN | C37: 28
A38: Cuadro 29 | B38: CANDIDATURAS A INTENDENCIAS Y VICEINTENDENCIAS POR SEXO, SEGÚN PARTIDO | C38: 29
A39: Cuadro 30 | B39: CANDIDATURAS A INTENDENCIAS Y VICEINTENDENCIAS POR SEXO, SEGÚN PROVINCIA Y DISTRITO ADMINISTRATIVO | C39: 30
A40: Cuadro 31 | B40: CANDIDATURAS A CONCEJALES MUNICIPALES DE DISTRITO EN PROPIEDAD Y SUPLENCIA POR SEXO, SEGÚN PARTIDO | C40: 31
A41: Cuadro 32 | B41: CANDIDATURAS A CONCEJALES MUNICIPALES DE DISTRITO EN PROPIEDAD Y SUPLENCIA POR SEXO, SEGÚN PROVINCIA Y DISTRITO ADMINISTRATIVO | C41: 32
B42: ---- MENU PRINCIPAL ---- | C42: INICIO
A44: Cuadro 33 | B44: CANDIDATURAS A ALCALDÍAS Y VICEALCALDÍAS POR SEXO, SEGÚN GRUPOS DE EDAD | C44: 33
A45: Gráfico 4 | B45: DISTRIBUCIÓN DE LAS CANDIDIDATURAS A ALCALDÍAS Y VICEALCALDÍAS POR SEXO Y GRUPOS DE EDAD | C45: G4
A46: Cuadro 34 | B46: CANDIDATURAS A REGIDORES(AS) EN PROPIEDAD Y SUPLENCIA POR SEXO, SEGÚN GRUPOS DE EDAD | C46: 34
A47: Gráfico 5 | B47: DISTRIBUCIÓN DE LAS CANDIDATURAS A REGIDORES (AS) POR SEXO Y GRUPOS DE EDAD | C47: G5
A48: Cuadro 35 | B48: CANDIDATURAS A SÍNDICOS(AS) EN PROPIEDAD Y SUPLENCIA POR SEXO, SEGÚN GRUPOS DE EDAD | C48: 35
A49: Gráfico 6 | B49: DISTRIBUCIÓN DE LAS CANDIDATURAS A SÍNDICOS(AS) POR SEXO Y GRUPOS DE EDAD | C49: G6
A50: Cuadro 36 | B50: CANDIDATURAS A CONCEJALES DE DISTRITO EN PROPIEDAD Y SUPLENCIA POR SEXO, SEGÚN GRUPOS DE EDAD | C50: 36
A51: Gráfico 7 | B51: DISTRIBUCIÓN DE LAS CANDIDATURAS A CONCEJALES DE DISTRITO, POR SEXO Y GRUPOS DE EDAD | C51: G7
A52: Cuadro 37 | B52: CANDIDATURAS A INTENDENCIAS Y VICEINTENDENCIAS POR SEXO, SEGÚN GRUPOS DE EDAD | C52: 37
A53: Cuadro 38 | B53: CANDIDATURAS A CONCEJALES MUNICIPALES DE DISTRITO EN PROPIEDAD Y SUPLENCIA, POR SEXO, SEGÚN GRUPOS DE EDAD | C53: 38
B54: ---- MENU PRINCIPAL ---- | C54: INICIO
